Workbook

Sheet INTRO
C1: Cette version sera utilisée par les pays endémiques à la Loase
B2: Formulaire de Rapport Commun v.3.1 (L)
B4: Le but de ce formulaire de rapport commun - disponible sous forme de fichier Excel - est de mettre à disposition des autorités sanitaires nationales et des gestionnaires de données un outil standardisé qui réponde aux défis, facilite l'intégration et par conséquent contribue à améliorer la gestion de programme. Ce formulaire tend à standardiser le rapport de résultats des programmes nationaux, améliore la disponibilité et la coordination des données de chimioprévention à travers les Bureaux des Régions de l'Organisation mondiale de la Santé. Les autorités nationales sont priées de compléter ce formulaire et de le soumettre à l'Organisation mondiale de la Santé avant le 15 août de l'année en cours pour rapporter les données des activités de chimioprévention mises en oeuvre l'année précédente.
B6: Structure de l'application (feuilles de travail) :
B8: INTRO | C8: Cette feuille contient des instructions pour compléter le formulaire de rapport commun et des informations sur le statut de la chimioprévention pour les maladies d'endémie du pays.
B9: COUNTRY_INFO | C9: Cette feuille contient des informations sur la structure administrative du pays, la population par groupe d'âge, le statut d'endémicité pour chaque maladie, la population devant être traitée par chimioprévention, les interventions prévues et les interventions mises en oeuvre.
B10: MDA1, MDA2, MDA3, T1, T2 et T3 | C10: Ces feuilles contiennent des informations sur l'endémicité des districts ciblés pour le traitement aux médicaments spécifiques pour la chimioprévention, les plans de traitement, et le nombre de personnes traitées par groupe d'âge.
B11: DISTRICT | C11: Cette feuille contient un résumé sur les personnes traitées, par maladie, au niveau de mise en oeuvre. Si les données par genre (sexe) sont disponibles, merci de les saisir.
B12: SUMMARY | C12: Cette feuille contient un résumé sur les personnes traitées, par maladie et par type d'intervention de chimioprévention. Avant de générer le rapport (exécuter macro), veuillez sélectionner la maladie pour laquelle vous souhaitez un rapport. Veuillez suivre le même processus pour générer les divers rapports. Cette feuille doit être imprimée et soumise comme formulaire de rapport commun (voir les instructions pour la soumission du formulaire sous la feuille SUMMARY).
B14: Instructions pour la saisie des données
B16: La plupart des cellules des feuilles de travail mentionnées ci-dessus contiennent des formules calculées automatiquement en fonction du protocole de traitement recommandé par l'OMS pour chaque maladie. Voir : http://www.who.int/neglected_diseases/preventive_chemotherapy/pct_manual/en/index.html
B18: Veuillez entrer vos données dans les cellules en fonction de leur code de couleur :
C20: Blanc - la cellule n'est pas protégée. Veuillez entrer la valeur de l'indicateur demandé.
C22: Jaune - la cellule est protégée et inclut le nom de l'indicateur. Aucune entrée de données requise.
C24: Orange - la cellule n'est pas protégée et contient un menu déroulant. Veuillez sélectionner la valeur dans le menu déroulant.
C27: Vert - la cellule n'est pas protégée et contient des formules. Veuillez changer la valeur indiquée uniquement si vos données sont différentes de celles calculées automatiquement.
C30: Bleu - la cellule est protégée et contient des formules. Aucune entrée de données requise.
B32: Données pays
B34: PAYS | E34: Cameroon
B36: Année de rapport des données | E36: 2020
B38: Le pays est-il endémique à la filariose lymphatique (FL) ? | E38: Endémique
B40: Le pays est-il endémique à l'onchocercose (ONCHO) ? | E40: Endémique
B42: Le pays est-il endémique aux géohelminthiases (STH) ? | E42: Endémique
B44: Le pays est-il endémique à la schistosomiase (SCH) ? | E44: Endémique
B46: Combien d'unités administratives compte le pays ? | E46: 189
B47: Si les données démographiques par groupe d'âge ne sont pas disponibles au second niveau administratif, veuillez entrer la proportion (%) de population, par groupe d'âge, du pays. Si les données sont disponibles, veuillez laisser les cellules vierges.
B48: 1-4 ans | C48: Enfants d'âge pré-scolaire (EAPréS) | E48: 0.1292
B49: 5-14 ans | C49: Enfants d'âge scolaire (EAS) | E49: 0.285
B50: 15 ans et plus | C50: Adultes | E50: 0.545

Sheet COUNTRY_INFO
A1: INFORMATIONS PAYS
A2: Structure administrative, population par groupe d'âge, statut d'endémicité, interventions planifiées et interventions mises en oeuvre | N2: 149695
A4: TOTAL | D4: =SUM(D$9:D$1000) -> 26082387 | E4: =SUM(E$9:E$1000) -> 3369844 | F4: =SUM(F$9:F$1000) -> 7433482 | G4: =SUM(G$9:G$1000) -> 14214900 | M4: =SUM(M$9:M$1000) -> 58244 | N4: =SUM(N$9:N$1000) -> 11348320 | O4: =SUM(O$9:O$1000) -> 3834465 | P4: =SUM(P$9:P$1000) -> 5260194.93
A6: Structure administrative du pays | D6: Population | H6: Endémicité | M6: Population nécessitant la CP | Q6: Nombre de tournées de traitement prévues pour l'année | U6: Mise en oeuvre de la chimioprévention | AA6: mda1 | AB6: mda3 | AC6: t1 | AD6: t2 | AE6: t3r1 | AF6: t3r2
A7: Pays | B7: Région/Département | C7: District | D7: Total | E7: EAPréS | F7: EAS | G7: Adultes | H7: FL | I7: Oncho | J7: STH | K7: SCH | L7: Loa | M7: FL | N7: Oncho | O7: STH | P7: SCH | Q7: FL | R7: Oncho | S7: STH | T7: SCH | U7: TOURNEE 1 | V7: TOURNEE 2 | W7: IU_ID | X7: IU_Name | Y7: x | Z7: x | AA7: x | AB7: x | AC7: x | AD7: x | AE7: x | AF7: x | AG7: x | AH7: x | AI7: x | AJ7: x | AK7: x | AL7: x | AM7: x | AN7: x | AO7: x | AP7: x | AQ7: x | AR7: x | AS7: x | AT7: x | AU7: x | AV7: x | AW7: x | AX7: x | AY7: x | AZ7: x | BA7: x | BB7: x | BC7: x | BD7: x | BE7: x | BF7: x | BG7: x | BH7: x | BI7: x | BJ7: x | BK7: x | BL7: x | BM7: x | BN7: x | BO7: x | BP7: x | BQ7: x | BR7: x | BS7: x | BT7: x | BU7: x | BV7: x | BW7: x | BX7: x | BY7: x
A9: =IF(INTRO!$E$34<>0,INTRO!$E$34,"") -> Cameroon | B9: ADAMAOUA | C9: BANKIM | D9: 112910 | E9: =IF(INTRO!$E$48="","",ROUND($D9*INTRO!$E$48,0)) -> 14588 | F9: =IF(INTRO!$E$49="","",ROUND($D9*INTRO!$E$49,0)) -> 32179 | G9: =IF(INTRO!$E$50="","",ROUND($D9*INTRO!$E$50,0)) -> 61536 | H9: 99 | I9: 1 | J9: 2 | K9: 2 | L9: 1 | M9: =IF(INTRO!$E$38="Endémique", IF($H9>0, IF($H9=4,"Inconnu", IF($H9=99,"Interrompu", $D9)), 0),"Non requis") -> Interrompu | N9: 94354 | O9: =IF(INTRO!$E$42="Endémique", IF(AND($J9>1,$J9<5), IF($J9=4, "Inconnu", E9+F9), 0),"Non requis") -> 46767 | P9: =IF(INTRO!$E$44="Endémique", IF(AND($K9>0,$K9<5), IF($K9=4,"Inconnu", IF($K9=1, $F9*0.33, IF($K9=2, $F9*0.5+$G9*0.2, SUM(F9:G9)))), 0),"Non requis") -> 28396.7 | Q9: 0 | R9: 1 | S9: 1 | T9: 1 | U9: MDA3 (IVM) | V9: T3 (ALB/MBD) | W9: 7420 | X9: BANKIM | AA9: ='MDA1'!K9 -> 0 | AB9: ='MDA3'!O9 -> 33611 | AC9: ='T1'!M9 -> 0 | AD9: ='T2'!K9 -> 32715 | AE9: =T3_R1!L9 -> 31482 | AF9: =T3_R2!L9 -> 0 | AI9: =_xlfn.XLOOKUP($W9,[1]COUNTRY_INFO!$Y$9:$Y$198,[1]COUNTRY_INFO!H$9:H$198) ->  | AJ9: =_xlfn.XLOOKUP($W9,[1]COUNTRY_INFO!$Y$9:$Y$198,[1]COUNTRY_INFO!I$9:I$198) ->  | AK9: =_xlfn.XLOOKUP($W9,[1]COUNTRY_INFO!$Y$9:$Y$198,[1]COUNTRY_INFO!J$9:J$198) ->  | AL9: =_xlfn.XLOOKUP($W9,[1]COUNTRY_INFO!$Y$9:$Y$198,[1]COUNTRY_INFO!K$9:K$198) ->  | AM9: =_xlfn.XLOOKUP($W9,[1]COUNTRY_INFO!$Y$9:$Y$198,[1]COUNTRY_INFO!L$9:L$198) ->  | AN9: =AI9=H9 ->  | AO9: =AJ9=I9 -> 
A10: =IF(INTRO!$E$34<>0,INTRO!$E$34,"") -> Cameroon | B10: ADAMAOUA | C10: BANYO | D10: 155301 | E10: =IF(INTRO!$E$48="","",ROUND($D10*INTRO!$E$48,0)) -> 20065 | F10: =IF(INTRO!$E$49="","",ROUND($D10*INTRO!$E$49,0)) -> 44261 | G10: =IF(INTRO!$E$50="","",ROUND($D10*INTRO!$E$50,0)) -> 84639 | H10: 99 | I10: 1 | J10: 1 | K10: 3 | L10: 1 | M10: =IF(INTRO!$E$38="Endémique", IF($H10>0, IF($H10=4,"Inconnu", IF($H10=99,"Interrompu", $D10)), 0),"Non requis") -> Interrompu | N10: 168981 | O10: =IF(INTRO!$E$42="Endémique", IF(AND($J10>1,$J10<5), IF($J10=4, "Inconnu", E10+F10), 0),"Non requis") -> 0 | P10: =IF(INTRO!$E$44="Endémique", IF(AND($K10>0,$K10<5), IF($K10=4,"Inconnu", IF($K10=1, $F10*0.33, IF($K10=2, $F10*0.5+$G10*0.2, SUM(F10:G10)))), 0),"Non requis") -> 128900 | Q10: 0 | R10: 1 | S10: 1 | T10: 1 | U10: MDA3 (IVM) | V10: T3 (ALB/MBD) | W10: 7421 | X10: BANYO | AA10: ='MDA1'!K10 -> 0 | AB10: ='MDA3'!O10 -> 58526 | AC10: ='T1'!M10 -> 0 | AD10: ='T2'!K10 -> 49855 | AE10: =T3_R1!L10 -> 41103 | AF10: =T3_R2!L10 -> 0 | AI10: =_xlfn.XLOOKUP($W10,[1]COUNTRY_INFO!$Y$9:$Y$198,[1]COUNTRY_INFO!H$9:H$198) ->  | AJ10: =_xlfn.XLOOKUP($W10,[1]COUNTRY_INFO!$Y$9:$Y$198,[1]COUNTRY_INFO!I$9:I$198) ->  | AK10: =_xlfn.XLOOKUP($W10,[1]COUNTRY_INFO!$Y$9:$Y$198,[1]COUNTRY_INFO!J$9:J$198) ->  | AL10: =_xlfn.XLOOKUP($W10,[1]COUNTRY_INFO!$Y$9:$Y$198,[1]COUNTRY_INFO!K$9:K$198) ->  | AM10: =_xlfn.XLOOKUP($W10,[1]COUNTRY_INFO!$Y$9:$Y$198,[1]COUNTRY_INFO!L$9:L$198) ->  | AN10: =AI10=H10 ->  | AO10: =AJ10=I10 ->  | AP10: =AK10=J10 ->  | AQ10: =AL10=K10 ->  | AR10: =AM10=L10 -> 
A11: =IF(INTRO!$E$34<>0,INTRO!$E$34,"") -> Cameroon | B11: ADAMAOUA | C11: DJOHONG | D11: 59523 | E11: =IF(INTRO!$E$48="","",ROUND($D11*INTRO!$E$48,0)) -> 7690 | F11: =IF(INTRO!$E$49="","",ROUND($D11*INTRO!$E$49,0)) -> 16964 | G11: =IF(INTRO!$E$50="","",ROUND($D11*INTRO!$E$50,0)) -> 32440 | H11: 0 | I11: 1 | J11: 1 | K11: 2 | L11: 1 | M11: =IF(INTRO!$E$38="Endémique", IF($H11>0, IF($H11=4,"Inconnu", IF($H11=99,"Interrompu", $D11)), 0),"Non requis") -> 0 | N11: 67727 | O11: =IF(INTRO!$E$42="Endémique", IF(AND($J11>1,$J11<5), IF($J11=4, "Inconnu", E11+F11), 0),"Non requis") -> 0 | P11: =IF(INTRO!$E$44="Endémique", IF(AND($K11>0,$K11<5), IF($K11=4,"Inconnu", IF($K11=1, $F11*0.33, IF($K11=2, $F11*0.5+$G11*0.2, SUM(F11:G11)))), 0),"Non requis") -> 14970 | Q11: 0 | R11: 1 | S11: 0 | T11: 0 | U11: MDA3 (IVM) | W11: 7422 | X11: DJOHONG | AA11: ='MDA1'!K11 -> 0 | AB11: ='MDA3'!O11 -> 23404 | AC11: ='T1'!M11 -> 0 | AD11: ='T2'!K11 -> 0 | AE11: =T3_R1!L11 -> 0 | AF11: =T3_R2!L11 -> 0 | AI11: =_xlfn.XLOOKUP($W11,[1]COUNTRY_INFO!$Y$9:$Y$198,[1]COUNTRY_INFO!H$9:H$198) ->  | AJ11: =_xlfn.XLOOKUP($W11,[1]COUNTRY_INFO!$Y$9:$Y$198,[1]COUNTRY_INFO!I$9:I$198) ->  | AK11: =_xlfn.XLOOKUP($W11,[1]COUNTRY_INFO!$Y$9:$Y$198,[1]COUNTRY_INFO!J$9:J$198) ->  | AL11: =_xlfn.XLOOKUP($W11,[1]COUNTRY_INFO!$Y$9:$Y$198,[1]COUNTRY_INFO!K$9:K$198) ->  | AM11: =_xlfn.XLOOKUP($W11,[1]COUNTRY_INFO!$Y$9:$Y$198,[1]COUNTRY_INFO!L$9:L$198) -> 
A12: =IF(INTRO!$E$34<>0,INTRO!$E$34,"") -> Cameroon | B12: ADAMAOUA | C12: MEIGANGA | D12: 159782 | E12: =IF(INTRO!$E$48="","",ROUND($D12*INTRO!$E$48,0)) -> 20644 | F12: =IF(INTRO!$E$49="","",ROUND($D12*INTRO!$E$49,0)) -> 45538 | G12: =IF(INTRO!$E$50="","",ROUND($D12*INTRO!$E$50,0)) -> 87081 | H12: 99 | I12: 1 | J12: 1 | K12: 2 | L12: 1 | M12: =IF(INTRO!$E$38="Endémique", IF($H12>0, IF($H12=4,"Inconnu", IF($H12=99,"Interrompu", $D12)), 0),"Non requis") -> Interrompu | N12: 141232 | O12: =IF(INTRO!$E$42="Endémique", IF(AND($J12>1,$J12<5), IF($J12=4, "Inconnu", E12+F12), 0),"Non requis") -> 0 | P12: =IF(INTRO!$E$44="Endémique", IF(AND($K12>0,$K12<5), IF($K12=4,"Inconnu", IF($K12=1, $F12*0.33, IF($K12=2, $F12*0.5+$G12*0.2, SUM(F12:G12)))), 0),"Non requis") -> 40185.2 | Q12: 0 | R12: 1 | S12: 0 | T12: 0 | U12: MDA3 (IVM) | W12: 7423 | X12: MEIGANGA | AA12: ='MDA1'!K12 -> 0 | AB12: ='MDA3'!O12 -> 50338 | AC12: ='T1'!M12 -> 0 | AD12: ='T2'!K12 -> 0 | AE12: =T3_R1!L12 -> 0 | AF12: =T3_R2!L12 -> 0 | AI12: =_xlfn.XLOOKUP($W12,[1]COUNTRY_INFO!$Y$9:$Y$198,[1]COUNTRY_INFO!H$9:H$198) ->  | AJ12: =_xlfn.XLOOKUP($W12,[1]COUNTRY_INFO!$Y$9:$Y$198,[1]COUNTRY_INFO!I$9:I$198) ->  | AK12: =_xlfn.XLOOKUP($W12,[1]COUNTRY_INFO!$Y$9:$Y$198,[1]COUNTRY_INFO!J$9:J$198) ->  | AL12: =_xlfn.XLOOKUP($W12,[1]COUNTRY_INFO!$Y$9:$Y$198,[1]COUNTRY_INFO!K$9:K$198) ->  | AM12: =_xlfn.XLOOKUP($W12,[1]COUNTRY_INFO!$Y$9:$Y$198,[1]COUNTRY_INFO!L$9:L$198) -> 
A13: =IF(INTRO!$E$34<>0,INTRO!$E$34,"") -> Cameroon | B13: ADAMAOUA | C13: NGAOUNDAL | D13: 87791 | E13: =IF(INTRO!$E$48="","",ROUND($D13*INTRO!$E$48,0)) -> 11343 | F13: =IF(INTRO!$E$49="","",ROUND($D13*INTRO!$E$49,0)) -> 25020 | G13: =IF(INTRO!$E$50="","",ROUND($D13*INTRO!$E$50,0)) -> 47846 | H13: 0 | I13: 1 | J13: 1 | K13: 1 | L13: 1 | M13: =IF(INTRO!$E$38="Endémique", IF($H13>0, IF($H13=4,"Inconnu", IF($H13=99,"Interrompu", $D13)), 0),"Non requis") -> 0 | N13: 86365 | O13: =IF(INTRO!$E$42="Endémique", IF(AND($J13>1,$J13<5), IF($J13=4, "Inconnu", E13+F13), 0),"Non requis") -> 0 | P13: =IF(INTRO!$E$44="Endémique", IF(AND($K13>0,$K13<5), IF($K13=4,"Inconnu", IF($K13=1, $F13*0.33, IF($K13=2, $F13*0.5+$G13*0.2, SUM(F13:G13)))), 0),"Non requis") -> 8256.6 | Q13: 0 | R13: 1 | S13: 1 | T13: 1 | U13: MDA3 (IVM) | V13: T3 (ALB/MBD) | W13: 7424 | X13: NGAOUNDAL | AA13: ='MDA1'!K13 -> 0 | AB13: ='MDA3'!O13 -> 30810 | AC13: ='T1'!M13 -> 0 | AD13: ='T2'!K13 -> 23957 | AE13: =T3_R1!L13 -> 23953 | AF13: =T3_R2!L13 -> 0 | AI13: =_xlfn.XLOOKUP($W13,[1]COUNTRY_INFO!$Y$9:$Y$198,[1]COUNTRY_INFO!H$9:H$198) ->  | AJ13: =_xlfn.XLOOKUP($W13,[1]COUNTRY_INFO!$Y$9:$Y$198,[1]COUNTRY_INFO!I$9:I$198) ->  | AK13: =_xlfn.XLOOKUP($W13,[1]COUNTRY_INFO!$Y$9:$Y$198,[1]COUNTRY_INFO!J$9:J$198) ->  | AL13: =_xlfn.XLOOKUP($W13,[1]COUNTRY_INFO!$Y$9:$Y$198,[1]COUNTRY_INFO!K$9:K$198) ->  | AM13: =_xlfn.XLOOKUP($W13,[1]COUNTRY_INFO!$Y$9:$Y$198,[1]COUNTRY_INFO!L$9:L$198) -> 
A14: =IF(INTRO!$E$34<>0,INTRO!$E$34,"") -> Cameroon | B14: ADAMAOUA | C14: NGAOUNDERE RURAL | D14: 225859 | E14: =IF(INTRO!$E$48="","",ROUND($D14*INTRO!$E$48,0)) -> 29181 | F14: =IF(INTRO!$E$49="","",ROUND($D14*INTRO!$E$49,0)) -> 64370 | G14: =IF(INTRO!$E$50="","",ROUND($D14*INTRO!$E$50,0)) -> 123093 | H14: 99 | I14: 1 | J14: 1 | K14: 2 | L14: 1 | M14: =IF(INTRO!$E$38="Endémique", IF($H14>0, IF($H14=4,"Inconnu", IF($H14=99,"Interrompu", $D14)), 0),"Non requis") -> Interrompu | N14: 192923 | O14: =IF(INTRO!$E$42="Endémique", IF(AND($J14>1,$J14<5), IF($J14=4, "Inconnu", E14+F14), 0),"Non requis") -> 0 | P14: =IF(INTRO!$E$44="Endémique", IF(AND($K14>0,$K14<5), IF($K14=4,"Inconnu", IF($K14=1, $F14*0.33, IF($K14=2, $F14*0.5+$G14*0.2, SUM(F14:G14)))), 0),"Non requis") -> 56803.6 | Q14: 0 | R14: 1 | S14: 0 | T14: 0 | U14: MDA3 (IVM) | W14: 7425 | X14: NGAOUNDERE RURAL | AA14: ='MDA1'!K14 -> 0 | AB14: ='MDA3'!O14 -> 67710 | AC14: ='T1'!M14 -> 0 | AD14: ='T2'!K14 -> 0 | AE14: =T3_R1!L14 -> 0 | AF14: =T3_R2!L14 -> 0 | AI14: =_xlfn.XLOOKUP($W14,[1]COUNTRY_INFO!$Y$9:$Y$198,[1]COUNTRY_INFO!H$9:H$198) ->  | AJ14: =_xlfn.XLOOKUP($W14,[1]COUNTRY_INFO!$Y$9:$Y$198,[1]COUNTRY_INFO!I$9:I$198) ->  | AK14: =_xlfn.XLOOKUP($W14,[1]COUNTRY_INFO!$Y$9:$Y$198,[1]COUNTRY_INFO!J$9:J$198) ->  | AL14: =_xlfn.XLOOKUP($W14,[1]COUNTRY_INFO!$Y$9:$Y$198,[1]COUNTRY_INFO!K$9:K$198) ->  | AM14: =_xlfn.XLOOKUP($W14,[1]COUNTRY_INFO!$Y$9:$Y$198,[1]COUNTRY_INFO!L$9:L$198) -> 
A15: =IF(INTRO!$E$34<>0,INTRO!$E$34,"") -> Cameroon | B15: ADAMAOUA | C15: NGAOUNDERE URBAIN | D15: 311237 | E15: =IF(INTRO!$E$48="","",ROUND($D15*INTRO!$E$48,0)) -> 40212 | F15: =IF(INTRO!$E$49="","",ROUND($D15*INTRO!$E$49,0)) -> 88703 | G15: =IF(INTRO!$E$50="","",ROUND($D15*INTRO!$E$50,0)) -> 169624 | H15: 99 | I15: 1 | J15: 1 | K15: 1 | L15: 1 | M15: =IF(INTRO!$E$38="Endémique", IF($H15>0, IF($H15=4,"Inconnu", IF($H15=99,"Interrompu", $D15)), 0),"Non requis") -> Interrompu | N15: 155188 | O15: =IF(INTRO!$E$42="Endémique", IF(AND($J15>1,$J15<5), IF($J15=4, "Inconnu", E15+F15), 0),"Non requis") -> 0 | P15: =IF(INTRO!$E$44="Endémique", IF(AND($K15>0,$K15<5), IF($K15=4,"Inconnu", IF($K15=1, $F15*0.33, IF($K15=2, $F15*0.5+$G15*0.2, SUM(F15:G15)))), 0),"Non requis") -> 29271.99 | Q15: 0 | R15: 1 | S15: 1 | T15: 1 | U15: MDA3 (IVM) | V15: T3 (ALB/MBD) | W15: 7426 | X15: NGAOUNDERE URBAIN | AA15: ='MDA1'!K15 -> 0 | AB15: ='MDA3'!O15 -> 47876 | AC15: ='T1'!M15 -> 0 | AD15: ='T2'!K15 -> 115775 | AE15: =T3_R1!L15 -> 119420 | AF15: =T3_R2!L15 -> 0 | AI15: =_xlfn.XLOOKUP($W15,[1]COUNTRY_INFO!$Y$9:$Y$198,[1]COUNTRY_INFO!H$9:H$198) ->  | AJ15: =_xlfn.XLOOKUP($W15,[1]COUNTRY_INFO!$Y$9:$Y$198,[1]COUNTRY_INFO!I$9:I$198) ->  | AK15: =_xlfn.XLOOKUP($W15,[1]COUNTRY_INFO!$Y$9:$Y$198,[1]COUNTRY_INFO!J$9:J$198) ->  | AL15: =_xlfn.XLOOKUP($W15,[1]COUNTRY_INFO!$Y$9:$Y$198,[1]COUNTRY_INFO!K$9:K$198) ->  | AM15: =_xlfn.XLOOKUP($W15,[1]COUNTRY_INFO!$Y$9:$Y$198,[1]COUNTRY_INFO!L$9:L$198) -> 
A16: =IF(INTRO!$E$34<>0,INTRO!$E$34,"") -> Cameroon | B16: ADAMAOUA | C16: TIBATI | D16: 106001 | E16: =IF(INTRO!$E$48="","",ROUND($D16*INTRO!$E$48,0)) -> 13695 | F16: =IF(INTRO!$E$49="","",ROUND($D16*INTRO!$E$49,0)) -> 30210 | G16: =IF(INTRO!$E$50="","",ROUND($D16*INTRO!$E$50,0)) -> 57771 | H16: 0 | I16: 1 | J16: 1 | K16: 1 | L16: 1 | M16: =IF(INTRO!$E$38="Endémique", IF($H16>0, IF($H16=4,"Inconnu", IF($H16=99,"Interrompu", $D16)), 0),"Non requis") -> 0 | N16: 97392 | O16: =IF(INTRO!$E$42="Endémique", IF(AND($J16>1,$J16<5), IF($J16=4, "Inconnu", E16+F16), 0),"Non requis") -> 0 | P16: =IF(INTRO!$E$44="Endémique", IF(AND($K16>0,$K16<5), IF($K16=4,"Inconnu", IF($K16=1, $F16*0.33, IF($K16=2, $F16*0.5+$G16*0.2, SUM(F16:G16)))), 0),"Non requis") -> 9969.3 | Q16: 0 | R16: 1 | S16: 0 | T16: 0 | U16: MDA3 (IVM) | W16: 7427 | X16: TIBATI | AA16: ='MDA1'!K16 -> 0 | AB16: ='MDA3'!O16 -> 30493 | AC16: ='T1'!M16 -> 0 | AD16: ='T2'!K16 -> 0 | AE16: =T3_R1!L16 -> 0 | AF16: =T3_R2!L16 -> 0 | AI16: =_xlfn.XLOOKUP($W16,[1]COUNTRY_INFO!$Y$9:$Y$198,[1]COUNTRY_INFO!H$9:H$198) ->  | AJ16: =_xlfn.XLOOKUP($W16,[1]COUNTRY_INFO!$Y$9:$Y$198,[1]COUNTRY_INFO!I$9:I$198) ->  | AK16: =_xlfn.XLOOKUP($W16,[1]COUNTRY_INFO!$Y$9:$Y$198,[1]COUNTRY_INFO!J$9:J$198) ->  | AL16: =_xlfn.XLOOKUP($W16,[1]COUNTRY_INFO!$Y$9:$Y$198,[1]COUNTRY_INFO!K$9:K$198) ->  | AM16: =_xlfn.XLOOKUP($W16,[1]COUNTRY_INFO!$Y$9:$Y$198,[1]COUNTRY_INFO!L$9:L$198) -> 
A17: =IF(INTRO!$E$34<>0,INTRO!$E$34,"") -> Cameroon | B17: ADAMAOUA | C17: TIGNERE | D17: 127530 | E17: =IF(INTRO!$E$48="","",ROUND($D17*INTRO!$E$48,0)) -> 16477 | F17: =IF(INTRO!$E$49="","",ROUND($D17*INTRO!$E$49,0)) -> 36346 | G17: =IF(INTRO!$E$50="","",ROUND($D17*INTRO!$E$50,0)) -> 69504 | H17: 99 | I17: 1 | J17: 1 | K17: 3 | L17: 0 | M17: =IF(INTRO!$E$38="Endémique", IF($H17>0, IF($H17=4,"Inconnu", IF($H17=99,"Interrompu", $D17)), 0),"Non requis") -> Interrompu | N17: 134193 | O17: =IF(INTRO!$E$42="Endémique", IF(AND($J17>1,$J17<5), IF($J17=4, "Inconnu", E17+F17), 0),"Non requis") -> 0 | P17: =IF(INTRO!$E$44="Endémique", IF(AND($K17>0,$K17<5), IF($K17=4,"Inconnu", IF($K17=1, $F17*0.33, IF($K17=2, $F17*0.5+$G17*0.2, SUM(F17:G17)))), 0),"Non requis") -> 105850 | Q17: 0 | R17: 1 | S17: 1 | T17: 1 | U17: MDA3 (IVM) | V17: T3 (ALB/MBD) | W17: 7428 | X17: TIGNERE | AA17: ='MDA1'!K17 -> 0 | AB17: ='MDA3'!O17 -> 45701 | AC17: ='T1'!M17 -> 0 | AD17: ='T2'!K17 -> 33800 | AE17: =T3_R1!L17 -> 33228 | AF17: =T3_R2!L17 -> 0 | AI17: =_xlfn.XLOOKUP($W17,[1]COUNTRY_INFO!$Y$9:$Y$198,[1]COUNTRY_INFO!H$9:H$198) ->  | AJ17: =_xlfn.XLOOKUP($W17,[1]COUNTRY_INFO!$Y$9:$Y$198,[1]COUNTRY_INFO!I$9:I$198) ->  | AK17: =_xlfn.XLOOKUP($W17,[1]COUNTRY_INFO!$Y$9:$Y$198,[1]COUNTRY_INFO!J$9:J$198) ->  | AL17: =_xlfn.XLOOKUP($W17,[1]COUNTRY_INFO!$Y$9:$Y$198,[1]COUNTRY_INFO!K$9:K$198) ->  | AM17: =_xlfn.XLOOKUP($W17,[1]COUNTRY_INFO!$Y$9:$Y$198,[1]COUNTRY_INFO!L$9:L$198) -> 
A18: =IF(INTRO!$E$34<>0,INTRO!$E$34,"") -> Cameroon | B18: CENTRE | C18: AKONOLINGA | D18: 87660 | E18: =IF(INTRO!$E$48="","",ROUND($D18*INTRO!$E$48,0)) -> 11326 | F18: =IF(INTRO!$E$49="","",ROUND($D18*INTRO!$E$49,0)) -> 24983 | G18: =IF(INTRO!$E$50="","",ROUND($D18*INTRO!$E$50,0)) -> 47775 | H18: 0 | I18: 4 | J18: 3 | K18: 1 | L18: 1 | M18: =IF(INTRO!$E$38="Endémique", IF($H18>0, IF($H18=4,"Inconnu", IF($H18=99,"Interrompu", $D18)), 0),"Non requis") -> 0 | N18: =IF(INTRO!$E$40="Endémique", IF($I18>0, IF($I18=4,"Inconnu",IF($I18=99,"Interrompu", $D18)), 0),"Non requis") -> Inconnu | O18: =IF(INTRO!$E$42="Endémique", IF(AND($J18>1,$J18<5), IF($J18=4, "Inconnu", E18+F18), 0),"Non requis") -> 36309 | P18: =IF(INTRO!$E$44="Endémique", IF(AND($K18>0,$K18<5), IF($K18=4,"Inconnu", IF($K18=1, $F18*0.33, IF($K18=2, $F18*0.5+$G18*0.2, SUM(F18:G18)))), 0),"Non requis") -> 8244.39 | Q18: 0 | R18: 0 | S18: 1 | T18: 0 | V18: T3 (ALB/MBD) | W18: 7429 | X18: AKONOLINGA | AA18: ='MDA1'!K18 -> 0 | AB18: ='MDA3'!O18 -> 0 | AC18: ='T1'!M18 -> 0 | AD18: ='T2'!K18 -> 0 | AE18: =T3_R1!L18 -> 26406 | AF18: =T3_R2!L18 -> 0 | AI18: =_xlfn.XLOOKUP($W18,[1]COUNTRY_INFO!$Y$9:$Y$198,[1]COUNTRY_INFO!H$9:H$198) ->  | AJ18: =_xlfn.XLOOKUP($W18,[1]COUNTRY_INFO!$Y$9:$Y$198,[1]COUNTRY_INFO!I$9:I$198) ->  | AK18: =_xlfn.XLOOKUP($W18,[1]COUNTRY_INFO!$Y$9:$Y$198,[1]COUNTRY_INFO!J$9:J$198) ->  | AL18: =_xlfn.XLOOKUP($W18,[1]COUNTRY_INFO!$Y$9:$Y$198,[1]COUNTRY_INFO!K$9:K$198) ->  | AM18: =_xlfn.XLOOKUP($W18,[1]COUNTRY_INFO!$Y$9:$Y$198,[1]COUNTRY_INFO!L$9:L$198) -> 
A19: =IF(INTRO!$E$34<>0,INTRO!$E$34,"") -> Cameroon | B19: CENTRE | C19: AWAE | D19: 28421 | E19: =IF(INTRO!$E$48="","",ROUND($D19*INTRO!$E$48,0)) -> 3672 | F19: =IF(INTRO!$E$49="","",ROUND($D19*INTRO!$E$49,0)) -> 8100 | G19: =IF(INTRO!$E$50="","",ROUND($D19*INTRO!$E$50,0)) -> 15489 | H19: 0 | I19: 4 | J19: 2 | K19: 0 | L19: 1 | M19: =IF(INTRO!$E$38="Endémique", IF($H19>0, IF($H19=4,"Inconnu", IF($H19=99,"Interrompu", $D19)), 0),"Non requis") -> 0 | N19: =IF(INTRO!$E$40="Endémique", IF($I19>0, IF($I19=4,"Inconnu",IF($I19=99,"Interrompu", $D19)), 0),"Non requis") -> Inconnu | O19: =IF(INTRO!$E$42="Endémique", IF(AND($J19>1,$J19<5), IF($J19=4, "Inconnu", E19+F19), 0),"Non requis") -> 11772 | P19: =IF(INTRO!$E$44="Endémique", IF(AND($K19>0,$K19<5), IF($K19=4,"Inconnu", IF($K19=1, $F19*0.33, IF($K19=2, $F19*0.5+$G19*0.2, SUM(F19:G19)))), 0),"Non requis") -> 0 | Q19: 0 | R19: 0 | S19: 1 | T19: 0 | V19: T3 (ALB/MBD) | W19: 7430 | X19: AWAE | AA19: ='MDA1'!K19 -> 0 | AB19: ='MDA3'!O19 -> 0 | AC19: ='T1'!M19 -> 0 | AD19: ='T2'!K19 -> 0 | AE19: =T3_R1!L19 -> 7089 | AF19: =T3_R2!L19 -> 0 | AI19: =_xlfn.XLOOKUP($W19,[1]COUNTRY_INFO!$Y$9:$Y$198,[1]COUNTRY_INFO!H$9:H$198) ->  | AJ19: =_xlfn.XLOOKUP($W19,[1]COUNTRY_INFO!$Y$9:$Y$198,[1]COUNTRY_INFO!I$9:I$198) ->  | AK19: =_xlfn.XLOOKUP($W19,[1]COUNTRY_INFO!$Y$9:$Y$198,[1]COUNTRY_INFO!J$9:J$198) ->  | AL19: =_xlfn.XLOOKUP($W19,[1]COUNTRY_INFO!$Y$9:$Y$198,[1]COUNTRY_INFO!K$9:K$198) ->  | AM19: =_xlfn.XLOOKUP($W19,[1]COUNTRY_INFO!$Y$9:$Y$198,[1]COUNTRY_INFO!L$9:L$198) -> 
A20: =IF(INTRO!$E$34<>0,INTRO!$E$34,"") -> Cameroon | B20: CENTRE | C20: AYOS | D20: 42739 | E20: =IF(INTRO!$E$48="","",ROUND($D20*INTRO!$E$48,0)) -> 5522 | F20: =IF(INTRO!$E$49="","",ROUND($D20*INTRO!$E$49,0)) -> 12181 | G20: =IF(INTRO!$E$50="","",ROUND($D20*INTRO!$E$50,0)) -> 23293 | H20: 0 | I20: 4 | J20: 2 | K20: 0 | L20: 1 | M20: =IF(INTRO!$E$38="Endémique", IF($H20>0, IF($H20=4,"Inconnu", IF($H20=99,"Interrompu", $D20)), 0),"Non requis") -> 0 | N20: =IF(INTRO!$E$40="Endémique", IF($I20>0, IF($I20=4,"Inconnu",IF($I20=99,"Interrompu", $D20)), 0),"Non requis") -> Inconnu | O20: =IF(INTRO!$E$42="Endémique", IF(AND($J20>1,$J20<5), IF($J20=4, "Inconnu", E20+F20), 0),"Non requis") -> 17703 | P20: =IF(INTRO!$E$44="Endémique", IF(AND($K20>0,$K20<5), IF($K20=4,"Inconnu", IF($K20=1, $F20*0.33, IF($K20=2, $F20*0.5+$G20*0.2, SUM(F20:G20)))), 0),"Non requis") -> 0 | Q20: 0 | R20: 0 | S20: 1 | T20: 1 | V20: T3 (ALB/MBD) | W20: 7431 | X20: AYOS | AA20: ='MDA1'!K20 -> 0 | AB20: ='MDA3'!O20 -> 0 | AC20: ='T1'!M20 -> 0 | AD20: ='T2'!K20 -> 9834 | AE20: =T3_R1!L20 -> 14833 | AF20: =T3_R2!L20 -> 0 | AI20: =_xlfn.XLOOKUP($W20,[1]COUNTRY_INFO!$Y$9:$Y$198,[1]COUNTRY_INFO!H$9:H$198) ->  | AJ20: =_xlfn.XLOOKUP($W20,[1]COUNTRY_INFO!$Y$9:$Y$198,[1]COUNTRY_INFO!I$9:I$198) ->  | AK20: =_xlfn.XLOOKUP($W20,[1]COUNTRY_INFO!$Y$9:$Y$198,[1]COUNTRY_INFO!J$9:J$198) ->  | AL20: =_xlfn.XLOOKUP($W20,[1]COUNTRY_INFO!$Y$9:$Y$198,[1]COUNTRY_INFO!K$9:K$198) ->  | AM20: =_xlfn.XLOOKUP($W20,[1]COUNTRY_INFO!$Y$9:$Y$198,[1]COUNTRY_INFO!L$9:L$198) -> 
A21: =IF(INTRO!$E$34<>0,INTRO!$E$34,"") -> Cameroon | B21: CENTRE | C21: BAFIA | D21: 169515 | E21: =IF(INTRO!$E$48="","",ROUND($D21*INTRO!$E$48,0)) -> 21901 | F21: =IF(INTRO!$E$49="","",ROUND($D21*INTRO!$E$49,0)) -> 48312 | G21: =IF(INTRO!$E$50="","",ROUND($D21*INTRO!$E$50,0)) -> 92386 | H21: 99 | I21: 1 | J21: 1 | K21: 3 | L21: 1 | M21: =IF(INTRO!$E$38="Endémique", IF($H21>0, IF($H21=4,"Inconnu", IF($H21=99,"Interrompu", $D21)), 0),"Non requis") -> Interrompu | N21: =IF(INTRO!$E$40="Endémique", IF($I21>0, IF($I21=4,"Inconnu",IF($I21=99,"Interrompu", $D21)), 0),"Non requis") -> 169515 | O21: =IF(INTRO!$E$42="Endémique", IF(AND($J21>1,$J21<5), IF($J21=4, "Inconnu", E21+F21), 0),"Non requis") -> 0 | P21: =IF(INTRO!$E$44="Endémique", IF(AND($K21>0,$K21<5), IF($K21=4,"Inconnu", IF($K21=1, $F21*0.33, IF($K21=2, $F21*0.5+$G21*0.2, SUM(F21:G21)))), 0),"Non requis") -> 140698 | Q21: 0 | R21: 0 | S21: 1 | T21: 1 | V21: T3 (ALB/MBD) | W21: 7432 | X21: BAFIA | AA21: ='MDA1'!K21 -> 0 | AB21: ='MDA3'!O21 -> 0 | AC21: ='T1'!M21 -> 0 | AD21: ='T2'!K21 -> 56433 | AE21: =T3_R1!L21 -> 54065 | AF21: =T3_R2!L21 -> 0 | AI21: =_xlfn.XLOOKUP($W21,[1]COUNTRY_INFO!$Y$9:$Y$198,[1]COUNTRY_INFO!H$9:H$198) ->  | AJ21: =_xlfn.XLOOKUP($W21,[1]COUNTRY_INFO!$Y$9:$Y$198,[1]COUNTRY_INFO!I$9:I$198) ->  | AK21: =_xlfn.XLOOKUP($W21,[1]COUNTRY_INFO!$Y$9:$Y$198,[1]COUNTRY_INFO!J$9:J$198) ->  | AL21: =_xlfn.XLOOKUP($W21,[1]COUNTRY_INFO!$Y$9:$Y$198,[1]COUNTRY_INFO!K$9:K$198) ->  | AM21: =_xlfn.XLOOKUP($W21,[1]COUNTRY_INFO!$Y$9:$Y$198,[1]COUNTRY_INFO!L$9:L$198) -> 
A22: =IF(INTRO!$E$34<>0,INTRO!$E$34,"") -> Cameroon | B22: CENTRE | C22: BIYEM ASSI | D22: 387240 | E22: =IF(INTRO!$E$48="","",ROUND($D22*INTRO!$E$48,0)) -> 50031 | F22: =IF(INTRO!$E$49="","",ROUND($D22*INTRO!$E$49,0)) -> 110363 | G22: =IF(INTRO!$E$50="","",ROUND($D22*INTRO!$E$50,0)) -> 211046 | H22: 0 | I22: 4 | J22: 2 | K22: 1 | L22: 1 | M22: =IF(INTRO!$E$38="Endémique", IF($H22>0, IF($H22=4,"Inconnu", IF($H22=99,"Interrompu", $D22)), 0),"Non requis") -> 0 | N22: =IF(INTRO!$E$40="Endémique", IF($I22>0, IF($I22=4,"Inconnu",IF($I22=99,"Interrompu", $D22)), 0),"Non requis") -> Inconnu | O22: =IF(INTRO!$E$42="Endémique", IF(AND($J22>1,$J22<5), IF($J22=4, "Inconnu", E22+F22), 0),"Non requis") -> 160394 | P22: =IF(INTRO!$E$44="Endémique", IF(AND($K22>0,$K22<5), IF($K22=4,"Inconnu", IF($K22=1, $F22*0.33, IF($K22=2, $F22*0.5+$G22*0.2, SUM(F22:G22)))), 0),"Non requis") -> 36419.79 | Q22: 0 | R22: 0 | S22: 1 | T22: 1 | V22: T3 (ALB/MBD) | W22: 7433 | X22: BIYEM ASSI | AA22: ='MDA1'!K22 -> 0 | AB22: ='MDA3'!O22 -> 0 | AC22: ='T1'!M22 -> 0 | AD22: ='T2'!K22 -> 57802 | AE22: =T3_R1!L22 -> 58809 | AF22: =T3_R2!L22 -> 0 | AI22: =_xlfn.XLOOKUP($W22,[1]COUNTRY_INFO!$Y$9:$Y$198,[1]COUNTRY_INFO!H$9:H$198) ->  | AJ22: =_xlfn.XLOOKUP($W22,[1]COUNTRY_INFO!$Y$9:$Y$198,[1]COUNTRY_INFO!I$9:I$198) ->  | AK22: =_xlfn.XLOOKUP($W22,[1]COUNTRY_INFO!$Y$9:$Y$198,[1]COUNTRY_INFO!J$9:J$198) ->  | AL22: =_xlfn.XLOOKUP($W22,[1]COUNTRY_INFO!$Y$9:$Y$198,[1]COUNTRY_INFO!K$9:K$198) ->  | AM22: =_xlfn.XLOOKUP($W22,[1]COUNTRY_INFO!$Y$9:$Y$198,[1]COUNTRY_INFO!L$9:L$198) -> 
A23: =IF(INTRO!$E$34<>0,INTRO!$E$34,"") -> Cameroon | B23: CENTRE | C23: CITE VERTE | D23: 432859 | E23: =IF(INTRO!$E$48="","",ROUND($D23*INTRO!$E$48,0)) -> 55925 | F23: =IF(INTRO!$E$49="","",ROUND($D23*INTRO!$E$49,0)) -> 123365 | G23: =IF(INTRO!$E$50="","",ROUND($D23*INTRO!$E$50,0)) -> 235908 | H23: 0 | I23: 4 | J23: 2 | K23: 0 | L23: 1 | M23: =IF(INTRO!$E$38="Endémique", IF($H23>0, IF($H23=4,"Inconnu", IF($H23=99,"Interrompu", $D23)), 0),"Non requis") -> 0 | N23: =IF(INTRO!$E$40="Endémique", IF($I23>0, IF($I23=4,"Inconnu",IF($I23=99,"Interrompu", $D23)), 0),"Non requis") -> Inconnu | O23: =IF(INTRO!$E$42="Endémique", IF(AND($J23>1,$J23<5), IF($J23=4, "Inconnu", E23+F23), 0),"Non requis") -> 179290 | P23: =IF(INTRO!$E$44="Endémique", IF(AND($K23>0,$K23<5), IF($K23=4,"Inconnu", IF($K23=1, $F23*0.33, IF($K23=2, $F23*0.5+$G23*0.2, SUM(F23:G23)))), 0),"Non requis") -> 0 | Q23: 0 | R23: 0 | S23: 1 | T23: 1 | V23: T3 (ALB/MBD) | W23: 7434 | X23: CITE VERTE | AA23: ='MDA1'!K23 -> 0 | AB23: ='MDA3'!O23 -> 0 | AC23: ='T1'!M23 -> 0 | AD23: ='T2'!K23 -> 400 | AE23: =T3_R1!L23 -> 63320 | AF23: =T3_R2!L23 -> 0 | AI23: =_xlfn.XLOOKUP($W23,[1]COUNTRY_INFO!$Y$9:$Y$198,[1]COUNTRY_INFO!H$9:H$198) ->  | AJ23: =_xlfn.XLOOKUP($W23,[1]COUNTRY_INFO!$Y$9:$Y$198,[1]COUNTRY_INFO!I$9:I$198) ->  | AK23: =_xlfn.XLOOKUP($W23,[1]COUNTRY_INFO!$Y$9:$Y$198,[1]COUNTRY_INFO!J$9:J$198) ->  | AL23: =_xlfn.XLOOKUP($W23,[1]COUNTRY_INFO!$Y$9:$Y$198,[1]COUNTRY_INFO!K$9:K$198) ->  | AM23: =_xlfn.XLOOKUP($W23,[1]COUNTRY_INFO!$Y$9:$Y$198,[1]COUNTRY_INFO!L$9:L$198) -> 
A24: =IF(INTRO!$E$34<>0,INTRO!$E$34,"") -> Cameroon | B24: CENTRE | C24: DJOUNGOLO | D24: 934452 | E24: =IF(INTRO!$E$48="","",ROUND($D24*INTRO!$E$48,0)) -> 120731 | F24: =IF(INTRO!$E$49="","",ROUND($D24*INTRO!$E$49,0)) -> 266319 | G24: =IF(INTRO!$E$50="","",ROUND($D24*INTRO!$E$50,0)) -> 509276 | H24: 0 | I24: 4 | J24: 1 | K24: 1 | L24: 1 | M24: =IF(INTRO!$E$38="Endémique", IF($H24>0, IF($H24=4,"Inconnu", IF($H24=99,"Interrompu", $D24)), 0),"Non requis") -> 0 | N24: =IF(INTRO!$E$40="Endémique", IF($I24>0, IF($I24=4,"Inconnu",IF($I24=99,"Interrompu", $D24)), 0),"Non requis") -> Inconnu | O24: =IF(INTRO!$E$42="Endémique", IF(AND($J24>1,$J24<5), IF($J24=4, "Inconnu", E24+F24), 0),"Non requis") -> 0 | P24: =IF(INTRO!$E$44="Endémique", IF(AND($K24>0,$K24<5), IF($K24=4,"Inconnu", IF($K24=1, $F24*0.33, IF($K24=2, $F24*0.5+$G24*0.2, SUM(F24:G24)))), 0),"Non requis") -> 87885.27 | Q24: 0 | R24: 0 | S24: 1 | T24: 1 | V24: T3 (ALB/MBD) | W24: 7435 | X24: DJOUNGOLO | AA24: ='MDA1'!K24 -> 0 | AB24: ='MDA3'!O24 -> 0 | AC24: ='T1'!M24 -> 0 | AD24: ='T2'!K24 -> 215040 | AE24: =T3_R1!L24 -> 196828 | AF24: =T3_R2!L24 -> 0 | AI24: =_xlfn.XLOOKUP($W24,[1]COUNTRY_INFO!$Y$9:$Y$198,[1]COUNTRY_INFO!H$9:H$198) ->  | AJ24: =_xlfn.XLOOKUP($W24,[1]COUNTRY_INFO!$Y$9:$Y$198,[1]COUNTRY_INFO!I$9:I$198) ->  | AK24: =_xlfn.XLOOKUP($W24,[1]COUNTRY_INFO!$Y$9:$Y$198,[1]COUNTRY_INFO!J$9:J$198) ->  | AL24: =_xlfn.XLOOKUP($W24,[1]COUNTRY_INFO!$Y$9:$Y$198,[1]COUNTRY_INFO!K$9:K$198) ->  | AM24: =_xlfn.XLOOKUP($W24,[1]COUNTRY_INFO!$Y$9:$Y$198,[1]COUNTRY_INFO!L$9:L$198) -> 
A25: =IF(INTRO!$E$34<>0,INTRO!$E$34,"") -> Cameroon | B25: CENTRE | C25: EBEBDA | D25: 22486 | E25: =IF(INTRO!$E$48="","",ROUND($D25*INTRO!$E$48,0)) -> 2905 | F25: =IF(INTRO!$E$49="","",ROUND($D25*INTRO!$E$49,0)) -> 6409 | G25: =IF(INTRO!$E$50="","",ROUND($D25*INTRO!$E$50,0)) -> 12255 | H25: 99 | I25: 1 | J25: 2 | K25: 0 | L25: 1 | M25: =IF(INTRO!$E$38="Endémique", IF($H25>0, IF($H25=4,"Inconnu", IF($H25=99,"Interrompu", $D25)), 0),"Non requis") -> Interrompu | N25: =IF(INTRO!$E$40="Endémique", IF($I25>0, IF($I25=4,"Inconnu",IF($I25=99,"Interrompu", $D25)), 0),"Non requis") -> 22486 | O25: =IF(INTRO!$E$42="Endémique", IF(AND($J25>1,$J25<5), IF($J25=4, "Inconnu", E25+F25), 0),"Non requis") -> 9314 | P25: =IF(INTRO!$E$44="Endémique", IF(AND($K25>0,$K25<5), IF($K25=4,"Inconnu", IF($K25=1, $F25*0.33, IF($K25=2, $F25*0.5+$G25*0.2, SUM(F25:G25)))), 0),"Non requis") -> 0 | Q25: 0 | R25: 0 | S25: 1 | T25: 0 | V25: T3 (ALB/MBD) | W25: 7436 | X25: EBEBDA | AA25: ='MDA1'!K25 -> 0 | AB25: ='MDA3'!O25 -> 0 | AC25: ='T1'!M25 -> 0 | AD25: ='T2'!K25 -> 0 | AE25: =T3_R1!L25 -> 6672 | AF25: =T3_R2!L25 -> 0 | AI25: =_xlfn.XLOOKUP($W25,[1]COUNTRY_INFO!$Y$9:$Y$198,[1]COUNTRY_INFO!H$9:H$198) ->  | AJ25: =_xlfn.XLOOKUP($W25,[1]COUNTRY_INFO!$Y$9:$Y$198,[1]COUNTRY_INFO!I$9:I$198) ->  | AK25: =_xlfn.XLOOKUP($W25,[1]COUNTRY_INFO!$Y$9:$Y$198,[1]COUNTRY_INFO!J$9:J$198) ->  | AL25: =_xlfn.XLOOKUP($W25,[1]COUNTRY_INFO!$Y$9:$Y$198,[1]COUNTRY_INFO!K$9:K$198) ->  | AM25: =_xlfn.XLOOKUP($W25,[1]COUNTRY_INFO!$Y$9:$Y$198,[1]COUNTRY_INFO!L$9:L$198) -> 
A26: =IF(INTRO!$E$34<>0,INTRO!$E$34,"") -> Cameroon | B26: CENTRE | C26: EFOULAN | D26: 440279 | E26: =IF(INTRO!$E$48="","",ROUND($D26*INTRO!$E$48,0)) -> 56884 | F26: =IF(INTRO!$E$49="","",ROUND($D26*INTRO!$E$49,0)) -> 125480 | G26: =IF(INTRO!$E$50="","",ROUND($D26*INTRO!$E$50,0)) -> 239952 | H26: 0 | I26: 4 | J26: 1 | K26: 1 | L26: 1 | M26: =IF(INTRO!$E$38="Endémique", IF($H26>0, IF($H26=4,"Inconnu", IF($H26=99,"Interrompu", $D26)), 0),"Non requis") -> 0 | N26: =IF(INTRO!$E$40="Endémique", IF($I26>0, IF($I26=4,"Inconnu",IF($I26=99,"Interrompu", $D26)), 0),"Non requis") -> Inconnu | O26: =IF(INTRO!$E$42="Endémique", IF(AND($J26>1,$J26<5), IF($J26=4, "Inconnu", E26+F26), 0),"Non requis") -> 0 | P26: =IF(INTRO!$E$44="Endémique", IF(AND($K26>0,$K26<5), IF($K26=4,"Inconnu", IF($K26=1, $F26*0.33, IF($K26=2, $F26*0.5+$G26*0.2, SUM(F26:G26)))), 0),"Non requis") -> 41408.4 | Q26: 0 | R26: 0 | S26: 1 | T26: 1 | V26: T3 (ALB/MBD) | W26: 7437 | X26: EFOULAN | AA26: ='MDA1'!K26 -> 0 | AB26: ='MDA3'!O26 -> 0 | AC26: ='T1'!M26 -> 0 | AD26: ='T2'!K26 -> 118053 | AE26: =T3_R1!L26 -> 118585 | AF26: =T3_R2!L26 -> 0 | AI26: =_xlfn.XLOOKUP($W26,[1]COUNTRY_INFO!$Y$9:$Y$198,[1]COUNTRY_INFO!H$9:H$198) ->  | AJ26: =_xlfn.XLOOKUP($W26,[1]COUNTRY_INFO!$Y$9:$Y$198,[1]COUNTRY_INFO!I$9:I$198) ->  | AK26: =_xlfn.XLOOKUP($W26,[1]COUNTRY_INFO!$Y$9:$Y$198,[1]COUNTRY_INFO!J$9:J$198) ->  | AL26: =_xlfn.XLOOKUP($W26,[1]COUNTRY_INFO!$Y$9:$Y$198,[1]COUNTRY_INFO!K$9:K$198) ->  | AM26: =_xlfn.XLOOKUP($W26,[1]COUNTRY_INFO!$Y$9:$Y$198,[1]COUNTRY_INFO!L$9:L$198) -> 
A27: =IF(INTRO!$E$34<>0,INTRO!$E$34,"") -> Cameroon | B27: CENTRE | C27: ELIG MFOMO | D27: 17055 | E27: =IF(INTRO!$E$48="","",ROUND($D27*INTRO!$E$48,0)) -> 2204 | F27: =IF(INTRO!$E$49="","",ROUND($D27*INTRO!$E$49,0)) -> 4861 | G27: =IF(INTRO!$E$50="","",ROUND($D27*INTRO!$E$50,0)) -> 9295 | H27: 0 | I27: 1 | J27: 2 | K27: 1 | L27: 1 | M27: =IF(INTRO!$E$38="Endémique", IF($H27>0, IF($H27=4,"Inconnu", IF($H27=99,"Interrompu", $D27)), 0),"Non requis") -> 0 | N27: =IF(INTRO!$E$40="Endémique", IF($I27>0, IF($I27=4,"Inconnu",IF($I27=99,"Interrompu", $D27)), 0),"Non requis") -> 17055 | O27: =IF(INTRO!$E$42="Endémique", IF(AND($J27>1,$J27<5), IF($J27=4, "Inconnu", E27+F27), 0),"Non requis") -> 7065 | P27: =IF(INTRO!$E$44="Endémique", IF(AND($K27>0,$K27<5), IF($K27=4,"Inconnu", IF($K27=1, $F27*0.33, IF($K27=2, $F27*0.5+$G27*0.2, SUM(F27:G27)))), 0),"Non requis") -> 1604.13 | Q27: 0 | R27: 0 | S27: 1 | T27: 0 | V27: T3 (ALB/MBD) | W27: 7438 | X27: ELIG MFOMO | AA27: ='MDA1'!K27 -> 0 | AB27: ='MDA3'!O27 -> 0 | AC27: ='T1'!M27 -> 0 | AD27: ='T2'!K27 -> 0 | AE27: =T3_R1!L27 -> 4776 | AF27: =T3_R2!L27 -> 0 | AI27: =_xlfn.XLOOKUP($W27,[1]COUNTRY_INFO!$Y$9:$Y$198,[1]COUNTRY_INFO!H$9:H$198) ->  | AJ27: =_xlfn.XLOOKUP($W27,[1]COUNTRY_INFO!$Y$9:$Y$198,[1]COUNTRY_INFO!I$9:I$198) ->  | AK27: =_xlfn.XLOOKUP($W27,[1]COUNTRY_INFO!$Y$9:$Y$198,[1]COUNTRY_INFO!J$9:J$198) ->  | AL27: =_xlfn.XLOOKUP($W27,[1]COUNTRY_INFO!$Y$9:$Y$198,[1]COUNTRY_INFO!K$9:K$198) ->  | AM27: =_xlfn.XLOOKUP($W27,[1]COUNTRY_INFO!$Y$9:$Y$198,[1]COUNTRY_INFO!L$9:L$198) -> 
A28: =IF(INTRO!$E$34<>0,INTRO!$E$34,"") -> Cameroon | B28: CENTRE | C28: ESEKA | D28: 84256 | E28: =IF(INTRO!$E$48="","",ROUND($D28*INTRO!$E$48,0)) -> 10886 | F28: =IF(INTRO!$E$49="","",ROUND($D28*INTRO!$E$49,0)) -> 24013 | G28: =IF(INTRO!$E$50="","",ROUND($D28*INTRO!$E$50,0)) -> 45920 | H28: 0 | I28: 1 | J28: 1 | K28: 2 | L28: 1 | M28: =IF(INTRO!$E$38="Endémique", IF($H28>0, IF($H28=4,"Inconnu", IF($H28=99,"Interrompu", $D28)), 0),"Non requis") -> 0 | N28: =IF(INTRO!$E$40="Endémique", IF($I28>0, IF($I28=4,"Inconnu",IF($I28=99,"Interrompu", $D28)), 0),"Non requis") -> 84256 | O28: =IF(INTRO!$E$42="Endémique", IF(AND($J28>1,$J28<5), IF($J28=4, "Inconnu", E28+F28), 0),"Non requis") -> 0 | P28: =IF(INTRO!$E$44="Endémique", IF(AND($K28>0,$K28<5), IF($K28=4,"Inconnu", IF($K28=1, $F28*0.33, IF($K28=2, $F28*0.5+$G28*0.2, SUM(F28:G28)))), 0),"Non requis") -> 21190.5 | Q28: 0 | R28: 0 | S28: 1 | T28: 1 | V28: T3 (ALB/MBD) | W28: 7439 | X28: ESEKA | AA28: ='MDA1'!K28 -> 0 | AB28: ='MDA3'!O28 -> 0 | AC28: ='T1'!M28 -> 0 | AD28: ='T2'!K28 -> 18306 | AE28: =T3_R1!L28 -> 18206 | AF28: =T3_R2!L28 -> 0 | AI28: =_xlfn.XLOOKUP($W28,[1]COUNTRY_INFO!$Y$9:$Y$198,[1]COUNTRY_INFO!H$9:H$198) ->  | AJ28: =_xlfn.XLOOKUP($W28,[1]COUNTRY_INFO!$Y$9:$Y$198,[1]COUNTRY_INFO!I$9:I$198) ->  | AK28: =_xlfn.XLOOKUP($W28,[1]COUNTRY_INFO!$Y$9:$Y$198,[1]COUNTRY_INFO!J$9:J$198) ->  | AL28: =_xlfn.XLOOKUP($W28,[1]COUNTRY_INFO!$Y$9:$Y$198,[1]COUNTRY_INFO!K$9:K$198) ->  | AM28: =_xlfn.XLOOKUP($W28,[1]COUNTRY_INFO!$Y$9:$Y$198,[1]COUNTRY_INFO!L$9:L$198) -> 
A29: =IF(INTRO!$E$34<>0,INTRO!$E$34,"") -> Cameroon | B29: CENTRE | C29: ESSE | D29: 26967 | E29: =IF(INTRO!$E$48="","",ROUND($D29*INTRO!$E$48,0)) -> 3484 | F29: =IF(INTRO!$E$49="","",ROUND($D29*INTRO!$E$49,0)) -> 7686 | G29: =IF(INTRO!$E$50="","",ROUND($D29*INTRO!$E$50,0)) -> 14697 | H29: 99 | I29: 1 | J29: 2 | K29: 0 | L29: 1 | M29: =IF(INTRO!$E$38="Endémique", IF($H29>0, IF($H29=4,"Inconnu", IF($H29=99,"Interrompu", $D29)), 0),"Non requis") -> Interrompu | N29: =IF(INTRO!$E$40="Endémique", IF($I29>0, IF($I29=4,"Inconnu",IF($I29=99,"Interrompu", $D29)), 0),"Non requis") -> 26967 | O29: =IF(INTRO!$E$42="Endémique", IF(AND($J29>1,$J29<5), IF($J29=4, "Inconnu", E29+F29), 0),"Non requis") -> 11170 | P29: =IF(INTRO!$E$44="Endémique", IF(AND($K29>0,$K29<5), IF($K29=4,"Inconnu", IF($K29=1, $F29*0.33, IF($K29=2, $F29*0.5+$G29*0.2, SUM(F29:G29)))), 0),"Non requis") -> 0 | Q29: 0 | R29: 0 | S29: 1 | T29: 0 | V29: T3 (ALB/MBD) | W29: 7440 | X29: ESSE | AA29: ='MDA1'!K29 -> 0 | AB29: ='MDA3'!O29 -> 0 | AC29: ='T1'!M29 -> 0 | AD29: ='T2'!K29 -> 0 | AE29: =T3_R1!L29 -> 6987 | AF29: =T3_R2!L29 -> 0 | AI29: =_xlfn.XLOOKUP($W29,[1]COUNTRY_INFO!$Y$9:$Y$198,[1]COUNTRY_INFO!H$9:H$198) ->  | AJ29: =_xlfn.XLOOKUP($W29,[1]COUNTRY_INFO!$Y$9:$Y$198,[1]COUNTRY_INFO!I$9:I$198) ->  | AK29: =_xlfn.XLOOKUP($W29,[1]COUNTRY_INFO!$Y$9:$Y$198,[1]COUNTRY_INFO!J$9:J$198) ->  | AL29: =_xlfn.XLOOKUP($W29,[1]COUNTRY_INFO!$Y$9:$Y$198,[1]COUNTRY_INFO!K$9:K$198) ->  | AM29: =_xlfn.XLOOKUP($W29,[1]COUNTRY_INFO!$Y$9:$Y$198,[1]COUNTRY_INFO!L$9:L$198) -> 
A30: =IF(INTRO!$E$34<>0,INTRO!$E$34,"") -> Cameroon | B30: CENTRE | C30: EVODOULA | D30: 21120 | E30: =IF(INTRO!$E$48="","",ROUND($D30*INTRO!$E$48,0)) -> 2729 | F30: =IF(INTRO!$E$49="","",ROUND($D30*INTRO!$E$49,0)) -> 6019 | G30: =IF(INTRO!$E$50="","",ROUND($D30*INTRO!$E$50,0)) -> 11510 | H30: 99 | I30: 1 | J30: 2 | K30: 0 | L30: 1 | M30: =IF(INTRO!$E$38="Endémique", IF($H30>0, IF($H30=4,"Inconnu", IF($H30=99,"Interrompu", $D30)), 0),"Non requis") -> Interrompu | N30: =IF(INTRO!$E$40="Endémique", IF($I30>0, IF($I30=4,"Inconnu",IF($I30=99,"Interrompu", $D30)), 0),"Non requis") -> 21120 | O30: =IF(INTRO!$E$42="Endémique", IF(AND($J30>1,$J30<5), IF($J30=4, "Inconnu", E30+F30), 0),"Non requis") -> 8748 | P30: =IF(INTRO!$E$44="Endémique", IF(AND($K30>0,$K30<5), IF($K30=4,"Inconnu", IF($K30=1, $F30*0.33, IF($K30=2, $F30*0.5+$G30*0.2, SUM(F30:G30)))), 0),"Non requis") -> 0 | Q30: 0 | R30: 0 | S30: 1 | T30: 0 | V30: T3 (ALB/MBD) | W30: 7441 | X30: EVODOULA | AA30: ='MDA1'!K30 -> 0 | AB30: ='MDA3'!O30 -> 0 | AC30: ='T1'!M30 -> 0 | AD30: ='T2'!K30 -> 0 | AE30: =T3_R1!L30 -> 5716 | AF30: =T3_R2!L30 -> 0 | AI30: =_xlfn.XLOOKUP($W30,[1]COUNTRY_INFO!$Y$9:$Y$198,[1]COUNTRY_INFO!H$9:H$198) ->  | AJ30: =_xlfn.XLOOKUP($W30,[1]COUNTRY_INFO!$Y$9:$Y$198,[1]COUNTRY_INFO!I$9:I$198) ->  | AK30: =_xlfn.XLOOKUP($W30,[1]COUNTRY_INFO!$Y$9:$Y$198,[1]COUNTRY_INFO!J$9:J$198) ->  | AL30: =_xlfn.XLOOKUP($W30,[1]COUNTRY_INFO!$Y$9:$Y$198,[1]COUNTRY_INFO!K$9:K$198) ->  | AM30: =_xlfn.XLOOKUP($W30,[1]COUNTRY_INFO!$Y$9:$Y$198,[1]COUNTRY_INFO!L$9:L$198) -> 
A31: =IF(INTRO!$E$34<>0,INTRO!$E$34,"") -> Cameroon | B31: CENTRE | C31: MBALMAYO | D31: 126218 | E31: =IF(INTRO!$E$48="","",ROUND($D31*INTRO!$E$48,0)) -> 16307 | F31: =IF(INTRO!$E$49="","",ROUND($D31*INTRO!$E$49,0)) -> 35972 | G31: =IF(INTRO!$E$50="","",ROUND($D31*INTRO!$E$50,0)) -> 68789 | H31: 0 | I31: 4 | J31: 2 | K31: 1 | L31: 1 | M31: =IF(INTRO!$E$38="Endémique", IF($H31>0, IF($H31=4,"Inconnu", IF($H31=99,"Interrompu", $D31)), 0),"Non requis") -> 0 | N31: =IF(INTRO!$E$40="Endémique", IF($I31>0, IF($I31=4,"Inconnu",IF($I31=99,"Interrompu", $D31)), 0),"Non requis") -> Inconnu | O31: =IF(INTRO!$E$42="Endémique", IF(AND($J31>1,$J31<5), IF($J31=4, "Inconnu", E31+F31), 0),"Non requis") -> 52279 | P31: =IF(INTRO!$E$44="Endémique", IF(AND($K31>0,$K31<5), IF($K31=4,"Inconnu", IF($K31=1, $F31*0.33, IF($K31=2, $F31*0.5+$G31*0.2, SUM(F31:G31)))), 0),"Non requis") -> 11870.76 | Q31: 0 | R31: 0 | S31: 1 | T31: 1 | V31: T3 (ALB/MBD) | W31: 7442 | X31: MBALMAYO | AA31: ='MDA1'!K31 -> 0 | AB31: ='MDA3'!O31 -> 0 | AC31: ='T1'!M31 -> 0 | AD31: ='T2'!K31 -> 31769 | AE31: =T3_R1!L31 -> 32005 | AF31: =T3_R2!L31 -> 0 | AI31: =_xlfn.XLOOKUP($W31,[1]COUNTRY_INFO!$Y$9:$Y$198,[1]COUNTRY_INFO!H$9:H$198) ->  | AJ31: =_xlfn.XLOOKUP($W31,[1]COUNTRY_INFO!$Y$9:$Y$198,[1]COUNTRY_INFO!I$9:I$198) ->  | AK31: =_xlfn.XLOOKUP($W31,[1]COUNTRY_INFO!$Y$9:$Y$198,[1]COUNTRY_INFO!J$9:J$198) ->  | AL31: =_xlfn.XLOOKUP($W31,[1]COUNTRY_INFO!$Y$9:$Y$198,[1]COUNTRY_INFO!K$9:K$198) ->  | AM31: =_xlfn.XLOOKUP($W31,[1]COUNTRY_INFO!$Y$9:$Y$198,[1]COUNTRY_INFO!L$9:L$198) -> 
A32: =IF(INTRO!$E$34<>0,INTRO!$E$34,"") -> Cameroon | B32: CENTRE | C32: MBANDJOCK | D32: 61435 | E32: =IF(INTRO!$E$48="","",ROUND($D32*INTRO!$E$48,0)) -> 7937 | F32: =IF(INTRO!$E$49="","",ROUND($D32*INTRO!$E$49,0)) -> 17509 | G32: =IF(INTRO!$E$50="","",ROUND($D32*INTRO!$E$50,0)) -> 33482 | H32: 99 | I32: 1 | J32: 1 | K32: 1 | L32: 1 | M32: =IF(INTRO!$E$38="Endémique", IF($H32>0, IF($H32=4,"Inconnu", IF($H32=99,"Interrompu", $D32)), 0),"Non requis") -> Interrompu | N32: =IF(INTRO!$E$40="Endémique", IF($I32>0, IF($I32=4,"Inconnu",IF($I32=99,"Interrompu", $D32)), 0),"Non requis") -> 61435 | O32: =IF(INTRO!$E$42="Endémique", IF(AND($J32>1,$J32<5), IF($J32=4, "Inconnu", E32+F32), 0),"Non requis") -> 0 | P32: =IF(INTRO!$E$44="Endémique", IF(AND($K32>0,$K32<5), IF($K32=4,"Inconnu", IF($K32=1, $F32*0.33, IF($K32=2, $F32*0.5+$G32*0.2, SUM(F32:G32)))), 0),"Non requis") -> 5777.97 | Q32: 0 | R32: 0 | S32: 1 | T32: 0 | V32: T3 (ALB/MBD) | W32: 7443 | X32: MBANDJOCK | AA32: ='MDA1'!K32 -> 0 | AB32: ='MDA3'!O32 -> 0 | AC32: ='T1'!M32 -> 0 | AD32: ='T2'!K32 -> 0 | AE32: =T3_R1!L32 -> 20460 | AF32: =T3_R2!L32 -> 0 | AI32: =_xlfn.XLOOKUP($W32,[1]COUNTRY_INFO!$Y$9:$Y$198,[1]COUNTRY_INFO!H$9:H$198) ->  | AJ32: =_xlfn.XLOOKUP($W32,[1]COUNTRY_INFO!$Y$9:$Y$198,[1]COUNTRY_INFO!I$9:I$198) ->  | AK32: =_xlfn.XLOOKUP($W32,[1]COUNTRY_INFO!$Y$9:$Y$198,[1]COUNTRY_INFO!J$9:J$198) ->  | AL32: =_xlfn.XLOOKUP($W32,[1]COUNTRY_INFO!$Y$9:$Y$198,[1]COUNTRY_INFO!K$9:K$198) ->  | AM32: =_xlfn.XLOOKUP($W32,[1]COUNTRY_INFO!$Y$9:$Y$198,[1]COUNTRY_INFO!L$9:L$198) -> 
A33: =IF(INTRO!$E$34<>0,INTRO!$E$34,"") -> Cameroon | B33: CENTRE | C33: MBANKOMO | D33: 32499 | E33: =IF(INTRO!$E$48="","",ROUND($D33*INTRO!$E$48,0)) -> 4199 | F33: =IF(INTRO!$E$49="","",ROUND($D33*INTRO!$E$49,0)) -> 9262 | G33: =IF(INTRO!$E$50="","",ROUND($D33*INTRO!$E$50,0)) -> 17712 | H33: 0 | I33: 4 | J33: 2 | K33: 1 | L33: 1 | M33: =IF(INTRO!$E$38="Endémique", IF($H33>0, IF($H33=4,"Inconnu", IF($H33=99,"Interrompu", $D33)), 0),"Non requis") -> 0 | N33: =IF(INTRO!$E$40="Endémique", IF($I33>0, IF($I33=4,"Inconnu",IF($I33=99,"Interrompu", $D33)), 0),"Non requis") -> Inconnu | O33: =IF(INTRO!$E$42="Endémique", IF(AND($J33>1,$J33<5), IF($J33=4, "Inconnu", E33+F33), 0),"Non requis") -> 13461 | P33: =IF(INTRO!$E$44="Endémique", IF(AND($K33>0,$K33<5), IF($K33=4,"Inconnu", IF($K33=1, $F33*0.33, IF($K33=2, $F33*0.5+$G33*0.2, SUM(F33:G33)))), 0),"Non requis") -> 3056.46 | Q33: 0 | R33: 0 | S33: 1 | T33: 1 | V33: T3 (ALB/MBD) | W33: 7444 | X33: MBANKOMO | AA33: ='MDA1'!K33 -> 0 | AB33: ='MDA3'!O33 -> 0 | AC33: ='T1'!M33 -> 0 | AD33: ='T2'!K33 -> 3814 | AE33: =T3_R1!L33 -> 7991 | AF33: =T3_R2!L33 -> 0 | AI33: =_xlfn.XLOOKUP($W33,[1]COUNTRY_INFO!$Y$9:$Y$198,[1]COUNTRY_INFO!H$9:H$198) ->  | AJ33: =_xlfn.XLOOKUP($W33,[1]COUNTRY_INFO!$Y$9:$Y$198,[1]COUNTRY_INFO!I$9:I$198) ->  | AK33: =_xlfn.XLOOKUP($W33,[1]COUNTRY_INFO!$Y$9:$Y$198,[1]COUNTRY_INFO!J$9:J$198) ->  | AL33: =_xlfn.XLOOKUP($W33,[1]COUNTRY_INFO!$Y$9:$Y$198,[1]COUNTRY_INFO!K$9:K$198) ->  | AM33: =_xlfn.XLOOKUP($W33,[1]COUNTRY_INFO!$Y$9:$Y$198,[1]COUNTRY_INFO!L$9:L$198) -> 
A34: =IF(INTRO!$E$34<>0,INTRO!$E$34,"") -> Cameroon | B34: CENTRE | C34: MFOU | D34: 106903 | E34: =IF(INTRO!$E$48="","",ROUND($D34*INTRO!$E$48,0)) -> 13812 | F34: =IF(INTRO!$E$49="","",ROUND($D34*INTRO!$E$49,0)) -> 30467 | G34: =IF(INTRO!$E$50="","",ROUND($D34*INTRO!$E$50,0)) -> 58262 | H34: 0 | I34: 4 | J34: 2 | K34: 1 | L34: 1 | M34: =IF(INTRO!$E$38="Endémique", IF($H34>0, IF($H34=4,"Inconnu", IF($H34=99,"Interrompu", $D34)), 0),"Non requis") -> 0 | N34: =IF(INTRO!$E$40="Endémique", IF($I34>0, IF($I34=4,"Inconnu",IF($I34=99,"Interrompu", $D34)), 0),"Non requis") -> Inconnu | O34: =IF(INTRO!$E$42="Endémique", IF(AND($J34>1,$J34<5), IF($J34=4, "Inconnu", E34+F34), 0),"Non requis") -> 44279 | P34: =IF(INTRO!$E$44="Endémique", IF(AND($K34>0,$K34<5), IF($K34=4,"Inconnu", IF($K34=1, $F34*0.33, IF($K34=2, $F34*0.5+$G34*0.2, SUM(F34:G34)))), 0),"Non requis") -> 10054.11 | Q34: 0 | R34: 0 | S34: 1 | T34: 1 | V34: T3 (ALB/MBD) | W34: 7445 | X34: MFOU | AA34: ='MDA1'!K34 -> 0 | AB34: ='MDA3'!O34 -> 0 | AC34: ='T1'!M34 -> 0 | AD34: ='T2'!K34 -> 31576 | AE34: =T3_R1!L34 -> 34972 | AF34: =T3_R2!L34 -> 0 | AI34: =_xlfn.XLOOKUP($W34,[1]COUNTRY_INFO!$Y$9:$Y$198,[1]COUNTRY_INFO!H$9:H$198) ->  | AJ34: =_xlfn.XLOOKUP($W34,[1]COUNTRY_INFO!$Y$9:$Y$198,[1]COUNTRY_INFO!I$9:I$198) ->  | AK34: =_xlfn.XLOOKUP($W34,[1]COUNTRY_INFO!$Y$9:$Y$198,[1]COUNTRY_INFO!J$9:J$198) ->  | AL34: =_xlfn.XLOOKUP($W34,[1]COUNTRY_INFO!$Y$9:$Y$198,[1]COUNTRY_INFO!K$9:K$198) ->  | AM34: =_xlfn.XLOOKUP($W34,[1]COUNTRY_INFO!$Y$9:$Y$198,[1]COUNTRY_INFO!L$9:L$198) -> 
A35: =IF(INTRO!$E$34<>0,INTRO!$E$34,"") -> Cameroon | B35: CENTRE | C35: MONATELE | D35: 50935 | E35: =IF(INTRO!$E$48="","",ROUND($D35*INTRO!$E$48,0)) -> 6581 | F35: =IF(INTRO!$E$49="","",ROUND($D35*INTRO!$E$49,0)) -> 14516 | G35: =IF(INTRO!$E$50="","",ROUND($D35*INTRO!$E$50,0)) -> 27760 | H35: 99 | I35: 1 | J35: 2 | K35: 0 | L35: 1 | M35: =IF(INTRO!$E$38="Endémique", IF($H35>0, IF($H35=4,"Inconnu", IF($H35=99,"Interrompu", $D35)), 0),"Non requis") -> Interrompu | N35: =IF(INTRO!$E$40="Endémique", IF($I35>0, IF($I35=4,"Inconnu",IF($I35=99,"Interrompu", $D35)), 0),"Non requis") -> 50935 | O35: =IF(INTRO!$E$42="Endémique", IF(AND($J35>1,$J35<5), IF($J35=4, "Inconnu", E35+F35), 0),"Non requis") -> 21097 | P35: =IF(INTRO!$E$44="Endémique", IF(AND($K35>0,$K35<5), IF($K35=4,"Inconnu", IF($K35=1, $F35*0.33, IF($K35=2, $F35*0.5+$G35*0.2, SUM(F35:G35)))), 0),"Non requis") -> 0 | Q35: 0 | R35: 0 | S35: 1 | T35: 0 | V35: T3 (ALB/MBD) | W35: 7446 | X35: MONATELE | AA35: ='MDA1'!K35 -> 0 | AB35: ='MDA3'!O35 -> 0 | AC35: ='T1'!M35 -> 0 | AD35: ='T2'!K35 -> 0 | AE35: =T3_R1!L35 -> 13434 | AF35: =T3_R2!L35 -> 0 | AI35: =_xlfn.XLOOKUP($W35,[1]COUNTRY_INFO!$Y$9:$Y$198,[1]COUNTRY_INFO!H$9:H$198) ->  | AJ35: =_xlfn.XLOOKUP($W35,[1]COUNTRY_INFO!$Y$9:$Y$198,[1]COUNTRY_INFO!I$9:I$198) ->  | AK35: =_xlfn.XLOOKUP($W35,[1]COUNTRY_INFO!$Y$9:$Y$198,[1]COUNTRY_INFO!J$9:J$198) ->  | AL35: =_xlfn.XLOOKUP($W35,[1]COUNTRY_INFO!$Y$9:$Y$198,[1]COUNTRY_INFO!K$9:K$198) ->  | AM35: =_xlfn.XLOOKUP($W35,[1]COUNTRY_INFO!$Y$9:$Y$198,[1]COUNTRY_INFO!L$9:L$198) -> 
A36: =IF(INTRO!$E$34<>0,INTRO!$E$34,"") -> Cameroon | B36: CENTRE | C36: NANGA EBOKO | D36: 66249 | E36: =IF(INTRO!$E$48="","",ROUND($D36*INTRO!$E$48,0)) -> 8559 | F36: =IF(INTRO!$E$49="","",ROUND($D36*INTRO!$E$49,0)) -> 18881 | G36: =IF(INTRO!$E$50="","",ROUND($D36*INTRO!$E$50,0)) -> 36106 | H36: 99 | I36: 1 | J36: 2 | K36: 1 | L36: 1 | M36: =IF(INTRO!$E$38="Endémique", IF($H36>0, IF($H36=4,"Inconnu", IF($H36=99,"Interrompu", $D36)), 0),"Non requis") -> Interrompu | N36: =IF(INTRO!$E$40="Endémique", IF($I36>0, IF($I36=4,"Inconnu",IF($I36=99,"Interrompu", $D36)), 0),"Non requis") -> 66249 | O36: =IF(INTRO!$E$42="Endémique", IF(AND($J36>1,$J36<5), IF($J36=4, "Inconnu", E36+F36), 0),"Non requis") -> 27440 | P36: =IF(INTRO!$E$44="Endémique", IF(AND($K36>0,$K36<5), IF($K36=4,"Inconnu", IF($K36=1, $F36*0.33, IF($K36=2, $F36*0.5+$G36*0.2, SUM(F36:G36)))), 0),"Non requis") -> 6230.73 | Q36: 0 | R36: 0 | S36: 1 | T36: 0 | V36: T3 (ALB/MBD) | W36: 7447 | X36: NANGA EBOKO | AA36: ='MDA1'!K36 -> 0 | AB36: ='MDA3'!O36 -> 0 | AC36: ='T1'!M36 -> 0 | AD36: ='T2'!K36 -> 0 | AE36: =T3_R1!L36 -> 14740 | AF36: =T3_R2!L36 -> 0 | AI36: =_xlfn.XLOOKUP($W36,[1]COUNTRY_INFO!$Y$9:$Y$198,[1]COUNTRY_INFO!H$9:H$198) ->  | AJ36: =_xlfn.XLOOKUP($W36,[1]COUNTRY_INFO!$Y$9:$Y$198,[1]COUNTRY_INFO!I$9:I$198) ->  | AK36: =_xlfn.XLOOKUP($W36,[1]COUNTRY_INFO!$Y$9:$Y$198,[1]COUNTRY_INFO!J$9:J$198) ->  | AL36: =_xlfn.XLOOKUP($W36,[1]COUNTRY_INFO!$Y$9:$Y$198,[1]COUNTRY_INFO!K$9:K$198) ->  | AM36: =_xlfn.XLOOKUP($W36,[1]COUNTRY_INFO!$Y$9:$Y$198,[1]COUNTRY_INFO!L$9:L$198) -> 
A37: =IF(INTRO!$E$34<>0,INTRO!$E$34,"") -> Cameroon | B37: CENTRE | C37: NDIKINIMEKI | D37: 46758 | E37: =IF(INTRO!$E$48="","",ROUND($D37*INTRO!$E$48,0)) -> 6041 | F37: =IF(INTRO!$E$49="","",ROUND($D37*INTRO!$E$49,0)) -> 13326 | G37: =IF(INTRO!$E$50="","",ROUND($D37*INTRO!$E$50,0)) -> 25483 | H37: 99 | I37: 1 | J37: 2 | K37: 3 | L37: 1 | M37: =IF(INTRO!$E$38="Endémique", IF($H37>0, IF($H37=4,"Inconnu", IF($H37=99,"Interrompu", $D37)), 0),"Non requis") -> Interrompu | N37: =IF(INTRO!$E$40="Endémique", IF($I37>0, IF($I37=4,"Inconnu",IF($I37=99,"Interrompu", $D37)), 0),"Non requis") -> 46758 | O37: =IF(INTRO!$E$42="Endémique", IF(AND($J37>1,$J37<5), IF($J37=4, "Inconnu", E37+F37), 0),"Non requis") -> 19367 | P37: =IF(INTRO!$E$44="Endémique", IF(AND($K37>0,$K37<5), IF($K37=4,"Inconnu", IF($K37=1, $F37*0.33, IF($K37=2, $F37*0.5+$G37*0.2, SUM(F37:G37)))), 0),"Non requis") -> 38809 | Q37: 0 | R37: 0 | S37: 1 | T37: 1 | V37: T3 (ALB/MBD) | W37: 7448 | X37: NDIKINIMEKI | AA37: ='MDA1'!K37 -> 0 | AB37: ='MDA3'!O37 -> 0 | AC37: ='T1'!M37 -> 0 | AD37: ='T2'!K37 -> 14706 | AE37: =T3_R1!L37 -> 13465 | AF37: =T3_R2!L37 -> 0 | AI37: =_xlfn.XLOOKUP($W37,[1]COUNTRY_INFO!$Y$9:$Y$198,[1]COUNTRY_INFO!H$9:H$198) ->  | AJ37: =_xlfn.XLOOKUP($W37,[1]COUNTRY_INFO!$Y$9:$Y$198,[1]COUNTRY_INFO!I$9:I$198) ->  | AK37: =_xlfn.XLOOKUP($W37,[1]COUNTRY_INFO!$Y$9:$Y$198,[1]COUNTRY_INFO!J$9:J$198) ->  | AL37: =_xlfn.XLOOKUP($W37,[1]COUNTRY_INFO!$Y$9:$Y$198,[1]COUNTRY_INFO!K$9:K$198) ->  | AM37: =_xlfn.XLOOKUP($W37,[1]COUNTRY_INFO!$Y$9:$Y$198,[1]COUNTRY_INFO!L$9:L$198) -> 
A38: =IF(INTRO!$E$34<>0,INTRO!$E$34,"") -> Cameroon | B38: CENTRE | C38: NGOG MAPUBI | D38: 55850 | E38: =IF(INTRO!$E$48="","",ROUND($D38*INTRO!$E$48,0)) -> 7216 | F38: =IF(INTRO!$E$49="","",ROUND($D38*INTRO!$E$49,0)) -> 15917 | G38: =IF(INTRO!$E$50="","",ROUND($D38*INTRO!$E$50,0)) -> 30438 | H38: 99 | I38: 1 | J38: 1 | K38: 1 | L38: 1 | M38: =IF(INTRO!$E$38="Endémique", IF($H38>0, IF($H38=4,"Inconnu", IF($H38=99,"Interrompu", $D38)), 0),"Non requis") -> Interrompu | N38: =IF(INTRO!$E$40="Endémique", IF($I38>0, IF($I38=4,"Inconnu",IF($I38=99,"Interrompu", $D38)), 0),"Non requis") -> 55850 | O38: =IF(INTRO!$E$42="Endémique", IF(AND($J38>1,$J38<5), IF($J38=4, "Inconnu", E38+F38), 0),"Non requis") -> 0 | P38: =IF(INTRO!$E$44="Endémique", IF(AND($K38>0,$K38<5), IF($K38=4,"Inconnu", IF($K38=1, $F38*0.33, IF($K38=2, $F38*0.5+$G38*0.2, SUM(F38:G38)))), 0),"Non requis") -> 5252.61 | Q38: 0 | R38: 0 | S38: 1 | T38: 0 | V38: T3 (ALB/MBD) | W38: 7449 | X38: NGOG MAPUBI | AA38: ='MDA1'!K38 -> 0 | AB38: ='MDA3'!O38 -> 0 | AC38: ='T1'!M38 -> 0 | AD38: ='T2'!K38 -> 0 | AE38: =T3_R1!L38 -> 16173 | AF38: =T3_R2!L38 -> 0 | AI38: =_xlfn.XLOOKUP($W38,[1]COUNTRY_INFO!$Y$9:$Y$198,[1]COUNTRY_INFO!H$9:H$198) ->  | AJ38: =_xlfn.XLOOKUP($W38,[1]COUNTRY_INFO!$Y$9:$Y$198,[1]COUNTRY_INFO!I$9:I$198) ->  | AK38: =_xlfn.XLOOKUP($W38,[1]COUNTRY_INFO!$Y$9:$Y$198,[1]COUNTRY_INFO!J$9:J$198) ->  | AL38: =_xlfn.XLOOKUP($W38,[1]COUNTRY_INFO!$Y$9:$Y$198,[1]COUNTRY_INFO!K$9:K$198) ->  | AM38: =_xlfn.XLOOKUP($W38,[1]COUNTRY_INFO!$Y$9:$Y$198,[1]COUNTRY_INFO!L$9:L$198) -> 
A39: =IF(INTRO!$E$34<>0,INTRO!$E$34,"") -> Cameroon | B39: CENTRE | C39: NGOUMOU | D39: 45395 | E39: =IF(INTRO!$E$48="","",ROUND($D39*INTRO!$E$48,0)) -> 5865 | F39: =IF(INTRO!$E$49="","",ROUND($D39*INTRO!$E$49,0)) -> 12938 | G39: =IF(INTRO!$E$50="","",ROUND($D39*INTRO!$E$50,0)) -> 24740 | H39: 0 | I39: 4 | J39: 2 | K39: 0 | L39: 1 | M39: =IF(INTRO!$E$38="Endémique", IF($H39>0, IF($H39=4,"Inconnu", IF($H39=99,"Interrompu", $D39)), 0),"Non requis") -> 0 | N39: =IF(INTRO!$E$40="Endémique", IF($I39>0, IF($I39=4,"Inconnu",IF($I39=99,"Interrompu", $D39)), 0),"Non requis") -> Inconnu | O39: =IF(INTRO!$E$42="Endémique", IF(AND($J39>1,$J39<5), IF($J39=4, "Inconnu", E39+F39), 0),"Non requis") -> 18803 | P39: =IF(INTRO!$E$44="Endémique", IF(AND($K39>0,$K39<5), IF($K39=4,"Inconnu", IF($K39=1, $F39*0.33, IF($K39=2, $F39*0.5+$G39*0.2, SUM(F39:G39)))), 0),"Non requis") -> 0 | Q39: 0 | R39: 0 | S39: 1 | T39: 0 | V39: T3 (ALB/MBD) | W39: 7450 | X39: NGOUMOU | AA39: ='MDA1'!K39 -> 0 | AB39: ='MDA3'!O39 -> 0 | AC39: ='T1'!M39 -> 0 | AD39: ='T2'!K39 -> 0 | AE39: =T3_R1!L39 -> 16886 | AF39: =T3_R2!L39 -> 0 | AI39: =_xlfn.XLOOKUP($W39,[1]COUNTRY_INFO!$Y$9:$Y$198,[1]COUNTRY_INFO!H$9:H$198) ->  | AJ39: =_xlfn.XLOOKUP($W39,[1]COUNTRY_INFO!$Y$9:$Y$198,[1]COUNTRY_INFO!I$9:I$198) ->  | AK39: =_xlfn.XLOOKUP($W39,[1]COUNTRY_INFO!$Y$9:$Y$198,[1]COUNTRY_INFO!J$9:J$198) ->  | AL39: =_xlfn.XLOOKUP($W39,[1]COUNTRY_INFO!$Y$9:$Y$198,[1]COUNTRY_INFO!K$9:K$198) ->  | AM39: =_xlfn.XLOOKUP($W39,[1]COUNTRY_INFO!$Y$9:$Y$198,[1]COUNTRY_INFO!L$9:L$198) -> 
A40: =IF(INTRO!$E$34<>0,INTRO!$E$34,"") -> Cameroon | B40: CENTRE | C40: NKOLBISSON | D40: 176476 | E40: =IF(INTRO!$E$48="","",ROUND($D40*INTRO!$E$48,0)) -> 22801 | F40: =IF(INTRO!$E$49="","",ROUND($D40*INTRO!$E$49,0)) -> 50296 | G40: =IF(INTRO!$E$50="","",ROUND($D40*INTRO!$E$50,0)) -> 96179 | H40: 0 | I40: 4 | J40: 2 | K40: 2 | L40: 1 | M40: =IF(INTRO!$E$38="Endémique", IF($H40>0, IF($H40=4,"Inconnu", IF($H40=99,"Interrompu", $D40)), 0),"Non requis") -> 0 | N40: =IF(INTRO!$E$40="Endémique", IF($I40>0, IF($I40=4,"Inconnu",IF($I40=99,"Interrompu", $D40)), 0),"Non requis") -> Inconnu | O40: =IF(INTRO!$E$42="Endémique", IF(AND($J40>1,$J40<5), IF($J40=4, "Inconnu", E40+F40), 0),"Non requis") -> 73097 | P40: =IF(INTRO!$E$44="Endémique", IF(AND($K40>0,$K40<5), IF($K40=4,"Inconnu", IF($K40=1, $F40*0.33, IF($K40=2, $F40*0.5+$G40*0.2, SUM(F40:G40)))), 0),"Non requis") -> 44383.8 | Q40: 0 | R40: 0 | S40: 1 | T40: 1 | V40: T3 (ALB/MBD) | W40: 7451 | X40: NKOLBISSON | AA40: ='MDA1'!K40 -> 0 | AB40: ='MDA3'!O40 -> 0 | AC40: ='T1'!M40 -> 0 | AD40: ='T2'!K40 -> 23754 | AE40: =T3_R1!L40 -> 24133 | AF40: =T3_R2!L40 -> 0 | AI40: =_xlfn.XLOOKUP($W40,[1]COUNTRY_INFO!$Y$9:$Y$198,[1]COUNTRY_INFO!H$9:H$198) ->  | AJ40: =_xlfn.XLOOKUP($W40,[1]COUNTRY_INFO!$Y$9:$Y$198,[1]COUNTRY_INFO!I$9:I$198) ->  | AK40: =_xlfn.XLOOKUP($W40,[1]COUNTRY_INFO!$Y$9:$Y$198,[1]COUNTRY_INFO!J$9:J$198) ->  | AL40: =_xlfn.XLOOKUP($W40,[1]COUNTRY_INFO!$Y$9:$Y$198,[1]COUNTRY_INFO!K$9:K$198) ->  | AM40: =_xlfn.XLOOKUP($W40,[1]COUNTRY_INFO!$Y$9:$Y$198,[1]COUNTRY_INFO!L$9:L$198) -> 
A41: =IF(INTRO!$E$34<>0,INTRO!$E$34,"") -> Cameroon | B41: CENTRE | C41: NKOLNDONGO | D41: 884345 | E41: =IF(INTRO!$E$48="","",ROUND($D41*INTRO!$E$48,0)) -> 114257 | F41: =IF(INTRO!$E$49="","",ROUND($D41*INTRO!$E$49,0)) -> 252038 | G41: =IF(INTRO!$E$50="","",ROUND($D41*INTRO!$E$50,0)) -> 481968 | H41: 0 | I41: 4 | J41: 2 | K41: 1 | L41: 1 | M41: =IF(INTRO!$E$38="Endémique", IF($H41>0, IF($H41=4,"Inconnu", IF($H41=99,"Interrompu", $D41)), 0),"Non requis") -> 0 | N41: =IF(INTRO!$E$40="Endémique", IF($I41>0, IF($I41=4,"Inconnu",IF($I41=99,"Interrompu", $D41)), 0),"Non requis") -> Inconnu | O41: =IF(INTRO!$E$42="Endémique", IF(AND($J41>1,$J41<5), IF($J41=4, "Inconnu", E41+F41), 0),"Non requis") -> 366295 | P41: =IF(INTRO!$E$44="Endémique", IF(AND($K41>0,$K41<5), IF($K41=4,"Inconnu", IF($K41=1, $F41*0.33, IF($K41=2, $F41*0.5+$G41*0.2, SUM(F41:G41)))), 0),"Non requis") -> 83172.54 | Q41: 0 | R41: 0 | S41: 1 | T41: 1 | V41: T3 (ALB/MBD) | W41: 7452 | X41: NKOLNDONGO | AA41: ='MDA1'!K41 -> 0 | AB41: ='MDA3'!O41 -> 0 | AC41: ='T1'!M41 -> 0 | AD41: ='T2'!K41 -> 179415 | AE41: =T3_R1!L41 -> 180665 | AF41: =T3_R2!L41 -> 0 | AI41: =_xlfn.XLOOKUP($W41,[1]COUNTRY_INFO!$Y$9:$Y$198,[1]COUNTRY_INFO!H$9:H$198) ->  | AJ41: =_xlfn.XLOOKUP($W41,[1]COUNTRY_INFO!$Y$9:$Y$198,[1]COUNTRY_INFO!I$9:I$198) ->  | AK41: =_xlfn.XLOOKUP($W41,[1]COUNTRY_INFO!$Y$9:$Y$198,[1]COUNTRY_INFO!J$9:J$198) ->  | AL41: =_xlfn.XLOOKUP($W41,[1]COUNTRY_INFO!$Y$9:$Y$198,[1]COUNTRY_INFO!K$9:K$198) ->  | AM41: =_xlfn.XLOOKUP($W41,[1]COUNTRY_INFO!$Y$9:$Y$198,[1]COUNTRY_INFO!L$9:L$198) -> 
A42: =IF(INTRO!$E$34<>0,INTRO!$E$34,"") -> Cameroon | B42: CENTRE | C42: NTUI | D42: 134724 | E42: =IF(INTRO!$E$48="","",ROUND($D42*INTRO!$E$48,0)) -> 17406 | F42: =IF(INTRO!$E$49="","",ROUND($D42*INTRO!$E$49,0)) -> 38396 | G42: =IF(INTRO!$E$50="","",ROUND($D42*INTRO!$E$50,0)) -> 73425 | H42: 99 | I42: 1 | J42: 1 | K42: 2 | L42: 1 | M42: =IF(INTRO!$E$38="Endémique", IF($H42>0, IF($H42=4,"Inconnu", IF($H42=99,"Interrompu", $D42)), 0),"Non requis") -> Interrompu | N42: =IF(INTRO!$E$40="Endémique", IF($I42>0, IF($I42=4,"Inconnu",IF($I42=99,"Interrompu", $D42)), 0),"Non requis") -> 134724 | O42: =IF(INTRO!$E$42="Endémique", IF(AND($J42>1,$J42<5), IF($J42=4, "Inconnu", E42+F42), 0),"Non requis") -> 0 | P42: =IF(INTRO!$E$44="Endémique", IF(AND($K42>0,$K42<5), IF($K42=4,"Inconnu", IF($K42=1, $F42*0.33, IF($K42=2, $F42*0.5+$G42*0.2, SUM(F42:G42)))), 0),"Non requis") -> 33883 | Q42: 0 | R42: 0 | S42: 1 | T42: 1 | V42: T3 (ALB/MBD) | W42: 7453 | X42: NTUI | AA42: ='MDA1'!K42 -> 0 | AB42: ='MDA3'!O42 -> 0 | AC42: ='T1'!M42 -> 0 | AD42: ='T2'!K42 -> 27110 | AE42: =T3_R1!L42 -> 17017 | AF42: =T3_R2!L42 -> 0 | AI42: =_xlfn.XLOOKUP($W42,[1]COUNTRY_INFO!$Y$9:$Y$198,[1]COUNTRY_INFO!H$9:H$198) ->  | AJ42: =_xlfn.XLOOKUP($W42,[1]COUNTRY_INFO!$Y$9:$Y$198,[1]COUNTRY_INFO!I$9:I$198) ->  | AK42: =_xlfn.XLOOKUP($W42,[1]COUNTRY_INFO!$Y$9:$Y$198,[1]COUNTRY_INFO!J$9:J$198) ->  | AL42: =_xlfn.XLOOKUP($W42,[1]COUNTRY_INFO!$Y$9:$Y$198,[1]COUNTRY_INFO!K$9:K$198) ->  | AM42: =_xlfn.XLOOKUP($W42,[1]COUNTRY_INFO!$Y$9:$Y$198,[1]COUNTRY_INFO!L$9:L$198) -> 
A43: =IF(INTRO!$E$34<>0,INTRO!$E$34,"") -> Cameroon | B43: CENTRE | C43: OBALA | D43: 140572 | E43: =IF(INTRO!$E$48="","",ROUND($D43*INTRO!$E$48,0)) -> 18162 | F43: =IF(INTRO!$E$49="","",ROUND($D43*INTRO!$E$49,0)) -> 40063 | G43: =IF(INTRO!$E$50="","",ROUND($D43*INTRO!$E$50,0)) -> 76612 | H43: 99 | I43: 1 | J43: 2 | K43: 1 | L43: 1 | M43: =IF(INTRO!$E$38="Endémique", IF($H43>0, IF($H43=4,"Inconnu", IF($H43=99,"Interrompu", $D43)), 0),"Non requis") -> Interrompu | N43: =IF(INTRO!$E$40="Endémique", IF($I43>0, IF($I43=4,"Inconnu",IF($I43=99,"Interrompu", $D43)), 0),"Non requis") -> 140572 | O43: =IF(INTRO!$E$42="Endémique", IF(AND($J43>1,$J43<5), IF($J43=4, "Inconnu", E43+F43), 0),"Non requis") -> 58225 | P43: =IF(INTRO!$E$44="Endémique", IF(AND($K43>0,$K43<5), IF($K43=4,"Inconnu", IF($K43=1, $F43*0.33, IF($K43=2, $F43*0.5+$G43*0.2, SUM(F43:G43)))), 0),"Non requis") -> 13220.79 | Q43: 0 | R43: 0 | S43: 1 | T43: 0 | V43: T3 (ALB/MBD) | W43: 7454 | X43: OBALA | AA43: ='MDA1'!K43 -> 0 | AB43: ='MDA3'!O43 -> 0 | AC43: ='T1'!M43 -> 0 | AD43: ='T2'!K43 -> 0 | AE43: =T3_R1!L43 -> 36437 | AF43: =T3_R2!L43 -> 0 | AI43: =_xlfn.XLOOKUP($W43,[1]COUNTRY_INFO!$Y$9:$Y$198,[1]COUNTRY_INFO!H$9:H$198) ->  | AJ43: =_xlfn.XLOOKUP($W43,[1]COUNTRY_INFO!$Y$9:$Y$198,[1]COUNTRY_INFO!I$9:I$198) ->  | AK43: =_xlfn.XLOOKUP($W43,[1]COUNTRY_INFO!$Y$9:$Y$198,[1]COUNTRY_INFO!J$9:J$198) ->  | AL43: =_xlfn.XLOOKUP($W43,[1]COUNTRY_INFO!$Y$9:$Y$198,[1]COUNTRY_INFO!K$9:K$198) ->  | AM43: =_xlfn.XLOOKUP($W43,[1]COUNTRY_INFO!$Y$9:$Y$198,[1]COUNTRY_INFO!L$9:L$198) -> 
A44: =IF(INTRO!$E$34<>0,INTRO!$E$34,"") -> Cameroon | B44: CENTRE | C44: OKOLA | D44: 57628 | E44: =IF(INTRO!$E$48="","",ROUND($D44*INTRO!$E$48,0)) -> 7446 | F44: =IF(INTRO!$E$49="","",ROUND($D44*INTRO!$E$49,0)) -> 16424 | G44: =IF(INTRO!$E$50="","",ROUND($D44*INTRO!$E$50,0)) -> 31407 | H44: 99 | I44: 1 | J44: 2 | K44: 1 | L44: 1 | M44: =IF(INTRO!$E$38="Endémique", IF($H44>0, IF($H44=4,"Inconnu", IF($H44=99,"Interrompu", $D44)), 0),"Non requis") -> Interrompu | N44: =IF(INTRO!$E$40="Endémique", IF($I44>0, IF($I44=4,"Inconnu",IF($I44=99,"Interrompu", $D44)), 0),"Non requis") -> 57628 | O44: =IF(INTRO!$E$42="Endémique", IF(AND($J44>1,$J44<5), IF($J44=4, "Inconnu", E44+F44), 0),"Non requis") -> 23870 | P44: =IF(INTRO!$E$44="Endémique", IF(AND($K44>0,$K44<5), IF($K44=4,"Inconnu", IF($K44=1, $F44*0.33, IF($K44=2, $F44*0.5+$G44*0.2, SUM(F44:G44)))), 0),"Non requis") -> 5419.92 | Q44: 0 | R44: 0 | S44: 1 | T44: 1 | V44: T3 (ALB/MBD) | W44: 7455 | X44: OKOLA | AA44: ='MDA1'!K44 -> 0 | AB44: ='MDA3'!O44 -> 0 | AC44: ='T1'!M44 -> 0 | AD44: ='T2'!K44 -> 15 | AE44: =T3_R1!L44 -> 11660 | AF44: =T3_R2!L44 -> 0 | AI44: =_xlfn.XLOOKUP($W44,[1]COUNTRY_INFO!$Y$9:$Y$198,[1]COUNTRY_INFO!H$9:H$198) ->  | AJ44: =_xlfn.XLOOKUP($W44,[1]COUNTRY_INFO!$Y$9:$Y$198,[1]COUNTRY_INFO!I$9:I$198) ->  | AK44: =_xlfn.XLOOKUP($W44,[1]COUNTRY_INFO!$Y$9:$Y$198,[1]COUNTRY_INFO!J$9:J$198) ->  | AL44: =_xlfn.XLOOKUP($W44,[1]COUNTRY_INFO!$Y$9:$Y$198,[1]COUNTRY_INFO!K$9:K$198) ->  | AM44: =_xlfn.XLOOKUP($W44,[1]COUNTRY_INFO!$Y$9:$Y$198,[1]COUNTRY_INFO!L$9:L$198) -> 
A45: =IF(INTRO!$E$34<>0,INTRO!$E$34,"") -> Cameroon | B45: CENTRE | C45: SAA | D45: 73321 | E45: =IF(INTRO!$E$48="","",ROUND($D45*INTRO!$E$48,0)) -> 9473 | F45: =IF(INTRO!$E$49="","",ROUND($D45*INTRO!$E$49,0)) -> 20896 | G45: =IF(INTRO!$E$50="","",ROUND($D45*INTRO!$E$50,0)) -> 39960 | H45: 99 | I45: 1 | J45: 2 | K45: 1 | L45: 1 | M45: =IF(INTRO!$E$38="Endémique", IF($H45>0, IF($H45=4,"Inconnu", IF($H45=99,"Interrompu", $D45)), 0),"Non requis") -> Interrompu | N45: =IF(INTRO!$E$40="Endémique", IF($I45>0, IF($I45=4,"Inconnu",IF($I45=99,"Interrompu", $D45)), 0),"Non requis") -> 73321 | O45: =IF(INTRO!$E$42="Endémique", IF(AND($J45>1,$J45<5), IF($J45=4, "Inconnu", E45+F45), 0),"Non requis") -> 30369 | P45: =IF(INTRO!$E$44="Endémique", IF(AND($K45>0,$K45<5), IF($K45=4,"Inconnu", IF($K45=1, $F45*0.33, IF($K45=2, $F45*0.5+$G45*0.2, SUM(F45:G45)))), 0),"Non requis") -> 6895.68 | Q45: 0 | R45: 0 | S45: 1 | T45: 0 | V45: T3 (ALB/MBD) | W45: 7456 | X45: SAA | AA45: ='MDA1'!K45 -> 0 | AB45: ='MDA3'!O45 -> 0 | AC45: ='T1'!M45 -> 0 | AD45: ='T2'!K45 -> 0 | AE45: =T3_R1!L45 -> 18037 | AF45: =T3_R2!L45 -> 0 | AI45: =_xlfn.XLOOKUP($W45,[1]COUNTRY_INFO!$Y$9:$Y$198,[1]COUNTRY_INFO!H$9:H$198) ->  | AJ45: =_xlfn.XLOOKUP($W45,[1]COUNTRY_INFO!$Y$9:$Y$198,[1]COUNTRY_INFO!I$9:I$198) ->  | AK45: =_xlfn.XLOOKUP($W45,[1]COUNTRY_INFO!$Y$9:$Y$198,[1]COUNTRY_INFO!J$9:J$198) ->  | AL45: =_xlfn.XLOOKUP($W45,[1]COUNTRY_INFO!$Y$9:$Y$198,[1]COUNTRY_INFO!K$9:K$198) ->  | AM45: =_xlfn.XLOOKUP($W45,[1]COUNTRY_INFO!$Y$9:$Y$198,[1]COUNTRY_INFO!L$9:L$198) -> 
A46: =IF(INTRO!$E$34<>0,INTRO!$E$34,"") -> Cameroon | B46: CENTRE | C46: SOA | D46: 47034 | E46: =IF(INTRO!$E$48="","",ROUND($D46*INTRO!$E$48,0)) -> 6077 | F46: =IF(INTRO!$E$49="","",ROUND($D46*INTRO!$E$49,0)) -> 13405 | G46: =IF(INTRO!$E$50="","",ROUND($D46*INTRO!$E$50,0)) -> 25634 | H46: 0 | I46: 4 | J46: 1 | K46: 1 | L46: 1 | M46: =IF(INTRO!$E$38="Endémique", IF($H46>0, IF($H46=4,"Inconnu", IF($H46=99,"Interrompu", $D46)), 0),"Non requis") -> 0 | N46: =IF(INTRO!$E$40="Endémique", IF($I46>0, IF($I46=4,"Inconnu",IF($I46=99,"Interrompu", $D46)), 0),"Non requis") -> Inconnu | O46: =IF(INTRO!$E$42="Endémique", IF(AND($J46>1,$J46<5), IF($J46=4, "Inconnu", E46+F46), 0),"Non requis") -> 0 | P46: =IF(INTRO!$E$44="Endémique", IF(AND($K46>0,$K46<5), IF($K46=4,"Inconnu", IF($K46=1, $F46*0.33, IF($K46=2, $F46*0.5+$G46*0.2, SUM(F46:G46)))), 0),"Non requis") -> 4423.65 | Q46: 0 | R46: 0 | S46: 1 | T46: 1 | V46: T3 (ALB/MBD) | W46: 7457 | X46: SOA | AA46: ='MDA1'!K46 -> 0 | AB46: ='MDA3'!O46 -> 0 | AC46: ='T1'!M46 -> 0 | AD46: ='T2'!K46 -> 12504 | AE46: =T3_R1!L46 -> 12308 | AF46: =T3_R2!L46 -> 0 | AI46: =_xlfn.XLOOKUP($W46,[1]COUNTRY_INFO!$Y$9:$Y$198,[1]COUNTRY_INFO!H$9:H$198) ->  | AJ46: =_xlfn.XLOOKUP($W46,[1]COUNTRY_INFO!$Y$9:$Y$198,[1]COUNTRY_INFO!I$9:I$198) ->  | AK46: =_xlfn.XLOOKUP($W46,[1]COUNTRY_INFO!$Y$9:$Y$198,[1]COUNTRY_INFO!J$9:J$198) ->  | AL46: =_xlfn.XLOOKUP($W46,[1]COUNTRY_INFO!$Y$9:$Y$198,[1]COUNTRY_INFO!K$9:K$198) ->  | AM46: =_xlfn.XLOOKUP($W46,[1]COUNTRY_INFO!$Y$9:$Y$198,[1]COUNTRY_INFO!L$9:L$198) -> 
A47: =IF(INTRO!$E$34<>0,INTRO!$E$34,"") -> Cameroon | B47: CENTRE | C47: YOKO | D47: 44612 | E47: =IF(INTRO!$E$48="","",ROUND($D47*INTRO!$E$48,0)) -> 5764 | F47: =IF(INTRO!$E$49="","",ROUND($D47*INTRO!$E$49,0)) -> 12714 | G47: =IF(INTRO!$E$50="","",ROUND($D47*INTRO!$E$50,0)) -> 24314 | H47: 99 | I47: 1 | J47: 2 | K47: 0 | L47: 1 | M47: =IF(INTRO!$E$38="Endémique", IF($H47>0, IF($H47=4,"Inconnu", IF($H47=99,"Interrompu", $D47)), 0),"Non requis") -> Interrompu | N47: =IF(INTRO!$E$40="Endémique", IF($I47>0, IF($I47=4,"Inconnu",IF($I47=99,"Interrompu", $D47)), 0),"Non requis") -> 44612 | O47: =IF(INTRO!$E$42="Endémique", IF(AND($J47>1,$J47<5), IF($J47=4, "Inconnu", E47+F47), 0),"Non requis") -> 18478 | P47: =IF(INTRO!$E$44="Endémique", IF(AND($K47>0,$K47<5), IF($K47=4,"Inconnu", IF($K47=1, $F47*0.33, IF($K47=2, $F47*0.5+$G47*0.2, SUM(F47:G47)))), 0),"Non requis") -> 0 | Q47: 0 | R47: 0 | S47: 1 | T47: 0 | V47: T3 (ALB/MBD) | W47: 7458 | X47: YOKO | AA47: ='MDA1'!K47 -> 0 | AB47: ='MDA3'!O47 -> 0 | AC47: ='T1'!M47 -> 0 | AD47: ='T2'!K47 -> 0 | AE47: =T3_R1!L47 -> 8530 | AF47: =T3_R2!L47 -> 0 | AI47: =_xlfn.XLOOKUP($W47,[1]COUNTRY_INFO!$Y$9:$Y$198,[1]COUNTRY_INFO!H$9:H$198) ->  | AJ47: =_xlfn.XLOOKUP($W47,[1]COUNTRY_INFO!$Y$9:$Y$198,[1]COUNTRY_INFO!I$9:I$198) ->  | AK47: =_xlfn.XLOOKUP($W47,[1]COUNTRY_INFO!$Y$9:$Y$198,[1]COUNTRY_INFO!J$9:J$198) ->  | AL47: =_xlfn.XLOOKUP($W47,[1]COUNTRY_INFO!$Y$9:$Y$198,[1]COUNTRY_INFO!K$9:K$198) ->  | AM47: =_xlfn.XLOOKUP($W47,[1]COUNTRY_INFO!$Y$9:$Y$198,[1]COUNTRY_INFO!L$9:L$198) -> 
A48: =IF(INTRO!$E$34<>0,INTRO!$E$34,"") -> Cameroon | B48: EAST | C48: ABONG MBANG | D48: 88209 | E48: =IF(INTRO!$E$48="","",ROUND($D48*INTRO!$E$48,0)) -> 11397 | F48: =IF(INTRO!$E$49="","",ROUND($D48*INTRO!$E$49,0)) -> 25140 | G48: =IF(INTRO!$E$50="","",ROUND($D48*INTRO!$E$50,0)) -> 48074 | H48: 0 | I48: 4 | J48: 2 | K48: 0 | L48: 1 | M48: =IF(INTRO!$E$38="Endémique", IF($H48>0, IF($H48=4,"Inconnu", IF($H48=99,"Interrompu", $D48)), 0),"Non requis") -> 0 | N48: =IF(INTRO!$E$40="Endémique", IF($I48>0, IF($I48=4,"Inconnu",IF($I48=99,"Interrompu", $D48)), 0),"Non requis") -> Inconnu | O48: =IF(INTRO!$E$42="Endémique", IF(AND($J48>1,$J48<5), IF($J48=4, "Inconnu", E48+F48), 0),"Non requis") -> 36537 | P48: =IF(INTRO!$E$44="Endémique", IF(AND($K48>0,$K48<5), IF($K48=4,"Inconnu", IF($K48=1, $F48*0.33, IF($K48=2, $F48*0.5+$G48*0.2, SUM(F48:G48)))), 0),"Non requis") -> 0 | Q48: 0 | R48: 0 | S48: 1 | T48: 0 | V48: T3 (ALB/MBD) | W48: 7459 | X48: ABONG MBANG | AA48: ='MDA1'!K48 -> 0 | AB48: ='MDA3'!O48 -> 0 | AC48: ='T1'!M48 -> 0 | AD48: ='T2'!K48 -> 0 | AE48: =T3_R1!L48 -> 23919 | AF48: =T3_R2!L48 -> 0 | AI48: =_xlfn.XLOOKUP($W48,[1]COUNTRY_INFO!$Y$9:$Y$198,[1]COUNTRY_INFO!H$9:H$198) ->  | AJ48: =_xlfn.XLOOKUP($W48,[1]COUNTRY_INFO!$Y$9:$Y$198,[1]COUNTRY_INFO!I$9:I$198) ->  | AK48: =_xlfn.XLOOKUP($W48,[1]COUNTRY_INFO!$Y$9:$Y$198,[1]COUNTRY_INFO!J$9:J$198) ->  | AL48: =_xlfn.XLOOKUP($W48,[1]COUNTRY_INFO!$Y$9:$Y$198,[1]COUNTRY_INFO!K$9:K$198) ->  | AM48: =_xlfn.XLOOKUP($W48,[1]COUNTRY_INFO!$Y$9:$Y$198,[1]COUNTRY_INFO!L$9:L$198) -> 
A49: =IF(INTRO!$E$34<>0,INTRO!$E$34,"") -> Cameroon | B49: EAST | C49: BATOURI | D49: 110018 | E49: =IF(INTRO!$E$48="","",ROUND($D49*INTRO!$E$48,0)) -> 14214 | F49: =IF(INTRO!$E$49="","",ROUND($D49*INTRO!$E$49,0)) -> 31355 | G49: =IF(INTRO!$E$50="","",ROUND($D49*INTRO!$E$50,0)) -> 59960 | H49: 0 | I49: 4 | J49: 2 | K49: 1 | L49: 1 | M49: =IF(INTRO!$E$38="Endémique", IF($H49>0, IF($H49=4,"Inconnu", IF($H49=99,"Interrompu", $D49)), 0),"Non requis") -> 0 | N49: =IF(INTRO!$E$40="Endémique", IF($I49>0, IF($I49=4,"Inconnu",IF($I49=99,"Interrompu", $D49)), 0),"Non requis") -> Inconnu | O49: =IF(INTRO!$E$42="Endémique", IF(AND($J49>1,$J49<5), IF($J49=4, "Inconnu", E49+F49), 0),"Non requis") -> 45569 | P49: =IF(INTRO!$E$44="Endémique", IF(AND($K49>0,$K49<5), IF($K49=4,"Inconnu", IF($K49=1, $F49*0.33, IF($K49=2, $F49*0.5+$G49*0.2, SUM(F49:G49)))), 0),"Non requis") -> 10347.15 | Q49: 0 | R49: 0 | S49: 1 | T49: 0 | V49: T3 (ALB/MBD) | W49: 7460 | X49: BATOURI | AA49: ='MDA1'!K49 -> 0 | AB49: ='MDA3'!O49 -> 0 | AC49: ='T1'!M49 -> 0 | AD49: ='T2'!K49 -> 0 | AE49: =T3_R1!L49 -> 34624 | AF49: =T3_R2!L49 -> 0 | AI49: =_xlfn.XLOOKUP($W49,[1]COUNTRY_INFO!$Y$9:$Y$198,[1]COUNTRY_INFO!H$9:H$198) ->  | AJ49: =_xlfn.XLOOKUP($W49,[1]COUNTRY_INFO!$Y$9:$Y$198,[1]COUNTRY_INFO!I$9:I$198) ->  | AK49: =_xlfn.XLOOKUP($W49,[1]COUNTRY_INFO!$Y$9:$Y$198,[1]COUNTRY_INFO!J$9:J$198) ->  | AL49: =_xlfn.XLOOKUP($W49,[1]COUNTRY_INFO!$Y$9:$Y$198,[1]COUNTRY_INFO!K$9:K$198) ->  | AM49: =_xlfn.XLOOKUP($W49,[1]COUNTRY_INFO!$Y$9:$Y$198,[1]COUNTRY_INFO!L$9:L$198) -> 
A50: =IF(INTRO!$E$34<>0,INTRO!$E$34,"") -> Cameroon | B50: EAST | C50: BERTOUA | D50: 293552 | E50: =IF(INTRO!$E$48="","",ROUND($D50*INTRO!$E$48,0)) -> 37927 | F50: =IF(INTRO!$E$49="","",ROUND($D50*INTRO!$E$49,0)) -> 83662 | G50: =IF(INTRO!$E$50="","",ROUND($D50*INTRO!$E$50,0)) -> 159986 | H50: 99 | I50: 1 | J50: 2 | K50: 2 | L50: 1 | M50: =IF(INTRO!$E$38="Endémique", IF($H50>0, IF($H50=4,"Inconnu", IF($H50=99,"Interrompu", $D50)), 0),"Non requis") -> Interrompu | N50: 59213 | O50: =IF(INTRO!$E$42="Endémique", IF(AND($J50>1,$J50<5), IF($J50=4, "Inconnu", E50+F50), 0),"Non requis") -> 121589 | P50: =IF(INTRO!$E$44="Endémique", IF(AND($K50>0,$K50<5), IF($K50=4,"Inconnu", IF($K50=1, $F50*0.33, IF($K50=2, $F50*0.5+$G50*0.2, SUM(F50:G50)))), 0),"Non requis") -> 73828.2 | Q50: 0 | R50: 1 | S50: 1 | T50: 1 | U50: MDA3 (IVM) | V50: T3 (ALB/MBD) | W50: 7461 | X50: BERTOUA | AA50: ='MDA1'!K50 -> 0 | AB50: ='MDA3'!O50 -> 18311 | AC50: ='T1'!M50 -> 0 | AD50: ='T2'!K50 -> 42712 | AE50: =T3_R1!L50 -> 57178 | AF50: =T3_R2!L50 -> 0 | AI50: =_xlfn.XLOOKUP($W50,[1]COUNTRY_INFO!$Y$9:$Y$198,[1]COUNTRY_INFO!H$9:H$198) ->  | AJ50: =_xlfn.XLOOKUP($W50,[1]COUNTRY_INFO!$Y$9:$Y$198,[1]COUNTRY_INFO!I$9:I$198) ->  | AK50: =_xlfn.XLOOKUP($W50,[1]COUNTRY_INFO!$Y$9:$Y$198,[1]COUNTRY_INFO!J$9:J$198) ->  | AL50: =_xlfn.XLOOKUP($W50,[1]COUNTRY_INFO!$Y$9:$Y$198,[1]COUNTRY_INFO!K$9:K$198) ->  | AM50: =_xlfn.XLOOKUP($W50,[1]COUNTRY_INFO!$Y$9:$Y$198,[1]COUNTRY_INFO!L$9:L$198) -> 
A51: =IF(INTRO!$E$34<>0,INTRO!$E$34,"") -> Cameroon | B51: EAST | C51: BETARE OYA | D51: 113256 | E51: =IF(INTRO!$E$48="","",ROUND($D51*INTRO!$E$48,0)) -> 14633 | F51: =IF(INTRO!$E$49="","",ROUND($D51*INTRO!$E$49,0)) -> 32278 | G51: =IF(INTRO!$E$50="","",ROUND($D51*INTRO!$E$50,0)) -> 61725 | H51: 99 | I51: 1 | J51: 1 | K51: 1 | L51: 1 | M51: =IF(INTRO!$E$38="Endémique", IF($H51>0, IF($H51=4,"Inconnu", IF($H51=99,"Interrompu", $D51)), 0),"Non requis") -> Interrompu | N51: 44522 | O51: =IF(INTRO!$E$42="Endémique", IF(AND($J51>1,$J51<5), IF($J51=4, "Inconnu", E51+F51), 0),"Non requis") -> 0 | P51: =IF(INTRO!$E$44="Endémique", IF(AND($K51>0,$K51<5), IF($K51=4,"Inconnu", IF($K51=1, $F51*0.33, IF($K51=2, $F51*0.5+$G51*0.2, SUM(F51:G51)))), 0),"Non requis") -> 10651.74 | Q51: 0 | R51: 1 | S51: 1 | T51: 0 | U51: MDA3 (IVM) | V51: T3 (ALB/MBD) | W51: 7462 | X51: BETARE OYA | AA51: ='MDA1'!K51 -> 0 | AB51: ='MDA3'!O51 -> 14219 | AC51: ='T1'!M51 -> 0 | AD51: ='T2'!K51 -> 0 | AE51: =T3_R1!L51 -> 25328 | AF51: =T3_R2!L51 -> 0 | AI51: =_xlfn.XLOOKUP($W51,[1]COUNTRY_INFO!$Y$9:$Y$198,[1]COUNTRY_INFO!H$9:H$198) ->  | AJ51: =_xlfn.XLOOKUP($W51,[1]COUNTRY_INFO!$Y$9:$Y$198,[1]COUNTRY_INFO!I$9:I$198) ->  | AK51: =_xlfn.XLOOKUP($W51,[1]COUNTRY_INFO!$Y$9:$Y$198,[1]COUNTRY_INFO!J$9:J$198) ->  | AL51: =_xlfn.XLOOKUP($W51,[1]COUNTRY_INFO!$Y$9:$Y$198,[1]COUNTRY_INFO!K$9:K$198) ->  | AM51: =_xlfn.XLOOKUP($W51,[1]COUNTRY_INFO!$Y$9:$Y$198,[1]COUNTRY_INFO!L$9:L$198) -> 
A52: =IF(INTRO!$E$34<>0,INTRO!$E$34,"") -> Cameroon | B52: EAST | C52: DOUME | D52: 52535 | E52: =IF(INTRO!$E$48="","",ROUND($D52*INTRO!$E$48,0)) -> 6788 | F52: =IF(INTRO!$E$49="","",ROUND($D52*INTRO!$E$49,0)) -> 14972 | G52: =IF(INTRO!$E$50="","",ROUND($D52*INTRO!$E$50,0)) -> 28632 | H52: 0 | I52: 4 | J52: 2 | K52: 2 | L52: 1 | M52: =IF(INTRO!$E$38="Endémique", IF($H52>0, IF($H52=4,"Inconnu", IF($H52=99,"Interrompu", $D52)), 0),"Non requis") -> 0 | N52: =IF(INTRO!$E$40="Endémique", IF($I52>0, IF($I52=4,"Inconnu",IF($I52=99,"Interrompu", $D52)), 0),"Non requis") -> Inconnu | O52: =IF(INTRO!$E$42="Endémique", IF(AND($J52>1,$J52<5), IF($J52=4, "Inconnu", E52+F52), 0),"Non requis") -> 21760 | P52: =IF(INTRO!$E$44="Endémique", IF(AND($K52>0,$K52<5), IF($K52=4,"Inconnu", IF($K52=1, $F52*0.33, IF($K52=2, $F52*0.5+$G52*0.2, SUM(F52:G52)))), 0),"Non requis") -> 13212.4 | Q52: 0 | R52: 0 | S52: 1 | T52: 1 | V52: T3 (ALB/MBD) | W52: 7463 | X52: DOUME | AA52: ='MDA1'!K52 -> 0 | AB52: ='MDA3'!O52 -> 0 | AC52: ='T1'!M52 -> 0 | AD52: ='T2'!K52 -> 10494 | AE52: =T3_R1!L52 -> 11428 | AF52: =T3_R2!L52 -> 0 | AI52: =_xlfn.XLOOKUP($W52,[1]COUNTRY_INFO!$Y$9:$Y$198,[1]COUNTRY_INFO!H$9:H$198) ->  | AJ52: =_xlfn.XLOOKUP($W52,[1]COUNTRY_INFO!$Y$9:$Y$198,[1]COUNTRY_INFO!I$9:I$198) ->  | AK52: =_xlfn.XLOOKUP($W52,[1]COUNTRY_INFO!$Y$9:$Y$198,[1]COUNTRY_INFO!J$9:J$198) ->  | AL52: =_xlfn.XLOOKUP($W52,[1]COUNTRY_INFO!$Y$9:$Y$198,[1]COUNTRY_INFO!K$9:K$198) ->  | AM52: =_xlfn.XLOOKUP($W52,[1]COUNTRY_INFO!$Y$9:$Y$198,[1]COUNTRY_INFO!L$9:L$198) -> 
A53: =IF(INTRO!$E$34<>0,INTRO!$E$34,"") -> Cameroon | B53: EAST | C53: GAROUA BOULAI | D53: 65362 | E53: =IF(INTRO!$E$48="","",ROUND($D53*INTRO!$E$48,0)) -> 8445 | F53: =IF(INTRO!$E$49="","",ROUND($D53*INTRO!$E$49,0)) -> 18628 | G53: =IF(INTRO!$E$50="","",ROUND($D53*INTRO!$E$50,0)) -> 35622 | H53: 0 | I53: 4 | J53: 1 | K53: 1 | L53: 1 | M53: =IF(INTRO!$E$38="Endémique", IF($H53>0, IF($H53=4,"Inconnu", IF($H53=99,"Interrompu", $D53)), 0),"Non requis") -> 0 | N53: =IF(INTRO!$E$40="Endémique", IF($I53>0, IF($I53=4,"Inconnu",IF($I53=99,"Interrompu", $D53)), 0),"Non requis") -> Inconnu | O53: =IF(INTRO!$E$42="Endémique", IF(AND($J53>1,$J53<5), IF($J53=4, "Inconnu", E53+F53), 0),"Non requis") -> 0 | P53: =IF(INTRO!$E$44="Endémique", IF(AND($K53>0,$K53<5), IF($K53=4,"Inconnu", IF($K53=1, $F53*0.33, IF($K53=2, $F53*0.5+$G53*0.2, SUM(F53:G53)))), 0),"Non requis") -> 6147.24 | Q53: 0 | R53: 0 | S53: 1 | T53: 0 | V53: T3 (ALB/MBD) | W53: 7464 | X53: GAROUA BOULAI | AA53: ='MDA1'!K53 -> 0 | AB53: ='MDA3'!O53 -> 0 | AC53: ='T1'!M53 -> 0 | AD53: ='T2'!K53 -> 0 | AE53: =T3_R1!L53 -> 35558 | AF53: =T3_R2!L53 -> 0 | AI53: =_xlfn.XLOOKUP($W53,[1]COUNTRY_INFO!$Y$9:$Y$198,[1]COUNTRY_INFO!H$9:H$198) ->  | AJ53: =_xlfn.XLOOKUP($W53,[1]COUNTRY_INFO!$Y$9:$Y$198,[1]COUNTRY_INFO!I$9:I$198) ->  | AK53: =_xlfn.XLOOKUP($W53,[1]COUNTRY_INFO!$Y$9:$Y$198,[1]COUNTRY_INFO!J$9:J$198) ->  | AL53: =_xlfn.XLOOKUP($W53,[1]COUNTRY_INFO!$Y$9:$Y$198,[1]COUNTRY_INFO!K$9:K$198) ->  | AM53: =_xlfn.XLOOKUP($W53,[1]COUNTRY_INFO!$Y$9:$Y$198,[1]COUNTRY_INFO!L$9:L$198) -> 
A54: =IF(INTRO!$E$34<>0,INTRO!$E$34,"") -> Cameroon | B54: EAST | C54: KETTE | D54: 66251 | E54: =IF(INTRO!$E$48="","",ROUND($D54*INTRO!$E$48,0)) -> 8560 | F54: =IF(INTRO!$E$49="","",ROUND($D54*INTRO!$E$49,0)) -> 18882 | G54: =IF(INTRO!$E$50="","",ROUND($D54*INTRO!$E$50,0)) -> 36107 | H54: 0 | I54: 4 | J54: 1 | K54: 1 | L54: 1 | M54: =IF(INTRO!$E$38="Endémique", IF($H54>0, IF($H54=4,"Inconnu", IF($H54=99,"Interrompu", $D54)), 0),"Non requis") -> 0 | N54: =IF(INTRO!$E$40="Endémique", IF($I54>0, IF($I54=4,"Inconnu",IF($I54=99,"Interrompu", $D54)), 0),"Non requis") -> Inconnu | O54: =IF(INTRO!$E$42="Endémique", IF(AND($J54>1,$J54<5), IF($J54=4, "Inconnu", E54+F54), 0),"Non requis") -> 0 | P54: =IF(INTRO!$E$44="Endémique", IF(AND($K54>0,$K54<5), IF($K54=4,"Inconnu", IF($K54=1, $F54*0.33, IF($K54=2, $F54*0.5+$G54*0.2, SUM(F54:G54)))), 0),"Non requis") -> 6231.06 | Q54: 0 | R54: 0 | S54: 1 | T54: 1 | V54: T3 (ALB/MBD) | W54: 7465 | X54: KETTE | AA54: ='MDA1'!K54 -> 0 | AB54: ='MDA3'!O54 -> 0 | AC54: ='T1'!M54 -> 0 | AD54: ='T2'!K54 -> 18121 | AE54: =T3_R1!L54 -> 18273 | AF54: =T3_R2!L54 -> 0 | AI54: =_xlfn.XLOOKUP($W54,[1]COUNTRY_INFO!$Y$9:$Y$198,[1]COUNTRY_INFO!H$9:H$198) ->  | AJ54: =_xlfn.XLOOKUP($W54,[1]COUNTRY_INFO!$Y$9:$Y$198,[1]COUNTRY_INFO!I$9:I$198) ->  | AK54: =_xlfn.XLOOKUP($W54,[1]COUNTRY_INFO!$Y$9:$Y$198,[1]COUNTRY_INFO!J$9:J$198) ->  | AL54: =_xlfn.XLOOKUP($W54,[1]COUNTRY_INFO!$Y$9:$Y$198,[1]COUNTRY_INFO!K$9:K$198) ->  | AM54: =_xlfn.XLOOKUP($W54,[1]COUNTRY_INFO!$Y$9:$Y$198,[1]COUNTRY_INFO!L$9:L$198) -> 
A55: =IF(INTRO!$E$34<>0,INTRO!$E$34,"") -> Cameroon | B55: EAST | C55: LOMIE | D55: 36845 | E55: =IF(INTRO!$E$48="","",ROUND($D55*INTRO!$E$48,0)) -> 4760 | F55: =IF(INTRO!$E$49="","",ROUND($D55*INTRO!$E$49,0)) -> 10501 | G55: =IF(INTRO!$E$50="","",ROUND($D55*INTRO!$E$50,0)) -> 20081 | H55: 99 | I55: 1 | J55: 3 | K55: 1 | L55: 1 | M55: =IF(INTRO!$E$38="Endémique", IF($H55>0, IF($H55=4,"Inconnu", IF($H55=99,"Interrompu", $D55)), 0),"Non requis") -> Interrompu | N55: 13720 | O55: =IF(INTRO!$E$42="Endémique", IF(AND($J55>1,$J55<5), IF($J55=4, "Inconnu", E55+F55), 0),"Non requis") -> 15261 | P55: =IF(INTRO!$E$44="Endémique", IF(AND($K55>0,$K55<5), IF($K55=4,"Inconnu", IF($K55=1, $F55*0.33, IF($K55=2, $F55*0.5+$G55*0.2, SUM(F55:G55)))), 0),"Non requis") -> 3465.33 | Q55: 0 | R55: 1 | S55: 1 | T55: 0 | U55: MDA3 (IVM) | V55: T3 (ALB/MBD) | W55: 7466 | X55: LOMIE | AA55: ='MDA1'!K55 -> 0 | AB55: ='MDA3'!O55 -> 4186 | AC55: ='T1'!M55 -> 0 | AD55: ='T2'!K55 -> 0 | AE55: =T3_R1!L55 -> 11498 | AF55: =T3_R2!L55 -> 0 | AI55: =_xlfn.XLOOKUP($W55,[1]COUNTRY_INFO!$Y$9:$Y$198,[1]COUNTRY_INFO!H$9:H$198) ->  | AJ55: =_xlfn.XLOOKUP($W55,[1]COUNTRY_INFO!$Y$9:$Y$198,[1]COUNTRY_INFO!I$9:I$198) ->  | AK55: =_xlfn.XLOOKUP($W55,[1]COUNTRY_INFO!$Y$9:$Y$198,[1]COUNTRY_INFO!J$9:J$198) ->  | AL55: =_xlfn.XLOOKUP($W55,[1]COUNTRY_INFO!$Y$9:$Y$198,[1]COUNTRY_INFO!K$9:K$198) ->  | AM55: =_xlfn.XLOOKUP($W55,[1]COUNTRY_INFO!$Y$9:$Y$198,[1]COUNTRY_INFO!L$9:L$198) -> 
A56: =IF(INTRO!$E$34<>0,INTRO!$E$34,"") -> Cameroon | B56: EAST | C56: MBANG | D56: 32267 | E56: =IF(INTRO!$E$48="","",ROUND($D56*INTRO!$E$48,0)) -> 4169 | F56: =IF(INTRO!$E$49="","",ROUND($D56*INTRO!$E$49,0)) -> 9196 | G56: =IF(INTRO!$E$50="","",ROUND($D56*INTRO!$E$50,0)) -> 17586 | H56: 0 | I56: 4 | J56: 3 | K56: 1 | L56: 1 | M56: =IF(INTRO!$E$38="Endémique", IF($H56>0, IF($H56=4,"Inconnu", IF($H56=99,"Interrompu", $D56)), 0),"Non requis") -> 0 | N56: =IF(INTRO!$E$40="Endémique", IF($I56>0, IF($I56=4,"Inconnu",IF($I56=99,"Interrompu", $D56)), 0),"Non requis") -> Inconnu | O56: =IF(INTRO!$E$42="Endémique", IF(AND($J56>1,$J56<5), IF($J56=4, "Inconnu", E56+F56), 0),"Non requis") -> 13365 | P56: =IF(INTRO!$E$44="Endémique", IF(AND($K56>0,$K56<5), IF($K56=4,"Inconnu", IF($K56=1, $F56*0.33, IF($K56=2, $F56*0.5+$G56*0.2, SUM(F56:G56)))), 0),"Non requis") -> 3034.68 | Q56: 0 | R56: 0 | S56: 1 | T56: 0 | V56: T3 (ALB/MBD) | W56: 7467 | X56: MBANG | AA56: ='MDA1'!K56 -> 0 | AB56: ='MDA3'!O56 -> 0 | AC56: ='T1'!M56 -> 0 | AD56: ='T2'!K56 -> 0 | AE56: =T3_R1!L56 -> 8540 | AF56: =T3_R2!L56 -> 0 | AI56: =_xlfn.XLOOKUP($W56,[1]COUNTRY_INFO!$Y$9:$Y$198,[1]COUNTRY_INFO!H$9:H$198) ->  | AJ56: =_xlfn.XLOOKUP($W56,[1]COUNTRY_INFO!$Y$9:$Y$198,[1]COUNTRY_INFO!I$9:I$198) ->  | AK56: =_xlfn.XLOOKUP($W56,[1]COUNTRY_INFO!$Y$9:$Y$198,[1]COUNTRY_INFO!J$9:J$198) ->  | AL56: =_xlfn.XLOOKUP($W56,[1]COUNTRY_INFO!$Y$9:$Y$198,[1]COUNTRY_INFO!K$9:K$198) ->  | AM56: =_xlfn.XLOOKUP($W56,[1]COUNTRY_INFO!$Y$9:$Y$198,[1]COUNTRY_INFO!L$9:L$198) -> 
A57: =IF(INTRO!$E$34<>0,INTRO!$E$34,"") -> Cameroon | B57: EAST | C57: MESSAMENA | D57: 29266 | E57: =IF(INTRO!$E$48="","",ROUND($D57*INTRO!$E$48,0)) -> 3781 | F57: =IF(INTRO!$E$49="","",ROUND($D57*INTRO!$E$49,0)) -> 8341 | G57: =IF(INTRO!$E$50="","",ROUND($D57*INTRO!$E$50,0)) -> 15950 | H57: 99 | I57: 1 | J57: 3 | K57: 0 | L57: 1 | M57: =IF(INTRO!$E$38="Endémique", IF($H57>0, IF($H57=4,"Inconnu", IF($H57=99,"Interrompu", $D57)), 0),"Non requis") -> Interrompu | N57: 28305 | O57: =IF(INTRO!$E$42="Endémique", IF(AND($J57>1,$J57<5), IF($J57=4, "Inconnu", E57+F57), 0),"Non requis") -> 12122 | P57: =IF(INTRO!$E$44="Endémique", IF(AND($K57>0,$K57<5), IF($K57=4,"Inconnu", IF($K57=1, $F57*0.33, IF($K57=2, $F57*0.5+$G57*0.2, SUM(F57:G57)))), 0),"Non requis") -> 0 | Q57: 0 | R57: 1 | S57: 1 | T57: 0 | U57: MDA3 (IVM) | V57: T3 (ALB/MBD) | W57: 7468 | X57: MESSAMENA | AA57: ='MDA1'!K57 -> 0 | AB57: ='MDA3'!O57 -> 7903 | AC57: ='T1'!M57 -> 0 | AD57: ='T2'!K57 -> 0 | AE57: =T3_R1!L57 -> 8121 | AF57: =T3_R2!L57 -> 0 | AI57: =_xlfn.XLOOKUP($W57,[1]COUNTRY_INFO!$Y$9:$Y$198,[1]COUNTRY_INFO!H$9:H$198) ->  | AJ57: =_xlfn.XLOOKUP($W57,[1]COUNTRY_INFO!$Y$9:$Y$198,[1]COUNTRY_INFO!I$9:I$198) ->  | AK57: =_xlfn.XLOOKUP($W57,[1]COUNTRY_INFO!$Y$9:$Y$198,[1]COUNTRY_INFO!J$9:J$198) ->  | AL57: =_xlfn.XLOOKUP($W57,[1]COUNTRY_INFO!$Y$9:$Y$198,[1]COUNTRY_INFO!K$9:K$198) ->  | AM57: =_xlfn.XLOOKUP($W57,[1]COUNTRY_INFO!$Y$9:$Y$198,[1]COUNTRY_INFO!L$9:L$198) -> 
A58: =IF(INTRO!$E$34<>0,INTRO!$E$34,"") -> Cameroon | B58: EAST | C58: MOLOUNDOU | D58: 47190 | E58: =IF(INTRO!$E$48="","",ROUND($D58*INTRO!$E$48,0)) -> 6097 | F58: =IF(INTRO!$E$49="","",ROUND($D58*INTRO!$E$49,0)) -> 13449 | G58: =IF(INTRO!$E$50="","",ROUND($D58*INTRO!$E$50,0)) -> 25719 | H58: 0 | I58: 4 | J58: 3 | K58: 1 | L58: 1 | M58: =IF(INTRO!$E$38="Endémique", IF($H58>0, IF($H58=4,"Inconnu", IF($H58=99,"Interrompu", $D58)), 0),"Non requis") -> 0 | N58: =IF(INTRO!$E$40="Endémique", IF($I58>0, IF($I58=4,"Inconnu",IF($I58=99,"Interrompu", $D58)), 0),"Non requis") -> Inconnu | O58: =IF(INTRO!$E$42="Endémique", IF(AND($J58>1,$J58<5), IF($J58=4, "Inconnu", E58+F58), 0),"Non requis") -> 19546 | P58: =IF(INTRO!$E$44="Endémique", IF(AND($K58>0,$K58<5), IF($K58=4,"Inconnu", IF($K58=1, $F58*0.33, IF($K58=2, $F58*0.5+$G58*0.2, SUM(F58:G58)))), 0),"Non requis") -> 4438.17 | Q58: 0 | R58: 0 | S58: 1 | T58: 0 | V58: T3 (ALB/MBD) | W58: 7469 | X58: MOLOUNDOU | AA58: ='MDA1'!K58 -> 0 | AB58: ='MDA3'!O58 -> 0 | AC58: ='T1'!M58 -> 0 | AD58: ='T2'!K58 -> 0 | AE58: =T3_R1!L58 -> 13389 | AF58: =T3_R2!L58 -> 0 | AI58: =_xlfn.XLOOKUP($W58,[1]COUNTRY_INFO!$Y$9:$Y$198,[1]COUNTRY_INFO!H$9:H$198) ->  | AJ58: =_xlfn.XLOOKUP($W58,[1]COUNTRY_INFO!$Y$9:$Y$198,[1]COUNTRY_INFO!I$9:I$198) ->  | AK58: =_xlfn.XLOOKUP($W58,[1]COUNTRY_INFO!$Y$9:$Y$198,[1]COUNTRY_INFO!J$9:J$198) ->  | AL58: =_xlfn.XLOOKUP($W58,[1]COUNTRY_INFO!$Y$9:$Y$198,[1]COUNTRY_INFO!K$9:K$198) ->  | AM58: =_xlfn.XLOOKUP($W58,[1]COUNTRY_INFO!$Y$9:$Y$198,[1]COUNTRY_INFO!L$9:L$198) -> 
A59: =IF(INTRO!$E$34<>0,INTRO!$E$34,"") -> Cameroon | B59: EAST | C59: NDELELE | D59: 64761 | E59: =IF(INTRO!$E$48="","",ROUND($D59*INTRO!$E$48,0)) -> 8367 | F59: =IF(INTRO!$E$49="","",ROUND($D59*INTRO!$E$49,0)) -> 18457 | G59: =IF(INTRO!$E$50="","",ROUND($D59*INTRO!$E$50,0)) -> 35295 | H59: 0 | I59: 4 | J59: 2 | K59: 1 | L59: 1 | M59: =IF(INTRO!$E$38="Endémique", IF($H59>0, IF($H59=4,"Inconnu", IF($H59=99,"Interrompu", $D59)), 0),"Non requis") -> 0 | N59: =IF(INTRO!$E$40="Endémique", IF($I59>0, IF($I59=4,"Inconnu",IF($I59=99,"Interrompu", $D59)), 0),"Non requis") -> Inconnu | O59: =IF(INTRO!$E$42="Endémique", IF(AND($J59>1,$J59<5), IF($J59=4, "Inconnu", E59+F59), 0),"Non requis") -> 26824 | P59: =IF(INTRO!$E$44="Endémique", IF(AND($K59>0,$K59<5), IF($K59=4,"Inconnu", IF($K59=1, $F59*0.33, IF($K59=2, $F59*0.5+$G59*0.2, SUM(F59:G59)))), 0),"Non requis") -> 6090.81 | Q59: 0 | R59: 0 | S59: 1 | T59: 0 | V59: T3 (ALB/MBD) | W59: 7470 | X59: NDELELE | AA59: ='MDA1'!K59 -> 0 | AB59: ='MDA3'!O59 -> 0 | AC59: ='T1'!M59 -> 0 | AD59: ='T2'!K59 -> 0 | AE59: =T3_R1!L59 -> 22168 | AF59: =T3_R2!L59 -> 0 | AI59: =_xlfn.XLOOKUP($W59,[1]COUNTRY_INFO!$Y$9:$Y$198,[1]COUNTRY_INFO!H$9:H$198) ->  | AJ59: =_xlfn.XLOOKUP($W59,[1]COUNTRY_INFO!$Y$9:$Y$198,[1]COUNTRY_INFO!I$9:I$198) ->  | AK59: =_xlfn.XLOOKUP($W59,[1]COUNTRY_INFO!$Y$9:$Y$198,[1]COUNTRY_INFO!J$9:J$198) ->  | AL59: =_xlfn.XLOOKUP($W59,[1]COUNTRY_INFO!$Y$9:$Y$198,[1]COUNTRY_INFO!K$9:K$198) ->  | AM59: =_xlfn.XLOOKUP($W59,[1]COUNTRY_INFO!$Y$9:$Y$198,[1]COUNTRY_INFO!L$9:L$198) -> 
A60: =IF(INTRO!$E$34<>0,INTRO!$E$34,"") -> Cameroon | B60: EAST | C60: NGUELEMENDOUKA | D60: 37155 | E60: =IF(INTRO!$E$48="","",ROUND($D60*INTRO!$E$48,0)) -> 4800 | F60: =IF(INTRO!$E$49="","",ROUND($D60*INTRO!$E$49,0)) -> 10589 | G60: =IF(INTRO!$E$50="","",ROUND($D60*INTRO!$E$50,0)) -> 20249 | H60: 0 | I60: 4 | J60: 3 | K60: 1 | L60: 1 | M60: =IF(INTRO!$E$38="Endémique", IF($H60>0, IF($H60=4,"Inconnu", IF($H60=99,"Interrompu", $D60)), 0),"Non requis") -> 0 | N60: =IF(INTRO!$E$40="Endémique", IF($I60>0, IF($I60=4,"Inconnu",IF($I60=99,"Interrompu", $D60)), 0),"Non requis") -> Inconnu | O60: =IF(INTRO!$E$42="Endémique", IF(AND($J60>1,$J60<5), IF($J60=4, "Inconnu", E60+F60), 0),"Non requis") -> 15389 | P60: =IF(INTRO!$E$44="Endémique", IF(AND($K60>0,$K60<5), IF($K60=4,"Inconnu", IF($K60=1, $F60*0.33, IF($K60=2, $F60*0.5+$G60*0.2, SUM(F60:G60)))), 0),"Non requis") -> 3494.37 | Q60: 0 | R60: 0 | S60: 1 | T60: 0 | V60: T3 (ALB/MBD) | W60: 7471 | X60: NGUELEMENDOUKA | AA60: ='MDA1'!K60 -> 0 | AB60: ='MDA3'!O60 -> 0 | AC60: ='T1'!M60 -> 0 | AD60: ='T2'!K60 -> 0 | AE60: =T3_R1!L60 -> 8288 | AF60: =T3_R2!L60 -> 0 | AI60: =_xlfn.XLOOKUP($W60,[1]COUNTRY_INFO!$Y$9:$Y$198,[1]COUNTRY_INFO!H$9:H$198) ->  | AJ60: =_xlfn.XLOOKUP($W60,[1]COUNTRY_INFO!$Y$9:$Y$198,[1]COUNTRY_INFO!I$9:I$198) ->  | AK60: =_xlfn.XLOOKUP($W60,[1]COUNTRY_INFO!$Y$9:$Y$198,[1]COUNTRY_INFO!J$9:J$198) ->  | AL60: =_xlfn.XLOOKUP($W60,[1]COUNTRY_INFO!$Y$9:$Y$198,[1]COUNTRY_INFO!K$9:K$198) ->  | AM60: =_xlfn.XLOOKUP($W60,[1]COUNTRY_INFO!$Y$9:$Y$198,[1]COUNTRY_INFO!L$9:L$198) -> 
A61: =IF(INTRO!$E$34<>0,INTRO!$E$34,"") -> Cameroon | B61: EAST | C61: YOKADOUMA | D61: 110314 | E61: =IF(INTRO!$E$48="","",ROUND($D61*INTRO!$E$48,0)) -> 14253 | F61: =IF(INTRO!$E$49="","",ROUND($D61*INTRO!$E$49,0)) -> 31439 | G61: =IF(INTRO!$E$50="","",ROUND($D61*INTRO!$E$50,0)) -> 60121 | H61: 0 | I61: 4 | J61: 1 | K61: 1 | L61: 1 | M61: =IF(INTRO!$E$38="Endémique", IF($H61>0, IF($H61=4,"Inconnu", IF($H61=99,"Interrompu", $D61)), 0),"Non requis") -> 0 | N61: =IF(INTRO!$E$40="Endémique", IF($I61>0, IF($I61=4,"Inconnu",IF($I61=99,"Interrompu", $D61)), 0),"Non requis") -> Inconnu | O61: =IF(INTRO!$E$42="Endémique", IF(AND($J61>1,$J61<5), IF($J61=4, "Inconnu", E61+F61), 0),"Non requis") -> 0 | P61: =IF(INTRO!$E$44="Endémique", IF(AND($K61>0,$K61<5), IF($K61=4,"Inconnu", IF($K61=1, $F61*0.33, IF($K61=2, $F61*0.5+$G61*0.2, SUM(F61:G61)))), 0),"Non requis") -> 10374.87 | Q61: 0 | R61: 0 | S61: 1 | T61: 0 | V61: T3 (ALB/MBD) | W61: 7472 | X61: YOKADOUMA | AA61: ='MDA1'!K61 -> 0 | AB61: ='MDA3'!O61 -> 0 | AC61: ='T1'!M61 -> 0 | AD61: ='T2'!K61 -> 0 | AE61: =T3_R1!L61 -> 36530 | AF61: =T3_R2!L61 -> 0 | AI61: =_xlfn.XLOOKUP($W61,[1]COUNTRY_INFO!$Y$9:$Y$198,[1]COUNTRY_INFO!H$9:H$198) ->  | AJ61: =_xlfn.XLOOKUP($W61,[1]COUNTRY_INFO!$Y$9:$Y$198,[1]COUNTRY_INFO!I$9:I$198) ->  | AK61: =_xlfn.XLOOKUP($W61,[1]COUNTRY_INFO!$Y$9:$Y$198,[1]COUNTRY_INFO!J$9:J$198) ->  | AL61: =_xlfn.XLOOKUP($W61,[1]COUNTRY_INFO!$Y$9:$Y$198,[1]COUNTRY_INFO!K$9:K$198) ->  | AM61: =_xlfn.XLOOKUP($W61,[1]COUNTRY_INFO!$Y$9:$Y$198,[1]COUNTRY_INFO!L$9:L$198) -> 
A62: =IF(INTRO!$E$34<>0,INTRO!$E$34,"") -> Cameroon | B62: FAR-NORTH | C62: BOGO | D62: 126820 | E62: =IF(INTRO!$E$48="","",ROUND($D62*INTRO!$E$48,0)) -> 16385 | F62: =IF(INTRO!$E$49="","",ROUND($D62*INTRO!$E$49,0)) -> 36144 | G62: =IF(INTRO!$E$50="","",ROUND($D62*INTRO!$E$50,0)) -> 69117 | H62: 99 | I62: 4 | J62: 1 | K62: 2 | L62: 0 | M62: =IF(INTRO!$E$38="Endémique", IF($H62>0, IF($H62=4,"Inconnu", IF($H62=99,"Interrompu", $D62)), 0),"Non requis") -> Interrompu | N62: =IF(INTRO!$E$40="Endémique", IF($I62>0, IF($I62=4,"Inconnu",IF($I62=99,"Interrompu", $D62)), 0),"Non requis") -> Inconnu | O62: =IF(INTRO!$E$42="Endémique", IF(AND($J62>1,$J62<5), IF($J62=4, "Inconnu", E62+F62), 0),"Non requis") -> 0 | P62: =IF(INTRO!$E$44="Endémique", IF(AND($K62>0,$K62<5), IF($K62=4,"Inconnu", IF($K62=1, $F62*0.33, IF($K62=2, $F62*0.5+$G62*0.2, SUM(F62:G62)))), 0),"Non requis") -> 31895.4 | Q62: 0 | R62: 0 | S62: 1 | T62: 1 | V62: T3 (ALB/MBD) | W62: 7473 | X62: BOGO | AA62: ='MDA1'!K62 -> 0 | AB62: ='MDA3'!O62 -> 0 | AC62: ='T1'!M62 -> 0 | AD62: ='T2'!K62 -> 36684 | AE62: =T3_R1!L62 -> 36687 | AF62: =T3_R2!L62 -> 0 | AI62: =_xlfn.XLOOKUP($W62,[1]COUNTRY_INFO!$Y$9:$Y$198,[1]COUNTRY_INFO!H$9:H$198) ->  | AJ62: =_xlfn.XLOOKUP($W62,[1]COUNTRY_INFO!$Y$9:$Y$198,[1]COUNTRY_INFO!I$9:I$198) ->  | AK62: =_xlfn.XLOOKUP($W62,[1]COUNTRY_INFO!$Y$9:$Y$198,[1]COUNTRY_INFO!J$9:J$198) ->  | AL62: =_xlfn.XLOOKUP($W62,[1]COUNTRY_INFO!$Y$9:$Y$198,[1]COUNTRY_INFO!K$9:K$198) ->  | AM62: =_xlfn.XLOOKUP($W62,[1]COUNTRY_INFO!$Y$9:$Y$198,[1]COUNTRY_INFO!L$9:L$198) -> 
A63: =IF(INTRO!$E$34<>0,INTRO!$E$34,"") -> Cameroon | B63: FAR-NORTH | C63: BOURHA | D63: 81687 | E63: =IF(INTRO!$E$48="","",ROUND($D63*INTRO!$E$48,0)) -> 10554 | F63: =IF(INTRO!$E$49="","",ROUND($D63*INTRO!$E$49,0)) -> 23281 | G63: =IF(INTRO!$E$50="","",ROUND($D63*INTRO!$E$50,0)) -> 44519 | H63: 99 | I63: 4 | J63: 0 | K63: 2 | L63: 4 | M63: =IF(INTRO!$E$38="Endémique", IF($H63>0, IF($H63=4,"Inconnu", IF($H63=99,"Interrompu", $D63)), 0),"Non requis") -> Interrompu | N63: =IF(INTRO!$E$40="Endémique", IF($I63>0, IF($I63=4,"Inconnu",IF($I63=99,"Interrompu", $D63)), 0),"Non requis") -> Inconnu | O63: =IF(INTRO!$E$42="Endémique", IF(AND($J63>1,$J63<5), IF($J63=4, "Inconnu", E63+F63), 0),"Non requis") -> 0 | P63: =IF(INTRO!$E$44="Endémique", IF(AND($K63>0,$K63<5), IF($K63=4,"Inconnu", IF($K63=1, $F63*0.33, IF($K63=2, $F63*0.5+$G63*0.2, SUM(F63:G63)))), 0),"Non requis") -> 20544.3 | Q63: 0 | R63: 0 | S63: 1 | T63: 1 | V63: T3 (ALB/MBD) | W63: 7474 | X63: BOURHA | AA63: ='MDA1'!K63 -> 0 | AB63: ='MDA3'!O63 -> 0 | AC63: ='T1'!M63 -> 0 | AD63: ='T2'!K63 -> 23876 | AE63: =T3_R1!L63 -> 23854 | AF63: =T3_R2!L63 -> 0 | AI63: =_xlfn.XLOOKUP($W63,[1]COUNTRY_INFO!$Y$9:$Y$198,[1]COUNTRY_INFO!H$9:H$198) ->  | AJ63: =_xlfn.XLOOKUP($W63,[1]COUNTRY_INFO!$Y$9:$Y$198,[1]COUNTRY_INFO!I$9:I$198) ->  | AK63: =_xlfn.XLOOKUP($W63,[1]COUNTRY_INFO!$Y$9:$Y$198,[1]COUNTRY_INFO!J$9:J$198) ->  | AL63: =_xlfn.XLOOKUP($W63,[1]COUNTRY_INFO!$Y$9:$Y$198,[1]COUNTRY_INFO!K$9:K$198) ->  | AM63: =_xlfn.XLOOKUP($W63,[1]COUNTRY_INFO!$Y$9:$Y$198,[1]COUNTRY_INFO!L$9:L$198) -> 
A64: =IF(INTRO!$E$34<>0,INTRO!$E$34,"") -> Cameroon | B64: FAR-NORTH | C64: GAZAWA | D64: 74920 | E64: =IF(INTRO!$E$48="","",ROUND($D64*INTRO!$E$48,0)) -> 9680 | F64: =IF(INTRO!$E$49="","",ROUND($D64*INTRO!$E$49,0)) -> 21352 | G64: =IF(INTRO!$E$50="","",ROUND($D64*INTRO!$E$50,0)) -> 40831 | H64: 99 | I64: 4 | J64: 0 | K64: 2 | L64: 0 | M64: =IF(INTRO!$E$38="Endémique", IF($H64>0, IF($H64=4,"Inconnu", IF($H64=99,"Interrompu", $D64)), 0),"Non requis") -> Interrompu | N64: =IF(INTRO!$E$40="Endémique", IF($I64>0, IF($I64=4,"Inconnu",IF($I64=99,"Interrompu", $D64)), 0),"Non requis") -> Inconnu | O64: =IF(INTRO!$E$42="Endémique", IF(AND($J64>1,$J64<5), IF($J64=4, "Inconnu", E64+F64), 0),"Non requis") -> 0 | P64: =IF(INTRO!$E$44="Endémique", IF(AND($K64>0,$K64<5), IF($K64=4,"Inconnu", IF($K64=1, $F64*0.33, IF($K64=2, $F64*0.5+$G64*0.2, SUM(F64:G64)))), 0),"Non requis") -> 18842.2 | Q64: 0 | R64: 0 | S64: 1 | T64: 1 | V64: T3 (ALB/MBD) | W64: 7475 | X64: GAZAWA | AA64: ='MDA1'!K64 -> 0 | AB64: ='MDA3'!O64 -> 0 | AC64: ='T1'!M64 -> 0 | AD64: ='T2'!K64 -> 22450 | AE64: =T3_R1!L64 -> 22450 | AF64: =T3_R2!L64 -> 0 | AI64: =_xlfn.XLOOKUP($W64,[1]COUNTRY_INFO!$Y$9:$Y$198,[1]COUNTRY_INFO!H$9:H$198) ->  | AJ64: =_xlfn.XLOOKUP($W64,[1]COUNTRY_INFO!$Y$9:$Y$198,[1]COUNTRY_INFO!I$9:I$198) ->  | AK64: =_xlfn.XLOOKUP($W64,[1]COUNTRY_INFO!$Y$9:$Y$198,[1]COUNTRY_INFO!J$9:J$198) ->  | AL64: =_xlfn.XLOOKUP($W64,[1]COUNTRY_INFO!$Y$9:$Y$198,[1]COUNTRY_INFO!K$9:K$198) ->  | AM64: =_xlfn.XLOOKUP($W64,[1]COUNTRY_INFO!$Y$9:$Y$198,[1]COUNTRY_INFO!L$9:L$198) -> 
A65: =IF(INTRO!$E$34<>0,INTRO!$E$34,"") -> Cameroon | B65: FAR-NORTH | C65: GOULFEY | D65: 107665 | E65: =IF(INTRO!$E$48="","",ROUND($D65*INTRO!$E$48,0)) -> 13910 | F65: =IF(INTRO!$E$49="","",ROUND($D65*INTRO!$E$49,0)) -> 30685 | G65: =IF(INTRO!$E$50="","",ROUND($D65*INTRO!$E$50,0)) -> 58677 | H65: 99 | I65: 4 | J65: 0 | K65: 1 | L65: 0 | M65: =IF(INTRO!$E$38="Endémique", IF($H65>0, IF($H65=4,"Inconnu", IF($H65=99,"Interrompu", $D65)), 0),"Non requis") -> Interrompu | N65: =IF(INTRO!$E$40="Endémique", IF($I65>0, IF($I65=4,"Inconnu",IF($I65=99,"Interrompu", $D65)), 0),"Non requis") -> Inconnu | O65: =IF(INTRO!$E$42="Endémique", IF(AND($J65>1,$J65<5), IF($J65=4, "Inconnu", E65+F65), 0),"Non requis") -> 0 | P65: =IF(INTRO!$E$44="Endémique", IF(AND($K65>0,$K65<5), IF($K65=4,"Inconnu", IF($K65=1, $F65*0.33, IF($K65=2, $F65*0.5+$G65*0.2, SUM(F65:G65)))), 0),"Non requis") -> 10126.05 | Q65: 0 | R65: 0 | S65: 0 | T65: 0 | W65: 7476 | X65: GOULFEY | AA65: ='MDA1'!K65 -> 0 | AB65: ='MDA3'!O65 -> 0 | AC65: ='T1'!M65 -> 0 | AD65: ='T2'!K65 -> 0 | AE65: =T3_R1!L65 -> 0 | AF65: =T3_R2!L65 -> 0 | AI65: =_xlfn.XLOOKUP($W65,[1]COUNTRY_INFO!$Y$9:$Y$198,[1]COUNTRY_INFO!H$9:H$198) ->  | AJ65: =_xlfn.XLOOKUP($W65,[1]COUNTRY_INFO!$Y$9:$Y$198,[1]COUNTRY_INFO!I$9:I$198) ->  | AK65: =_xlfn.XLOOKUP($W65,[1]COUNTRY_INFO!$Y$9:$Y$198,[1]COUNTRY_INFO!J$9:J$198) ->  | AL65: =_xlfn.XLOOKUP($W65,[1]COUNTRY_INFO!$Y$9:$Y$198,[1]COUNTRY_INFO!K$9:K$198) ->  | AM65: =_xlfn.XLOOKUP($W65,[1]COUNTRY_INFO!$Y$9:$Y$198,[1]COUNTRY_INFO!L$9:L$198) -> 
A66: =IF(INTRO!$E$34<>0,INTRO!$E$34,"") -> Cameroon | B66: FAR-NORTH | C66: GUERE | D66: 129574 | E66: =IF(INTRO!$E$48="","",ROUND($D66*INTRO!$E$48,0)) -> 16741 | F66: =IF(INTRO!$E$49="","",ROUND($D66*INTRO!$E$49,0)) -> 36929 | G66: =IF(INTRO!$E$50="","",ROUND($D66*INTRO!$E$50,0)) -> 70618 | H66: 99 | I66: 4 | J66: 1 | K66: 3 | L66: 1 | M66: =IF(INTRO!$E$38="Endémique", IF($H66>0, IF($H66=4,"Inconnu", IF($H66=99,"Interrompu", $D66)), 0),"Non requis") -> Interrompu | N66: =IF(INTRO!$E$40="Endémique", IF($I66>0, IF($I66=4,"Inconnu",IF($I66=99,"Interrompu", $D66)), 0),"Non requis") -> Inconnu | O66: =IF(INTRO!$E$42="Endémique", IF(AND($J66>1,$J66<5), IF($J66=4, "Inconnu", E66+F66), 0),"Non requis") -> 0 | P66: =IF(INTRO!$E$44="Endémique", IF(AND($K66>0,$K66<5), IF($K66=4,"Inconnu", IF($K66=1, $F66*0.33, IF($K66=2, $F66*0.5+$G66*0.2, SUM(F66:G66)))), 0),"Non requis") -> 107547 | Q66: 0 | R66: 0 | S66: 1 | T66: 1 | V66: T3 (ALB/MBD) | W66: 7477 | X66: GUERE | AA66: ='MDA1'!K66 -> 0 | AB66: ='MDA3'!O66 -> 0 | AC66: ='T1'!M66 -> 0 | AD66: ='T2'!K66 -> 38570 | AE66: =T3_R1!L66 -> 38570 | AF66: =T3_R2!L66 -> 0 | AI66: =_xlfn.XLOOKUP($W66,[1]COUNTRY_INFO!$Y$9:$Y$198,[1]COUNTRY_INFO!H$9:H$198) ->  | AJ66: =_xlfn.XLOOKUP($W66,[1]COUNTRY_INFO!$Y$9:$Y$198,[1]COUNTRY_INFO!I$9:I$198) ->  | AK66: =_xlfn.XLOOKUP($W66,[1]COUNTRY_INFO!$Y$9:$Y$198,[1]COUNTRY_INFO!J$9:J$198) ->  | AL66: =_xlfn.XLOOKUP($W66,[1]COUNTRY_INFO!$Y$9:$Y$198,[1]COUNTRY_INFO!K$9:K$198) ->  | AM66: =_xlfn.XLOOKUP($W66,[1]COUNTRY_INFO!$Y$9:$Y$198,[1]COUNTRY_INFO!L$9:L$198) -> 
A67: =IF(INTRO!$E$34<>0,INTRO!$E$34,"") -> Cameroon | B67: FAR-NORTH | C67: GUIDIGUIS | D67: 183485 | E67: =IF(INTRO!$E$48="","",ROUND($D67*INTRO!$E$48,0)) -> 23706 | F67: =IF(INTRO!$E$49="","",ROUND($D67*INTRO!$E$49,0)) -> 52293 | G67: =IF(INTRO!$E$50="","",ROUND($D67*INTRO!$E$50,0)) -> 99999 | H67: 99 | I67: 4 | J67: 1 | K67: 3 | L67: 0 | M67: =IF(INTRO!$E$38="Endémique", IF($H67>0, IF($H67=4,"Inconnu", IF($H67=99,"Interrompu", $D67)), 0),"Non requis") -> Interrompu | N67: =IF(INTRO!$E$40="Endémique", IF($I67>0, IF($I67=4,"Inconnu",IF($I67=99,"Interrompu", $D67)), 0),"Non requis") -> Inconnu | O67: =IF(INTRO!$E$42="Endémique", IF(AND($J67>1,$J67<5), IF($J67=4, "Inconnu", E67+F67), 0),"Non requis") -> 0 | P67: =IF(INTRO!$E$44="Endémique", IF(AND($K67>0,$K67<5), IF($K67=4,"Inconnu", IF($K67=1, $F67*0.33, IF($K67=2, $F67*0.5+$G67*0.2, SUM(F67:G67)))), 0),"Non requis") -> 152292 | Q67: 0 | R67: 0 | S67: 1 | T67: 1 | V67: T3 (ALB/MBD) | W67: 7478 | X67: GUIDIGUIS | AA67: ='MDA1'!K67 -> 0 | AB67: ='MDA3'!O67 -> 0 | AC67: ='T1'!M67 -> 0 | AD67: ='T2'!K67 -> 55975 | AE67: =T3_R1!L67 -> 55873 | AF67: =T3_R2!L67 -> 0 | AI67: =_xlfn.XLOOKUP($W67,[1]COUNTRY_INFO!$Y$9:$Y$198,[1]COUNTRY_INFO!H$9:H$198) ->  | AJ67: =_xlfn.XLOOKUP($W67,[1]COUNTRY_INFO!$Y$9:$Y$198,[1]COUNTRY_INFO!I$9:I$198) ->  | AK67: =_xlfn.XLOOKUP($W67,[1]COUNTRY_INFO!$Y$9:$Y$198,[1]COUNTRY_INFO!J$9:J$198) ->  | AL67: =_xlfn.XLOOKUP($W67,[1]COUNTRY_INFO!$Y$9:$Y$198,[1]COUNTRY_INFO!K$9:K$198) ->  | AM67: =_xlfn.XLOOKUP($W67,[1]COUNTRY_INFO!$Y$9:$Y$198,[1]COUNTRY_INFO!L$9:L$198) -> 
A68: =IF(INTRO!$E$34<>0,INTRO!$E$34,"") -> Cameroon | B68: FAR-NORTH | C68: HINA | D68: 140657 | E68: =IF(INTRO!$E$48="","",ROUND($D68*INTRO!$E$48,0)) -> 18173 | F68: =IF(INTRO!$E$49="","",ROUND($D68*INTRO!$E$49,0)) -> 40087 | G68: =IF(INTRO!$E$50="","",ROUND($D68*INTRO!$E$50,0)) -> 76658 | H68: 99 | I68: 4 | J68: 0 | K68: 3 | L68: 4 | M68: =IF(INTRO!$E$38="Endémique", IF($H68>0, IF($H68=4,"Inconnu", IF($H68=99,"Interrompu", $D68)), 0),"Non requis") -> Interrompu | N68: =IF(INTRO!$E$40="Endémique", IF($I68>0, IF($I68=4,"Inconnu",IF($I68=99,"Interrompu", $D68)), 0),"Non requis") -> Inconnu | O68: =IF(INTRO!$E$42="Endémique", IF(AND($J68>1,$J68<5), IF($J68=4, "Inconnu", E68+F68), 0),"Non requis") -> 0 | P68: =IF(INTRO!$E$44="Endémique", IF(AND($K68>0,$K68<5), IF($K68=4,"Inconnu", IF($K68=1, $F68*0.33, IF($K68=2, $F68*0.5+$G68*0.2, SUM(F68:G68)))), 0),"Non requis") -> 116745 | Q68: 0 | R68: 0 | S68: 1 | T68: 1 | V68: T3 (ALB/MBD) | W68: 7479 | X68: HINA | AA68: ='MDA1'!K68 -> 0 | AB68: ='MDA3'!O68 -> 0 | AC68: ='T1'!M68 -> 0 | AD68: ='T2'!K68 -> 34347 | AE68: =T3_R1!L68 -> 34347 | AF68: =T3_R2!L68 -> 0 | AI68: =_xlfn.XLOOKUP($W68,[1]COUNTRY_INFO!$Y$9:$Y$198,[1]COUNTRY_INFO!H$9:H$198) ->  | AJ68: =_xlfn.XLOOKUP($W68,[1]COUNTRY_INFO!$Y$9:$Y$198,[1]COUNTRY_INFO!I$9:I$198) ->  | AK68: =_xlfn.XLOOKUP($W68,[1]COUNTRY_INFO!$Y$9:$Y$198,[1]COUNTRY_INFO!J$9:J$198) ->  | AL68: =_xlfn.XLOOKUP($W68,[1]COUNTRY_INFO!$Y$9:$Y$198,[1]COUNTRY_INFO!K$9:K$198) ->  | AM68: =_xlfn.XLOOKUP($W68,[1]COUNTRY_INFO!$Y$9:$Y$198,[1]COUNTRY_INFO!L$9:L$198) -> 
A69: =IF(INTRO!$E$34<>0,INTRO!$E$34,"") -> Cameroon | B69: FAR-NORTH | C69: KAELE | D69: 121237 | E69: =IF(INTRO!$E$48="","",ROUND($D69*INTRO!$E$48,0)) -> 15664 | F69: =IF(INTRO!$E$49="","",ROUND($D69*INTRO!$E$49,0)) -> 34553 | G69: =IF(INTRO!$E$50="","",ROUND($D69*INTRO!$E$50,0)) -> 66074 | H69: 99 | I69: 4 | J69: 0 | K69: 2 | L69: 0 | M69: =IF(INTRO!$E$38="Endémique", IF($H69>0, IF($H69=4,"Inconnu", IF($H69=99,"Interrompu", $D69)), 0),"Non requis") -> Interrompu | N69: =IF(INTRO!$E$40="Endémique", IF($I69>0, IF($I69=4,"Inconnu",IF($I69=99,"Interrompu", $D69)), 0),"Non requis") -> Inconnu | O69: =IF(INTRO!$E$42="Endémique", IF(AND($J69>1,$J69<5), IF($J69=4, "Inconnu", E69+F69), 0),"Non requis") -> 0 | P69: =IF(INTRO!$E$44="Endémique", IF(AND($K69>0,$K69<5), IF($K69=4,"Inconnu", IF($K69=1, $F69*0.33, IF($K69=2, $F69*0.5+$G69*0.2, SUM(F69:G69)))), 0),"Non requis") -> 30491.3 | Q69: 0 | R69: 0 | S69: 1 | T69: 1 | V69: T3 (ALB/MBD) | W69: 7480 | X69: KAELE | AA69: ='MDA1'!K69 -> 0 | AB69: ='MDA3'!O69 -> 0 | AC69: ='T1'!M69 -> 0 | AD69: ='T2'!K69 -> 36970 | AE69: =T3_R1!L69 -> 37018 | AF69: =T3_R2!L69 -> 0 | AI69: =_xlfn.XLOOKUP($W69,[1]COUNTRY_INFO!$Y$9:$Y$198,[1]COUNTRY_INFO!H$9:H$198) ->  | AJ69: =_xlfn.XLOOKUP($W69,[1]COUNTRY_INFO!$Y$9:$Y$198,[1]COUNTRY_INFO!I$9:I$198) ->  | AK69: =_xlfn.XLOOKUP($W69,[1]COUNTRY_INFO!$Y$9:$Y$198,[1]COUNTRY_INFO!J$9:J$198) ->  | AL69: =_xlfn.XLOOKUP($W69,[1]COUNTRY_INFO!$Y$9:$Y$198,[1]COUNTRY_INFO!K$9:K$198) ->  | AM69: =_xlfn.XLOOKUP($W69,[1]COUNTRY_INFO!$Y$9:$Y$198,[1]COUNTRY_INFO!L$9:L$198) -> 
A70: =IF(INTRO!$E$34<>0,INTRO!$E$34,"") -> Cameroon | B70: FAR-NORTH | C70: KAR HAY | D70: 135586 | E70: =IF(INTRO!$E$48="","",ROUND($D70*INTRO!$E$48,0)) -> 17518 | F70: =IF(INTRO!$E$49="","",ROUND($D70*INTRO!$E$49,0)) -> 38642 | G70: =IF(INTRO!$E$50="","",ROUND($D70*INTRO!$E$50,0)) -> 73894 | H70: 99 | I70: 4 | J70: 1 | K70: 2 | L70: 0 | M70: =IF(INTRO!$E$38="Endémique", IF($H70>0, IF($H70=4,"Inconnu", IF($H70=99,"Interrompu", $D70)), 0),"Non requis") -> Interrompu | N70: =IF(INTRO!$E$40="Endémique", IF($I70>0, IF($I70=4,"Inconnu",IF($I70=99,"Interrompu", $D70)), 0),"Non requis") -> Inconnu | O70: =IF(INTRO!$E$42="Endémique", IF(AND($J70>1,$J70<5), IF($J70=4, "Inconnu", E70+F70), 0),"Non requis") -> 0 | P70: =IF(INTRO!$E$44="Endémique", IF(AND($K70>0,$K70<5), IF($K70=4,"Inconnu", IF($K70=1, $F70*0.33, IF($K70=2, $F70*0.5+$G70*0.2, SUM(F70:G70)))), 0),"Non requis") -> 34099.8 | Q70: 0 | R70: 0 | S70: 1 | T70: 1 | V70: T3 (ALB/MBD) | W70: 7481 | X70: KAR HAY | AA70: ='MDA1'!K70 -> 0 | AB70: ='MDA3'!O70 -> 0 | AC70: ='T1'!M70 -> 0 | AD70: ='T2'!K70 -> 40944 | AE70: =T3_R1!L70 -> 40944 | AF70: =T3_R2!L70 -> 0 | AI70: =_xlfn.XLOOKUP($W70,[1]COUNTRY_INFO!$Y$9:$Y$198,[1]COUNTRY_INFO!H$9:H$198) ->  | AJ70: =_xlfn.XLOOKUP($W70,[1]COUNTRY_INFO!$Y$9:$Y$198,[1]COUNTRY_INFO!I$9:I$198) ->  | AK70: =_xlfn.XLOOKUP($W70,[1]COUNTRY_INFO!$Y$9:$Y$198,[1]COUNTRY_INFO!J$9:J$198) ->  | AL70: =_xlfn.XLOOKUP($W70,[1]COUNTRY_INFO!$Y$9:$Y$198,[1]COUNTRY_INFO!K$9:K$198) ->  | AM70: =_xlfn.XLOOKUP($W70,[1]COUNTRY_INFO!$Y$9:$Y$198,[1]COUNTRY_INFO!L$9:L$198) -> 
A71: =IF(INTRO!$E$34<>0,INTRO!$E$34,"") -> Cameroon | B71: FAR-NORTH | C71: KOLOFATA | D71: 131129 | E71: =IF(INTRO!$E$48="","",ROUND($D71*INTRO!$E$48,0)) -> 16942 | F71: =IF(INTRO!$E$49="","",ROUND($D71*INTRO!$E$49,0)) -> 37372 | G71: =IF(INTRO!$E$50="","",ROUND($D71*INTRO!$E$50,0)) -> 71465 | H71: 99 | I71: 4 | J71: 0 | K71: 1 | L71: 4 | M71: =IF(INTRO!$E$38="Endémique", IF($H71>0, IF($H71=4,"Inconnu", IF($H71=99,"Interrompu", $D71)), 0),"Non requis") -> Interrompu | N71: =IF(INTRO!$E$40="Endémique", IF($I71>0, IF($I71=4,"Inconnu",IF($I71=99,"Interrompu", $D71)), 0),"Non requis") -> Inconnu | O71: =IF(INTRO!$E$42="Endémique", IF(AND($J71>1,$J71<5), IF($J71=4, "Inconnu", E71+F71), 0),"Non requis") -> 0 | P71: =IF(INTRO!$E$44="Endémique", IF(AND($K71>0,$K71<5), IF($K71=4,"Inconnu", IF($K71=1, $F71*0.33, IF($K71=2, $F71*0.5+$G71*0.2, SUM(F71:G71)))), 0),"Non requis") -> 12332.76 | Q71: 0 | R71: 0 | S71: 0 | T71: 0 | W71: 7482 | X71: KOLOFATA | AA71: ='MDA1'!K71 -> 0 | AB71: ='MDA3'!O71 -> 0 | AC71: ='T1'!M71 -> 0 | AD71: ='T2'!K71 -> 0 | AE71: =T3_R1!L71 -> 0 | AF71: =T3_R2!L71 -> 0 | AI71: =_xlfn.XLOOKUP($W71,[1]COUNTRY_INFO!$Y$9:$Y$198,[1]COUNTRY_INFO!H$9:H$198) ->  | AJ71: =_xlfn.XLOOKUP($W71,[1]COUNTRY_INFO!$Y$9:$Y$198,[1]COUNTRY_INFO!I$9:I$198) ->  | AK71: =_xlfn.XLOOKUP($W71,[1]COUNTRY_INFO!$Y$9:$Y$198,[1]COUNTRY_INFO!J$9:J$198) ->  | AL71: =_xlfn.XLOOKUP($W71,[1]COUNTRY_INFO!$Y$9:$Y$198,[1]COUNTRY_INFO!K$9:K$198) ->  | AM71: =_xlfn.XLOOKUP($W71,[1]COUNTRY_INFO!$Y$9:$Y$198,[1]COUNTRY_INFO!L$9:L$198) -> 
A72: =IF(INTRO!$E$34<>0,INTRO!$E$34,"") -> Cameroon | B72: FAR-NORTH | C72: KOUSSERI | D72: 395333 | E72: =IF(INTRO!$E$48="","",ROUND($D72*INTRO!$E$48,0)) -> 51077 | F72: =IF(INTRO!$E$49="","",ROUND($D72*INTRO!$E$49,0)) -> 112670 | G72: =IF(INTRO!$E$50="","",ROUND($D72*INTRO!$E$50,0)) -> 215456 | H72: 99 | I72: 4 | J72: 1 | K72: 2 | L72: 0 | M72: =IF(INTRO!$E$38="Endémique", IF($H72>0, IF($H72=4,"Inconnu", IF($H72=99,"Interrompu", $D72)), 0),"Non requis") -> Interrompu | N72: =IF(INTRO!$E$40="Endémique", IF($I72>0, IF($I72=4,"Inconnu",IF($I72=99,"Interrompu", $D72)), 0),"Non requis") -> Inconnu | O72: =IF(INTRO!$E$42="Endémique", IF(AND($J72>1,$J72<5), IF($J72=4, "Inconnu", E72+F72), 0),"Non requis") -> 0 | P72: =IF(INTRO!$E$44="Endémique", IF(AND($K72>0,$K72<5), IF($K72=4,"Inconnu", IF($K72=1, $F72*0.33, IF($K72=2, $F72*0.5+$G72*0.2, SUM(F72:G72)))), 0),"Non requis") -> 99426.2 | Q72: 0 | R72: 0 | S72: 1 | T72: 1 | V72: T3 (ALB/MBD) | W72: 7483 | X72: KOUSSERI | AA72: ='MDA1'!K72 -> 0 | AB72: ='MDA3'!O72 -> 0 | AC72: ='T1'!M72 -> 0 | AD72: ='T2'!K72 -> 109943 | AE72: =T3_R1!L72 -> 109947 | AF72: =T3_R2!L72 -> 0 | AI72: =_xlfn.XLOOKUP($W72,[1]COUNTRY_INFO!$Y$9:$Y$198,[1]COUNTRY_INFO!H$9:H$198) ->  | AJ72: =_xlfn.XLOOKUP($W72,[1]COUNTRY_INFO!$Y$9:$Y$198,[1]COUNTRY_INFO!I$9:I$198) ->  | AK72: =_xlfn.XLOOKUP($W72,[1]COUNTRY_INFO!$Y$9:$Y$198,[1]COUNTRY_INFO!J$9:J$198) ->  | AL72: =_xlfn.XLOOKUP($W72,[1]COUNTRY_INFO!$Y$9:$Y$198,[1]COUNTRY_INFO!K$9:K$198) ->  | AM72: =_xlfn.XLOOKUP($W72,[1]COUNTRY_INFO!$Y$9:$Y$198,[1]COUNTRY_INFO!L$9:L$198) -> 
A73: =IF(INTRO!$E$34<>0,INTRO!$E$34,"") -> Cameroon | B73: FAR-NORTH | C73: KOZA | D73: 204506 | E73: =IF(INTRO!$E$48="","",ROUND($D73*INTRO!$E$48,0)) -> 26422 | F73: =IF(INTRO!$E$49="","",ROUND($D73*INTRO!$E$49,0)) -> 58284 | G73: =IF(INTRO!$E$50="","",ROUND($D73*INTRO!$E$50,0)) -> 111456 | H73: 99 | I73: 1 | J73: 1 | K73: 2 | L73: 4 | M73: =IF(INTRO!$E$38="Endémique", IF($H73>0, IF($H73=4,"Inconnu", IF($H73=99,"Interrompu", $D73)), 0),"Non requis") -> Interrompu | N73: 117489 | O73: =IF(INTRO!$E$42="Endémique", IF(AND($J73>1,$J73<5), IF($J73=4, "Inconnu", E73+F73), 0),"Non requis") -> 0 | P73: =IF(INTRO!$E$44="Endémique", IF(AND($K73>0,$K73<5), IF($K73=4,"Inconnu", IF($K73=1, $F73*0.33, IF($K73=2, $F73*0.5+$G73*0.2, SUM(F73:G73)))), 0),"Non requis") -> 51433.2 | Q73: 0 | R73: 1 | S73: 1 | T73: 1 | U73: MDA3 (IVM) | V73: T3 (ALB/MBD) | W73: 7484 | X73: KOZA | AA73: ='MDA1'!K73 -> 0 | AB73: ='MDA3'!O73 -> 38583 | AC73: ='T1'!M73 -> 0 | AD73: ='T2'!K73 -> 59439 | AE73: =T3_R1!L73 -> 59439 | AF73: =T3_R2!L73 -> 0 | AI73: =_xlfn.XLOOKUP($W73,[1]COUNTRY_INFO!$Y$9:$Y$198,[1]COUNTRY_INFO!H$9:H$198) ->  | AJ73: =_xlfn.XLOOKUP($W73,[1]COUNTRY_INFO!$Y$9:$Y$198,[1]COUNTRY_INFO!I$9:I$198) ->  | AK73: =_xlfn.XLOOKUP($W73,[1]COUNTRY_INFO!$Y$9:$Y$198,[1]COUNTRY_INFO!J$9:J$198) ->  | AL73: =_xlfn.XLOOKUP($W73,[1]COUNTRY_INFO!$Y$9:$Y$198,[1]COUNTRY_INFO!K$9:K$198) ->  | AM73: =_xlfn.XLOOKUP($W73,[1]COUNTRY_INFO!$Y$9:$Y$198,[1]COUNTRY_INFO!L$9:L$198) -> 
A74: =IF(INTRO!$E$34<>0,INTRO!$E$34,"") -> Cameroon | B74: FAR-NORTH | C74: MADA | D74: 161994 | E74: =IF(INTRO!$E$48="","",ROUND($D74*INTRO!$E$48,0)) -> 20930 | F74: =IF(INTRO!$E$49="","",ROUND($D74*INTRO!$E$49,0)) -> 46168 | G74: =IF(INTRO!$E$50="","",ROUND($D74*INTRO!$E$50,0)) -> 88287 | H74: 99 | I74: 4 | J74: 0 | K74: 3 | L74: 0 | M74: =IF(INTRO!$E$38="Endémique", IF($H74>0, IF($H74=4,"Inconnu", IF($H74=99,"Interrompu", $D74)), 0),"Non requis") -> Interrompu | N74: =IF(INTRO!$E$40="Endémique", IF($I74>0, IF($I74=4,"Inconnu",IF($I74=99,"Interrompu", $D74)), 0),"Non requis") -> Inconnu | O74: =IF(INTRO!$E$42="Endémique", IF(AND($J74>1,$J74<5), IF($J74=4, "Inconnu", E74+F74), 0),"Non requis") -> 0 | P74: =IF(INTRO!$E$44="Endémique", IF(AND($K74>0,$K74<5), IF($K74=4,"Inconnu", IF($K74=1, $F74*0.33, IF($K74=2, $F74*0.5+$G74*0.2, SUM(F74:G74)))), 0),"Non requis") -> 134455 | Q74: 0 | R74: 0 | S74: 1 | T74: 1 | V74: T3 (ALB/MBD) | W74: 7485 | X74: MADA | AA74: ='MDA1'!K74 -> 0 | AB74: ='MDA3'!O74 -> 0 | AC74: ='T1'!M74 -> 0 | AD74: ='T2'!K74 -> 44340 | AE74: =T3_R1!L74 -> 44341 | AF74: =T3_R2!L74 -> 0 | AI74: =_xlfn.XLOOKUP($W74,[1]COUNTRY_INFO!$Y$9:$Y$198,[1]COUNTRY_INFO!H$9:H$198) ->  | AJ74: =_xlfn.XLOOKUP($W74,[1]COUNTRY_INFO!$Y$9:$Y$198,[1]COUNTRY_INFO!I$9:I$198) ->  | AK74: =_xlfn.XLOOKUP($W74,[1]COUNTRY_INFO!$Y$9:$Y$198,[1]COUNTRY_INFO!J$9:J$198) ->  | AL74: =_xlfn.XLOOKUP($W74,[1]COUNTRY_INFO!$Y$9:$Y$198,[1]COUNTRY_INFO!K$9:K$198) ->  | AM74: =_xlfn.XLOOKUP($W74,[1]COUNTRY_INFO!$Y$9:$Y$198,[1]COUNTRY_INFO!L$9:L$198) ->  | AN74: =AI74=H74 ->  | AO74: =AJ74=I74 ->  | AP74: =AK74=J74 ->  | AQ74: =AL74=K74 ->  | AR74: =AM74=L74 -> 
A75: =IF(INTRO!$E$34<>0,INTRO!$E$34,"") -> Cameroon | B75: FAR-NORTH | C75: MAGA | D75: 191669 | E75: =IF(INTRO!$E$48="","",ROUND($D75*INTRO!$E$48,0)) -> 24764 | F75: =IF(INTRO!$E$49="","",ROUND($D75*INTRO!$E$49,0)) -> 54626 | G75: =IF(INTRO!$E$50="","",ROUND($D75*INTRO!$E$50,0)) -> 104460 | H75: 99 | I75: 4 | J75: 1 | K75: 3 | L75: 0 | M75: =IF(INTRO!$E$38="Endémique", IF($H75>0, IF($H75=4,"Inconnu", IF($H75=99,"Interrompu", $D75)), 0),"Non requis") -> Interrompu | N75: =IF(INTRO!$E$40="Endémique", IF($I75>0, IF($I75=4,"Inconnu",IF($I75=99,"Interrompu", $D75)), 0),"Non requis") -> Inconnu | O75: =IF(INTRO!$E$42="Endémique", IF(AND($J75>1,$J75<5), IF($J75=4, "Inconnu", E75+F75), 0),"Non requis") -> 0 | P75: =IF(INTRO!$E$44="Endémique", IF(AND($K75>0,$K75<5), IF($K75=4,"Inconnu", IF($K75=1, $F75*0.33, IF($K75=2, $F75*0.5+$G75*0.2, SUM(F75:G75)))), 0),"Non requis") -> 159086 | Q75: 0 | R75: 0 | S75: 1 | T75: 1 | V75: T3 (ALB/MBD) | W75: 7486 | X75: MAGA | AA75: ='MDA1'!K75 -> 0 | AB75: ='MDA3'!O75 -> 0 | AC75: ='T1'!M75 -> 0 | AD75: ='T2'!K75 -> 48248 | AE75: =T3_R1!L75 -> 48282 | AF75: =T3_R2!L75 -> 0 | AI75: =_xlfn.XLOOKUP($W75,[1]COUNTRY_INFO!$Y$9:$Y$198,[1]COUNTRY_INFO!H$9:H$198) ->  | AJ75: =_xlfn.XLOOKUP($W75,[1]COUNTRY_INFO!$Y$9:$Y$198,[1]COUNTRY_INFO!I$9:I$198) ->  | AK75: =_xlfn.XLOOKUP($W75,[1]COUNTRY_INFO!$Y$9:$Y$198,[1]COUNTRY_INFO!J$9:J$198) ->  | AL75: =_xlfn.XLOOKUP($W75,[1]COUNTRY_INFO!$Y$9:$Y$198,[1]COUNTRY_INFO!K$9:K$198) ->  | AM75: =_xlfn.XLOOKUP($W75,[1]COUNTRY_INFO!$Y$9:$Y$198,[1]COUNTRY_INFO!L$9:L$198) -> 
A76: =IF(INTRO!$E$34<>0,INTRO!$E$34,"") -> Cameroon | B76: FAR-NORTH | C76: MAKARY | D76: 150120 | E76: =IF(INTRO!$E$48="","",ROUND($D76*INTRO!$E$48,0)) -> 19396 | F76: =IF(INTRO!$E$49="","",ROUND($D76*INTRO!$E$49,0)) -> 42784 | G76: =IF(INTRO!$E$50="","",ROUND($D76*INTRO!$E$50,0)) -> 81815 | H76: 99 | I76: 4 | J76: 0 | K76: 1 | L76: 0 | M76: =IF(INTRO!$E$38="Endémique", IF($H76>0, IF($H76=4,"Inconnu", IF($H76=99,"Interrompu", $D76)), 0),"Non requis") -> Interrompu | N76: =IF(INTRO!$E$40="Endémique", IF($I76>0, IF($I76=4,"Inconnu",IF($I76=99,"Interrompu", $D76)), 0),"Non requis") -> Inconnu | O76: =IF(INTRO!$E$42="Endémique", IF(AND($J76>1,$J76<5), IF($J76=4, "Inconnu", E76+F76), 0),"Non requis") -> 0 | P76: =IF(INTRO!$E$44="Endémique", IF(AND($K76>0,$K76<5), IF($K76=4,"Inconnu", IF($K76=1, $F76*0.33, IF($K76=2, $F76*0.5+$G76*0.2, SUM(F76:G76)))), 0),"Non requis") -> 14118.72 | Q76: 0 | R76: 0 | S76: 1 | T76: 1 | V76: T3 (ALB/MBD) | W76: 7487 | X76: MAKARY | AA76: ='MDA1'!K76 -> 0 | AB76: ='MDA3'!O76 -> 0 | AC76: ='T1'!M76 -> 0 | AD76: ='T2'!K76 -> 47120 | AE76: =T3_R1!L76 -> 47120 | AF76: =T3_R2!L76 -> 0 | AI76: =_xlfn.XLOOKUP($W76,[1]COUNTRY_INFO!$Y$9:$Y$198,[1]COUNTRY_INFO!H$9:H$198) ->  | AJ76: =_xlfn.XLOOKUP($W76,[1]COUNTRY_INFO!$Y$9:$Y$198,[1]COUNTRY_INFO!I$9:I$198) ->  | AK76: =_xlfn.XLOOKUP($W76,[1]COUNTRY_INFO!$Y$9:$Y$198,[1]COUNTRY_INFO!J$9:J$198) ->  | AL76: =_xlfn.XLOOKUP($W76,[1]COUNTRY_INFO!$Y$9:$Y$198,[1]COUNTRY_INFO!K$9:K$198) ->  | AM76: =_xlfn.XLOOKUP($W76,[1]COUNTRY_INFO!$Y$9:$Y$198,[1]COUNTRY_INFO!L$9:L$198) -> 
A77: =IF(INTRO!$E$34<>0,INTRO!$E$34,"") -> Cameroon | B77: FAR-NORTH | C77: MAROUA 1 | D77: 189178 | E77: =IF(INTRO!$E$48="","",ROUND($D77*INTRO!$E$48,0)) -> 24442 | F77: =IF(INTRO!$E$49="","",ROUND($D77*INTRO!$E$49,0)) -> 53916 | G77: =IF(INTRO!$E$50="","",ROUND($D77*INTRO!$E$50,0)) -> 103102 | H77: 99 | I77: 4 | J77: 1 | K77: 2 | L77: 0 | M77: =IF(INTRO!$E$38="Endémique", IF($H77>0, IF($H77=4,"Inconnu", IF($H77=99,"Interrompu", $D77)), 0),"Non requis") -> Interrompu | N77: =IF(INTRO!$E$40="Endémique", IF($I77>0, IF($I77=4,"Inconnu",IF($I77=99,"Interrompu", $D77)), 0),"Non requis") -> Inconnu | O77: =IF(INTRO!$E$42="Endémique", IF(AND($J77>1,$J77<5), IF($J77=4, "Inconnu", E77+F77), 0),"Non requis") -> 0 | P77: =IF(INTRO!$E$44="Endémique", IF(AND($K77>0,$K77<5), IF($K77=4,"Inconnu", IF($K77=1, $F77*0.33, IF($K77=2, $F77*0.5+$G77*0.2, SUM(F77:G77)))), 0),"Non requis") -> 47578.4 | Q77: 0 | R77: 0 | S77: 1 | T77: 1 | V77: T3 (ALB/MBD) | W77: 7488 | X77: MAROUA 1 | AA77: ='MDA1'!K77 -> 0 | AB77: ='MDA3'!O77 -> 0 | AC77: ='T1'!M77 -> 0 | AD77: ='T2'!K77 -> 54466 | AE77: =T3_R1!L77 -> 54528 | AF77: =T3_R2!L77 -> 0 | AI77: =_xlfn.XLOOKUP($W77,[1]COUNTRY_INFO!$Y$9:$Y$198,[1]COUNTRY_INFO!H$9:H$198) ->  | AJ77: =_xlfn.XLOOKUP($W77,[1]COUNTRY_INFO!$Y$9:$Y$198,[1]COUNTRY_INFO!I$9:I$198) ->  | AK77: =_xlfn.XLOOKUP($W77,[1]COUNTRY_INFO!$Y$9:$Y$198,[1]COUNTRY_INFO!J$9:J$198) ->  | AL77: =_xlfn.XLOOKUP($W77,[1]COUNTRY_INFO!$Y$9:$Y$198,[1]COUNTRY_INFO!K$9:K$198) ->  | AM77: =_xlfn.XLOOKUP($W77,[1]COUNTRY_INFO!$Y$9:$Y$198,[1]COUNTRY_INFO!L$9:L$198) -> 
A78: =IF(INTRO!$E$34<>0,INTRO!$E$34,"") -> Cameroon | B78: FAR-NORTH | C78: MAROUA 2 | D78: 195569 | E78: =IF(INTRO!$E$48="","",ROUND($D78*INTRO!$E$48,0)) -> 25268 | F78: =IF(INTRO!$E$49="","",ROUND($D78*INTRO!$E$49,0)) -> 55737 | G78: =IF(INTRO!$E$50="","",ROUND($D78*INTRO!$E$50,0)) -> 106585 | H78: 99 | I78: 4 | J78: 1 | K78: 2 | L78: 4 | M78: =IF(INTRO!$E$38="Endémique", IF($H78>0, IF($H78=4,"Inconnu", IF($H78=99,"Interrompu", $D78)), 0),"Non requis") -> Interrompu | N78: =IF(INTRO!$E$40="Endémique", IF($I78>0, IF($I78=4,"Inconnu",IF($I78=99,"Interrompu", $D78)), 0),"Non requis") -> Inconnu | O78: =IF(INTRO!$E$42="Endémique", IF(AND($J78>1,$J78<5), IF($J78=4, "Inconnu", E78+F78), 0),"Non requis") -> 0 | P78: =IF(INTRO!$E$44="Endémique", IF(AND($K78>0,$K78<5), IF($K78=4,"Inconnu", IF($K78=1, $F78*0.33, IF($K78=2, $F78*0.5+$G78*0.2, SUM(F78:G78)))), 0),"Non requis") -> 49185.5 | Q78: 0 | R78: 0 | S78: 1 | T78: 1 | V78: T3 (ALB/MBD) | W78: 7489 | X78: MAROUA 2 | AA78: ='MDA1'!K78 -> 0 | AB78: ='MDA3'!O78 -> 0 | AC78: ='T1'!M78 -> 0 | AD78: ='T2'!K78 -> 57038 | AE78: =T3_R1!L78 -> 57038 | AF78: =T3_R2!L78 -> 0 | AI78: =_xlfn.XLOOKUP($W78,[1]COUNTRY_INFO!$Y$9:$Y$198,[1]COUNTRY_INFO!H$9:H$198) ->  | AJ78: =_xlfn.XLOOKUP($W78,[1]COUNTRY_INFO!$Y$9:$Y$198,[1]COUNTRY_INFO!I$9:I$198) ->  | AK78: =_xlfn.XLOOKUP($W78,[1]COUNTRY_INFO!$Y$9:$Y$198,[1]COUNTRY_INFO!J$9:J$198) ->  | AL78: =_xlfn.XLOOKUP($W78,[1]COUNTRY_INFO!$Y$9:$Y$198,[1]COUNTRY_INFO!K$9:K$198) ->  | AM78: =_xlfn.XLOOKUP($W78,[1]COUNTRY_INFO!$Y$9:$Y$198,[1]COUNTRY_INFO!L$9:L$198) -> 
A79: =IF(INTRO!$E$34<>0,INTRO!$E$34,"") -> Cameroon | B79: FAR-NORTH | C79: MAROUA 3 | D79: 157794 | E79: =IF(INTRO!$E$48="","",ROUND($D79*INTRO!$E$48,0)) -> 20387 | F79: =IF(INTRO!$E$49="","",ROUND($D79*INTRO!$E$49,0)) -> 44971 | G79: =IF(INTRO!$E$50="","",ROUND($D79*INTRO!$E$50,0)) -> 85998 | H79: 99 | I79: 4 | J79: 0 | K79: 2 | L79: 0 | M79: =IF(INTRO!$E$38="Endémique", IF($H79>0, IF($H79=4,"Inconnu", IF($H79=99,"Interrompu", $D79)), 0),"Non requis") -> Interrompu | N79: =IF(INTRO!$E$40="Endémique", IF($I79>0, IF($I79=4,"Inconnu",IF($I79=99,"Interrompu", $D79)), 0),"Non requis") -> Inconnu | O79: =IF(INTRO!$E$42="Endémique", IF(AND($J79>1,$J79<5), IF($J79=4, "Inconnu", E79+F79), 0),"Non requis") -> 0 | P79: =IF(INTRO!$E$44="Endémique", IF(AND($K79>0,$K79<5), IF($K79=4,"Inconnu", IF($K79=1, $F79*0.33, IF($K79=2, $F79*0.5+$G79*0.2, SUM(F79:G79)))), 0),"Non requis") -> 39685.1 | Q79: 0 | R79: 0 | S79: 1 | T79: 1 | V79: T3 (ALB/MBD) | W79: 7490 | X79: MAROUA 3 | AA79: ='MDA1'!K79 -> 0 | AB79: ='MDA3'!O79 -> 0 | AC79: ='T1'!M79 -> 0 | AD79: ='T2'!K79 -> 43864 | AE79: =T3_R1!L79 -> 43864 | AF79: =T3_R2!L79 -> 0 | AI79: =_xlfn.XLOOKUP($W79,[1]COUNTRY_INFO!$Y$9:$Y$198,[1]COUNTRY_INFO!H$9:H$198) ->  | AJ79: =_xlfn.XLOOKUP($W79,[1]COUNTRY_INFO!$Y$9:$Y$198,[1]COUNTRY_INFO!I$9:I$198) ->  | AK79: =_xlfn.XLOOKUP($W79,[1]COUNTRY_INFO!$Y$9:$Y$198,[1]COUNTRY_INFO!J$9:J$198) ->  | AL79: =_xlfn.XLOOKUP($W79,[1]COUNTRY_INFO!$Y$9:$Y$198,[1]COUNTRY_INFO!K$9:K$198) ->  | AM79: =_xlfn.XLOOKUP($W79,[1]COUNTRY_INFO!$Y$9:$Y$198,[1]COUNTRY_INFO!L$9:L$198) -> 
A80: =IF(INTRO!$E$34<>0,INTRO!$E$34,"") -> Cameroon | B80: FAR-NORTH | C80: MERI | D80: 175286 | E80: =IF(INTRO!$E$48="","",ROUND($D80*INTRO!$E$48,0)) -> 22647 | F80: =IF(INTRO!$E$49="","",ROUND($D80*INTRO!$E$49,0)) -> 49957 | G80: =IF(INTRO!$E$50="","",ROUND($D80*INTRO!$E$50,0)) -> 95531 | H80: 99 | I80: 4 | J80: 1 | K80: 3 | L80: 4 | M80: =IF(INTRO!$E$38="Endémique", IF($H80>0, IF($H80=4,"Inconnu", IF($H80=99,"Interrompu", $D80)), 0),"Non requis") -> Interrompu | N80: =IF(INTRO!$E$40="Endémique", IF($I80>0, IF($I80=4,"Inconnu",IF($I80=99,"Interrompu", $D80)), 0),"Non requis") -> Inconnu | O80: =IF(INTRO!$E$42="Endémique", IF(AND($J80>1,$J80<5), IF($J80=4, "Inconnu", E80+F80), 0),"Non requis") -> 0 | P80: =IF(INTRO!$E$44="Endémique", IF(AND($K80>0,$K80<5), IF($K80=4,"Inconnu", IF($K80=1, $F80*0.33, IF($K80=2, $F80*0.5+$G80*0.2, SUM(F80:G80)))), 0),"Non requis") -> 145488 | Q80: 0 | R80: 0 | S80: 1 | T80: 1 | V80: T3 (ALB/MBD) | W80: 7491 | X80: MERI | AA80: ='MDA1'!K80 -> 0 | AB80: ='MDA3'!O80 -> 0 | AC80: ='T1'!M80 -> 0 | AD80: ='T2'!K80 -> 48875 | AE80: =T3_R1!L80 -> 48845 | AF80: =T3_R2!L80 -> 0 | AI80: =_xlfn.XLOOKUP($W80,[1]COUNTRY_INFO!$Y$9:$Y$198,[1]COUNTRY_INFO!H$9:H$198) ->  | AJ80: =_xlfn.XLOOKUP($W80,[1]COUNTRY_INFO!$Y$9:$Y$198,[1]COUNTRY_INFO!I$9:I$198) ->  | AK80: =_xlfn.XLOOKUP($W80,[1]COUNTRY_INFO!$Y$9:$Y$198,[1]COUNTRY_INFO!J$9:J$198) ->  | AL80: =_xlfn.XLOOKUP($W80,[1]COUNTRY_INFO!$Y$9:$Y$198,[1]COUNTRY_INFO!K$9:K$198) ->  | AM80: =_xlfn.XLOOKUP($W80,[1]COUNTRY_INFO!$Y$9:$Y$198,[1]COUNTRY_INFO!L$9:L$198) -> 
A81: =IF(INTRO!$E$34<>0,INTRO!$E$34,"") -> Cameroon | B81: FAR-NORTH | C81: MINDIF | D81: 62431 | E81: =IF(INTRO!$E$48="","",ROUND($D81*INTRO!$E$48,0)) -> 8066 | F81: =IF(INTRO!$E$49="","",ROUND($D81*INTRO!$E$49,0)) -> 17793 | G81: =IF(INTRO!$E$50="","",ROUND($D81*INTRO!$E$50,0)) -> 34025 | H81: 99 | I81: 4 | J81: 1 | K81: 2 | L81: 0 | M81: =IF(INTRO!$E$38="Endémique", IF($H81>0, IF($H81=4,"Inconnu", IF($H81=99,"Interrompu", $D81)), 0),"Non requis") -> Interrompu | N81: =IF(INTRO!$E$40="Endémique", IF($I81>0, IF($I81=4,"Inconnu",IF($I81=99,"Interrompu", $D81)), 0),"Non requis") -> Inconnu | O81: =IF(INTRO!$E$42="Endémique", IF(AND($J81>1,$J81<5), IF($J81=4, "Inconnu", E81+F81), 0),"Non requis") -> 0 | P81: =IF(INTRO!$E$44="Endémique", IF(AND($K81>0,$K81<5), IF($K81=4,"Inconnu", IF($K81=1, $F81*0.33, IF($K81=2, $F81*0.5+$G81*0.2, SUM(F81:G81)))), 0),"Non requis") -> 15701.5 | Q81: 0 | R81: 0 | S81: 0 | T81: 0 | W81: 7492 | X81: MINDIF | AA81: ='MDA1'!K81 -> 0 | AB81: ='MDA3'!O81 -> 0 | AC81: ='T1'!M81 -> 0 | AD81: ='T2'!K81 -> 0 | AE81: =T3_R1!L81 -> 0 | AF81: =T3_R2!L81 -> 0 | AI81: =_xlfn.XLOOKUP($W81,[1]COUNTRY_INFO!$Y$9:$Y$198,[1]COUNTRY_INFO!H$9:H$198) ->  | AJ81: =_xlfn.XLOOKUP($W81,[1]COUNTRY_INFO!$Y$9:$Y$198,[1]COUNTRY_INFO!I$9:I$198) ->  | AK81: =_xlfn.XLOOKUP($W81,[1]COUNTRY_INFO!$Y$9:$Y$198,[1]COUNTRY_INFO!J$9:J$198) ->  | AL81: =_xlfn.XLOOKUP($W81,[1]COUNTRY_INFO!$Y$9:$Y$198,[1]COUNTRY_INFO!K$9:K$198) ->  | AM81: =_xlfn.XLOOKUP($W81,[1]COUNTRY_INFO!$Y$9:$Y$198,[1]COUNTRY_INFO!L$9:L$198) -> 
A82: =IF(INTRO!$E$34<>0,INTRO!$E$34,"") -> Cameroon | B82: FAR-NORTH | C82: MOGODE | D82: 123114 | E82: =IF(INTRO!$E$48="","",ROUND($D82*INTRO!$E$48,0)) -> 15906 | F82: =IF(INTRO!$E$49="","",ROUND($D82*INTRO!$E$49,0)) -> 35087 | G82: =IF(INTRO!$E$50="","",ROUND($D82*INTRO!$E$50,0)) -> 67097 | H82: 99 | I82: 4 | J82: 1 | K82: 2 | L82: 4 | M82: =IF(INTRO!$E$38="Endémique", IF($H82>0, IF($H82=4,"Inconnu", IF($H82=99,"Interrompu", $D82)), 0),"Non requis") -> Interrompu | N82: =IF(INTRO!$E$40="Endémique", IF($I82>0, IF($I82=4,"Inconnu",IF($I82=99,"Interrompu", $D82)), 0),"Non requis") -> Inconnu | O82: =IF(INTRO!$E$42="Endémique", IF(AND($J82>1,$J82<5), IF($J82=4, "Inconnu", E82+F82), 0),"Non requis") -> 0 | P82: =IF(INTRO!$E$44="Endémique", IF(AND($K82>0,$K82<5), IF($K82=4,"Inconnu", IF($K82=1, $F82*0.33, IF($K82=2, $F82*0.5+$G82*0.2, SUM(F82:G82)))), 0),"Non requis") -> 30962.9 | Q82: 0 | R82: 0 | S82: 1 | T82: 1 | V82: T3 (ALB/MBD) | W82: 7493 | X82: MOGODE | AA82: ='MDA1'!K82 -> 0 | AB82: ='MDA3'!O82 -> 0 | AC82: ='T1'!M82 -> 0 | AD82: ='T2'!K82 -> 32231 | AE82: =T3_R1!L82 -> 32153 | AF82: =T3_R2!L82 -> 0 | AI82: =_xlfn.XLOOKUP($W82,[1]COUNTRY_INFO!$Y$9:$Y$198,[1]COUNTRY_INFO!H$9:H$198) ->  | AJ82: =_xlfn.XLOOKUP($W82,[1]COUNTRY_INFO!$Y$9:$Y$198,[1]COUNTRY_INFO!I$9:I$198) ->  | AK82: =_xlfn.XLOOKUP($W82,[1]COUNTRY_INFO!$Y$9:$Y$198,[1]COUNTRY_INFO!J$9:J$198) ->  | AL82: =_xlfn.XLOOKUP($W82,[1]COUNTRY_INFO!$Y$9:$Y$198,[1]COUNTRY_INFO!K$9:K$198) ->  | AM82: =_xlfn.XLOOKUP($W82,[1]COUNTRY_INFO!$Y$9:$Y$198,[1]COUNTRY_INFO!L$9:L$198) -> 
A83: =IF(INTRO!$E$34<>0,INTRO!$E$34,"") -> Cameroon | B83: FAR-NORTH | C83: MOKOLO | D83: 300275 | E83: =IF(INTRO!$E$48="","",ROUND($D83*INTRO!$E$48,0)) -> 38796 | F83: =IF(INTRO!$E$49="","",ROUND($D83*INTRO!$E$49,0)) -> 85578 | G83: =IF(INTRO!$E$50="","",ROUND($D83*INTRO!$E$50,0)) -> 163650 | H83: 99 | I83: 1 | J83: 1 | K83: 2 | L83: 4 | M83: =IF(INTRO!$E$38="Endémique", IF($H83>0, IF($H83=4,"Inconnu", IF($H83=99,"Interrompu", $D83)), 0),"Non requis") -> Interrompu | N83: 149695 | O83: =IF(INTRO!$E$42="Endémique", IF(AND($J83>1,$J83<5), IF($J83=4, "Inconnu", E83+F83), 0),"Non requis") -> 0 | P83: =IF(INTRO!$E$44="Endémique", IF(AND($K83>0,$K83<5), IF($K83=4,"Inconnu", IF($K83=1, $F83*0.33, IF($K83=2, $F83*0.5+$G83*0.2, SUM(F83:G83)))), 0),"Non requis") -> 75519 | Q83: 0 | R83: 1 | S83: 1 | T83: 1 | U83: MDA3 (IVM) | V83: T3 (ALB/MBD) | W83: 7494 | X83: MOKOLO | AA83: ='MDA1'!K83 -> 0 | AB83: ='MDA3'!O83 -> 48040 | AC83: ='T1'!M83 -> 0 | AD83: ='T2'!K83 -> 99203 | AE83: =T3_R1!L83 -> 99203 | AF83: =T3_R2!L83 -> 0 | AI83: =_xlfn.XLOOKUP($W83,[1]COUNTRY_INFO!$Y$9:$Y$198,[1]COUNTRY_INFO!H$9:H$198) ->  | AJ83: =_xlfn.XLOOKUP($W83,[1]COUNTRY_INFO!$Y$9:$Y$198,[1]COUNTRY_INFO!I$9:I$198) ->  | AK83: =_xlfn.XLOOKUP($W83,[1]COUNTRY_INFO!$Y$9:$Y$198,[1]COUNTRY_INFO!J$9:J$198) ->  | AL83: =_xlfn.XLOOKUP($W83,[1]COUNTRY_INFO!$Y$9:$Y$198,[1]COUNTRY_INFO!K$9:K$198) ->  | AM83: =_xlfn.XLOOKUP($W83,[1]COUNTRY_INFO!$Y$9:$Y$198,[1]COUNTRY_INFO!L$9:L$198) -> 
A84: =IF(INTRO!$E$34<>0,INTRO!$E$34,"") -> Cameroon | B84: FAR-NORTH | C84: MORA | D84: 278978 | E84: =IF(INTRO!$E$48="","",ROUND($D84*INTRO!$E$48,0)) -> 36044 | F84: =IF(INTRO!$E$49="","",ROUND($D84*INTRO!$E$49,0)) -> 79509 | G84: =IF(INTRO!$E$50="","",ROUND($D84*INTRO!$E$50,0)) -> 152043 | H84: 99 | I84: 4 | J84: 1 | K84: 3 | L84: 4 | M84: =IF(INTRO!$E$38="Endémique", IF($H84>0, IF($H84=4,"Inconnu", IF($H84=99,"Interrompu", $D84)), 0),"Non requis") -> Interrompu | N84: =IF(INTRO!$E$40="Endémique", IF($I84>0, IF($I84=4,"Inconnu",IF($I84=99,"Interrompu", $D84)), 0),"Non requis") -> Inconnu | O84: =IF(INTRO!$E$42="Endémique", IF(AND($J84>1,$J84<5), IF($J84=4, "Inconnu", E84+F84), 0),"Non requis") -> 0 | P84: =IF(INTRO!$E$44="Endémique", IF(AND($K84>0,$K84<5), IF($K84=4,"Inconnu", IF($K84=1, $F84*0.33, IF($K84=2, $F84*0.5+$G84*0.2, SUM(F84:G84)))), 0),"Non requis") -> 231552 | Q84: 0 | R84: 0 | S84: 1 | T84: 1 | V84: T3 (ALB/MBD) | W84: 7495 | X84: MORA | AA84: ='MDA1'!K84 -> 0 | AB84: ='MDA3'!O84 -> 0 | AC84: ='T1'!M84 -> 0 | AD84: ='T2'!K84 -> 73705 | AE84: =T3_R1!L84 -> 73823 | AF84: =T3_R2!L84 -> 0 | AI84: =_xlfn.XLOOKUP($W84,[1]COUNTRY_INFO!$Y$9:$Y$198,[1]COUNTRY_INFO!H$9:H$198) ->  | AJ84: =_xlfn.XLOOKUP($W84,[1]COUNTRY_INFO!$Y$9:$Y$198,[1]COUNTRY_INFO!I$9:I$198) ->  | AK84: =_xlfn.XLOOKUP($W84,[1]COUNTRY_INFO!$Y$9:$Y$198,[1]COUNTRY_INFO!J$9:J$198) ->  | AL84: =_xlfn.XLOOKUP($W84,[1]COUNTRY_INFO!$Y$9:$Y$198,[1]COUNTRY_INFO!K$9:K$198) ->  | AM84: =_xlfn.XLOOKUP($W84,[1]COUNTRY_INFO!$Y$9:$Y$198,[1]COUNTRY_INFO!L$9:L$198) -> 
A85: =IF(INTRO!$E$34<>0,INTRO!$E$34,"") -> Cameroon | B85: FAR-NORTH | C85: MOULVOUDAYE | D85: 153506 | E85: =IF(INTRO!$E$48="","",ROUND($D85*INTRO!$E$48,0)) -> 19833 | F85: =IF(INTRO!$E$49="","",ROUND($D85*INTRO!$E$49,0)) -> 43749 | G85: =IF(INTRO!$E$50="","",ROUND($D85*INTRO!$E$50,0)) -> 83661 | H85: 99 | I85: 4 | J85: 0 | K85: 2 | L85: 0 | M85: =IF(INTRO!$E$38="Endémique", IF($H85>0, IF($H85=4,"Inconnu", IF($H85=99,"Interrompu", $D85)), 0),"Non requis") -> Interrompu | N85: =IF(INTRO!$E$40="Endémique", IF($I85>0, IF($I85=4,"Inconnu",IF($I85=99,"Interrompu", $D85)), 0),"Non requis") -> Inconnu | O85: =IF(INTRO!$E$42="Endémique", IF(AND($J85>1,$J85<5), IF($J85=4, "Inconnu", E85+F85), 0),"Non requis") -> 0 | P85: =IF(INTRO!$E$44="Endémique", IF(AND($K85>0,$K85<5), IF($K85=4,"Inconnu", IF($K85=1, $F85*0.33, IF($K85=2, $F85*0.5+$G85*0.2, SUM(F85:G85)))), 0),"Non requis") -> 38606.7 | Q85: 0 | R85: 0 | S85: 1 | T85: 1 | V85: T3 (ALB/MBD) | W85: 7496 | X85: MOULVOUDAYE | AA85: ='MDA1'!K85 -> 0 | AB85: ='MDA3'!O85 -> 0 | AC85: ='T1'!M85 -> 0 | AD85: ='T2'!K85 -> 37591 | AE85: =T3_R1!L85 -> 37607 | AF85: =T3_R2!L85 -> 0 | AI85: =_xlfn.XLOOKUP($W85,[1]COUNTRY_INFO!$Y$9:$Y$198,[1]COUNTRY_INFO!H$9:H$198) ->  | AJ85: =_xlfn.XLOOKUP($W85,[1]COUNTRY_INFO!$Y$9:$Y$198,[1]COUNTRY_INFO!I$9:I$198) ->  | AK85: =_xlfn.XLOOKUP($W85,[1]COUNTRY_INFO!$Y$9:$Y$198,[1]COUNTRY_INFO!J$9:J$198) ->  | AL85: =_xlfn.XLOOKUP($W85,[1]COUNTRY_INFO!$Y$9:$Y$198,[1]COUNTRY_INFO!K$9:K$198) ->  | AM85: =_xlfn.XLOOKUP($W85,[1]COUNTRY_INFO!$Y$9:$Y$198,[1]COUNTRY_INFO!L$9:L$198) -> 
A86: =IF(INTRO!$E$34<>0,INTRO!$E$34,"") -> Cameroon | B86: FAR-NORTH | C86: MOUTOURWA | D86: 55088 | E86: =IF(INTRO!$E$48="","",ROUND($D86*INTRO!$E$48,0)) -> 7117 | F86: =IF(INTRO!$E$49="","",ROUND($D86*INTRO!$E$49,0)) -> 15700 | G86: =IF(INTRO!$E$50="","",ROUND($D86*INTRO!$E$50,0)) -> 30023 | H86: 99 | I86: 4 | J86: 1 | K86: 2 | L86: 0 | M86: =IF(INTRO!$E$38="Endémique", IF($H86>0, IF($H86=4,"Inconnu", IF($H86=99,"Interrompu", $D86)), 0),"Non requis") -> Interrompu | N86: =IF(INTRO!$E$40="Endémique", IF($I86>0, IF($I86=4,"Inconnu",IF($I86=99,"Interrompu", $D86)), 0),"Non requis") -> Inconnu | O86: =IF(INTRO!$E$42="Endémique", IF(AND($J86>1,$J86<5), IF($J86=4, "Inconnu", E86+F86), 0),"Non requis") -> 0 | P86: =IF(INTRO!$E$44="Endémique", IF(AND($K86>0,$K86<5), IF($K86=4,"Inconnu", IF($K86=1, $F86*0.33, IF($K86=2, $F86*0.5+$G86*0.2, SUM(F86:G86)))), 0),"Non requis") -> 13854.6 | Q86: 0 | R86: 0 | S86: 0 | T86: 0 | W86: 7497 | X86: MOUTOURWA | AA86: ='MDA1'!K86 -> 0 | AB86: ='MDA3'!O86 -> 0 | AC86: ='T1'!M86 -> 0 | AD86: ='T2'!K86 -> 0 | AE86: =T3_R1!L86 -> 0 | AF86: =T3_R2!L86 -> 0 | AI86: =_xlfn.XLOOKUP($W86,[1]COUNTRY_INFO!$Y$9:$Y$198,[1]COUNTRY_INFO!H$9:H$198) ->  | AJ86: =_xlfn.XLOOKUP($W86,[1]COUNTRY_INFO!$Y$9:$Y$198,[1]COUNTRY_INFO!I$9:I$198) ->  | AK86: =_xlfn.XLOOKUP($W86,[1]COUNTRY_INFO!$Y$9:$Y$198,[1]COUNTRY_INFO!J$9:J$198) ->  | AL86: =_xlfn.XLOOKUP($W86,[1]COUNTRY_INFO!$Y$9:$Y$198,[1]COUNTRY_INFO!K$9:K$198) ->  | AM86: =_xlfn.XLOOKUP($W86,[1]COUNTRY_INFO!$Y$9:$Y$198,[1]COUNTRY_INFO!L$9:L$198) -> 
A87: =IF(INTRO!$E$34<>0,INTRO!$E$34,"") -> Cameroon | B87: FAR-NORTH | C87: PETTE | D87: 61781 | E87: =IF(INTRO!$E$48="","",ROUND($D87*INTRO!$E$48,0)) -> 7982 | F87: =IF(INTRO!$E$49="","",ROUND($D87*INTRO!$E$49,0)) -> 17608 | G87: =IF(INTRO!$E$50="","",ROUND($D87*INTRO!$E$50,0)) -> 33671 | H87: 99 | I87: 4 | J87: 1 | K87: 3 | L87: 4 | M87: =IF(INTRO!$E$38="Endémique", IF($H87>0, IF($H87=4,"Inconnu", IF($H87=99,"Interrompu", $D87)), 0),"Non requis") -> Interrompu | N87: =IF(INTRO!$E$40="Endémique", IF($I87>0, IF($I87=4,"Inconnu",IF($I87=99,"Interrompu", $D87)), 0),"Non requis") -> Inconnu | O87: =IF(INTRO!$E$42="Endémique", IF(AND($J87>1,$J87<5), IF($J87=4, "Inconnu", E87+F87), 0),"Non requis") -> 0 | P87: =IF(INTRO!$E$44="Endémique", IF(AND($K87>0,$K87<5), IF($K87=4,"Inconnu", IF($K87=1, $F87*0.33, IF($K87=2, $F87*0.5+$G87*0.2, SUM(F87:G87)))), 0),"Non requis") -> 51279 | Q87: 0 | R87: 0 | S87: 1 | T87: 1 | V87: T3 (ALB/MBD) | W87: 7498 | X87: PETTE | AA87: ='MDA1'!K87 -> 0 | AB87: ='MDA3'!O87 -> 0 | AC87: ='T1'!M87 -> 0 | AD87: ='T2'!K87 -> 15882 | AE87: =T3_R1!L87 -> 15838 | AF87: =T3_R2!L87 -> 0 | AI87: =_xlfn.XLOOKUP($W87,[1]COUNTRY_INFO!$Y$9:$Y$198,[1]COUNTRY_INFO!H$9:H$198) ->  | AJ87: =_xlfn.XLOOKUP($W87,[1]COUNTRY_INFO!$Y$9:$Y$198,[1]COUNTRY_INFO!I$9:I$198) ->  | AK87: =_xlfn.XLOOKUP($W87,[1]COUNTRY_INFO!$Y$9:$Y$198,[1]COUNTRY_INFO!J$9:J$198) ->  | AL87: =_xlfn.XLOOKUP($W87,[1]COUNTRY_INFO!$Y$9:$Y$198,[1]COUNTRY_INFO!K$9:K$198) ->  | AM87: =_xlfn.XLOOKUP($W87,[1]COUNTRY_INFO!$Y$9:$Y$198,[1]COUNTRY_INFO!L$9:L$198) -> 
A88: =IF(INTRO!$E$34<>0,INTRO!$E$34,"") -> Cameroon | B88: FAR-NORTH | C88: ROUA | D88: 97387 | E88: =IF(INTRO!$E$48="","",ROUND($D88*INTRO!$E$48,0)) -> 12582 | F88: =IF(INTRO!$E$49="","",ROUND($D88*INTRO!$E$49,0)) -> 27755 | G88: =IF(INTRO!$E$50="","",ROUND($D88*INTRO!$E$50,0)) -> 53076 | H88: 99 | I88: 1 | J88: 1 | K88: 2 | L88: 4 | M88: =IF(INTRO!$E$38="Endémique", IF($H88>0, IF($H88=4,"Inconnu", IF($H88=99,"Interrompu", $D88)), 0),"Non requis") -> Interrompu | N88: 87538 | O88: =IF(INTRO!$E$42="Endémique", IF(AND($J88>1,$J88<5), IF($J88=4, "Inconnu", E88+F88), 0),"Non requis") -> 0 | P88: =IF(INTRO!$E$44="Endémique", IF(AND($K88>0,$K88<5), IF($K88=4,"Inconnu", IF($K88=1, $F88*0.33, IF($K88=2, $F88*0.5+$G88*0.2, SUM(F88:G88)))), 0),"Non requis") -> 24492.7 | Q88: 0 | R88: 1 | S88: 0 | T88: 0 | U88: MDA3 (IVM) | W88: 7499 | X88: ROUA | AA88: ='MDA1'!K88 -> 0 | AB88: ='MDA3'!O88 -> 28073 | AC88: ='T1'!M88 -> 0 | AD88: ='T2'!K88 -> 0 | AE88: =T3_R1!L88 -> 0 | AF88: =T3_R2!L88 -> 0 | AI88: =_xlfn.XLOOKUP($W88,[1]COUNTRY_INFO!$Y$9:$Y$198,[1]COUNTRY_INFO!H$9:H$198) ->  | AJ88: =_xlfn.XLOOKUP($W88,[1]COUNTRY_INFO!$Y$9:$Y$198,[1]COUNTRY_INFO!I$9:I$198) ->  | AK88: =_xlfn.XLOOKUP($W88,[1]COUNTRY_INFO!$Y$9:$Y$198,[1]COUNTRY_INFO!J$9:J$198) ->  | AL88: =_xlfn.XLOOKUP($W88,[1]COUNTRY_INFO!$Y$9:$Y$198,[1]COUNTRY_INFO!K$9:K$198) ->  | AM88: =_xlfn.XLOOKUP($W88,[1]COUNTRY_INFO!$Y$9:$Y$198,[1]COUNTRY_INFO!L$9:L$198) -> 
A89: =IF(INTRO!$E$34<>0,INTRO!$E$34,"") -> Cameroon | B89: FAR-NORTH | C89: TOKOMBERE | D89: 154145 | E89: =IF(INTRO!$E$48="","",ROUND($D89*INTRO!$E$48,0)) -> 19916 | F89: =IF(INTRO!$E$49="","",ROUND($D89*INTRO!$E$49,0)) -> 43931 | G89: =IF(INTRO!$E$50="","",ROUND($D89*INTRO!$E$50,0)) -> 84009 | H89: 99 | I89: 4 | J89: 1 | K89: 2 | L89: 4 | M89: =IF(INTRO!$E$38="Endémique", IF($H89>0, IF($H89=4,"Inconnu", IF($H89=99,"Interrompu", $D89)), 0),"Non requis") -> Interrompu | N89: =IF(INTRO!$E$40="Endémique", IF($I89>0, IF($I89=4,"Inconnu",IF($I89=99,"Interrompu", $D89)), 0),"Non requis") -> Inconnu | O89: =IF(INTRO!$E$42="Endémique", IF(AND($J89>1,$J89<5), IF($J89=4, "Inconnu", E89+F89), 0),"Non requis") -> 0 | P89: =IF(INTRO!$E$44="Endémique", IF(AND($K89>0,$K89<5), IF($K89=4,"Inconnu", IF($K89=1, $F89*0.33, IF($K89=2, $F89*0.5+$G89*0.2, SUM(F89:G89)))), 0),"Non requis") -> 38767.3 | Q89: 0 | R89: 0 | S89: 0 | T89: 0 | W89: 7500 | X89: TOKOMBERE | AA89: ='MDA1'!K89 -> 0 | AB89: ='MDA3'!O89 -> 0 | AC89: ='T1'!M89 -> 0 | AD89: ='T2'!K89 -> 0 | AE89: =T3_R1!L89 -> 0 | AF89: =T3_R2!L89 -> 0 | AI89: =_xlfn.XLOOKUP($W89,[1]COUNTRY_INFO!$Y$9:$Y$198,[1]COUNTRY_INFO!H$9:H$198) ->  | AJ89: =_xlfn.XLOOKUP($W89,[1]COUNTRY_INFO!$Y$9:$Y$198,[1]COUNTRY_INFO!I$9:I$198) ->  | AK89: =_xlfn.XLOOKUP($W89,[1]COUNTRY_INFO!$Y$9:$Y$198,[1]COUNTRY_INFO!J$9:J$198) ->  | AL89: =_xlfn.XLOOKUP($W89,[1]COUNTRY_INFO!$Y$9:$Y$198,[1]COUNTRY_INFO!K$9:K$198) ->  | AM89: =_xlfn.XLOOKUP($W89,[1]COUNTRY_INFO!$Y$9:$Y$198,[1]COUNTRY_INFO!L$9:L$198) -> 
A90: =IF(INTRO!$E$34<>0,INTRO!$E$34,"") -> Cameroon | B90: FAR-NORTH | C90: VELE | D90: 155981 | E90: =IF(INTRO!$E$48="","",ROUND($D90*INTRO!$E$48,0)) -> 20153 | F90: =IF(INTRO!$E$49="","",ROUND($D90*INTRO!$E$49,0)) -> 44455 | G90: =IF(INTRO!$E$50="","",ROUND($D90*INTRO!$E$50,0)) -> 85010 | H90: 99 | I90: 4 | J90: 0 | K90: 3 | L90: 0 | M90: =IF(INTRO!$E$38="Endémique", IF($H90>0, IF($H90=4,"Inconnu", IF($H90=99,"Interrompu", $D90)), 0),"Non requis") -> Interrompu | N90: =IF(INTRO!$E$40="Endémique", IF($I90>0, IF($I90=4,"Inconnu",IF($I90=99,"Interrompu", $D90)), 0),"Non requis") -> Inconnu | O90: =IF(INTRO!$E$42="Endémique", IF(AND($J90>1,$J90<5), IF($J90=4, "Inconnu", E90+F90), 0),"Non requis") -> 0 | P90: =IF(INTRO!$E$44="Endémique", IF(AND($K90>0,$K90<5), IF($K90=4,"Inconnu", IF($K90=1, $F90*0.33, IF($K90=2, $F90*0.5+$G90*0.2, SUM(F90:G90)))), 0),"Non requis") -> 129465 | Q90: 0 | R90: 0 | S90: 1 | T90: 1 | V90: T3 (ALB/MBD) | W90: 7501 | X90: VELE | AA90: ='MDA1'!K90 -> 0 | AB90: ='MDA3'!O90 -> 0 | AC90: ='T1'!M90 -> 0 | AD90: ='T2'!K90 -> 44035 | AE90: =T3_R1!L90 -> 43088 | AF90: =T3_R2!L90 -> 0 | AI90: =_xlfn.XLOOKUP($W90,[1]COUNTRY_INFO!$Y$9:$Y$198,[1]COUNTRY_INFO!H$9:H$198) ->  | AJ90: =_xlfn.XLOOKUP($W90,[1]COUNTRY_INFO!$Y$9:$Y$198,[1]COUNTRY_INFO!I$9:I$198) ->  | AK90: =_xlfn.XLOOKUP($W90,[1]COUNTRY_INFO!$Y$9:$Y$198,[1]COUNTRY_INFO!J$9:J$198) ->  | AL90: =_xlfn.XLOOKUP($W90,[1]COUNTRY_INFO!$Y$9:$Y$198,[1]COUNTRY_INFO!K$9:K$198) ->  | AM90: =_xlfn.XLOOKUP($W90,[1]COUNTRY_INFO!$Y$9:$Y$198,[1]COUNTRY_INFO!L$9:L$198) -> 
A91: =IF(INTRO!$E$34<>0,INTRO!$E$34,"") -> Cameroon | B91: FAR-NORTH | C91: YAGOUA | D91: 256054 | E91: =IF(INTRO!$E$48="","",ROUND($D91*INTRO!$E$48,0)) -> 33082 | F91: =IF(INTRO!$E$49="","",ROUND($D91*INTRO!$E$49,0)) -> 72975 | G91: =IF(INTRO!$E$50="","",ROUND($D91*INTRO!$E$50,0)) -> 139549 | H91: 99 | I91: 4 | J91: 1 | K91: 3 | L91: 0 | M91: =IF(INTRO!$E$38="Endémique", IF($H91>0, IF($H91=4,"Inconnu", IF($H91=99,"Interrompu", $D91)), 0),"Non requis") -> Interrompu | N91: =IF(INTRO!$E$40="Endémique", IF($I91>0, IF($I91=4,"Inconnu",IF($I91=99,"Interrompu", $D91)), 0),"Non requis") -> Inconnu | O91: =IF(INTRO!$E$42="Endémique", IF(AND($J91>1,$J91<5), IF($J91=4, "Inconnu", E91+F91), 0),"Non requis") -> 0 | P91: =IF(INTRO!$E$44="Endémique", IF(AND($K91>0,$K91<5), IF($K91=4,"Inconnu", IF($K91=1, $F91*0.33, IF($K91=2, $F91*0.5+$G91*0.2, SUM(F91:G91)))), 0),"Non requis") -> 212524 | Q91: 0 | R91: 0 | S91: 1 | T91: 1 | V91: T3 (ALB/MBD) | W91: 7502 | X91: YAGOUA | AA91: ='MDA1'!K91 -> 0 | AB91: ='MDA3'!O91 -> 0 | AC91: ='T1'!M91 -> 0 | AD91: ='T2'!K91 -> 71054 | AE91: =T3_R1!L91 -> 70832 | AF91: =T3_R2!L91 -> 0 | AI91: =_xlfn.XLOOKUP($W91,[1]COUNTRY_INFO!$Y$9:$Y$198,[1]COUNTRY_INFO!H$9:H$198) ->  | AJ91: =_xlfn.XLOOKUP($W91,[1]COUNTRY_INFO!$Y$9:$Y$198,[1]COUNTRY_INFO!I$9:I$198) ->  | AK91: =_xlfn.XLOOKUP($W91,[1]COUNTRY_INFO!$Y$9:$Y$198,[1]COUNTRY_INFO!J$9:J$198) ->  | AL91: =_xlfn.XLOOKUP($W91,[1]COUNTRY_INFO!$Y$9:$Y$198,[1]COUNTRY_INFO!K$9:K$198) ->  | AM91: =_xlfn.XLOOKUP($W91,[1]COUNTRY_INFO!$Y$9:$Y$198,[1]COUNTRY_INFO!L$9:L$198) -> 
A92: =IF(INTRO!$E$34<>0,INTRO!$E$34,"") -> Cameroon | B92: LITTORAL | C92: ABO | D92: 30305 | E92: =IF(INTRO!$E$48="","",ROUND($D92*INTRO!$E$48,0)) -> 3915 | F92: =IF(INTRO!$E$49="","",ROUND($D92*INTRO!$E$49,0)) -> 8637 | G92: =IF(INTRO!$E$50="","",ROUND($D92*INTRO!$E$50,0)) -> 16516 | H92: 0 | I92: 4 | J92: 2 | K92: 0 | L92: 1 | M92: =IF(INTRO!$E$38="Endémique", IF($H92>0, IF($H92=4,"Inconnu", IF($H92=99,"Interrompu", $D92)), 0),"Non requis") -> 0 | N92: =IF(INTRO!$E$40="Endémique", IF($I92>0, IF($I92=4,"Inconnu",IF($I92=99,"Interrompu", $D92)), 0),"Non requis") -> Inconnu | O92: =IF(INTRO!$E$42="Endémique", IF(AND($J92>1,$J92<5), IF($J92=4, "Inconnu", E92+F92), 0),"Non requis") -> 12552 | P92: =IF(INTRO!$E$44="Endémique", IF(AND($K92>0,$K92<5), IF($K92=4,"Inconnu", IF($K92=1, $F92*0.33, IF($K92=2, $F92*0.5+$G92*0.2, SUM(F92:G92)))), 0),"Non requis") -> 0 | Q92: 0 | R92: 0 | S92: 1 | T92: 0 | V92: T3 (ALB/MBD) | W92: 7503 | X92: ABO | AA92: ='MDA1'!K92 -> 0 | AB92: ='MDA3'!O92 -> 0 | AC92: ='T1'!M92 -> 0 | AD92: ='T2'!K92 -> 0 | AE92: =T3_R1!L92 -> 10365 | AF92: =T3_R2!L92 -> 0 | AI92: =_xlfn.XLOOKUP($W92,[1]COUNTRY_INFO!$Y$9:$Y$198,[1]COUNTRY_INFO!H$9:H$198) ->  | AJ92: =_xlfn.XLOOKUP($W92,[1]COUNTRY_INFO!$Y$9:$Y$198,[1]COUNTRY_INFO!I$9:I$198) ->  | AK92: =_xlfn.XLOOKUP($W92,[1]COUNTRY_INFO!$Y$9:$Y$198,[1]COUNTRY_INFO!J$9:J$198) ->  | AL92: =_xlfn.XLOOKUP($W92,[1]COUNTRY_INFO!$Y$9:$Y$198,[1]COUNTRY_INFO!K$9:K$198) ->  | AM92: =_xlfn.XLOOKUP($W92,[1]COUNTRY_INFO!$Y$9:$Y$198,[1]COUNTRY_INFO!L$9:L$198) -> 
A93: =IF(INTRO!$E$34<>0,INTRO!$E$34,"") -> Cameroon | B93: LITTORAL | C93: BOKO | D93: 376924 | E93: =IF(INTRO!$E$48="","",ROUND($D93*INTRO!$E$48,0)) -> 48699 | F93: =IF(INTRO!$E$49="","",ROUND($D93*INTRO!$E$49,0)) -> 107423 | G93: =IF(INTRO!$E$50="","",ROUND($D93*INTRO!$E$50,0)) -> 205424 | H93: 0 | I93: 4 | J93: 2 | K93: 0 | L93: 1 | M93: =IF(INTRO!$E$38="Endémique", IF($H93>0, IF($H93=4,"Inconnu", IF($H93=99,"Interrompu", $D93)), 0),"Non requis") -> 0 | N93: =IF(INTRO!$E$40="Endémique", IF($I93>0, IF($I93=4,"Inconnu",IF($I93=99,"Interrompu", $D93)), 0),"Non requis") -> Inconnu | O93: =IF(INTRO!$E$42="Endémique", IF(AND($J93>1,$J93<5), IF($J93=4, "Inconnu", E93+F93), 0),"Non requis") -> 156122 | P93: =IF(INTRO!$E$44="Endémique", IF(AND($K93>0,$K93<5), IF($K93=4,"Inconnu", IF($K93=1, $F93*0.33, IF($K93=2, $F93*0.5+$G93*0.2, SUM(F93:G93)))), 0),"Non requis") -> 0 | Q93: 0 | R93: 0 | S93: 1 | T93: 0 | V93: T3 (ALB/MBD) | W93: 7504 | X93: BOKO | AA93: ='MDA1'!K93 -> 0 | AB93: ='MDA3'!O93 -> 0 | AC93: ='T1'!M93 -> 0 | AD93: ='T2'!K93 -> 0 | AE93: =T3_R1!L93 -> 65099 | AF93: =T3_R2!L93 -> 0 | AI93: =_xlfn.XLOOKUP($W93,[1]COUNTRY_INFO!$Y$9:$Y$198,[1]COUNTRY_INFO!H$9:H$198) ->  | AJ93: =_xlfn.XLOOKUP($W93,[1]COUNTRY_INFO!$Y$9:$Y$198,[1]COUNTRY_INFO!I$9:I$198) ->  | AK93: =_xlfn.XLOOKUP($W93,[1]COUNTRY_INFO!$Y$9:$Y$198,[1]COUNTRY_INFO!J$9:J$198) ->  | AL93: =_xlfn.XLOOKUP($W93,[1]COUNTRY_INFO!$Y$9:$Y$198,[1]COUNTRY_INFO!K$9:K$198) ->  | AM93: =_xlfn.XLOOKUP($W93,[1]COUNTRY_INFO!$Y$9:$Y$198,[1]COUNTRY_INFO!L$9:L$198) -> 
A94: =IF(INTRO!$E$34<>0,INTRO!$E$34,"") -> Cameroon | B94: LITTORAL | C94: BONASSAMA | D94: 455627 | E94: =IF(INTRO!$E$48="","",ROUND($D94*INTRO!$E$48,0)) -> 58867 | F94: =IF(INTRO!$E$49="","",ROUND($D94*INTRO!$E$49,0)) -> 129854 | G94: =IF(INTRO!$E$50="","",ROUND($D94*INTRO!$E$50,0)) -> 248317 | H94: 0 | I94: 4 | J94: 1 | K94: 1 | L94: 1 | M94: =IF(INTRO!$E$38="Endémique", IF($H94>0, IF($H94=4,"Inconnu", IF($H94=99,"Interrompu", $D94)), 0),"Non requis") -> 0 | N94: =IF(INTRO!$E$40="Endémique", IF($I94>0, IF($I94=4,"Inconnu",IF($I94=99,"Interrompu", $D94)), 0),"Non requis") -> Inconnu | O94: =IF(INTRO!$E$42="Endémique", IF(AND($J94>1,$J94<5), IF($J94=4, "Inconnu", E94+F94), 0),"Non requis") -> 0 | P94: =IF(INTRO!$E$44="Endémique", IF(AND($K94>0,$K94<5), IF($K94=4,"Inconnu", IF($K94=1, $F94*0.33, IF($K94=2, $F94*0.5+$G94*0.2, SUM(F94:G94)))), 0),"Non requis") -> 42851.82 | Q94: 0 | R94: 0 | S94: 1 | T94: 0 | V94: T3 (ALB/MBD) | W94: 7505 | X94: BONASSAMA | AA94: ='MDA1'!K94 -> 0 | AB94: ='MDA3'!O94 -> 0 | AC94: ='T1'!M94 -> 0 | AD94: ='T2'!K94 -> 0 | AE94: =T3_R1!L94 -> 98457 | AF94: =T3_R2!L94 -> 0 | AI94: =_xlfn.XLOOKUP($W94,[1]COUNTRY_INFO!$Y$9:$Y$198,[1]COUNTRY_INFO!H$9:H$198) ->  | AJ94: =_xlfn.XLOOKUP($W94,[1]COUNTRY_INFO!$Y$9:$Y$198,[1]COUNTRY_INFO!I$9:I$198) ->  | AK94: =_xlfn.XLOOKUP($W94,[1]COUNTRY_INFO!$Y$9:$Y$198,[1]COUNTRY_INFO!J$9:J$198) ->  | AL94: =_xlfn.XLOOKUP($W94,[1]COUNTRY_INFO!$Y$9:$Y$198,[1]COUNTRY_INFO!K$9:K$198) ->  | AM94: =_xlfn.XLOOKUP($W94,[1]COUNTRY_INFO!$Y$9:$Y$198,[1]COUNTRY_INFO!L$9:L$198) -> 
A95: =IF(INTRO!$E$34<>0,INTRO!$E$34,"") -> Cameroon | B95: LITTORAL | C95: CITE PALMIERS | D95: 343007 | E95: =IF(INTRO!$E$48="","",ROUND($D95*INTRO!$E$48,0)) -> 44317 | F95: =IF(INTRO!$E$49="","",ROUND($D95*INTRO!$E$49,0)) -> 97757 | G95: =IF(INTRO!$E$50="","",ROUND($D95*INTRO!$E$50,0)) -> 186939 | H95: 0 | I95: 4 | J95: 1 | K95: 1 | L95: 1 | M95: =IF(INTRO!$E$38="Endémique", IF($H95>0, IF($H95=4,"Inconnu", IF($H95=99,"Interrompu", $D95)), 0),"Non requis") -> 0 | N95: =IF(INTRO!$E$40="Endémique", IF($I95>0, IF($I95=4,"Inconnu",IF($I95=99,"Interrompu", $D95)), 0),"Non requis") -> Inconnu | O95: =IF(INTRO!$E$42="Endémique", IF(AND($J95>1,$J95<5), IF($J95=4, "Inconnu", E95+F95), 0),"Non requis") -> 0 | P95: =IF(INTRO!$E$44="Endémique", IF(AND($K95>0,$K95<5), IF($K95=4,"Inconnu", IF($K95=1, $F95*0.33, IF($K95=2, $F95*0.5+$G95*0.2, SUM(F95:G95)))), 0),"Non requis") -> 32259.81 | Q95: 0 | R95: 0 | S95: 1 | T95: 0 | V95: T3 (ALB/MBD) | W95: 7506 | X95: CITE PALMIERS | AA95: ='MDA1'!K95 -> 0 | AB95: ='MDA3'!O95 -> 0 | AC95: ='T1'!M95 -> 0 | AD95: ='T2'!K95 -> 0 | AE95: =T3_R1!L95 -> 34400 | AF95: =T3_R2!L95 -> 0 | AI95: =_xlfn.XLOOKUP($W95,[1]COUNTRY_INFO!$Y$9:$Y$198,[1]COUNTRY_INFO!H$9:H$198) ->  | AJ95: =_xlfn.XLOOKUP($W95,[1]COUNTRY_INFO!$Y$9:$Y$198,[1]COUNTRY_INFO!I$9:I$198) ->  | AK95: =_xlfn.XLOOKUP($W95,[1]COUNTRY_INFO!$Y$9:$Y$198,[1]COUNTRY_INFO!J$9:J$198) ->  | AL95: =_xlfn.XLOOKUP($W95,[1]COUNTRY_INFO!$Y$9:$Y$198,[1]COUNTRY_INFO!K$9:K$198) ->  | AM95: =_xlfn.XLOOKUP($W95,[1]COUNTRY_INFO!$Y$9:$Y$198,[1]COUNTRY_INFO!L$9:L$198) -> 
A96: =IF(INTRO!$E$34<>0,INTRO!$E$34,"") -> Cameroon | B96: LITTORAL | C96: DEIDO | D96: 641990 | E96: =IF(INTRO!$E$48="","",ROUND($D96*INTRO!$E$48,0)) -> 82945 | F96: =IF(INTRO!$E$49="","",ROUND($D96*INTRO!$E$49,0)) -> 182967 | G96: =IF(INTRO!$E$50="","",ROUND($D96*INTRO!$E$50,0)) -> 349885 | H96: 0 | I96: 4 | J96: 1 | K96: 1 | L96: 1 | M96: =IF(INTRO!$E$38="Endémique", IF($H96>0, IF($H96=4,"Inconnu", IF($H96=99,"Interrompu", $D96)), 0),"Non requis") -> 0 | N96: =IF(INTRO!$E$40="Endémique", IF($I96>0, IF($I96=4,"Inconnu",IF($I96=99,"Interrompu", $D96)), 0),"Non requis") -> Inconnu | O96: =IF(INTRO!$E$42="Endémique", IF(AND($J96>1,$J96<5), IF($J96=4, "Inconnu", E96+F96), 0),"Non requis") -> 0 | P96: =IF(INTRO!$E$44="Endémique", IF(AND($K96>0,$K96<5), IF($K96=4,"Inconnu", IF($K96=1, $F96*0.33, IF($K96=2, $F96*0.5+$G96*0.2, SUM(F96:G96)))), 0),"Non requis") -> 60379.11 | Q96: 0 | R96: 0 | S96: 1 | T96: 0 | V96: T3 (ALB/MBD) | W96: 7507 | X96: DEIDO | AA96: ='MDA1'!K96 -> 0 | AB96: ='MDA3'!O96 -> 0 | AC96: ='T1'!M96 -> 0 | AD96: ='T2'!K96 -> 0 | AE96: =T3_R1!L96 -> 91708 | AF96: =T3_R2!L96 -> 0 | AI96: =_xlfn.XLOOKUP($W96,[1]COUNTRY_INFO!$Y$9:$Y$198,[1]COUNTRY_INFO!H$9:H$198) ->  | AJ96: =_xlfn.XLOOKUP($W96,[1]COUNTRY_INFO!$Y$9:$Y$198,[1]COUNTRY_INFO!I$9:I$198) ->  | AK96: =_xlfn.XLOOKUP($W96,[1]COUNTRY_INFO!$Y$9:$Y$198,[1]COUNTRY_INFO!J$9:J$198) ->  | AL96: =_xlfn.XLOOKUP($W96,[1]COUNTRY_INFO!$Y$9:$Y$198,[1]COUNTRY_INFO!K$9:K$198) ->  | AM96: =_xlfn.XLOOKUP($W96,[1]COUNTRY_INFO!$Y$9:$Y$198,[1]COUNTRY_INFO!L$9:L$198) -> 
A97: =IF(INTRO!$E$34<>0,INTRO!$E$34,"") -> Cameroon | B97: LITTORAL | C97: DIBOMBARI | D97: 21959 | E97: =IF(INTRO!$E$48="","",ROUND($D97*INTRO!$E$48,0)) -> 2837 | F97: =IF(INTRO!$E$49="","",ROUND($D97*INTRO!$E$49,0)) -> 6258 | G97: =IF(INTRO!$E$50="","",ROUND($D97*INTRO!$E$50,0)) -> 11968 | H97: 0 | I97: 4 | J97: 0 | K97: 0 | L97: 1 | M97: =IF(INTRO!$E$38="Endémique", IF($H97>0, IF($H97=4,"Inconnu", IF($H97=99,"Interrompu", $D97)), 0),"Non requis") -> 0 | N97: =IF(INTRO!$E$40="Endémique", IF($I97>0, IF($I97=4,"Inconnu",IF($I97=99,"Interrompu", $D97)), 0),"Non requis") -> Inconnu | O97: =IF(INTRO!$E$42="Endémique", IF(AND($J97>1,$J97<5), IF($J97=4, "Inconnu", E97+F97), 0),"Non requis") -> 0 | P97: =IF(INTRO!$E$44="Endémique", IF(AND($K97>0,$K97<5), IF($K97=4,"Inconnu", IF($K97=1, $F97*0.33, IF($K97=2, $F97*0.5+$G97*0.2, SUM(F97:G97)))), 0),"Non requis") -> 0 | Q97: 0 | R97: 0 | S97: 1 | T97: 0 | V97: T3 (ALB/MBD) | W97: 7508 | X97: DIBOMBARI | AA97: ='MDA1'!K97 -> 0 | AB97: ='MDA3'!O97 -> 0 | AC97: ='T1'!M97 -> 0 | AD97: ='T2'!K97 -> 0 | AE97: =T3_R1!L97 -> 5854 | AF97: =T3_R2!L97 -> 0 | AI97: =_xlfn.XLOOKUP($W97,[1]COUNTRY_INFO!$Y$9:$Y$198,[1]COUNTRY_INFO!H$9:H$198) ->  | AJ97: =_xlfn.XLOOKUP($W97,[1]COUNTRY_INFO!$Y$9:$Y$198,[1]COUNTRY_INFO!I$9:I$198) ->  | AK97: =_xlfn.XLOOKUP($W97,[1]COUNTRY_INFO!$Y$9:$Y$198,[1]COUNTRY_INFO!J$9:J$198) ->  | AL97: =_xlfn.XLOOKUP($W97,[1]COUNTRY_INFO!$Y$9:$Y$198,[1]COUNTRY_INFO!K$9:K$198) ->  | AM97: =_xlfn.XLOOKUP($W97,[1]COUNTRY_INFO!$Y$9:$Y$198,[1]COUNTRY_INFO!L$9:L$198) -> 
A98: =IF(INTRO!$E$34<>0,INTRO!$E$34,"") -> Cameroon | B98: LITTORAL | C98: EDEA | D98: 130321 | E98: =IF(INTRO!$E$48="","",ROUND($D98*INTRO!$E$48,0)) -> 16837 | F98: =IF(INTRO!$E$49="","",ROUND($D98*INTRO!$E$49,0)) -> 37141 | G98: =IF(INTRO!$E$50="","",ROUND($D98*INTRO!$E$50,0)) -> 71025 | H98: 99 | I98: 1 | J98: 1 | K98: 1 | L98: 1 | M98: =IF(INTRO!$E$38="Endémique", IF($H98>0, IF($H98=4,"Inconnu", IF($H98=99,"Interrompu", $D98)), 0),"Non requis") -> Interrompu | N98: 80070 | O98: =IF(INTRO!$E$42="Endémique", IF(AND($J98>1,$J98<5), IF($J98=4, "Inconnu", E98+F98), 0),"Non requis") -> 0 | P98: =IF(INTRO!$E$44="Endémique", IF(AND($K98>0,$K98<5), IF($K98=4,"Inconnu", IF($K98=1, $F98*0.33, IF($K98=2, $F98*0.5+$G98*0.2, SUM(F98:G98)))), 0),"Non requis") -> 12256.53 | Q98: 0 | R98: 1 | S98: 1 | T98: 1 | U98: MDA3 (IVM) | V98: T3 (ALB/MBD) | W98: 7509 | X98: EDEA | AA98: ='MDA1'!K98 -> 0 | AB98: ='MDA3'!O98 -> 18696 | AC98: ='T1'!M98 -> 0 | AD98: ='T2'!K98 -> 20307 | AE98: =T3_R1!L98 -> 20719 | AF98: =T3_R2!L98 -> 0 | AI98: =_xlfn.XLOOKUP($W98,[1]COUNTRY_INFO!$Y$9:$Y$198,[1]COUNTRY_INFO!H$9:H$198) ->  | AJ98: =_xlfn.XLOOKUP($W98,[1]COUNTRY_INFO!$Y$9:$Y$198,[1]COUNTRY_INFO!I$9:I$198) ->  | AK98: =_xlfn.XLOOKUP($W98,[1]COUNTRY_INFO!$Y$9:$Y$198,[1]COUNTRY_INFO!J$9:J$198) ->  | AL98: =_xlfn.XLOOKUP($W98,[1]COUNTRY_INFO!$Y$9:$Y$198,[1]COUNTRY_INFO!K$9:K$198) ->  | AM98: =_xlfn.XLOOKUP($W98,[1]COUNTRY_INFO!$Y$9:$Y$198,[1]COUNTRY_INFO!L$9:L$198) -> 
A99: =IF(INTRO!$E$34<>0,INTRO!$E$34,"") -> Cameroon | B99: LITTORAL | C99: LOGBABA | D99: 246263 | E99: =IF(INTRO!$E$48="","",ROUND($D99*INTRO!$E$48,0)) -> 31817 | F99: =IF(INTRO!$E$49="","",ROUND($D99*INTRO!$E$49,0)) -> 70185 | G99: =IF(INTRO!$E$50="","",ROUND($D99*INTRO!$E$50,0)) -> 134213 | H99: 0 | I99: 4 | J99: 2 | K99: 1 | L99: 1 | M99: =IF(INTRO!$E$38="Endémique", IF($H99>0, IF($H99=4,"Inconnu", IF($H99=99,"Interrompu", $D99)), 0),"Non requis") -> 0 | N99: =IF(INTRO!$E$40="Endémique", IF($I99>0, IF($I99=4,"Inconnu",IF($I99=99,"Interrompu", $D99)), 0),"Non requis") -> Inconnu | O99: =IF(INTRO!$E$42="Endémique", IF(AND($J99>1,$J99<5), IF($J99=4, "Inconnu", E99+F99), 0),"Non requis") -> 102002 | P99: =IF(INTRO!$E$44="Endémique", IF(AND($K99>0,$K99<5), IF($K99=4,"Inconnu", IF($K99=1, $F99*0.33, IF($K99=2, $F99*0.5+$G99*0.2, SUM(F99:G99)))), 0),"Non requis") -> 23161.05 | Q99: 0 | R99: 0 | S99: 1 | T99: 0 | V99: T3 (ALB/MBD) | W99: 7511 | X99: LOGBABA | AA99: ='MDA1'!K99 -> 0 | AB99: ='MDA3'!O99 -> 0 | AC99: ='T1'!M99 -> 0 | AD99: ='T2'!K99 -> 0 | AE99: =T3_R1!L99 -> 45961 | AF99: =T3_R2!L99 -> 0 | AI99: =_xlfn.XLOOKUP($W99,[1]COUNTRY_INFO!$Y$9:$Y$198,[1]COUNTRY_INFO!H$9:H$198) ->  | AJ99: =_xlfn.XLOOKUP($W99,[1]COUNTRY_INFO!$Y$9:$Y$198,[1]COUNTRY_INFO!I$9:I$198) ->  | AK99: =_xlfn.XLOOKUP($W99,[1]COUNTRY_INFO!$Y$9:$Y$198,[1]COUNTRY_INFO!J$9:J$198) ->  | AL99: =_xlfn.XLOOKUP($W99,[1]COUNTRY_INFO!$Y$9:$Y$198,[1]COUNTRY_INFO!K$9:K$198) ->  | AM99: =_xlfn.XLOOKUP($W99,[1]COUNTRY_INFO!$Y$9:$Y$198,[1]COUNTRY_INFO!L$9:L$198) -> 
A100: =IF(INTRO!$E$34<>0,INTRO!$E$34,"") -> Cameroon | B100: LITTORAL | C100: LOUM | D100: 53970 | E100: =IF(INTRO!$E$48="","",ROUND($D100*INTRO!$E$48,0)) -> 6973 | F100: =IF(INTRO!$E$49="","",ROUND($D100*INTRO!$E$49,0)) -> 15381 | G100: =IF(INTRO!$E$50="","",ROUND($D100*INTRO!$E$50,0)) -> 29414 | H100: 99 | I100: 1 | J100: 1 | K100: 2 | L100: 1 | M100: =IF(INTRO!$E$38="Endémique", IF($H100>0, IF($H100=4,"Inconnu", IF($H100=99,"Interrompu", $D100)), 0),"Non requis") -> Interrompu | N100: 50044 | O100: =IF(INTRO!$E$42="Endémique", IF(AND($J100>1,$J100<5), IF($J100=4, "Inconnu", E100+F100), 0),"Non requis") -> 0 | P100: =IF(INTRO!$E$44="Endémique", IF(AND($K100>0,$K100<5), IF($K100=4,"Inconnu", IF($K100=1, $F100*0.33, IF($K100=2, $F100*0.5+$G100*0.2, SUM(F100:G100)))), 0),"Non requis") -> 13573.3 | Q100: 0 | R100: 1 | S100: 1 | T100: 1 | U100: MDA3 (IVM) | V100: T3 (ALB/MBD) | W100: 7512 | X100: LOUM | AA100: ='MDA1'!K100 -> 0 | AB100: ='MDA3'!O100 -> 13823 | AC100: ='T1'!M100 -> 0 | AD100: ='T2'!K100 -> 15821 | AE100: =T3_R1!L100 -> 16332 | AF100: =T3_R2!L100 -> 0 | AI100: =_xlfn.XLOOKUP($W100,[1]COUNTRY_INFO!$Y$9:$Y$198,[1]COUNTRY_INFO!H$9:H$198) ->  | AJ100: =_xlfn.XLOOKUP($W100,[1]COUNTRY_INFO!$Y$9:$Y$198,[1]COUNTRY_INFO!I$9:I$198) ->  | AK100: =_xlfn.XLOOKUP($W100,[1]COUNTRY_INFO!$Y$9:$Y$198,[1]COUNTRY_INFO!J$9:J$198) ->  | AL100: =_xlfn.XLOOKUP($W100,[1]COUNTRY_INFO!$Y$9:$Y$198,[1]COUNTRY_INFO!K$9:K$198) ->  | AM100: =_xlfn.XLOOKUP($W100,[1]COUNTRY_INFO!$Y$9:$Y$198,[1]COUNTRY_INFO!L$9:L$198) -> 
A101: =IF(INTRO!$E$34<>0,INTRO!$E$34,"") -> Cameroon | B101: LITTORAL | C101: MANJO | D101: 37745 | E101: =IF(INTRO!$E$48="","",ROUND($D101*INTRO!$E$48,0)) -> 4877 | F101: =IF(INTRO!$E$49="","",ROUND($D101*INTRO!$E$49,0)) -> 10757 | G101: =IF(INTRO!$E$50="","",ROUND($D101*INTRO!$E$50,0)) -> 20571 | H101: 99 | I101: 1 | J101: 2 | K101: 1 | L101: 1 | M101: =IF(INTRO!$E$38="Endémique", IF($H101>0, IF($H101=4,"Inconnu", IF($H101=99,"Interrompu", $D101)), 0),"Non requis") -> Interrompu | N101: 60089 | O101: =IF(INTRO!$E$42="Endémique", IF(AND($J101>1,$J101<5), IF($J101=4, "Inconnu", E101+F101), 0),"Non requis") -> 15634 | P101: =IF(INTRO!$E$44="Endémique", IF(AND($K101>0,$K101<5), IF($K101=4,"Inconnu", IF($K101=1, $F101*0.33, IF($K101=2, $F101*0.5+$G101*0.2, SUM(F101:G101)))), 0),"Non requis") -> 3549.81 | Q101: 0 | R101: 1 | S101: 1 | T101: 0 | U101: MDA3 (IVM) | V101: T3 (ALB/MBD) | W101: 7513 | X101: MANJO | AA101: ='MDA1'!K101 -> 0 | AB101: ='MDA3'!O101 -> 18369 | AC101: ='T1'!M101 -> 0 | AD101: ='T2'!K101 -> 0 | AE101: =T3_R1!L101 -> 13381 | AF101: =T3_R2!L101 -> 0 | AI101: =_xlfn.XLOOKUP($W101,[1]COUNTRY_INFO!$Y$9:$Y$198,[1]COUNTRY_INFO!H$9:H$198) ->  | AJ101: =_xlfn.XLOOKUP($W101,[1]COUNTRY_INFO!$Y$9:$Y$198,[1]COUNTRY_INFO!I$9:I$198) ->  | AK101: =_xlfn.XLOOKUP($W101,[1]COUNTRY_INFO!$Y$9:$Y$198,[1]COUNTRY_INFO!J$9:J$198) ->  | AL101: =_xlfn.XLOOKUP($W101,[1]COUNTRY_INFO!$Y$9:$Y$198,[1]COUNTRY_INFO!K$9:K$198) ->  | AM101: =_xlfn.XLOOKUP($W101,[1]COUNTRY_INFO!$Y$9:$Y$198,[1]COUNTRY_INFO!L$9:L$198) -> 
A102: =IF(INTRO!$E$34<>0,INTRO!$E$34,"") -> Cameroon | B102: LITTORAL | C102: MANOKA | D102: 19943 | E102: =IF(INTRO!$E$48="","",ROUND($D102*INTRO!$E$48,0)) -> 2577 | F102: =IF(INTRO!$E$49="","",ROUND($D102*INTRO!$E$49,0)) -> 5684 | G102: =IF(INTRO!$E$50="","",ROUND($D102*INTRO!$E$50,0)) -> 10869 | H102: 0 | I102: 4 | J102: 3 | K102: 0 | L102: 1 | M102: =IF(INTRO!$E$38="Endémique", IF($H102>0, IF($H102=4,"Inconnu", IF($H102=99,"Interrompu", $D102)), 0),"Non requis") -> 0 | N102: =IF(INTRO!$E$40="Endémique", IF($I102>0, IF($I102=4,"Inconnu",IF($I102=99,"Interrompu", $D102)), 0),"Non requis") -> Inconnu | O102: =IF(INTRO!$E$42="Endémique", IF(AND($J102>1,$J102<5), IF($J102=4, "Inconnu", E102+F102), 0),"Non requis") -> 8261 | P102: =IF(INTRO!$E$44="Endémique", IF(AND($K102>0,$K102<5), IF($K102=4,"Inconnu", IF($K102=1, $F102*0.33, IF($K102=2, $F102*0.5+$G102*0.2, SUM(F102:G102)))), 0),"Non requis") -> 0 | Q102: 0 | R102: 0 | S102: 1 | T102: 0 | V102: T3 (ALB/MBD) | W102: 7514 | X102: MANOKA | AA102: ='MDA1'!K102 -> 0 | AB102: ='MDA3'!O102 -> 0 | AC102: ='T1'!M102 -> 0 | AD102: ='T2'!K102 -> 0 | AE102: =T3_R1!L102 -> 4903 | AF102: =T3_R2!L102 -> 0 | AI102: =_xlfn.XLOOKUP($W102,[1]COUNTRY_INFO!$Y$9:$Y$198,[1]COUNTRY_INFO!H$9:H$198) ->  | AJ102: =_xlfn.XLOOKUP($W102,[1]COUNTRY_INFO!$Y$9:$Y$198,[1]COUNTRY_INFO!I$9:I$198) ->  | AK102: =_xlfn.XLOOKUP($W102,[1]COUNTRY_INFO!$Y$9:$Y$198,[1]COUNTRY_INFO!J$9:J$198) ->  | AL102: =_xlfn.XLOOKUP($W102,[1]COUNTRY_INFO!$Y$9:$Y$198,[1]COUNTRY_INFO!K$9:K$198) ->  | AM102: =_xlfn.XLOOKUP($W102,[1]COUNTRY_INFO!$Y$9:$Y$198,[1]COUNTRY_INFO!L$9:L$198) -> 
A103: =IF(INTRO!$E$34<>0,INTRO!$E$34,"") -> Cameroon | B103: LITTORAL | C103: MBANGUE | D103: 342327 | E103: =IF(INTRO!$E$48="","",ROUND($D103*INTRO!$E$48,0)) -> 44229 | F103: =IF(INTRO!$E$49="","",ROUND($D103*INTRO!$E$49,0)) -> 97563 | G103: =IF(INTRO!$E$50="","",ROUND($D103*INTRO!$E$50,0)) -> 186568 | H103: 0 | I103: 4 | J103: 2 | K103: 1 | L103: 1 | M103: =IF(INTRO!$E$38="Endémique", IF($H103>0, IF($H103=4,"Inconnu", IF($H103=99,"Interrompu", $D103)), 0),"Non requis") -> 0 | N103: =IF(INTRO!$E$40="Endémique", IF($I103>0, IF($I103=4,"Inconnu",IF($I103=99,"Interrompu", $D103)), 0),"Non requis") -> Inconnu | O103: =IF(INTRO!$E$42="Endémique", IF(AND($J103>1,$J103<5), IF($J103=4, "Inconnu", E103+F103), 0),"Non requis") -> 141792 | P103: =IF(INTRO!$E$44="Endémique", IF(AND($K103>0,$K103<5), IF($K103=4,"Inconnu", IF($K103=1, $F103*0.33, IF($K103=2, $F103*0.5+$G103*0.2, SUM(F103:G103)))), 0),"Non requis") -> 32195.79 | Q103: 0 | R103: 0 | S103: 1 | T103: 0 | V103: T3 (ALB/MBD) | W103: 7516 | X103: MBANGUE | AA103: ='MDA1'!K103 -> 0 | AB103: ='MDA3'!O103 -> 0 | AC103: ='T1'!M103 -> 0 | AD103: ='T2'!K103 -> 0 | AE103: =T3_R1!L103 -> 81840 | AF103: =T3_R2!L103 -> 0 | AI103: =_xlfn.XLOOKUP($W103,[1]COUNTRY_INFO!$Y$9:$Y$198,[1]COUNTRY_INFO!H$9:H$198) ->  | AJ103: =_xlfn.XLOOKUP($W103,[1]COUNTRY_INFO!$Y$9:$Y$198,[1]COUNTRY_INFO!I$9:I$198) ->  | AK103: =_xlfn.XLOOKUP($W103,[1]COUNTRY_INFO!$Y$9:$Y$198,[1]COUNTRY_INFO!J$9:J$198) ->  | AL103: =_xlfn.XLOOKUP($W103,[1]COUNTRY_INFO!$Y$9:$Y$198,[1]COUNTRY_INFO!K$9:K$198) ->  | AM103: =_xlfn.XLOOKUP($W103,[1]COUNTRY_INFO!$Y$9:$Y$198,[1]COUNTRY_INFO!L$9:L$198) -> 
A104: =IF(INTRO!$E$34<>0,INTRO!$E$34,"") -> Cameroon | B104: LITTORAL | C104: MBANGA | D104: 65861 | E104: =IF(INTRO!$E$48="","",ROUND($D104*INTRO!$E$48,0)) -> 8509 | F104: =IF(INTRO!$E$49="","",ROUND($D104*INTRO!$E$49,0)) -> 18770 | G104: =IF(INTRO!$E$50="","",ROUND($D104*INTRO!$E$50,0)) -> 35894 | H104: 99 | I104: 1 | J104: 2 | K104: 1 | L104: 1 | M104: =IF(INTRO!$E$38="Endémique", IF($H104>0, IF($H104=4,"Inconnu", IF($H104=99,"Interrompu", $D104)), 0),"Non requis") -> Interrompu | N104: 63554 | O104: =IF(INTRO!$E$42="Endémique", IF(AND($J104>1,$J104<5), IF($J104=4, "Inconnu", E104+F104), 0),"Non requis") -> 27279 | P104: =IF(INTRO!$E$44="Endémique", IF(AND($K104>0,$K104<5), IF($K104=4,"Inconnu", IF($K104=1, $F104*0.33, IF($K104=2, $F104*0.5+$G104*0.2, SUM(F104:G104)))), 0),"Non requis") -> 6194.1 | Q104: 0 | R104: 1 | S104: 1 | T104: 0 | U104: MDA3 (IVM) | V104: T3 (ALB/MBD) | W104: 7515 | X104: MBANGA | AA104: ='MDA1'!K104 -> 0 | AB104: ='MDA3'!O104 -> 15952 | AC104: ='T1'!M104 -> 0 | AD104: ='T2'!K104 -> 0 | AE104: =T3_R1!L104 -> 14489 | AF104: =T3_R2!L104 -> 0 | AI104: =_xlfn.XLOOKUP($W104,[1]COUNTRY_INFO!$Y$9:$Y$198,[1]COUNTRY_INFO!H$9:H$198) ->  | AJ104: =_xlfn.XLOOKUP($W104,[1]COUNTRY_INFO!$Y$9:$Y$198,[1]COUNTRY_INFO!I$9:I$198) ->  | AK104: =_xlfn.XLOOKUP($W104,[1]COUNTRY_INFO!$Y$9:$Y$198,[1]COUNTRY_INFO!J$9:J$198) ->  | AL104: =_xlfn.XLOOKUP($W104,[1]COUNTRY_INFO!$Y$9:$Y$198,[1]COUNTRY_INFO!K$9:K$198) ->  | AM104: =_xlfn.XLOOKUP($W104,[1]COUNTRY_INFO!$Y$9:$Y$198,[1]COUNTRY_INFO!L$9:L$198) -> 
A105: =IF(INTRO!$E$34<>0,INTRO!$E$34,"") -> Cameroon | B105: LITTORAL | C105: MELONG | D105: 78518 | E105: =IF(INTRO!$E$48="","",ROUND($D105*INTRO!$E$48,0)) -> 10145 | F105: =IF(INTRO!$E$49="","",ROUND($D105*INTRO!$E$49,0)) -> 22378 | G105: =IF(INTRO!$E$50="","",ROUND($D105*INTRO!$E$50,0)) -> 42792 | H105: 99 | I105: 1 | J105: 2 | K105: 2 | L105: 1 | M105: =IF(INTRO!$E$38="Endémique", IF($H105>0, IF($H105=4,"Inconnu", IF($H105=99,"Interrompu", $D105)), 0),"Non requis") -> Interrompu | N105: 69532 | O105: =IF(INTRO!$E$42="Endémique", IF(AND($J105>1,$J105<5), IF($J105=4, "Inconnu", E105+F105), 0),"Non requis") -> 32523 | P105: =IF(INTRO!$E$44="Endémique", IF(AND($K105>0,$K105<5), IF($K105=4,"Inconnu", IF($K105=1, $F105*0.33, IF($K105=2, $F105*0.5+$G105*0.2, SUM(F105:G105)))), 0),"Non requis") -> 19747.4 | Q105: 0 | R105: 1 | S105: 1 | T105: 1 | U105: MDA3 (IVM) | V105: T3 (ALB/MBD) | W105: 7517 | X105: MELONG | AA105: ='MDA1'!K105 -> 0 | AB105: ='MDA3'!O105 -> 21663 | AC105: ='T1'!M105 -> 0 | AD105: ='T2'!K105 -> 15446 | AE105: =T3_R1!L105 -> 21936 | AF105: =T3_R2!L105 -> 0 | AI105: =_xlfn.XLOOKUP($W105,[1]COUNTRY_INFO!$Y$9:$Y$198,[1]COUNTRY_INFO!H$9:H$198) ->  | AJ105: =_xlfn.XLOOKUP($W105,[1]COUNTRY_INFO!$Y$9:$Y$198,[1]COUNTRY_INFO!I$9:I$198) ->  | AK105: =_xlfn.XLOOKUP($W105,[1]COUNTRY_INFO!$Y$9:$Y$198,[1]COUNTRY_INFO!J$9:J$198) ->  | AL105: =_xlfn.XLOOKUP($W105,[1]COUNTRY_INFO!$Y$9:$Y$198,[1]COUNTRY_INFO!K$9:K$198) ->  | AM105: =_xlfn.XLOOKUP($W105,[1]COUNTRY_INFO!$Y$9:$Y$198,[1]COUNTRY_INFO!L$9:L$198) -> 
A106: =IF(INTRO!$E$34<>0,INTRO!$E$34,"") -> Cameroon | B106: LITTORAL | C106: NDOM | D106: 26202 | E106: =IF(INTRO!$E$48="","",ROUND($D106*INTRO!$E$48,0)) -> 3385 | F106: =IF(INTRO!$E$49="","",ROUND($D106*INTRO!$E$49,0)) -> 7468 | G106: =IF(INTRO!$E$50="","",ROUND($D106*INTRO!$E$50,0)) -> 14280 | H106: 99 | I106: 1 | J106: 3 | K106: 0 | L106: 1 | M106: =IF(INTRO!$E$38="Endémique", IF($H106>0, IF($H106=4,"Inconnu", IF($H106=99,"Interrompu", $D106)), 0),"Non requis") -> Interrompu | N106: 21416 | O106: =IF(INTRO!$E$42="Endémique", IF(AND($J106>1,$J106<5), IF($J106=4, "Inconnu", E106+F106), 0),"Non requis") -> 10853 | P106: =IF(INTRO!$E$44="Endémique", IF(AND($K106>0,$K106<5), IF($K106=4,"Inconnu", IF($K106=1, $F106*0.33, IF($K106=2, $F106*0.5+$G106*0.2, SUM(F106:G106)))), 0),"Non requis") -> 0 | Q106: 0 | R106: 1 | S106: 1 | T106: 0 | U106: MDA3 (IVM) | V106: T3 (ALB/MBD) | W106: 7518 | X106: NDOM | AA106: ='MDA1'!K106 -> 0 | AB106: ='MDA3'!O106 -> 5181 | AC106: ='T1'!M106 -> 0 | AD106: ='T2'!K106 -> 0 | AE106: =T3_R1!L106 -> 6478 | AF106: =T3_R2!L106 -> 0 | AI106: =_xlfn.XLOOKUP($W106,[1]COUNTRY_INFO!$Y$9:$Y$198,[1]COUNTRY_INFO!H$9:H$198) ->  | AJ106: =_xlfn.XLOOKUP($W106,[1]COUNTRY_INFO!$Y$9:$Y$198,[1]COUNTRY_INFO!I$9:I$198) ->  | AK106: =_xlfn.XLOOKUP($W106,[1]COUNTRY_INFO!$Y$9:$Y$198,[1]COUNTRY_INFO!J$9:J$198) ->  | AL106: =_xlfn.XLOOKUP($W106,[1]COUNTRY_INFO!$Y$9:$Y$198,[1]COUNTRY_INFO!K$9:K$198) ->  | AM106: =_xlfn.XLOOKUP($W106,[1]COUNTRY_INFO!$Y$9:$Y$198,[1]COUNTRY_INFO!L$9:L$198) -> 
A107: =IF(INTRO!$E$34<>0,INTRO!$E$34,"") -> Cameroon | B107: LITTORAL | C107: NEW BELL | D107: 321626 | E107: =IF(INTRO!$E$48="","",ROUND($D107*INTRO!$E$48,0)) -> 41554 | F107: =IF(INTRO!$E$49="","",ROUND($D107*INTRO!$E$49,0)) -> 91663 | G107: =IF(INTRO!$E$50="","",ROUND($D107*INTRO!$E$50,0)) -> 175286 | H107: 0 | I107: 4 | J107: 1 | K107: 1 | L107: 1 | M107: =IF(INTRO!$E$38="Endémique", IF($H107>0, IF($H107=4,"Inconnu", IF($H107=99,"Interrompu", $D107)), 0),"Non requis") -> 0 | N107: =IF(INTRO!$E$40="Endémique", IF($I107>0, IF($I107=4,"Inconnu",IF($I107=99,"Interrompu", $D107)), 0),"Non requis") -> Inconnu | O107: =IF(INTRO!$E$42="Endémique", IF(AND($J107>1,$J107<5), IF($J107=4, "Inconnu", E107+F107), 0),"Non requis") -> 0 | P107: =IF(INTRO!$E$44="Endémique", IF(AND($K107>0,$K107<5), IF($K107=4,"Inconnu", IF($K107=1, $F107*0.33, IF($K107=2, $F107*0.5+$G107*0.2, SUM(F107:G107)))), 0),"Non requis") -> 30248.79 | Q107: 0 | R107: 0 | S107: 1 | T107: 0 | V107: T3 (ALB/MBD) | W107: 7519 | X107: NEW BELL | AA107: ='MDA1'!K107 -> 0 | AB107: ='MDA3'!O107 -> 0 | AC107: ='T1'!M107 -> 0 | AD107: ='T2'!K107 -> 0 | AE107: =T3_R1!L107 -> 36552 | AF107: =T3_R2!L107 -> 0 | AI107: =_xlfn.XLOOKUP($W107,[1]COUNTRY_INFO!$Y$9:$Y$198,[1]COUNTRY_INFO!H$9:H$198) ->  | AJ107: =_xlfn.XLOOKUP($W107,[1]COUNTRY_INFO!$Y$9:$Y$198,[1]COUNTRY_INFO!I$9:I$198) ->  | AK107: =_xlfn.XLOOKUP($W107,[1]COUNTRY_INFO!$Y$9:$Y$198,[1]COUNTRY_INFO!J$9:J$198) ->  | AL107: =_xlfn.XLOOKUP($W107,[1]COUNTRY_INFO!$Y$9:$Y$198,[1]COUNTRY_INFO!K$9:K$198) ->  | AM107: =_xlfn.XLOOKUP($W107,[1]COUNTRY_INFO!$Y$9:$Y$198,[1]COUNTRY_INFO!L$9:L$198) -> 
A108: =IF(INTRO!$E$34<>0,INTRO!$E$34,"") -> Cameroon | B108: LITTORAL | C108: NGAMBE | D108: 10644 | E108: =IF(INTRO!$E$48="","",ROUND($D108*INTRO!$E$48,0)) -> 1375 | F108: =IF(INTRO!$E$49="","",ROUND($D108*INTRO!$E$49,0)) -> 3034 | G108: =IF(INTRO!$E$50="","",ROUND($D108*INTRO!$E$50,0)) -> 5801 | H108: 99 | I108: 1 | J108: 1 | K108: 0 | L108: 1 | M108: =IF(INTRO!$E$38="Endémique", IF($H108>0, IF($H108=4,"Inconnu", IF($H108=99,"Interrompu", $D108)), 0),"Non requis") -> Interrompu | N108: 17673 | O108: =IF(INTRO!$E$42="Endémique", IF(AND($J108>1,$J108<5), IF($J108=4, "Inconnu", E108+F108), 0),"Non requis") -> 0 | P108: =IF(INTRO!$E$44="Endémique", IF(AND($K108>0,$K108<5), IF($K108=4,"Inconnu", IF($K108=1, $F108*0.33, IF($K108=2, $F108*0.5+$G108*0.2, SUM(F108:G108)))), 0),"Non requis") -> 0 | Q108: 0 | R108: 1 | S108: 1 | T108: 0 | U108: MDA3 (IVM) | V108: T3 (ALB/MBD) | W108: 7520 | X108: NGAMBE | AA108: ='MDA1'!K108 -> 0 | AB108: ='MDA3'!O108 -> 4384 | AC108: ='T1'!M108 -> 0 | AD108: ='T2'!K108 -> 0 | AE108: =T3_R1!L108 -> 2081 | AF108: =T3_R2!L108 -> 0 | AI108: =_xlfn.XLOOKUP($W108,[1]COUNTRY_INFO!$Y$9:$Y$198,[1]COUNTRY_INFO!H$9:H$198) ->  | AJ108: =_xlfn.XLOOKUP($W108,[1]COUNTRY_INFO!$Y$9:$Y$198,[1]COUNTRY_INFO!I$9:I$198) ->  | AK108: =_xlfn.XLOOKUP($W108,[1]COUNTRY_INFO!$Y$9:$Y$198,[1]COUNTRY_INFO!J$9:J$198) ->  | AL108: =_xlfn.XLOOKUP($W108,[1]COUNTRY_INFO!$Y$9:$Y$198,[1]COUNTRY_INFO!K$9:K$198) ->  | AM108: =_xlfn.XLOOKUP($W108,[1]COUNTRY_INFO!$Y$9:$Y$198,[1]COUNTRY_INFO!L$9:L$198) -> 
A109: =IF(INTRO!$E$34<>0,INTRO!$E$34,"") -> Cameroon | B109: LITTORAL | C109: NJOMBE PENJA | D109: 50064 | E109: =IF(INTRO!$E$48="","",ROUND($D109*INTRO!$E$48,0)) -> 6468 | F109: =IF(INTRO!$E$49="","",ROUND($D109*INTRO!$E$49,0)) -> 14268 | G109: =IF(INTRO!$E$50="","",ROUND($D109*INTRO!$E$50,0)) -> 27285 | H109: 99 | I109: 1 | J109: 1 | K109: 3 | L109: 1 | M109: =IF(INTRO!$E$38="Endémique", IF($H109>0, IF($H109=4,"Inconnu", IF($H109=99,"Interrompu", $D109)), 0),"Non requis") -> Interrompu | N109: 40969 | O109: =IF(INTRO!$E$42="Endémique", IF(AND($J109>1,$J109<5), IF($J109=4, "Inconnu", E109+F109), 0),"Non requis") -> 0 | P109: =IF(INTRO!$E$44="Endémique", IF(AND($K109>0,$K109<5), IF($K109=4,"Inconnu", IF($K109=1, $F109*0.33, IF($K109=2, $F109*0.5+$G109*0.2, SUM(F109:G109)))), 0),"Non requis") -> 41553 | Q109: 0 | R109: 1 | S109: 1 | T109: 1 | U109: MDA3 (IVM) | V109: T3 (ALB/MBD) | W109: 7521 | X109: NJOMBE PENJA | AA109: ='MDA1'!K109 -> 0 | AB109: ='MDA3'!O109 -> 12536 | AC109: ='T1'!M109 -> 0 | AD109: ='T2'!K109 -> 17864 | AE109: =T3_R1!L109 -> 17082 | AF109: =T3_R2!L109 -> 0 | AI109: =_xlfn.XLOOKUP($W109,[1]COUNTRY_INFO!$Y$9:$Y$198,[1]COUNTRY_INFO!H$9:H$198) ->  | AJ109: =_xlfn.XLOOKUP($W109,[1]COUNTRY_INFO!$Y$9:$Y$198,[1]COUNTRY_INFO!I$9:I$198) ->  | AK109: =_xlfn.XLOOKUP($W109,[1]COUNTRY_INFO!$Y$9:$Y$198,[1]COUNTRY_INFO!J$9:J$198) ->  | AL109: =_xlfn.XLOOKUP($W109,[1]COUNTRY_INFO!$Y$9:$Y$198,[1]COUNTRY_INFO!K$9:K$198) ->  | AM109: =_xlfn.XLOOKUP($W109,[1]COUNTRY_INFO!$Y$9:$Y$198,[1]COUNTRY_INFO!L$9:L$198) -> 
A110: =IF(INTRO!$E$34<>0,INTRO!$E$34,"") -> Cameroon | B110: LITTORAL | C110: NKONDJOCK | D110: 21758 | E110: =IF(INTRO!$E$48="","",ROUND($D110*INTRO!$E$48,0)) -> 2811 | F110: =IF(INTRO!$E$49="","",ROUND($D110*INTRO!$E$49,0)) -> 6201 | G110: =IF(INTRO!$E$50="","",ROUND($D110*INTRO!$E$50,0)) -> 11858 | H110: 99 | I110: 1 | J110: 2 | K110: 1 | L110: 1 | M110: =IF(INTRO!$E$38="Endémique", IF($H110>0, IF($H110=4,"Inconnu", IF($H110=99,"Interrompu", $D110)), 0),"Non requis") -> Interrompu | N110: 28921 | O110: =IF(INTRO!$E$42="Endémique", IF(AND($J110>1,$J110<5), IF($J110=4, "Inconnu", E110+F110), 0),"Non requis") -> 9012 | P110: =IF(INTRO!$E$44="Endémique", IF(AND($K110>0,$K110<5), IF($K110=4,"Inconnu", IF($K110=1, $F110*0.33, IF($K110=2, $F110*0.5+$G110*0.2, SUM(F110:G110)))), 0),"Non requis") -> 2046.33 | Q110: 0 | R110: 1 | S110: 1 | T110: 0 | U110: MDA3 (IVM) | V110: T3 (ALB/MBD) | W110: 7522 | X110: NKONDJOCK | AA110: ='MDA1'!K110 -> 0 | AB110: ='MDA3'!O110 -> 8900 | AC110: ='T1'!M110 -> 0 | AD110: ='T2'!K110 -> 0 | AE110: =T3_R1!L110 -> 7102 | AF110: =T3_R2!L110 -> 0 | AI110: =_xlfn.XLOOKUP($W110,[1]COUNTRY_INFO!$Y$9:$Y$198,[1]COUNTRY_INFO!H$9:H$198) ->  | AJ110: =_xlfn.XLOOKUP($W110,[1]COUNTRY_INFO!$Y$9:$Y$198,[1]COUNTRY_INFO!I$9:I$198) ->  | AK110: =_xlfn.XLOOKUP($W110,[1]COUNTRY_INFO!$Y$9:$Y$198,[1]COUNTRY_INFO!J$9:J$198) ->  | AL110: =_xlfn.XLOOKUP($W110,[1]COUNTRY_INFO!$Y$9:$Y$198,[1]COUNTRY_INFO!K$9:K$198) ->  | AM110: =_xlfn.XLOOKUP($W110,[1]COUNTRY_INFO!$Y$9:$Y$198,[1]COUNTRY_INFO!L$9:L$198) -> 
A111: =IF(INTRO!$E$34<>0,INTRO!$E$34,"") -> Cameroon | B111: LITTORAL | C111: NKONGSAMBA | D111: 89663 | E111: =IF(INTRO!$E$48="","",ROUND($D111*INTRO!$E$48,0)) -> 11584 | F111: =IF(INTRO!$E$49="","",ROUND($D111*INTRO!$E$49,0)) -> 25554 | G111: =IF(INTRO!$E$50="","",ROUND($D111*INTRO!$E$50,0)) -> 48866 | H111: 99 | I111: 1 | J111: 1 | K111: 0 | L111: 1 | M111: =IF(INTRO!$E$38="Endémique", IF($H111>0, IF($H111=4,"Inconnu", IF($H111=99,"Interrompu", $D111)), 0),"Non requis") -> Interrompu | N111: 82770 | O111: =IF(INTRO!$E$42="Endémique", IF(AND($J111>1,$J111<5), IF($J111=4, "Inconnu", E111+F111), 0),"Non requis") -> 0 | P111: =IF(INTRO!$E$44="Endémique", IF(AND($K111>0,$K111<5), IF($K111=4,"Inconnu", IF($K111=1, $F111*0.33, IF($K111=2, $F111*0.5+$G111*0.2, SUM(F111:G111)))), 0),"Non requis") -> 0 | Q111: 0 | R111: 1 | S111: 1 | T111: 0 | U111: MDA3 (IVM) | V111: T3 (ALB/MBD) | W111: 7523 | X111: NKONGSAMBA | AA111: ='MDA1'!K111 -> 0 | AB111: ='MDA3'!O111 -> 22986 | AC111: ='T1'!M111 -> 0 | AD111: ='T2'!K111 -> 0 | AE111: =T3_R1!L111 -> 26152 | AF111: =T3_R2!L111 -> 0 | AI111: =_xlfn.XLOOKUP($W111,[1]COUNTRY_INFO!$Y$9:$Y$198,[1]COUNTRY_INFO!H$9:H$198) ->  | AJ111: =_xlfn.XLOOKUP($W111,[1]COUNTRY_INFO!$Y$9:$Y$198,[1]COUNTRY_INFO!I$9:I$198) ->  | AK111: =_xlfn.XLOOKUP($W111,[1]COUNTRY_INFO!$Y$9:$Y$198,[1]COUNTRY_INFO!J$9:J$198) ->  | AL111: =_xlfn.XLOOKUP($W111,[1]COUNTRY_INFO!$Y$9:$Y$198,[1]COUNTRY_INFO!K$9:K$198) ->  | AM111: =_xlfn.XLOOKUP($W111,[1]COUNTRY_INFO!$Y$9:$Y$198,[1]COUNTRY_INFO!L$9:L$198) -> 
A112: =IF(INTRO!$E$34<>0,INTRO!$E$34,"") -> Cameroon | B112: LITTORAL | C112: JAPOMA | D112: 153648 | E112: =IF(INTRO!$E$48="","",ROUND($D112*INTRO!$E$48,0)) -> 19851 | F112: =IF(INTRO!$E$49="","",ROUND($D112*INTRO!$E$49,0)) -> 43790 | G112: =IF(INTRO!$E$50="","",ROUND($D112*INTRO!$E$50,0)) -> 83738 | H112: 0 | I112: 4 | J112: 2 | K112: 1 | L112: 1 | M112: =IF(INTRO!$E$38="Endémique", IF($H112>0, IF($H112=4,"Inconnu", IF($H112=99,"Interrompu", $D112)), 0),"Non requis") -> 0 | N112: =IF(INTRO!$E$40="Endémique", IF($I112>0, IF($I112=4,"Inconnu",IF($I112=99,"Interrompu", $D112)), 0),"Non requis") -> Inconnu | O112: =IF(INTRO!$E$42="Endémique", IF(AND($J112>1,$J112<5), IF($J112=4, "Inconnu", E112+F112), 0),"Non requis") -> 63641 | P112: =IF(INTRO!$E$44="Endémique", IF(AND($K112>0,$K112<5), IF($K112=4,"Inconnu", IF($K112=1, $F112*0.33, IF($K112=2, $F112*0.5+$G112*0.2, SUM(F112:G112)))), 0),"Non requis") -> 14450.7 | Q112: 0 | R112: 0 | S112: 1 | T112: 0 | U112: T2 (PZQ) | V112: T3 (ALB/MBD) | W112: 7510 | X112: JAPOMA | AA112: ='MDA1'!K112 -> 0 | AB112: ='MDA3'!O112 -> 0 | AC112: ='T1'!M112 -> 0 | AD112: ='T2'!K112 -> 29 | AE112: =T3_R1!L112 -> 29101 | AF112: =T3_R2!L112 -> 0 | AI112: =_xlfn.XLOOKUP($W112,[1]COUNTRY_INFO!$Y$9:$Y$198,[1]COUNTRY_INFO!H$9:H$198) ->  | AJ112: =_xlfn.XLOOKUP($W112,[1]COUNTRY_INFO!$Y$9:$Y$198,[1]COUNTRY_INFO!I$9:I$198) ->  | AK112: =_xlfn.XLOOKUP($W112,[1]COUNTRY_INFO!$Y$9:$Y$198,[1]COUNTRY_INFO!J$9:J$198) ->  | AL112: =_xlfn.XLOOKUP($W112,[1]COUNTRY_INFO!$Y$9:$Y$198,[1]COUNTRY_INFO!K$9:K$198) ->  | AM112: =_xlfn.XLOOKUP($W112,[1]COUNTRY_INFO!$Y$9:$Y$198,[1]COUNTRY_INFO!L$9:L$198) -> 
A113: =IF(INTRO!$E$34<>0,INTRO!$E$34,"") -> Cameroon | B113: LITTORAL | C113: NYLON | D113: 440759 | E113: =IF(INTRO!$E$48="","",ROUND($D113*INTRO!$E$48,0)) -> 56946 | F113: =IF(INTRO!$E$49="","",ROUND($D113*INTRO!$E$49,0)) -> 125616 | G113: =IF(INTRO!$E$50="","",ROUND($D113*INTRO!$E$50,0)) -> 240214 | H113: 0 | I113: 4 | J113: 1 | K113: 0 | L113: 1 | M113: =IF(INTRO!$E$38="Endémique", IF($H113>0, IF($H113=4,"Inconnu", IF($H113=99,"Interrompu", $D113)), 0),"Non requis") -> 0 | N113: =IF(INTRO!$E$40="Endémique", IF($I113>0, IF($I113=4,"Inconnu",IF($I113=99,"Interrompu", $D113)), 0),"Non requis") -> Inconnu | O113: =IF(INTRO!$E$42="Endémique", IF(AND($J113>1,$J113<5), IF($J113=4, "Inconnu", E113+F113), 0),"Non requis") -> 0 | P113: =IF(INTRO!$E$44="Endémique", IF(AND($K113>0,$K113<5), IF($K113=4,"Inconnu", IF($K113=1, $F113*0.33, IF($K113=2, $F113*0.5+$G113*0.2, SUM(F113:G113)))), 0),"Non requis") -> 0 | Q113: 0 | R113: 0 | S113: 1 | T113: 0 | V113: T3 (ALB/MBD) | W113: 7524 | X113: NYLON | AA113: ='MDA1'!K113 -> 0 | AB113: ='MDA3'!O113 -> 0 | AC113: ='T1'!M113 -> 0 | AD113: ='T2'!K113 -> 0 | AE113: =T3_R1!L113 -> 75187 | AF113: =T3_R2!L113 -> 0 | AI113: =_xlfn.XLOOKUP($W113,[1]COUNTRY_INFO!$Y$9:$Y$198,[1]COUNTRY_INFO!H$9:H$198) ->  | AJ113: =_xlfn.XLOOKUP($W113,[1]COUNTRY_INFO!$Y$9:$Y$198,[1]COUNTRY_INFO!I$9:I$198) ->  | AK113: =_xlfn.XLOOKUP($W113,[1]COUNTRY_INFO!$Y$9:$Y$198,[1]COUNTRY_INFO!J$9:J$198) ->  | AL113: =_xlfn.XLOOKUP($W113,[1]COUNTRY_INFO!$Y$9:$Y$198,[1]COUNTRY_INFO!K$9:K$198) ->  | AM113: =_xlfn.XLOOKUP($W113,[1]COUNTRY_INFO!$Y$9:$Y$198,[1]COUNTRY_INFO!L$9:L$198) -> 
A114: =IF(INTRO!$E$34<>0,INTRO!$E$34,"") -> Cameroon | B114: LITTORAL | C114: POUMA | D114: 13292 | E114: =IF(INTRO!$E$48="","",ROUND($D114*INTRO!$E$48,0)) -> 1717 | F114: =IF(INTRO!$E$49="","",ROUND($D114*INTRO!$E$49,0)) -> 3788 | G114: =IF(INTRO!$E$50="","",ROUND($D114*INTRO!$E$50,0)) -> 7244 | H114: 99 | I114: 1 | J114: 1 | K114: 0 | L114: 1 | M114: =IF(INTRO!$E$38="Endémique", IF($H114>0, IF($H114=4,"Inconnu", IF($H114=99,"Interrompu", $D114)), 0),"Non requis") -> Interrompu | N114: 12400 | O114: =IF(INTRO!$E$42="Endémique", IF(AND($J114>1,$J114<5), IF($J114=4, "Inconnu", E114+F114), 0),"Non requis") -> 0 | P114: =IF(INTRO!$E$44="Endémique", IF(AND($K114>0,$K114<5), IF($K114=4,"Inconnu", IF($K114=1, $F114*0.33, IF($K114=2, $F114*0.5+$G114*0.2, SUM(F114:G114)))), 0),"Non requis") -> 0 | Q114: 0 | R114: 1 | S114: 1 | T114: 0 | U114: MDA3 (IVM) | V114: T3 (ALB/MBD) | W114: 7525 | X114: POUMA | AA114: ='MDA1'!K114 -> 0 | AB114: ='MDA3'!O114 -> 2076 | AC114: ='T1'!M114 -> 0 | AD114: ='T2'!K114 -> 0 | AE114: =T3_R1!L114 -> 3717 | AF114: =T3_R2!L114 -> 0 | AI114: =_xlfn.XLOOKUP($W114,[1]COUNTRY_INFO!$Y$9:$Y$198,[1]COUNTRY_INFO!H$9:H$198) ->  | AJ114: =_xlfn.XLOOKUP($W114,[1]COUNTRY_INFO!$Y$9:$Y$198,[1]COUNTRY_INFO!I$9:I$198) ->  | AK114: =_xlfn.XLOOKUP($W114,[1]COUNTRY_INFO!$Y$9:$Y$198,[1]COUNTRY_INFO!J$9:J$198) ->  | AL114: =_xlfn.XLOOKUP($W114,[1]COUNTRY_INFO!$Y$9:$Y$198,[1]COUNTRY_INFO!K$9:K$198) ->  | AM114: =_xlfn.XLOOKUP($W114,[1]COUNTRY_INFO!$Y$9:$Y$198,[1]COUNTRY_INFO!L$9:L$198) -> 
A115: =IF(INTRO!$E$34<>0,INTRO!$E$34,"") -> Cameroon | B115: LITTORAL | C115: YABASSI | D115: 14807 | E115: =IF(INTRO!$E$48="","",ROUND($D115*INTRO!$E$48,0)) -> 1913 | F115: =IF(INTRO!$E$49="","",ROUND($D115*INTRO!$E$49,0)) -> 4220 | G115: =IF(INTRO!$E$50="","",ROUND($D115*INTRO!$E$50,0)) -> 8070 | H115: 99 | I115: 1 | J115: 2 | K115: 0 | L115: 1 | M115: =IF(INTRO!$E$38="Endémique", IF($H115>0, IF($H115=4,"Inconnu", IF($H115=99,"Interrompu", $D115)), 0),"Non requis") -> Interrompu | N115: 24622 | O115: =IF(INTRO!$E$42="Endémique", IF(AND($J115>1,$J115<5), IF($J115=4, "Inconnu", E115+F115), 0),"Non requis") -> 6133 | P115: =IF(INTRO!$E$44="Endémique", IF(AND($K115>0,$K115<5), IF($K115=4,"Inconnu", IF($K115=1, $F115*0.33, IF($K115=2, $F115*0.5+$G115*0.2, SUM(F115:G115)))), 0),"Non requis") -> 0 | Q115: 0 | R115: 1 | S115: 1 | T115: 0 | U115: MDA3 (IVM) | V115: T3 (ALB/MBD) | W115: 7526 | X115: YABASSI | AA115: ='MDA1'!K115 -> 0 | AB115: ='MDA3'!O115 -> 6111 | AC115: ='T1'!M115 -> 0 | AD115: ='T2'!K115 -> 0 | AE115: =T3_R1!L115 -> 5466 | AF115: =T3_R2!L115 -> 0 | AI115: =_xlfn.XLOOKUP($W115,[1]COUNTRY_INFO!$Y$9:$Y$198,[1]COUNTRY_INFO!H$9:H$198) ->  | AJ115: =_xlfn.XLOOKUP($W115,[1]COUNTRY_INFO!$Y$9:$Y$198,[1]COUNTRY_INFO!I$9:I$198) ->  | AK115: =_xlfn.XLOOKUP($W115,[1]COUNTRY_INFO!$Y$9:$Y$198,[1]COUNTRY_INFO!J$9:J$198) ->  | AL115: =_xlfn.XLOOKUP($W115,[1]COUNTRY_INFO!$Y$9:$Y$198,[1]COUNTRY_INFO!K$9:K$198) ->  | AM115: =_xlfn.XLOOKUP($W115,[1]COUNTRY_INFO!$Y$9:$Y$198,[1]COUNTRY_INFO!L$9:L$198) -> 
A116: =IF(INTRO!$E$34<>0,INTRO!$E$34,"") -> Cameroon | B116: NORTH | C116: BIBEMI | D116: 170294 | E116: =IF(INTRO!$E$48="","",ROUND($D116*INTRO!$E$48,0)) -> 22002 | F116: =IF(INTRO!$E$49="","",ROUND($D116*INTRO!$E$49,0)) -> 48534 | G116: =IF(INTRO!$E$50="","",ROUND($D116*INTRO!$E$50,0)) -> 92810 | H116: 99 | I116: 4 | J116: 1 | K116: 2 | L116: 0 | M116: =IF(INTRO!$E$38="Endémique", IF($H116>0, IF($H116=4,"Inconnu", IF($H116=99,"Interrompu", $D116)), 0),"Non requis") -> Interrompu | N116: =IF(INTRO!$E$40="Endémique", IF($I116>0, IF($I116=4,"Inconnu",IF($I116=99,"Interrompu", $D116)), 0),"Non requis") -> Inconnu | O116: =IF(INTRO!$E$42="Endémique", IF(AND($J116>1,$J116<5), IF($J116=4, "Inconnu", E116+F116), 0),"Non requis") -> 0 | P116: =IF(INTRO!$E$44="Endémique", IF(AND($K116>0,$K116<5), IF($K116=4,"Inconnu", IF($K116=1, $F116*0.33, IF($K116=2, $F116*0.5+$G116*0.2, SUM(F116:G116)))), 0),"Non requis") -> 42829 | Q116: 0 | R116: 0 | S116: 1 | T116: 1 | V116: T3 (ALB/MBD) | W116: 7527 | X116: BIBEMI | AA116: ='MDA1'!K116 -> 0 | AB116: ='MDA3'!O116 -> 0 | AC116: ='T1'!M116 -> 0 | AD116: ='T2'!K116 -> 53549 | AE116: =T3_R1!L116 -> 54659 | AF116: =T3_R2!L116 -> 0 | AI116: =_xlfn.XLOOKUP($W116,[1]COUNTRY_INFO!$Y$9:$Y$198,[1]COUNTRY_INFO!H$9:H$198) ->  | AJ116: =_xlfn.XLOOKUP($W116,[1]COUNTRY_INFO!$Y$9:$Y$198,[1]COUNTRY_INFO!I$9:I$198) ->  | AK116: =_xlfn.XLOOKUP($W116,[1]COUNTRY_INFO!$Y$9:$Y$198,[1]COUNTRY_INFO!J$9:J$198) ->  | AL116: =_xlfn.XLOOKUP($W116,[1]COUNTRY_INFO!$Y$9:$Y$198,[1]COUNTRY_INFO!K$9:K$198) ->  | AM116: =_xlfn.XLOOKUP($W116,[1]COUNTRY_INFO!$Y$9:$Y$198,[1]COUNTRY_INFO!L$9:L$198) -> 
A117: =IF(INTRO!$E$34<>0,INTRO!$E$34,"") -> Cameroon | B117: NORTH | C117: FIGUIL | D117: 106450 | E117: =IF(INTRO!$E$48="","",ROUND($D117*INTRO!$E$48,0)) -> 13753 | F117: =IF(INTRO!$E$49="","",ROUND($D117*INTRO!$E$49,0)) -> 30338 | G117: =IF(INTRO!$E$50="","",ROUND($D117*INTRO!$E$50,0)) -> 58015 | H117: 99 | I117: 4 | J117: 1 | K117: 2 | L117: 0 | M117: =IF(INTRO!$E$38="Endémique", IF($H117>0, IF($H117=4,"Inconnu", IF($H117=99,"Interrompu", $D117)), 0),"Non requis") -> Interrompu | N117: =IF(INTRO!$E$40="Endémique", IF($I117>0, IF($I117=4,"Inconnu",IF($I117=99,"Interrompu", $D117)), 0),"Non requis") -> Inconnu | O117: =IF(INTRO!$E$42="Endémique", IF(AND($J117>1,$J117<5), IF($J117=4, "Inconnu", E117+F117), 0),"Non requis") -> 0 | P117: =IF(INTRO!$E$44="Endémique", IF(AND($K117>0,$K117<5), IF($K117=4,"Inconnu", IF($K117=1, $F117*0.33, IF($K117=2, $F117*0.5+$G117*0.2, SUM(F117:G117)))), 0),"Non requis") -> 26772 | Q117: 0 | R117: 0 | S117: 1 | T117: 1 | V117: T3 (ALB/MBD) | W117: 7528 | X117: FIGUIL | AA117: ='MDA1'!K117 -> 0 | AB117: ='MDA3'!O117 -> 0 | AC117: ='T1'!M117 -> 0 | AD117: ='T2'!K117 -> 29057 | AE117: =T3_R1!L117 -> 30208 | AF117: =T3_R2!L117 -> 0 | AI117: =_xlfn.XLOOKUP($W117,[1]COUNTRY_INFO!$Y$9:$Y$198,[1]COUNTRY_INFO!H$9:H$198) ->  | AJ117: =_xlfn.XLOOKUP($W117,[1]COUNTRY_INFO!$Y$9:$Y$198,[1]COUNTRY_INFO!I$9:I$198) ->  | AK117: =_xlfn.XLOOKUP($W117,[1]COUNTRY_INFO!$Y$9:$Y$198,[1]COUNTRY_INFO!J$9:J$198) ->  | AL117: =_xlfn.XLOOKUP($W117,[1]COUNTRY_INFO!$Y$9:$Y$198,[1]COUNTRY_INFO!K$9:K$198) ->  | AM117: =_xlfn.XLOOKUP($W117,[1]COUNTRY_INFO!$Y$9:$Y$198,[1]COUNTRY_INFO!L$9:L$198) -> 
A118: =IF(INTRO!$E$34<>0,INTRO!$E$34,"") -> Cameroon | B118: NORTH | C118: GAROUA I | D118: 320250 | E118: =IF(INTRO!$E$48="","",ROUND($D118*INTRO!$E$48,0)) -> 41376 | F118: =IF(INTRO!$E$49="","",ROUND($D118*INTRO!$E$49,0)) -> 91271 | G118: =IF(INTRO!$E$50="","",ROUND($D118*INTRO!$E$50,0)) -> 174536 | H118: 99 | I118: 4 | J118: 1 | K118: 2 | L118: 0 | M118: =IF(INTRO!$E$38="Endémique", IF($H118>0, IF($H118=4,"Inconnu", IF($H118=99,"Interrompu", $D118)), 0),"Non requis") -> Interrompu | N118: =IF(INTRO!$E$40="Endémique", IF($I118>0, IF($I118=4,"Inconnu",IF($I118=99,"Interrompu", $D118)), 0),"Non requis") -> Inconnu | O118: =IF(INTRO!$E$42="Endémique", IF(AND($J118>1,$J118<5), IF($J118=4, "Inconnu", E118+F118), 0),"Non requis") -> 0 | P118: =IF(INTRO!$E$44="Endémique", IF(AND($K118>0,$K118<5), IF($K118=4,"Inconnu", IF($K118=1, $F118*0.33, IF($K118=2, $F118*0.5+$G118*0.2, SUM(F118:G118)))), 0),"Non requis") -> 80542.7 | Q118: 0 | R118: 0 | S118: 1 | T118: 1 | V118: T3 (ALB/MBD) | W118: 7529 | X118: GAROUA I | AA118: ='MDA1'!K118 -> 0 | AB118: ='MDA3'!O118 -> 0 | AC118: ='T1'!M118 -> 0 | AD118: ='T2'!K118 -> 64796 | AE118: =T3_R1!L118 -> 58840 | AF118: =T3_R2!L118 -> 0 | AI118: =_xlfn.XLOOKUP($W118,[1]COUNTRY_INFO!$Y$9:$Y$198,[1]COUNTRY_INFO!H$9:H$198) ->  | AJ118: =_xlfn.XLOOKUP($W118,[1]COUNTRY_INFO!$Y$9:$Y$198,[1]COUNTRY_INFO!I$9:I$198) ->  | AK118: =_xlfn.XLOOKUP($W118,[1]COUNTRY_INFO!$Y$9:$Y$198,[1]COUNTRY_INFO!J$9:J$198) ->  | AL118: =_xlfn.XLOOKUP($W118,[1]COUNTRY_INFO!$Y$9:$Y$198,[1]COUNTRY_INFO!K$9:K$198) ->  | AM118: =_xlfn.XLOOKUP($W118,[1]COUNTRY_INFO!$Y$9:$Y$198,[1]COUNTRY_INFO!L$9:L$198) -> 
A119: =IF(INTRO!$E$34<>0,INTRO!$E$34,"") -> Cameroon | B119: NORTH | C119: GAROUA II | D119: 331139 | E119: =IF(INTRO!$E$48="","",ROUND($D119*INTRO!$E$48,0)) -> 42783 | F119: =IF(INTRO!$E$49="","",ROUND($D119*INTRO!$E$49,0)) -> 94375 | G119: =IF(INTRO!$E$50="","",ROUND($D119*INTRO!$E$50,0)) -> 180471 | H119: 99 | I119: 4 | J119: 0 | K119: 2 | L119: 0 | M119: =IF(INTRO!$E$38="Endémique", IF($H119>0, IF($H119=4,"Inconnu", IF($H119=99,"Interrompu", $D119)), 0),"Non requis") -> Interrompu | N119: =IF(INTRO!$E$40="Endémique", IF($I119>0, IF($I119=4,"Inconnu",IF($I119=99,"Interrompu", $D119)), 0),"Non requis") -> Inconnu | O119: =IF(INTRO!$E$42="Endémique", IF(AND($J119>1,$J119<5), IF($J119=4, "Inconnu", E119+F119), 0),"Non requis") -> 0 | P119: =IF(INTRO!$E$44="Endémique", IF(AND($K119>0,$K119<5), IF($K119=4,"Inconnu", IF($K119=1, $F119*0.33, IF($K119=2, $F119*0.5+$G119*0.2, SUM(F119:G119)))), 0),"Non requis") -> 83281.7 | Q119: 0 | R119: 0 | S119: 1 | T119: 1 | V119: T3 (ALB/MBD) | W119: 7530 | X119: GAROUA II | AA119: ='MDA1'!K119 -> 0 | AB119: ='MDA3'!O119 -> 0 | AC119: ='T1'!M119 -> 0 | AD119: ='T2'!K119 -> 68409 | AE119: =T3_R1!L119 -> 68409 | AF119: =T3_R2!L119 -> 0 | AI119: =_xlfn.XLOOKUP($W119,[1]COUNTRY_INFO!$Y$9:$Y$198,[1]COUNTRY_INFO!H$9:H$198) ->  | AJ119: =_xlfn.XLOOKUP($W119,[1]COUNTRY_INFO!$Y$9:$Y$198,[1]COUNTRY_INFO!I$9:I$198) ->  | AK119: =_xlfn.XLOOKUP($W119,[1]COUNTRY_INFO!$Y$9:$Y$198,[1]COUNTRY_INFO!J$9:J$198) ->  | AL119: =_xlfn.XLOOKUP($W119,[1]COUNTRY_INFO!$Y$9:$Y$198,[1]COUNTRY_INFO!K$9:K$198) ->  | AM119: =_xlfn.XLOOKUP($W119,[1]COUNTRY_INFO!$Y$9:$Y$198,[1]COUNTRY_INFO!L$9:L$198) -> 
A120: =IF(INTRO!$E$34<>0,INTRO!$E$34,"") -> Cameroon | B120: NORTH | C120: GASCHIGA | D120: 142101 | E120: =IF(INTRO!$E$48="","",ROUND($D120*INTRO!$E$48,0)) -> 18359 | F120: =IF(INTRO!$E$49="","",ROUND($D120*INTRO!$E$49,0)) -> 40499 | G120: =IF(INTRO!$E$50="","",ROUND($D120*INTRO!$E$50,0)) -> 77445 | H120: 99 | I120: 4 | J120: 0 | K120: 1 | L120: 0 | M120: =IF(INTRO!$E$38="Endémique", IF($H120>0, IF($H120=4,"Inconnu", IF($H120=99,"Interrompu", $D120)), 0),"Non requis") -> Interrompu | N120: =IF(INTRO!$E$40="Endémique", IF($I120>0, IF($I120=4,"Inconnu",IF($I120=99,"Interrompu", $D120)), 0),"Non requis") -> Inconnu | O120: =IF(INTRO!$E$42="Endémique", IF(AND($J120>1,$J120<5), IF($J120=4, "Inconnu", E120+F120), 0),"Non requis") -> 0 | P120: =IF(INTRO!$E$44="Endémique", IF(AND($K120>0,$K120<5), IF($K120=4,"Inconnu", IF($K120=1, $F120*0.33, IF($K120=2, $F120*0.5+$G120*0.2, SUM(F120:G120)))), 0),"Non requis") -> 13364.67 | Q120: 0 | R120: 0 | S120: 1 | T120: 1 | V120: T3 (ALB/MBD) | W120: 7531 | X120: GASCHIGA | AA120: ='MDA1'!K120 -> 0 | AB120: ='MDA3'!O120 -> 0 | AC120: ='T1'!M120 -> 0 | AD120: ='T2'!K120 -> 48518 | AE120: =T3_R1!L120 -> 48518 | AF120: =T3_R2!L120 -> 0 | AI120: =_xlfn.XLOOKUP($W120,[1]COUNTRY_INFO!$Y$9:$Y$198,[1]COUNTRY_INFO!H$9:H$198) ->  | AJ120: =_xlfn.XLOOKUP($W120,[1]COUNTRY_INFO!$Y$9:$Y$198,[1]COUNTRY_INFO!I$9:I$198) ->  | AK120: =_xlfn.XLOOKUP($W120,[1]COUNTRY_INFO!$Y$9:$Y$198,[1]COUNTRY_INFO!J$9:J$198) ->  | AL120: =_xlfn.XLOOKUP($W120,[1]COUNTRY_INFO!$Y$9:$Y$198,[1]COUNTRY_INFO!K$9:K$198) ->  | AM120: =_xlfn.XLOOKUP($W120,[1]COUNTRY_INFO!$Y$9:$Y$198,[1]COUNTRY_INFO!L$9:L$198) -> 
A121: =IF(INTRO!$E$34<>0,INTRO!$E$34,"") -> Cameroon | B121: NORTH | C121: GOLOMBE | D121: 70327 | E121: =IF(INTRO!$E$48="","",ROUND($D121*INTRO!$E$48,0)) -> 9086 | F121: =IF(INTRO!$E$49="","",ROUND($D121*INTRO!$E$49,0)) -> 20043 | G121: =IF(INTRO!$E$50="","",ROUND($D121*INTRO!$E$50,0)) -> 38328 | H121: 99 | I121: 4 | J121: 0 | K121: 2 | L121: 0 | M121: =IF(INTRO!$E$38="Endémique", IF($H121>0, IF($H121=4,"Inconnu", IF($H121=99,"Interrompu", $D121)), 0),"Non requis") -> Interrompu | N121: =IF(INTRO!$E$40="Endémique", IF($I121>0, IF($I121=4,"Inconnu",IF($I121=99,"Interrompu", $D121)), 0),"Non requis") -> Inconnu | O121: =IF(INTRO!$E$42="Endémique", IF(AND($J121>1,$J121<5), IF($J121=4, "Inconnu", E121+F121), 0),"Non requis") -> 0 | P121: =IF(INTRO!$E$44="Endémique", IF(AND($K121>0,$K121<5), IF($K121=4,"Inconnu", IF($K121=1, $F121*0.33, IF($K121=2, $F121*0.5+$G121*0.2, SUM(F121:G121)))), 0),"Non requis") -> 17687.1 | Q121: 0 | R121: 0 | S121: 1 | T121: 1 | V121: T3 (ALB/MBD) | W121: 7532 | X121: GOLOMBE | AA121: ='MDA1'!K121 -> 0 | AB121: ='MDA3'!O121 -> 0 | AC121: ='T1'!M121 -> 0 | AD121: ='T2'!K121 -> 26945 | AE121: =T3_R1!L121 -> 24320 | AF121: =T3_R2!L121 -> 0 | AI121: =_xlfn.XLOOKUP($W121,[1]COUNTRY_INFO!$Y$9:$Y$198,[1]COUNTRY_INFO!H$9:H$198) ->  | AJ121: =_xlfn.XLOOKUP($W121,[1]COUNTRY_INFO!$Y$9:$Y$198,[1]COUNTRY_INFO!I$9:I$198) ->  | AK121: =_xlfn.XLOOKUP($W121,[1]COUNTRY_INFO!$Y$9:$Y$198,[1]COUNTRY_INFO!J$9:J$198) ->  | AL121: =_xlfn.XLOOKUP($W121,[1]COUNTRY_INFO!$Y$9:$Y$198,[1]COUNTRY_INFO!K$9:K$198) ->  | AM121: =_xlfn.XLOOKUP($W121,[1]COUNTRY_INFO!$Y$9:$Y$198,[1]COUNTRY_INFO!L$9:L$198) -> 
A122: =IF(INTRO!$E$34<>0,INTRO!$E$34,"") -> Cameroon | B122: NORTH | C122: GUIDER | D122: 259863 | E122: =IF(INTRO!$E$48="","",ROUND($D122*INTRO!$E$48,0)) -> 33574 | F122: =IF(INTRO!$E$49="","",ROUND($D122*INTRO!$E$49,0)) -> 74061 | G122: =IF(INTRO!$E$50="","",ROUND($D122*INTRO!$E$50,0)) -> 141625 | H122: 99 | I122: 4 | J122: 0 | K122: 2 | L122: 0 | M122: =IF(INTRO!$E$38="Endémique", IF($H122>0, IF($H122=4,"Inconnu", IF($H122=99,"Interrompu", $D122)), 0),"Non requis") -> Interrompu | N122: =IF(INTRO!$E$40="Endémique", IF($I122>0, IF($I122=4,"Inconnu",IF($I122=99,"Interrompu", $D122)), 0),"Non requis") -> Inconnu | O122: =IF(INTRO!$E$42="Endémique", IF(AND($J122>1,$J122<5), IF($J122=4, "Inconnu", E122+F122), 0),"Non requis") -> 0 | P122: =IF(INTRO!$E$44="Endémique", IF(AND($K122>0,$K122<5), IF($K122=4,"Inconnu", IF($K122=1, $F122*0.33, IF($K122=2, $F122*0.5+$G122*0.2, SUM(F122:G122)))), 0),"Non requis") -> 65355.5 | Q122: 0 | R122: 0 | S122: 1 | T122: 1 | V122: T3 (ALB/MBD) | W122: 7533 | X122: GUIDER | AA122: ='MDA1'!K122 -> 0 | AB122: ='MDA3'!O122 -> 0 | AC122: ='T1'!M122 -> 0 | AD122: ='T2'!K122 -> 74438 | AE122: =T3_R1!L122 -> 74438 | AF122: =T3_R2!L122 -> 0 | AI122: =_xlfn.XLOOKUP($W122,[1]COUNTRY_INFO!$Y$9:$Y$198,[1]COUNTRY_INFO!H$9:H$198) ->  | AJ122: =_xlfn.XLOOKUP($W122,[1]COUNTRY_INFO!$Y$9:$Y$198,[1]COUNTRY_INFO!I$9:I$198) ->  | AK122: =_xlfn.XLOOKUP($W122,[1]COUNTRY_INFO!$Y$9:$Y$198,[1]COUNTRY_INFO!J$9:J$198) ->  | AL122: =_xlfn.XLOOKUP($W122,[1]COUNTRY_INFO!$Y$9:$Y$198,[1]COUNTRY_INFO!K$9:K$198) ->  | AM122: =_xlfn.XLOOKUP($W122,[1]COUNTRY_INFO!$Y$9:$Y$198,[1]COUNTRY_INFO!L$9:L$198) -> 
A123: =IF(INTRO!$E$34<>0,INTRO!$E$34,"") -> Cameroon | B123: NORTH | C123: LAGDO | D123: 217676 | E123: =IF(INTRO!$E$48="","",ROUND($D123*INTRO!$E$48,0)) -> 28124 | F123: =IF(INTRO!$E$49="","",ROUND($D123*INTRO!$E$49,0)) -> 62038 | G123: =IF(INTRO!$E$50="","",ROUND($D123*INTRO!$E$50,0)) -> 118633 | H123: 99 | I123: 1 | J123: 0 | K123: 2 | L123: 0 | M123: =IF(INTRO!$E$38="Endémique", IF($H123>0, IF($H123=4,"Inconnu", IF($H123=99,"Interrompu", $D123)), 0),"Non requis") -> Interrompu | N123: =IF(INTRO!$E$40="Endémique", IF($I123>0, IF($I123=4,"Inconnu",IF($I123=99,"Interrompu", $D123)), 0),"Non requis") -> 217676 | O123: =IF(INTRO!$E$42="Endémique", IF(AND($J123>1,$J123<5), IF($J123=4, "Inconnu", E123+F123), 0),"Non requis") -> 0 | P123: =IF(INTRO!$E$44="Endémique", IF(AND($K123>0,$K123<5), IF($K123=4,"Inconnu", IF($K123=1, $F123*0.33, IF($K123=2, $F123*0.5+$G123*0.2, SUM(F123:G123)))), 0),"Non requis") -> 54745.6 | Q123: 0 | R123: 0 | S123: 1 | T123: 1 | V123: T3 (ALB/MBD) | W123: 7534 | X123: LAGDO | AA123: ='MDA1'!K123 -> 0 | AB123: ='MDA3'!O123 -> 0 | AC123: ='T1'!M123 -> 0 | AD123: ='T2'!K123 -> 68011 | AE123: =T3_R1!L123 -> 69236 | AF123: =T3_R2!L123 -> 0 | AI123: =_xlfn.XLOOKUP($W123,[1]COUNTRY_INFO!$Y$9:$Y$198,[1]COUNTRY_INFO!H$9:H$198) ->  | AJ123: =_xlfn.XLOOKUP($W123,[1]COUNTRY_INFO!$Y$9:$Y$198,[1]COUNTRY_INFO!I$9:I$198) ->  | AK123: =_xlfn.XLOOKUP($W123,[1]COUNTRY_INFO!$Y$9:$Y$198,[1]COUNTRY_INFO!J$9:J$198) ->  | AL123: =_xlfn.XLOOKUP($W123,[1]COUNTRY_INFO!$Y$9:$Y$198,[1]COUNTRY_INFO!K$9:K$198) ->  | AM123: =_xlfn.XLOOKUP($W123,[1]COUNTRY_INFO!$Y$9:$Y$198,[1]COUNTRY_INFO!L$9:L$198) -> 
A124: =IF(INTRO!$E$34<>0,INTRO!$E$34,"") -> Cameroon | B124: NORTH | C124: MAYO OULO | D124: 147809 | E124: =IF(INTRO!$E$48="","",ROUND($D124*INTRO!$E$48,0)) -> 19097 | F124: =IF(INTRO!$E$49="","",ROUND($D124*INTRO!$E$49,0)) -> 42126 | G124: =IF(INTRO!$E$50="","",ROUND($D124*INTRO!$E$50,0)) -> 80556 | H124: 99 | I124: 4 | J124: 0 | K124: 2 | L124: 0 | M124: =IF(INTRO!$E$38="Endémique", IF($H124>0, IF($H124=4,"Inconnu", IF($H124=99,"Interrompu", $D124)), 0),"Non requis") -> Interrompu | N124: =IF(INTRO!$E$40="Endémique", IF($I124>0, IF($I124=4,"Inconnu",IF($I124=99,"Interrompu", $D124)), 0),"Non requis") -> Inconnu | O124: =IF(INTRO!$E$42="Endémique", IF(AND($J124>1,$J124<5), IF($J124=4, "Inconnu", E124+F124), 0),"Non requis") -> 0 | P124: =IF(INTRO!$E$44="Endémique", IF(AND($K124>0,$K124<5), IF($K124=4,"Inconnu", IF($K124=1, $F124*0.33, IF($K124=2, $F124*0.5+$G124*0.2, SUM(F124:G124)))), 0),"Non requis") -> 37174.2 | Q124: 0 | R124: 0 | S124: 1 | T124: 1 | V124: T3 (ALB/MBD) | W124: 7535 | X124: MAYO OULO | AA124: ='MDA1'!K124 -> 0 | AB124: ='MDA3'!O124 -> 0 | AC124: ='T1'!M124 -> 0 | AD124: ='T2'!K124 -> 43222 | AE124: =T3_R1!L124 -> 43713 | AF124: =T3_R2!L124 -> 0 | AI124: =_xlfn.XLOOKUP($W124,[1]COUNTRY_INFO!$Y$9:$Y$198,[1]COUNTRY_INFO!H$9:H$198) ->  | AJ124: =_xlfn.XLOOKUP($W124,[1]COUNTRY_INFO!$Y$9:$Y$198,[1]COUNTRY_INFO!I$9:I$198) ->  | AK124: =_xlfn.XLOOKUP($W124,[1]COUNTRY_INFO!$Y$9:$Y$198,[1]COUNTRY_INFO!J$9:J$198) ->  | AL124: =_xlfn.XLOOKUP($W124,[1]COUNTRY_INFO!$Y$9:$Y$198,[1]COUNTRY_INFO!K$9:K$198) ->  | AM124: =_xlfn.XLOOKUP($W124,[1]COUNTRY_INFO!$Y$9:$Y$198,[1]COUNTRY_INFO!L$9:L$198) -> 
A125: =IF(INTRO!$E$34<>0,INTRO!$E$34,"") -> Cameroon | B125: NORTH | C125: NGONG | D125: 268147 | E125: =IF(INTRO!$E$48="","",ROUND($D125*INTRO!$E$48,0)) -> 34645 | F125: =IF(INTRO!$E$49="","",ROUND($D125*INTRO!$E$49,0)) -> 76422 | G125: =IF(INTRO!$E$50="","",ROUND($D125*INTRO!$E$50,0)) -> 146140 | H125: 99 | I125: 1 | J125: 1 | K125: 1 | L125: 0 | M125: =IF(INTRO!$E$38="Endémique", IF($H125>0, IF($H125=4,"Inconnu", IF($H125=99,"Interrompu", $D125)), 0),"Non requis") -> Interrompu | N125: =IF(INTRO!$E$40="Endémique", IF($I125>0, IF($I125=4,"Inconnu",IF($I125=99,"Interrompu", $D125)), 0),"Non requis") -> 268147 | O125: =IF(INTRO!$E$42="Endémique", IF(AND($J125>1,$J125<5), IF($J125=4, "Inconnu", E125+F125), 0),"Non requis") -> 0 | P125: =IF(INTRO!$E$44="Endémique", IF(AND($K125>0,$K125<5), IF($K125=4,"Inconnu", IF($K125=1, $F125*0.33, IF($K125=2, $F125*0.5+$G125*0.2, SUM(F125:G125)))), 0),"Non requis") -> 25219.26 | Q125: 0 | R125: 0 | S125: 1 | T125: 1 | V125: T3 (ALB/MBD) | W125: 7536 | X125: NGONG | AA125: ='MDA1'!K125 -> 0 | AB125: ='MDA3'!O125 -> 0 | AC125: ='T1'!M125 -> 0 | AD125: ='T2'!K125 -> 75689 | AE125: =T3_R1!L125 -> 75689 | AF125: =T3_R2!L125 -> 0 | AI125: =_xlfn.XLOOKUP($W125,[1]COUNTRY_INFO!$Y$9:$Y$198,[1]COUNTRY_INFO!H$9:H$198) ->  | AJ125: =_xlfn.XLOOKUP($W125,[1]COUNTRY_INFO!$Y$9:$Y$198,[1]COUNTRY_INFO!I$9:I$198) ->  | AK125: =_xlfn.XLOOKUP($W125,[1]COUNTRY_INFO!$Y$9:$Y$198,[1]COUNTRY_INFO!J$9:J$198) ->  | AL125: =_xlfn.XLOOKUP($W125,[1]COUNTRY_INFO!$Y$9:$Y$198,[1]COUNTRY_INFO!K$9:K$198) ->  | AM125: =_xlfn.XLOOKUP($W125,[1]COUNTRY_INFO!$Y$9:$Y$198,[1]COUNTRY_INFO!L$9:L$198) -> 
A126: =IF(INTRO!$E$34<>0,INTRO!$E$34,"") -> Cameroon | B126: NORTH | C126: PITOA | D126: 168252 | E126: =IF(INTRO!$E$48="","",ROUND($D126*INTRO!$E$48,0)) -> 21738 | F126: =IF(INTRO!$E$49="","",ROUND($D126*INTRO!$E$49,0)) -> 47952 | G126: =IF(INTRO!$E$50="","",ROUND($D126*INTRO!$E$50,0)) -> 91697 | H126: 99 | I126: 4 | J126: 0 | K126: 2 | L126: 0 | M126: =IF(INTRO!$E$38="Endémique", IF($H126>0, IF($H126=4,"Inconnu", IF($H126=99,"Interrompu", $D126)), 0),"Non requis") -> Interrompu | N126: =IF(INTRO!$E$40="Endémique", IF($I126>0, IF($I126=4,"Inconnu",IF($I126=99,"Interrompu", $D126)), 0),"Non requis") -> Inconnu | O126: =IF(INTRO!$E$42="Endémique", IF(AND($J126>1,$J126<5), IF($J126=4, "Inconnu", E126+F126), 0),"Non requis") -> 0 | P126: =IF(INTRO!$E$44="Endémique", IF(AND($K126>0,$K126<5), IF($K126=4,"Inconnu", IF($K126=1, $F126*0.33, IF($K126=2, $F126*0.5+$G126*0.2, SUM(F126:G126)))), 0),"Non requis") -> 42315.4 | Q126: 0 | R126: 0 | S126: 1 | T126: 1 | V126: T3 (ALB/MBD) | W126: 7537 | X126: PITOA | AA126: ='MDA1'!K126 -> 0 | AB126: ='MDA3'!O126 -> 0 | AC126: ='T1'!M126 -> 0 | AD126: ='T2'!K126 -> 45717 | AE126: =T3_R1!L126 -> 45717 | AF126: =T3_R2!L126 -> 0 | AI126: =_xlfn.XLOOKUP($W126,[1]COUNTRY_INFO!$Y$9:$Y$198,[1]COUNTRY_INFO!H$9:H$198) ->  | AJ126: =_xlfn.XLOOKUP($W126,[1]COUNTRY_INFO!$Y$9:$Y$198,[1]COUNTRY_INFO!I$9:I$198) ->  | AK126: =_xlfn.XLOOKUP($W126,[1]COUNTRY_INFO!$Y$9:$Y$198,[1]COUNTRY_INFO!J$9:J$198) ->  | AL126: =_xlfn.XLOOKUP($W126,[1]COUNTRY_INFO!$Y$9:$Y$198,[1]COUNTRY_INFO!K$9:K$198) ->  | AM126: =_xlfn.XLOOKUP($W126,[1]COUNTRY_INFO!$Y$9:$Y$198,[1]COUNTRY_INFO!L$9:L$198) -> 
A127: =IF(INTRO!$E$34<>0,INTRO!$E$34,"") -> Cameroon | B127: NORTH | C127: POLI | D127: 115177 | E127: =IF(INTRO!$E$48="","",ROUND($D127*INTRO!$E$48,0)) -> 14881 | F127: =IF(INTRO!$E$49="","",ROUND($D127*INTRO!$E$49,0)) -> 32825 | G127: =IF(INTRO!$E$50="","",ROUND($D127*INTRO!$E$50,0)) -> 62771 | H127: 99 | I127: 1 | J127: 1 | K127: 2 | L127: 0 | M127: =IF(INTRO!$E$38="Endémique", IF($H127>0, IF($H127=4,"Inconnu", IF($H127=99,"Interrompu", $D127)), 0),"Non requis") -> Interrompu | N127: =IF(INTRO!$E$40="Endémique", IF($I127>0, IF($I127=4,"Inconnu",IF($I127=99,"Interrompu", $D127)), 0),"Non requis") -> 115177 | O127: =IF(INTRO!$E$42="Endémique", IF(AND($J127>1,$J127<5), IF($J127=4, "Inconnu", E127+F127), 0),"Non requis") -> 0 | P127: =IF(INTRO!$E$44="Endémique", IF(AND($K127>0,$K127<5), IF($K127=4,"Inconnu", IF($K127=1, $F127*0.33, IF($K127=2, $F127*0.5+$G127*0.2, SUM(F127:G127)))), 0),"Non requis") -> 28966.7 | Q127: 0 | R127: 0 | S127: 1 | T127: 1 | V127: T3 (ALB/MBD) | W127: 7538 | X127: POLI | AA127: ='MDA1'!K127 -> 0 | AB127: ='MDA3'!O127 -> 0 | AC127: ='T1'!M127 -> 0 | AD127: ='T2'!K127 -> 35085 | AE127: =T3_R1!L127 -> 35089 | AF127: =T3_R2!L127 -> 0 | AI127: =_xlfn.XLOOKUP($W127,[1]COUNTRY_INFO!$Y$9:$Y$198,[1]COUNTRY_INFO!H$9:H$198) ->  | AJ127: =_xlfn.XLOOKUP($W127,[1]COUNTRY_INFO!$Y$9:$Y$198,[1]COUNTRY_INFO!I$9:I$198) ->  | AK127: =_xlfn.XLOOKUP($W127,[1]COUNTRY_INFO!$Y$9:$Y$198,[1]COUNTRY_INFO!J$9:J$198) ->  | AL127: =_xlfn.XLOOKUP($W127,[1]COUNTRY_INFO!$Y$9:$Y$198,[1]COUNTRY_INFO!K$9:K$198) ->  | AM127: =_xlfn.XLOOKUP($W127,[1]COUNTRY_INFO!$Y$9:$Y$198,[1]COUNTRY_INFO!L$9:L$198) -> 
A128: =IF(INTRO!$E$34<>0,INTRO!$E$34,"") -> Cameroon | B128: NORTH | C128: REY BOUBA | D128: 183415 | E128: =IF(INTRO!$E$48="","",ROUND($D128*INTRO!$E$48,0)) -> 23697 | F128: =IF(INTRO!$E$49="","",ROUND($D128*INTRO!$E$49,0)) -> 52273 | G128: =IF(INTRO!$E$50="","",ROUND($D128*INTRO!$E$50,0)) -> 99961 | H128: 99 | I128: 1 | J128: 1 | K128: 2 | L128: 1 | M128: =IF(INTRO!$E$38="Endémique", IF($H128>0, IF($H128=4,"Inconnu", IF($H128=99,"Interrompu", $D128)), 0),"Non requis") -> Interrompu | N128: =IF(INTRO!$E$40="Endémique", IF($I128>0, IF($I128=4,"Inconnu",IF($I128=99,"Interrompu", $D128)), 0),"Non requis") -> 183415 | O128: =IF(INTRO!$E$42="Endémique", IF(AND($J128>1,$J128<5), IF($J128=4, "Inconnu", E128+F128), 0),"Non requis") -> 0 | P128: =IF(INTRO!$E$44="Endémique", IF(AND($K128>0,$K128<5), IF($K128=4,"Inconnu", IF($K128=1, $F128*0.33, IF($K128=2, $F128*0.5+$G128*0.2, SUM(F128:G128)))), 0),"Non requis") -> 46128.7 | Q128: 0 | R128: 0 | S128: 1 | T128: 1 | V128: T3 (ALB/MBD) | W128: 7539 | X128: REY BOUBA | AA128: ='MDA1'!K128 -> 0 | AB128: ='MDA3'!O128 -> 0 | AC128: ='T1'!M128 -> 0 | AD128: ='T2'!K128 -> 57431 | AE128: =T3_R1!L128 -> 56213 | AF128: =T3_R2!L128 -> 0 | AI128: =_xlfn.XLOOKUP($W128,[1]COUNTRY_INFO!$Y$9:$Y$198,[1]COUNTRY_INFO!H$9:H$198) ->  | AJ128: =_xlfn.XLOOKUP($W128,[1]COUNTRY_INFO!$Y$9:$Y$198,[1]COUNTRY_INFO!I$9:I$198) ->  | AK128: =_xlfn.XLOOKUP($W128,[1]COUNTRY_INFO!$Y$9:$Y$198,[1]COUNTRY_INFO!J$9:J$198) ->  | AL128: =_xlfn.XLOOKUP($W128,[1]COUNTRY_INFO!$Y$9:$Y$198,[1]COUNTRY_INFO!K$9:K$198) ->  | AM128: =_xlfn.XLOOKUP($W128,[1]COUNTRY_INFO!$Y$9:$Y$198,[1]COUNTRY_INFO!L$9:L$198) -> 
A129: =IF(INTRO!$E$34<>0,INTRO!$E$34,"") -> Cameroon | B129: NORTH | C129: TCHOLLIRE | D129: 185066 | E129: =IF(INTRO!$E$48="","",ROUND($D129*INTRO!$E$48,0)) -> 23911 | F129: =IF(INTRO!$E$49="","",ROUND($D129*INTRO!$E$49,0)) -> 52744 | G129: =IF(INTRO!$E$50="","",ROUND($D129*INTRO!$E$50,0)) -> 100861 | H129: 99 | I129: 1 | J129: 1 | K129: 2 | L129: 1 | M129: =IF(INTRO!$E$38="Endémique", IF($H129>0, IF($H129=4,"Inconnu", IF($H129=99,"Interrompu", $D129)), 0),"Non requis") -> Interrompu | N129: =IF(INTRO!$E$40="Endémique", IF($I129>0, IF($I129=4,"Inconnu",IF($I129=99,"Interrompu", $D129)), 0),"Non requis") -> 185066 | O129: =IF(INTRO!$E$42="Endémique", IF(AND($J129>1,$J129<5), IF($J129=4, "Inconnu", E129+F129), 0),"Non requis") -> 0 | P129: =IF(INTRO!$E$44="Endémique", IF(AND($K129>0,$K129<5), IF($K129=4,"Inconnu", IF($K129=1, $F129*0.33, IF($K129=2, $F129*0.5+$G129*0.2, SUM(F129:G129)))), 0),"Non requis") -> 46544.2 | Q129: 0 | R129: 0 | S129: 1 | T129: 1 | V129: T3 (ALB/MBD) | W129: 7540 | X129: TCHOLLIRE | AA129: ='MDA1'!K129 -> 0 | AB129: ='MDA3'!O129 -> 0 | AC129: ='T1'!M129 -> 0 | AD129: ='T2'!K129 -> 54478 | AE129: =T3_R1!L129 -> 54353 | AF129: =T3_R2!L129 -> 0 | AI129: =_xlfn.XLOOKUP($W129,[1]COUNTRY_INFO!$Y$9:$Y$198,[1]COUNTRY_INFO!H$9:H$198) ->  | AJ129: =_xlfn.XLOOKUP($W129,[1]COUNTRY_INFO!$Y$9:$Y$198,[1]COUNTRY_INFO!I$9:I$198) ->  | AK129: =_xlfn.XLOOKUP($W129,[1]COUNTRY_INFO!$Y$9:$Y$198,[1]COUNTRY_INFO!J$9:J$198) ->  | AL129: =_xlfn.XLOOKUP($W129,[1]COUNTRY_INFO!$Y$9:$Y$198,[1]COUNTRY_INFO!K$9:K$198) ->  | AM129: =_xlfn.XLOOKUP($W129,[1]COUNTRY_INFO!$Y$9:$Y$198,[1]COUNTRY_INFO!L$9:L$198) -> 
A130: =IF(INTRO!$E$34<>0,INTRO!$E$34,"") -> Cameroon | B130: NORTH | C130: TOUBORO | D130: 278802 | E130: =IF(INTRO!$E$48="","",ROUND($D130*INTRO!$E$48,0)) -> 36021 | F130: =IF(INTRO!$E$49="","",ROUND($D130*INTRO!$E$49,0)) -> 79459 | G130: =IF(INTRO!$E$50="","",ROUND($D130*INTRO!$E$50,0)) -> 151947 | H130: 99 | I130: 1 | J130: 1 | K130: 3 | L130: 1 | M130: =IF(INTRO!$E$38="Endémique", IF($H130>0, IF($H130=4,"Inconnu", IF($H130=99,"Interrompu", $D130)), 0),"Non requis") -> Interrompu | N130: =IF(INTRO!$E$40="Endémique", IF($I130>0, IF($I130=4,"Inconnu",IF($I130=99,"Interrompu", $D130)), 0),"Non requis") -> 278802 | O130: =IF(INTRO!$E$42="Endémique", IF(AND($J130>1,$J130<5), IF($J130=4, "Inconnu", E130+F130), 0),"Non requis") -> 0 | P130: =IF(INTRO!$E$44="Endémique", IF(AND($K130>0,$K130<5), IF($K130=4,"Inconnu", IF($K130=1, $F130*0.33, IF($K130=2, $F130*0.5+$G130*0.2, SUM(F130:G130)))), 0),"Non requis") -> 231406 | Q130: 0 | R130: 0 | S130: 1 | T130: 1 | V130: T3 (ALB/MBD) | W130: 7541 | X130: TOUBORO | AA130: ='MDA1'!K130 -> 0 | AB130: ='MDA3'!O130 -> 0 | AC130: ='T1'!M130 -> 0 | AD130: ='T2'!K130 -> 62567 | AE130: =T3_R1!L130 -> 65955 | AF130: =T3_R2!L130 -> 0 | AI130: =_xlfn.XLOOKUP($W130,[1]COUNTRY_INFO!$Y$9:$Y$198,[1]COUNTRY_INFO!H$9:H$198) ->  | AJ130: =_xlfn.XLOOKUP($W130,[1]COUNTRY_INFO!$Y$9:$Y$198,[1]COUNTRY_INFO!I$9:I$198) ->  | AK130: =_xlfn.XLOOKUP($W130,[1]COUNTRY_INFO!$Y$9:$Y$198,[1]COUNTRY_INFO!J$9:J$198) ->  | AL130: =_xlfn.XLOOKUP($W130,[1]COUNTRY_INFO!$Y$9:$Y$198,[1]COUNTRY_INFO!K$9:K$198) ->  | AM130: =_xlfn.XLOOKUP($W130,[1]COUNTRY_INFO!$Y$9:$Y$198,[1]COUNTRY_INFO!L$9:L$198) -> 
A131: =IF(INTRO!$E$34<>0,INTRO!$E$34,"") -> Cameroon | B131: NORTH-WEST | C131: AKO | D131: 58862 | E131: =IF(INTRO!$E$48="","",ROUND($D131*INTRO!$E$48,0)) -> 7605 | F131: =IF(INTRO!$E$49="","",ROUND($D131*INTRO!$E$49,0)) -> 16776 | G131: =IF(INTRO!$E$50="","",ROUND($D131*INTRO!$E$50,0)) -> 32080 | H131: 99 | I131: 1 | J131: 1 | K131: 2 | L131: 1 | M131: =IF(INTRO!$E$38="Endémique", IF($H131>0, IF($H131=4,"Inconnu", IF($H131=99,"Interrompu", $D131)), 0),"Non requis") -> Interrompu | N131: =IF(INTRO!$E$40="Endémique", IF($I131>0, IF($I131=4,"Inconnu",IF($I131=99,"Interrompu", $D131)), 0),"Non requis") -> 58862 | O131: =IF(INTRO!$E$42="Endémique", IF(AND($J131>1,$J131<5), IF($J131=4, "Inconnu", E131+F131), 0),"Non requis") -> 0 | P131: =IF(INTRO!$E$44="Endémique", IF(AND($K131>0,$K131<5), IF($K131=4,"Inconnu", IF($K131=1, $F131*0.33, IF($K131=2, $F131*0.5+$G131*0.2, SUM(F131:G131)))), 0),"Non requis") -> 14804 | Q131: 0 | R131: 0 | S131: 0 | T131: 0 | W131: 7542 | X131: AKO | AA131: ='MDA1'!K131 -> 0 | AB131: ='MDA3'!O131 -> 0 | AC131: ='T1'!M131 -> 0 | AD131: ='T2'!K131 -> 0 | AE131: =T3_R1!L131 -> 0 | AF131: =T3_R2!L131 -> 0 | AI131: =_xlfn.XLOOKUP($W131,[1]COUNTRY_INFO!$Y$9:$Y$198,[1]COUNTRY_INFO!H$9:H$198) ->  | AJ131: =_xlfn.XLOOKUP($W131,[1]COUNTRY_INFO!$Y$9:$Y$198,[1]COUNTRY_INFO!I$9:I$198) ->  | AK131: =_xlfn.XLOOKUP($W131,[1]COUNTRY_INFO!$Y$9:$Y$198,[1]COUNTRY_INFO!J$9:J$198) ->  | AL131: =_xlfn.XLOOKUP($W131,[1]COUNTRY_INFO!$Y$9:$Y$198,[1]COUNTRY_INFO!K$9:K$198) ->  | AM131: =_xlfn.XLOOKUP($W131,[1]COUNTRY_INFO!$Y$9:$Y$198,[1]COUNTRY_INFO!L$9:L$198) -> 
A132: =IF(INTRO!$E$34<>0,INTRO!$E$34,"") -> Cameroon | B132: NORTH-WEST | C132: BAFUT | D132: 60843 | E132: =IF(INTRO!$E$48="","",ROUND($D132*INTRO!$E$48,0)) -> 7861 | F132: =IF(INTRO!$E$49="","",ROUND($D132*INTRO!$E$49,0)) -> 17340 | G132: =IF(INTRO!$E$50="","",ROUND($D132*INTRO!$E$50,0)) -> 33159 | H132: 99 | I132: 1 | J132: 3 | K132: 1 | L132: 1 | M132: =IF(INTRO!$E$38="Endémique", IF($H132>0, IF($H132=4,"Inconnu", IF($H132=99,"Interrompu", $D132)), 0),"Non requis") -> Interrompu | N132: =IF(INTRO!$E$40="Endémique", IF($I132>0, IF($I132=4,"Inconnu",IF($I132=99,"Interrompu", $D132)), 0),"Non requis") -> 60843 | O132: =IF(INTRO!$E$42="Endémique", IF(AND($J132>1,$J132<5), IF($J132=4, "Inconnu", E132+F132), 0),"Non requis") -> 25201 | P132: =IF(INTRO!$E$44="Endémique", IF(AND($K132>0,$K132<5), IF($K132=4,"Inconnu", IF($K132=1, $F132*0.33, IF($K132=2, $F132*0.5+$G132*0.2, SUM(F132:G132)))), 0),"Non requis") -> 5722.2 | Q132: 0 | R132: 0 | S132: 0 | T132: 0 | W132: 7543 | X132: BAFUT | AA132: ='MDA1'!K132 -> 0 | AB132: ='MDA3'!O132 -> 0 | AC132: ='T1'!M132 -> 0 | AD132: ='T2'!K132 -> 0 | AE132: =T3_R1!L132 -> 0 | AF132: =T3_R2!L132 -> 0 | AI132: =_xlfn.XLOOKUP($W132,[1]COUNTRY_INFO!$Y$9:$Y$198,[1]COUNTRY_INFO!H$9:H$198) ->  | AJ132: =_xlfn.XLOOKUP($W132,[1]COUNTRY_INFO!$Y$9:$Y$198,[1]COUNTRY_INFO!I$9:I$198) ->  | AK132: =_xlfn.XLOOKUP($W132,[1]COUNTRY_INFO!$Y$9:$Y$198,[1]COUNTRY_INFO!J$9:J$198) ->  | AL132: =_xlfn.XLOOKUP($W132,[1]COUNTRY_INFO!$Y$9:$Y$198,[1]COUNTRY_INFO!K$9:K$198) ->  | AM132: =_xlfn.XLOOKUP($W132,[1]COUNTRY_INFO!$Y$9:$Y$198,[1]COUNTRY_INFO!L$9:L$198) -> 
A133: =IF(INTRO!$E$34<>0,INTRO!$E$34,"") -> Cameroon | B133: NORTH-WEST | C133: BALI | D133: 37103 | E133: =IF(INTRO!$E$48="","",ROUND($D133*INTRO!$E$48,0)) -> 4794 | F133: =IF(INTRO!$E$49="","",ROUND($D133*INTRO!$E$49,0)) -> 10574 | G133: =IF(INTRO!$E$50="","",ROUND($D133*INTRO!$E$50,0)) -> 20221 | H133: 99 | I133: 1 | J133: 1 | K133: 0 | L133: 1 | M133: =IF(INTRO!$E$38="Endémique", IF($H133>0, IF($H133=4,"Inconnu", IF($H133=99,"Interrompu", $D133)), 0),"Non requis") -> Interrompu | N133: =IF(INTRO!$E$40="Endémique", IF($I133>0, IF($I133=4,"Inconnu",IF($I133=99,"Interrompu", $D133)), 0),"Non requis") -> 37103 | O133: =IF(INTRO!$E$42="Endémique", IF(AND($J133>1,$J133<5), IF($J133=4, "Inconnu", E133+F133), 0),"Non requis") -> 0 | P133: =IF(INTRO!$E$44="Endémique", IF(AND($K133>0,$K133<5), IF($K133=4,"Inconnu", IF($K133=1, $F133*0.33, IF($K133=2, $F133*0.5+$G133*0.2, SUM(F133:G133)))), 0),"Non requis") -> 0 | Q133: 0 | R133: 0 | S133: 0 | T133: 0 | W133: 7544 | X133: BALI | AA133: ='MDA1'!K133 -> 0 | AB133: ='MDA3'!O133 -> 0 | AC133: ='T1'!M133 -> 0 | AD133: ='T2'!K133 -> 0 | AE133: =T3_R1!L133 -> 0 | AF133: =T3_R2!L133 -> 0 | AI133: =_xlfn.XLOOKUP($W133,[1]COUNTRY_INFO!$Y$9:$Y$198,[1]COUNTRY_INFO!H$9:H$198) ->  | AJ133: =_xlfn.XLOOKUP($W133,[1]COUNTRY_INFO!$Y$9:$Y$198,[1]COUNTRY_INFO!I$9:I$198) ->  | AK133: =_xlfn.XLOOKUP($W133,[1]COUNTRY_INFO!$Y$9:$Y$198,[1]COUNTRY_INFO!J$9:J$198) ->  | AL133: =_xlfn.XLOOKUP($W133,[1]COUNTRY_INFO!$Y$9:$Y$198,[1]COUNTRY_INFO!K$9:K$198) ->  | AM133: =_xlfn.XLOOKUP($W133,[1]COUNTRY_INFO!$Y$9:$Y$198,[1]COUNTRY_INFO!L$9:L$198) -> 
A134: =IF(INTRO!$E$34<>0,INTRO!$E$34,"") -> Cameroon | B134: NORTH-WEST | C134: BAMENDA | D134: 429419 | E134: =IF(INTRO!$E$48="","",ROUND($D134*INTRO!$E$48,0)) -> 55481 | F134: =IF(INTRO!$E$49="","",ROUND($D134*INTRO!$E$49,0)) -> 122384 | G134: =IF(INTRO!$E$50="","",ROUND($D134*INTRO!$E$50,0)) -> 234033 | H134: 99 | I134: 1 | J134: 1 | K134: 1 | L134: 1 | M134: =IF(INTRO!$E$38="Endémique", IF($H134>0, IF($H134=4,"Inconnu", IF($H134=99,"Interrompu", $D134)), 0),"Non requis") -> Interrompu | N134: =IF(INTRO!$E$40="Endémique", IF($I134>0, IF($I134=4,"Inconnu",IF($I134=99,"Interrompu", $D134)), 0),"Non requis") -> 429419 | O134: =IF(INTRO!$E$42="Endémique", IF(AND($J134>1,$J134<5), IF($J134=4, "Inconnu", E134+F134), 0),"Non requis") -> 0 | P134: =IF(INTRO!$E$44="Endémique", IF(AND($K134>0,$K134<5), IF($K134=4,"Inconnu", IF($K134=1, $F134*0.33, IF($K134=2, $F134*0.5+$G134*0.2, SUM(F134:G134)))), 0),"Non requis") -> 40386.72 | Q134: 0 | R134: 0 | S134: 0 | T134: 0 | W134: 7545 | X134: BAMENDA | AA134: ='MDA1'!K134 -> 0 | AB134: ='MDA3'!O134 -> 0 | AC134: ='T1'!M134 -> 0 | AD134: ='T2'!K134 -> 0 | AE134: =T3_R1!L134 -> 0 | AF134: =T3_R2!L134 -> 0 | AI134: =_xlfn.XLOOKUP($W134,[1]COUNTRY_INFO!$Y$9:$Y$198,[1]COUNTRY_INFO!H$9:H$198) ->  | AJ134: =_xlfn.XLOOKUP($W134,[1]COUNTRY_INFO!$Y$9:$Y$198,[1]COUNTRY_INFO!I$9:I$198) ->  | AK134: =_xlfn.XLOOKUP($W134,[1]COUNTRY_INFO!$Y$9:$Y$198,[1]COUNTRY_INFO!J$9:J$198) ->  | AL134: =_xlfn.XLOOKUP($W134,[1]COUNTRY_INFO!$Y$9:$Y$198,[1]COUNTRY_INFO!K$9:K$198) ->  | AM134: =_xlfn.XLOOKUP($W134,[1]COUNTRY_INFO!$Y$9:$Y$198,[1]COUNTRY_INFO!L$9:L$198) -> 
A135: =IF(INTRO!$E$34<>0,INTRO!$E$34,"") -> Cameroon | B135: NORTH-WEST | C135: BATIBO | D135: 92992 | E135: =IF(INTRO!$E$48="","",ROUND($D135*INTRO!$E$48,0)) -> 12015 | F135: =IF(INTRO!$E$49="","",ROUND($D135*INTRO!$E$49,0)) -> 26503 | G135: =IF(INTRO!$E$50="","",ROUND($D135*INTRO!$E$50,0)) -> 50681 | H135: 99 | I135: 1 | J135: 3 | K135: 0 | L135: 1 | M135: =IF(INTRO!$E$38="Endémique", IF($H135>0, IF($H135=4,"Inconnu", IF($H135=99,"Interrompu", $D135)), 0),"Non requis") -> Interrompu | N135: =IF(INTRO!$E$40="Endémique", IF($I135>0, IF($I135=4,"Inconnu",IF($I135=99,"Interrompu", $D135)), 0),"Non requis") -> 92992 | O135: =IF(INTRO!$E$42="Endémique", IF(AND($J135>1,$J135<5), IF($J135=4, "Inconnu", E135+F135), 0),"Non requis") -> 38518 | P135: =IF(INTRO!$E$44="Endémique", IF(AND($K135>0,$K135<5), IF($K135=4,"Inconnu", IF($K135=1, $F135*0.33, IF($K135=2, $F135*0.5+$G135*0.2, SUM(F135:G135)))), 0),"Non requis") -> 0 | Q135: 0 | R135: 0 | S135: 0 | T135: 0 | W135: 7546 | X135: BATIBO | AA135: ='MDA1'!K135 -> 0 | AB135: ='MDA3'!O135 -> 0 | AC135: ='T1'!M135 -> 0 | AD135: ='T2'!K135 -> 0 | AE135: =T3_R1!L135 -> 0 | AF135: =T3_R2!L135 -> 0 | AI135: =_xlfn.XLOOKUP($W135,[1]COUNTRY_INFO!$Y$9:$Y$198,[1]COUNTRY_INFO!H$9:H$198) ->  | AJ135: =_xlfn.XLOOKUP($W135,[1]COUNTRY_INFO!$Y$9:$Y$198,[1]COUNTRY_INFO!I$9:I$198) ->  | AK135: =_xlfn.XLOOKUP($W135,[1]COUNTRY_INFO!$Y$9:$Y$198,[1]COUNTRY_INFO!J$9:J$198) ->  | AL135: =_xlfn.XLOOKUP($W135,[1]COUNTRY_INFO!$Y$9:$Y$198,[1]COUNTRY_INFO!K$9:K$198) ->  | AM135: =_xlfn.XLOOKUP($W135,[1]COUNTRY_INFO!$Y$9:$Y$198,[1]COUNTRY_INFO!L$9:L$198) -> 
A136: =IF(INTRO!$E$34<>0,INTRO!$E$34,"") -> Cameroon | B136: NORTH-WEST | C136: BENAKUMA | D136: 60794 | E136: =IF(INTRO!$E$48="","",ROUND($D136*INTRO!$E$48,0)) -> 7855 | F136: =IF(INTRO!$E$49="","",ROUND($D136*INTRO!$E$49,0)) -> 17326 | G136: =IF(INTRO!$E$50="","",ROUND($D136*INTRO!$E$50,0)) -> 33133 | H136: 99 | I136: 1 | J136: 2 | K136: 1 | L136: 1 | M136: =IF(INTRO!$E$38="Endémique", IF($H136>0, IF($H136=4,"Inconnu", IF($H136=99,"Interrompu", $D136)), 0),"Non requis") -> Interrompu | N136: =IF(INTRO!$E$40="Endémique", IF($I136>0, IF($I136=4,"Inconnu",IF($I136=99,"Interrompu", $D136)), 0),"Non requis") -> 60794 | O136: =IF(INTRO!$E$42="Endémique", IF(AND($J136>1,$J136<5), IF($J136=4, "Inconnu", E136+F136), 0),"Non requis") -> 25181 | P136: =IF(INTRO!$E$44="Endémique", IF(AND($K136>0,$K136<5), IF($K136=4,"Inconnu", IF($K136=1, $F136*0.33, IF($K136=2, $F136*0.5+$G136*0.2, SUM(F136:G136)))), 0),"Non requis") -> 5717.58 | Q136: 0 | R136: 0 | S136: 0 | T136: 0 | W136: 7547 | X136: BENAKUMA | AA136: ='MDA1'!K136 -> 0 | AB136: ='MDA3'!O136 -> 0 | AC136: ='T1'!M136 -> 0 | AD136: ='T2'!K136 -> 0 | AE136: =T3_R1!L136 -> 0 | AF136: =T3_R2!L136 -> 0 | AI136: =_xlfn.XLOOKUP($W136,[1]COUNTRY_INFO!$Y$9:$Y$198,[1]COUNTRY_INFO!H$9:H$198) ->  | AJ136: =_xlfn.XLOOKUP($W136,[1]COUNTRY_INFO!$Y$9:$Y$198,[1]COUNTRY_INFO!I$9:I$198) ->  | AK136: =_xlfn.XLOOKUP($W136,[1]COUNTRY_INFO!$Y$9:$Y$198,[1]COUNTRY_INFO!J$9:J$198) ->  | AL136: =_xlfn.XLOOKUP($W136,[1]COUNTRY_INFO!$Y$9:$Y$198,[1]COUNTRY_INFO!K$9:K$198) ->  | AM136: =_xlfn.XLOOKUP($W136,[1]COUNTRY_INFO!$Y$9:$Y$198,[1]COUNTRY_INFO!L$9:L$198) -> 
A137: =IF(INTRO!$E$34<>0,INTRO!$E$34,"") -> Cameroon | B137: NORTH-WEST | C137: FUNDONG | D137: 158243 | E137: =IF(INTRO!$E$48="","",ROUND($D137*INTRO!$E$48,0)) -> 20445 | F137: =IF(INTRO!$E$49="","",ROUND($D137*INTRO!$E$49,0)) -> 45099 | G137: =IF(INTRO!$E$50="","",ROUND($D137*INTRO!$E$50,0)) -> 86242 | H137: 99 | I137: 1 | J137: 2 | K137: 0 | L137: 1 | M137: =IF(INTRO!$E$38="Endémique", IF($H137>0, IF($H137=4,"Inconnu", IF($H137=99,"Interrompu", $D137)), 0),"Non requis") -> Interrompu | N137: =IF(INTRO!$E$40="Endémique", IF($I137>0, IF($I137=4,"Inconnu",IF($I137=99,"Interrompu", $D137)), 0),"Non requis") -> 158243 | O137: =IF(INTRO!$E$42="Endémique", IF(AND($J137>1,$J137<5), IF($J137=4, "Inconnu", E137+F137), 0),"Non requis") -> 65544 | P137: =IF(INTRO!$E$44="Endémique", IF(AND($K137>0,$K137<5), IF($K137=4,"Inconnu", IF($K137=1, $F137*0.33, IF($K137=2, $F137*0.5+$G137*0.2, SUM(F137:G137)))), 0),"Non requis") -> 0 | Q137: 0 | R137: 0 | S137: 0 | T137: 0 | W137: 7548 | X137: FUNDONG | AA137: ='MDA1'!K137 -> 0 | AB137: ='MDA3'!O137 -> 0 | AC137: ='T1'!M137 -> 0 | AD137: ='T2'!K137 -> 0 | AE137: =T3_R1!L137 -> 0 | AF137: =T3_R2!L137 -> 0 | AI137: =_xlfn.XLOOKUP($W137,[1]COUNTRY_INFO!$Y$9:$Y$198,[1]COUNTRY_INFO!H$9:H$198) ->  | AJ137: =_xlfn.XLOOKUP($W137,[1]COUNTRY_INFO!$Y$9:$Y$198,[1]COUNTRY_INFO!I$9:I$198) ->  | AK137: =_xlfn.XLOOKUP($W137,[1]COUNTRY_INFO!$Y$9:$Y$198,[1]COUNTRY_INFO!J$9:J$198) ->  | AL137: =_xlfn.XLOOKUP($W137,[1]COUNTRY_INFO!$Y$9:$Y$198,[1]COUNTRY_INFO!K$9:K$198) ->  | AM137: =_xlfn.XLOOKUP($W137,[1]COUNTRY_INFO!$Y$9:$Y$198,[1]COUNTRY_INFO!L$9:L$198) -> 
A138: =IF(INTRO!$E$34<>0,INTRO!$E$34,"") -> Cameroon | B138: NORTH-WEST | C138: KUMBO EAST | D138: 159698 | E138: =IF(INTRO!$E$48="","",ROUND($D138*INTRO!$E$48,0)) -> 20633 | F138: =IF(INTRO!$E$49="","",ROUND($D138*INTRO!$E$49,0)) -> 45514 | G138: =IF(INTRO!$E$50="","",ROUND($D138*INTRO!$E$50,0)) -> 87035 | H138: 99 | I138: 1 | J138: 1 | K138: 1 | L138: 1 | M138: =IF(INTRO!$E$38="Endémique", IF($H138>0, IF($H138=4,"Inconnu", IF($H138=99,"Interrompu", $D138)), 0),"Non requis") -> Interrompu | N138: =IF(INTRO!$E$40="Endémique", IF($I138>0, IF($I138=4,"Inconnu",IF($I138=99,"Interrompu", $D138)), 0),"Non requis") -> 159698 | O138: =IF(INTRO!$E$42="Endémique", IF(AND($J138>1,$J138<5), IF($J138=4, "Inconnu", E138+F138), 0),"Non requis") -> 0 | P138: =IF(INTRO!$E$44="Endémique", IF(AND($K138>0,$K138<5), IF($K138=4,"Inconnu", IF($K138=1, $F138*0.33, IF($K138=2, $F138*0.5+$G138*0.2, SUM(F138:G138)))), 0),"Non requis") -> 15019.62 | Q138: 0 | R138: 0 | S138: 0 | T138: 0 | W138: 7549 | X138: KUMBO EAST | AA138: ='MDA1'!K138 -> 0 | AB138: ='MDA3'!O138 -> 0 | AC138: ='T1'!M138 -> 0 | AD138: ='T2'!K138 -> 0 | AE138: =T3_R1!L138 -> 0 | AF138: =T3_R2!L138 -> 0 | AI138: =_xlfn.XLOOKUP($W138,[1]COUNTRY_INFO!$Y$9:$Y$198,[1]COUNTRY_INFO!H$9:H$198) ->  | AJ138: =_xlfn.XLOOKUP($W138,[1]COUNTRY_INFO!$Y$9:$Y$198,[1]COUNTRY_INFO!I$9:I$198) ->  | AK138: =_xlfn.XLOOKUP($W138,[1]COUNTRY_INFO!$Y$9:$Y$198,[1]COUNTRY_INFO!J$9:J$198) ->  | AL138: =_xlfn.XLOOKUP($W138,[1]COUNTRY_INFO!$Y$9:$Y$198,[1]COUNTRY_INFO!K$9:K$198) ->  | AM138: =_xlfn.XLOOKUP($W138,[1]COUNTRY_INFO!$Y$9:$Y$198,[1]COUNTRY_INFO!L$9:L$198) ->  | AN138: =AI138=H138 ->  | AO138: =AJ138=I138 ->  | AP138: =AK138=J138 ->  | AQ138: =AL138=K138 ->  | AR138: =AM138=L138 -> 
A139: =IF(INTRO!$E$34<>0,INTRO!$E$34,"") -> Cameroon | B139: NORTH-WEST | C139: KUMBO WEST | D139: 113508 | E139: =IF(INTRO!$E$48="","",ROUND($D139*INTRO!$E$48,0)) -> 14665 | F139: =IF(INTRO!$E$49="","",ROUND($D139*INTRO!$E$49,0)) -> 32350 | G139: =IF(INTRO!$E$50="","",ROUND($D139*INTRO!$E$50,0)) -> 61862 | H139: 99 | I139: 1 | J139: 2 | K139: 0 | L139: 1 | M139: =IF(INTRO!$E$38="Endémique", IF($H139>0, IF($H139=4,"Inconnu", IF($H139=99,"Interrompu", $D139)), 0),"Non requis") -> Interrompu | N139: =IF(INTRO!$E$40="Endémique", IF($I139>0, IF($I139=4,"Inconnu",IF($I139=99,"Interrompu", $D139)), 0),"Non requis") -> 113508 | O139: =IF(INTRO!$E$42="Endémique", IF(AND($J139>1,$J139<5), IF($J139=4, "Inconnu", E139+F139), 0),"Non requis") -> 47015 | P139: =IF(INTRO!$E$44="Endémique", IF(AND($K139>0,$K139<5), IF($K139=4,"Inconnu", IF($K139=1, $F139*0.33, IF($K139=2, $F139*0.5+$G139*0.2, SUM(F139:G139)))), 0),"Non requis") -> 0 | Q139: 0 | R139: 0 | S139: 0 | T139: 0 | W139: 7550 | X139: KUMBO WEST | AA139: ='MDA1'!K139 -> 0 | AB139: ='MDA3'!O139 -> 0 | AC139: ='T1'!M139 -> 0 | AD139: ='T2'!K139 -> 0 | AE139: =T3_R1!L139 -> 0 | AF139: =T3_R2!L139 -> 0 | AI139: =_xlfn.XLOOKUP($W139,[1]COUNTRY_INFO!$Y$9:$Y$198,[1]COUNTRY_INFO!H$9:H$198) ->  | AJ139: =_xlfn.XLOOKUP($W139,[1]COUNTRY_INFO!$Y$9:$Y$198,[1]COUNTRY_INFO!I$9:I$198) ->  | AK139: =_xlfn.XLOOKUP($W139,[1]COUNTRY_INFO!$Y$9:$Y$198,[1]COUNTRY_INFO!J$9:J$198) ->  | AL139: =_xlfn.XLOOKUP($W139,[1]COUNTRY_INFO!$Y$9:$Y$198,[1]COUNTRY_INFO!K$9:K$198) ->  | AM139: =_xlfn.XLOOKUP($W139,[1]COUNTRY_INFO!$Y$9:$Y$198,[1]COUNTRY_INFO!L$9:L$198) -> 
A140: =IF(INTRO!$E$34<>0,INTRO!$E$34,"") -> Cameroon | B140: NORTH-WEST | C140: MBENGWI | D140: 56469 | E140: =IF(INTRO!$E$48="","",ROUND($D140*INTRO!$E$48,0)) -> 7296 | F140: =IF(INTRO!$E$49="","",ROUND($D140*INTRO!$E$49,0)) -> 16094 | G140: =IF(INTRO!$E$50="","",ROUND($D140*INTRO!$E$50,0)) -> 30776 | H140: 99 | I140: 1 | J140: 1 | K140: 0 | L140: 1 | M140: =IF(INTRO!$E$38="Endémique", IF($H140>0, IF($H140=4,"Inconnu", IF($H140=99,"Interrompu", $D140)), 0),"Non requis") -> Interrompu | N140: =IF(INTRO!$E$40="Endémique", IF($I140>0, IF($I140=4,"Inconnu",IF($I140=99,"Interrompu", $D140)), 0),"Non requis") -> 56469 | O140: =IF(INTRO!$E$42="Endémique", IF(AND($J140>1,$J140<5), IF($J140=4, "Inconnu", E140+F140), 0),"Non requis") -> 0 | P140: =IF(INTRO!$E$44="Endémique", IF(AND($K140>0,$K140<5), IF($K140=4,"Inconnu", IF($K140=1, $F140*0.33, IF($K140=2, $F140*0.5+$G140*0.2, SUM(F140:G140)))), 0),"Non requis") -> 0 | Q140: 0 | R140: 0 | S140: 0 | T140: 0 | W140: 7551 | X140: MBENGWI | AA140: ='MDA1'!K140 -> 0 | AB140: ='MDA3'!O140 -> 0 | AC140: ='T1'!M140 -> 0 | AD140: ='T2'!K140 -> 0 | AE140: =T3_R1!L140 -> 0 | AF140: =T3_R2!L140 -> 0 | AI140: =_xlfn.XLOOKUP($W140,[1]COUNTRY_INFO!$Y$9:$Y$198,[1]COUNTRY_INFO!H$9:H$198) ->  | AJ140: =_xlfn.XLOOKUP($W140,[1]COUNTRY_INFO!$Y$9:$Y$198,[1]COUNTRY_INFO!I$9:I$198) ->  | AK140: =_xlfn.XLOOKUP($W140,[1]COUNTRY_INFO!$Y$9:$Y$198,[1]COUNTRY_INFO!J$9:J$198) ->  | AL140: =_xlfn.XLOOKUP($W140,[1]COUNTRY_INFO!$Y$9:$Y$198,[1]COUNTRY_INFO!K$9:K$198) ->  | AM140: =_xlfn.XLOOKUP($W140,[1]COUNTRY_INFO!$Y$9:$Y$198,[1]COUNTRY_INFO!L$9:L$198) -> 
A141: =IF(INTRO!$E$34<>0,INTRO!$E$34,"") -> Cameroon | B141: NORTH-WEST | C141: NDOP | D141: 275603 | E141: =IF(INTRO!$E$48="","",ROUND($D141*INTRO!$E$48,0)) -> 35608 | F141: =IF(INTRO!$E$49="","",ROUND($D141*INTRO!$E$49,0)) -> 78547 | G141: =IF(INTRO!$E$50="","",ROUND($D141*INTRO!$E$50,0)) -> 150204 | H141: 99 | I141: 1 | J141: 3 | K141: 0 | L141: 1 | M141: =IF(INTRO!$E$38="Endémique", IF($H141>0, IF($H141=4,"Inconnu", IF($H141=99,"Interrompu", $D141)), 0),"Non requis") -> Interrompu | N141: =IF(INTRO!$E$40="Endémique", IF($I141>0, IF($I141=4,"Inconnu",IF($I141=99,"Interrompu", $D141)), 0),"Non requis") -> 275603 | O141: =IF(INTRO!$E$42="Endémique", IF(AND($J141>1,$J141<5), IF($J141=4, "Inconnu", E141+F141), 0),"Non requis") -> 114155 | P141: =IF(INTRO!$E$44="Endémique", IF(AND($K141>0,$K141<5), IF($K141=4,"Inconnu", IF($K141=1, $F141*0.33, IF($K141=2, $F141*0.5+$G141*0.2, SUM(F141:G141)))), 0),"Non requis") -> 0 | Q141: 0 | R141: 0 | S141: 0 | T141: 0 | W141: 7552 | X141: NDOP | AA141: ='MDA1'!K141 -> 0 | AB141: ='MDA3'!O141 -> 0 | AC141: ='T1'!M141 -> 0 | AD141: ='T2'!K141 -> 0 | AE141: =T3_R1!L141 -> 0 | AF141: =T3_R2!L141 -> 0 | AI141: =_xlfn.XLOOKUP($W141,[1]COUNTRY_INFO!$Y$9:$Y$198,[1]COUNTRY_INFO!H$9:H$198) ->  | AJ141: =_xlfn.XLOOKUP($W141,[1]COUNTRY_INFO!$Y$9:$Y$198,[1]COUNTRY_INFO!I$9:I$198) ->  | AK141: =_xlfn.XLOOKUP($W141,[1]COUNTRY_INFO!$Y$9:$Y$198,[1]COUNTRY_INFO!J$9:J$198) ->  | AL141: =_xlfn.XLOOKUP($W141,[1]COUNTRY_INFO!$Y$9:$Y$198,[1]COUNTRY_INFO!K$9:K$198) ->  | AM141: =_xlfn.XLOOKUP($W141,[1]COUNTRY_INFO!$Y$9:$Y$198,[1]COUNTRY_INFO!L$9:L$198) -> 
A142: =IF(INTRO!$E$34<>0,INTRO!$E$34,"") -> Cameroon | B142: NORTH-WEST | C142: NDU | D142: 95914 | E142: =IF(INTRO!$E$48="","",ROUND($D142*INTRO!$E$48,0)) -> 12392 | F142: =IF(INTRO!$E$49="","",ROUND($D142*INTRO!$E$49,0)) -> 27335 | G142: =IF(INTRO!$E$50="","",ROUND($D142*INTRO!$E$50,0)) -> 52273 | H142: 99 | I142: 1 | J142: 1 | K142: 0 | L142: 1 | M142: =IF(INTRO!$E$38="Endémique", IF($H142>0, IF($H142=4,"Inconnu", IF($H142=99,"Interrompu", $D142)), 0),"Non requis") -> Interrompu | N142: =IF(INTRO!$E$40="Endémique", IF($I142>0, IF($I142=4,"Inconnu",IF($I142=99,"Interrompu", $D142)), 0),"Non requis") -> 95914 | O142: =IF(INTRO!$E$42="Endémique", IF(AND($J142>1,$J142<5), IF($J142=4, "Inconnu", E142+F142), 0),"Non requis") -> 0 | P142: =IF(INTRO!$E$44="Endémique", IF(AND($K142>0,$K142<5), IF($K142=4,"Inconnu", IF($K142=1, $F142*0.33, IF($K142=2, $F142*0.5+$G142*0.2, SUM(F142:G142)))), 0),"Non requis") -> 0 | Q142: 0 | R142: 0 | S142: 0 | T142: 0 | W142: 7553 | X142: NDU | AA142: ='MDA1'!K142 -> 0 | AB142: ='MDA3'!O142 -> 0 | AC142: ='T1'!M142 -> 0 | AD142: ='T2'!K142 -> 0 | AE142: =T3_R1!L142 -> 0 | AF142: =T3_R2!L142 -> 0 | AI142: =_xlfn.XLOOKUP($W142,[1]COUNTRY_INFO!$Y$9:$Y$198,[1]COUNTRY_INFO!H$9:H$198) ->  | AJ142: =_xlfn.XLOOKUP($W142,[1]COUNTRY_INFO!$Y$9:$Y$198,[1]COUNTRY_INFO!I$9:I$198) ->  | AK142: =_xlfn.XLOOKUP($W142,[1]COUNTRY_INFO!$Y$9:$Y$198,[1]COUNTRY_INFO!J$9:J$198) ->  | AL142: =_xlfn.XLOOKUP($W142,[1]COUNTRY_INFO!$Y$9:$Y$198,[1]COUNTRY_INFO!K$9:K$198) ->  | AM142: =_xlfn.XLOOKUP($W142,[1]COUNTRY_INFO!$Y$9:$Y$198,[1]COUNTRY_INFO!L$9:L$198) -> 
A143: =IF(INTRO!$E$34<>0,INTRO!$E$34,"") -> Cameroon | B143: NORTH-WEST | C143: NJIKWA | D143: 23017 | E143: =IF(INTRO!$E$48="","",ROUND($D143*INTRO!$E$48,0)) -> 2974 | F143: =IF(INTRO!$E$49="","",ROUND($D143*INTRO!$E$49,0)) -> 6560 | G143: =IF(INTRO!$E$50="","",ROUND($D143*INTRO!$E$50,0)) -> 12544 | H143: 99 | I143: 1 | J143: 1 | K143: 0 | L143: 1 | M143: =IF(INTRO!$E$38="Endémique", IF($H143>0, IF($H143=4,"Inconnu", IF($H143=99,"Interrompu", $D143)), 0),"Non requis") -> Interrompu | N143: =IF(INTRO!$E$40="Endémique", IF($I143>0, IF($I143=4,"Inconnu",IF($I143=99,"Interrompu", $D143)), 0),"Non requis") -> 23017 | O143: =IF(INTRO!$E$42="Endémique", IF(AND($J143>1,$J143<5), IF($J143=4, "Inconnu", E143+F143), 0),"Non requis") -> 0 | P143: =IF(INTRO!$E$44="Endémique", IF(AND($K143>0,$K143<5), IF($K143=4,"Inconnu", IF($K143=1, $F143*0.33, IF($K143=2, $F143*0.5+$G143*0.2, SUM(F143:G143)))), 0),"Non requis") -> 0 | Q143: 0 | R143: 0 | S143: 0 | T143: 0 | W143: 7554 | X143: NJIKWA | AA143: ='MDA1'!K143 -> 0 | AB143: ='MDA3'!O143 -> 0 | AC143: ='T1'!M143 -> 0 | AD143: ='T2'!K143 -> 0 | AE143: =T3_R1!L143 -> 0 | AF143: =T3_R2!L143 -> 0 | AI143: =_xlfn.XLOOKUP($W143,[1]COUNTRY_INFO!$Y$9:$Y$198,[1]COUNTRY_INFO!H$9:H$198) ->  | AJ143: =_xlfn.XLOOKUP($W143,[1]COUNTRY_INFO!$Y$9:$Y$198,[1]COUNTRY_INFO!I$9:I$198) ->  | AK143: =_xlfn.XLOOKUP($W143,[1]COUNTRY_INFO!$Y$9:$Y$198,[1]COUNTRY_INFO!J$9:J$198) ->  | AL143: =_xlfn.XLOOKUP($W143,[1]COUNTRY_INFO!$Y$9:$Y$198,[1]COUNTRY_INFO!K$9:K$198) ->  | AM143: =_xlfn.XLOOKUP($W143,[1]COUNTRY_INFO!$Y$9:$Y$198,[1]COUNTRY_INFO!L$9:L$198) -> 
A144: =IF(INTRO!$E$34<>0,INTRO!$E$34,"") -> Cameroon | B144: NORTH-WEST | C144: NKAMBE | D144: 147968 | E144: =IF(INTRO!$E$48="","",ROUND($D144*INTRO!$E$48,0)) -> 19117 | F144: =IF(INTRO!$E$49="","",ROUND($D144*INTRO!$E$49,0)) -> 42171 | G144: =IF(INTRO!$E$50="","",ROUND($D144*INTRO!$E$50,0)) -> 80643 | H144: 99 | I144: 1 | J144: 3 | K144: 1 | L144: 1 | M144: =IF(INTRO!$E$38="Endémique", IF($H144>0, IF($H144=4,"Inconnu", IF($H144=99,"Interrompu", $D144)), 0),"Non requis") -> Interrompu | N144: =IF(INTRO!$E$40="Endémique", IF($I144>0, IF($I144=4,"Inconnu",IF($I144=99,"Interrompu", $D144)), 0),"Non requis") -> 147968 | O144: =IF(INTRO!$E$42="Endémique", IF(AND($J144>1,$J144<5), IF($J144=4, "Inconnu", E144+F144), 0),"Non requis") -> 61288 | P144: =IF(INTRO!$E$44="Endémique", IF(AND($K144>0,$K144<5), IF($K144=4,"Inconnu", IF($K144=1, $F144*0.33, IF($K144=2, $F144*0.5+$G144*0.2, SUM(F144:G144)))), 0),"Non requis") -> 13916.43 | Q144: 0 | R144: 0 | S144: 0 | T144: 0 | W144: 7555 | X144: NKAMBE | AA144: ='MDA1'!K144 -> 0 | AB144: ='MDA3'!O144 -> 0 | AC144: ='T1'!M144 -> 0 | AD144: ='T2'!K144 -> 0 | AE144: =T3_R1!L144 -> 0 | AF144: =T3_R2!L144 -> 0 | AI144: =_xlfn.XLOOKUP($W144,[1]COUNTRY_INFO!$Y$9:$Y$198,[1]COUNTRY_INFO!H$9:H$198) ->  | AJ144: =_xlfn.XLOOKUP($W144,[1]COUNTRY_INFO!$Y$9:$Y$198,[1]COUNTRY_INFO!I$9:I$198) ->  | AK144: =_xlfn.XLOOKUP($W144,[1]COUNTRY_INFO!$Y$9:$Y$198,[1]COUNTRY_INFO!J$9:J$198) ->  | AL144: =_xlfn.XLOOKUP($W144,[1]COUNTRY_INFO!$Y$9:$Y$198,[1]COUNTRY_INFO!K$9:K$198) ->  | AM144: =_xlfn.XLOOKUP($W144,[1]COUNTRY_INFO!$Y$9:$Y$198,[1]COUNTRY_INFO!L$9:L$198) -> 
A145: =IF(INTRO!$E$34<>0,INTRO!$E$34,"") -> Cameroon | B145: NORTH-WEST | C145: NWA | D145: 65599 | E145: =IF(INTRO!$E$48="","",ROUND($D145*INTRO!$E$48,0)) -> 8475 | F145: =IF(INTRO!$E$49="","",ROUND($D145*INTRO!$E$49,0)) -> 18696 | G145: =IF(INTRO!$E$50="","",ROUND($D145*INTRO!$E$50,0)) -> 35751 | H145: 99 | I145: 1 | J145: 3 | K145: 0 | L145: 1 | M145: =IF(INTRO!$E$38="Endémique", IF($H145>0, IF($H145=4,"Inconnu", IF($H145=99,"Interrompu", $D145)), 0),"Non requis") -> Interrompu | N145: =IF(INTRO!$E$40="Endémique", IF($I145>0, IF($I145=4,"Inconnu",IF($I145=99,"Interrompu", $D145)), 0),"Non requis") -> 65599 | O145: =IF(INTRO!$E$42="Endémique", IF(AND($J145>1,$J145<5), IF($J145=4, "Inconnu", E145+F145), 0),"Non requis") -> 27171 | P145: =IF(INTRO!$E$44="Endémique", IF(AND($K145>0,$K145<5), IF($K145=4,"Inconnu", IF($K145=1, $F145*0.33, IF($K145=2, $F145*0.5+$G145*0.2, SUM(F145:G145)))), 0),"Non requis") -> 0 | Q145: 0 | R145: 0 | S145: 0 | T145: 0 | W145: 7556 | X145: NWA | AA145: ='MDA1'!K145 -> 0 | AB145: ='MDA3'!O145 -> 0 | AC145: ='T1'!M145 -> 0 | AD145: ='T2'!K145 -> 0 | AE145: =T3_R1!L145 -> 0 | AF145: =T3_R2!L145 -> 0 | AI145: =_xlfn.XLOOKUP($W145,[1]COUNTRY_INFO!$Y$9:$Y$198,[1]COUNTRY_INFO!H$9:H$198) ->  | AJ145: =_xlfn.XLOOKUP($W145,[1]COUNTRY_INFO!$Y$9:$Y$198,[1]COUNTRY_INFO!I$9:I$198) ->  | AK145: =_xlfn.XLOOKUP($W145,[1]COUNTRY_INFO!$Y$9:$Y$198,[1]COUNTRY_INFO!J$9:J$198) ->  | AL145: =_xlfn.XLOOKUP($W145,[1]COUNTRY_INFO!$Y$9:$Y$198,[1]COUNTRY_INFO!K$9:K$198) ->  | AM145: =_xlfn.XLOOKUP($W145,[1]COUNTRY_INFO!$Y$9:$Y$198,[1]COUNTRY_INFO!L$9:L$198) -> 
A146: =IF(INTRO!$E$34<>0,INTRO!$E$34,"") -> Cameroon | B146: NORTH-WEST | C146: OKU | D146: 101536 | E146: =IF(INTRO!$E$48="","",ROUND($D146*INTRO!$E$48,0)) -> 13118 | F146: =IF(INTRO!$E$49="","",ROUND($D146*INTRO!$E$49,0)) -> 28938 | G146: =IF(INTRO!$E$50="","",ROUND($D146*INTRO!$E$50,0)) -> 55337 | H146: 99 | I146: 1 | J146: 2 | K146: 0 | L146: 1 | M146: =IF(INTRO!$E$38="Endémique", IF($H146>0, IF($H146=4,"Inconnu", IF($H146=99,"Interrompu", $D146)), 0),"Non requis") -> Interrompu | N146: =IF(INTRO!$E$40="Endémique", IF($I146>0, IF($I146=4,"Inconnu",IF($I146=99,"Interrompu", $D146)), 0),"Non requis") -> 101536 | O146: =IF(INTRO!$E$42="Endémique", IF(AND($J146>1,$J146<5), IF($J146=4, "Inconnu", E146+F146), 0),"Non requis") -> 42056 | P146: =IF(INTRO!$E$44="Endémique", IF(AND($K146>0,$K146<5), IF($K146=4,"Inconnu", IF($K146=1, $F146*0.33, IF($K146=2, $F146*0.5+$G146*0.2, SUM(F146:G146)))), 0),"Non requis") -> 0 | Q146: 0 | R146: 0 | S146: 0 | T146: 0 | W146: 7557 | X146: OKU | AA146: ='MDA1'!K146 -> 0 | AB146: ='MDA3'!O146 -> 0 | AC146: ='T1'!M146 -> 0 | AD146: ='T2'!K146 -> 0 | AE146: =T3_R1!L146 -> 0 | AF146: =T3_R2!L146 -> 0 | AI146: =_xlfn.XLOOKUP($W146,[1]COUNTRY_INFO!$Y$9:$Y$198,[1]COUNTRY_INFO!H$9:H$198) ->  | AJ146: =_xlfn.XLOOKUP($W146,[1]COUNTRY_INFO!$Y$9:$Y$198,[1]COUNTRY_INFO!I$9:I$198) ->  | AK146: =_xlfn.XLOOKUP($W146,[1]COUNTRY_INFO!$Y$9:$Y$198,[1]COUNTRY_INFO!J$9:J$198) ->  | AL146: =_xlfn.XLOOKUP($W146,[1]COUNTRY_INFO!$Y$9:$Y$198,[1]COUNTRY_INFO!K$9:K$198) ->  | AM146: =_xlfn.XLOOKUP($W146,[1]COUNTRY_INFO!$Y$9:$Y$198,[1]COUNTRY_INFO!L$9:L$198) -> 
A147: =IF(INTRO!$E$34<>0,INTRO!$E$34,"") -> Cameroon | B147: NORTH-WEST | C147: SANTA | D147: 101175 | E147: =IF(INTRO!$E$48="","",ROUND($D147*INTRO!$E$48,0)) -> 13072 | F147: =IF(INTRO!$E$49="","",ROUND($D147*INTRO!$E$49,0)) -> 28835 | G147: =IF(INTRO!$E$50="","",ROUND($D147*INTRO!$E$50,0)) -> 55140 | H147: 99 | I147: 1 | J147: 3 | K147: 1 | L147: 1 | M147: =IF(INTRO!$E$38="Endémique", IF($H147>0, IF($H147=4,"Inconnu", IF($H147=99,"Interrompu", $D147)), 0),"Non requis") -> Interrompu | N147: =IF(INTRO!$E$40="Endémique", IF($I147>0, IF($I147=4,"Inconnu",IF($I147=99,"Interrompu", $D147)), 0),"Non requis") -> 101175 | O147: =IF(INTRO!$E$42="Endémique", IF(AND($J147>1,$J147<5), IF($J147=4, "Inconnu", E147+F147), 0),"Non requis") -> 41907 | P147: =IF(INTRO!$E$44="Endémique", IF(AND($K147>0,$K147<5), IF($K147=4,"Inconnu", IF($K147=1, $F147*0.33, IF($K147=2, $F147*0.5+$G147*0.2, SUM(F147:G147)))), 0),"Non requis") -> 9515.55 | Q147: 0 | R147: 0 | S147: 0 | T147: 0 | W147: 7558 | X147: SANTA | AA147: ='MDA1'!K147 -> 0 | AB147: ='MDA3'!O147 -> 0 | AC147: ='T1'!M147 -> 0 | AD147: ='T2'!K147 -> 0 | AE147: =T3_R1!L147 -> 0 | AF147: =T3_R2!L147 -> 0 | AI147: =_xlfn.XLOOKUP($W147,[1]COUNTRY_INFO!$Y$9:$Y$198,[1]COUNTRY_INFO!H$9:H$198) ->  | AJ147: =_xlfn.XLOOKUP($W147,[1]COUNTRY_INFO!$Y$9:$Y$198,[1]COUNTRY_INFO!I$9:I$198) ->  | AK147: =_xlfn.XLOOKUP($W147,[1]COUNTRY_INFO!$Y$9:$Y$198,[1]COUNTRY_INFO!J$9:J$198) ->  | AL147: =_xlfn.XLOOKUP($W147,[1]COUNTRY_INFO!$Y$9:$Y$198,[1]COUNTRY_INFO!K$9:K$198) ->  | AM147: =_xlfn.XLOOKUP($W147,[1]COUNTRY_INFO!$Y$9:$Y$198,[1]COUNTRY_INFO!L$9:L$198) -> 
A148: =IF(INTRO!$E$34<>0,INTRO!$E$34,"") -> Cameroon | B148: NORTH-WEST | C148: TUBAH | D148: 69999 | E148: =IF(INTRO!$E$48="","",ROUND($D148*INTRO!$E$48,0)) -> 9044 | F148: =IF(INTRO!$E$49="","",ROUND($D148*INTRO!$E$49,0)) -> 19950 | G148: =IF(INTRO!$E$50="","",ROUND($D148*INTRO!$E$50,0)) -> 38149 | H148: 99 | I148: 1 | J148: 1 | K148: 0 | L148: 1 | M148: =IF(INTRO!$E$38="Endémique", IF($H148>0, IF($H148=4,"Inconnu", IF($H148=99,"Interrompu", $D148)), 0),"Non requis") -> Interrompu | N148: =IF(INTRO!$E$40="Endémique", IF($I148>0, IF($I148=4,"Inconnu",IF($I148=99,"Interrompu", $D148)), 0),"Non requis") -> 69999 | O148: =IF(INTRO!$E$42="Endémique", IF(AND($J148>1,$J148<5), IF($J148=4, "Inconnu", E148+F148), 0),"Non requis") -> 0 | P148: =IF(INTRO!$E$44="Endémique", IF(AND($K148>0,$K148<5), IF($K148=4,"Inconnu", IF($K148=1, $F148*0.33, IF($K148=2, $F148*0.5+$G148*0.2, SUM(F148:G148)))), 0),"Non requis") -> 0 | Q148: 0 | R148: 0 | S148: 0 | T148: 0 | W148: 7559 | X148: TUBAH | AA148: ='MDA1'!K148 -> 0 | AB148: ='MDA3'!O148 -> 0 | AC148: ='T1'!M148 -> 0 | AD148: ='T2'!K148 -> 0 | AE148: =T3_R1!L148 -> 0 | AF148: =T3_R2!L148 -> 0 | AI148: =_xlfn.XLOOKUP($W148,[1]COUNTRY_INFO!$Y$9:$Y$198,[1]COUNTRY_INFO!H$9:H$198) ->  | AJ148: =_xlfn.XLOOKUP($W148,[1]COUNTRY_INFO!$Y$9:$Y$198,[1]COUNTRY_INFO!I$9:I$198) ->  | AK148: =_xlfn.XLOOKUP($W148,[1]COUNTRY_INFO!$Y$9:$Y$198,[1]COUNTRY_INFO!J$9:J$198) ->  | AL148: =_xlfn.XLOOKUP($W148,[1]COUNTRY_INFO!$Y$9:$Y$198,[1]COUNTRY_INFO!K$9:K$198) ->  | AM148: =_xlfn.XLOOKUP($W148,[1]COUNTRY_INFO!$Y$9:$Y$198,[1]COUNTRY_INFO!L$9:L$198) -> 
A149: =IF(INTRO!$E$34<>0,INTRO!$E$34,"") -> Cameroon | B149: NORTH-WEST | C149: WUM | D149: 135546 | E149: =IF(INTRO!$E$48="","",ROUND($D149*INTRO!$E$48,0)) -> 17513 | F149: =IF(INTRO!$E$49="","",ROUND($D149*INTRO!$E$49,0)) -> 38631 | G149: =IF(INTRO!$E$50="","",ROUND($D149*INTRO!$E$50,0)) -> 73873 | H149: 99 | I149: 1 | J149: 3 | K149: 1 | L149: 1 | M149: =IF(INTRO!$E$38="Endémique", IF($H149>0, IF($H149=4,"Inconnu", IF($H149=99,"Interrompu", $D149)), 0),"Non requis") -> Interrompu | N149: =IF(INTRO!$E$40="Endémique", IF($I149>0, IF($I149=4,"Inconnu",IF($I149=99,"Interrompu", $D149)), 0),"Non requis") -> 135546 | O149: =IF(INTRO!$E$42="Endémique", IF(AND($J149>1,$J149<5), IF($J149=4, "Inconnu", E149+F149), 0),"Non requis") -> 56144 | P149: =IF(INTRO!$E$44="Endémique", IF(AND($K149>0,$K149<5), IF($K149=4,"Inconnu", IF($K149=1, $F149*0.33, IF($K149=2, $F149*0.5+$G149*0.2, SUM(F149:G149)))), 0),"Non requis") -> 12748.23 | Q149: 0 | R149: 0 | S149: 0 | T149: 0 | W149: 7560 | X149: WUM | AA149: ='MDA1'!K149 -> 0 | AB149: ='MDA3'!O149 -> 0 | AC149: ='T1'!M149 -> 0 | AD149: ='T2'!K149 -> 0 | AE149: =T3_R1!L149 -> 0 | AF149: =T3_R2!L149 -> 0 | AI149: =_xlfn.XLOOKUP($W149,[1]COUNTRY_INFO!$Y$9:$Y$198,[1]COUNTRY_INFO!H$9:H$198) ->  | AJ149: =_xlfn.XLOOKUP($W149,[1]COUNTRY_INFO!$Y$9:$Y$198,[1]COUNTRY_INFO!I$9:I$198) ->  | AK149: =_xlfn.XLOOKUP($W149,[1]COUNTRY_INFO!$Y$9:$Y$198,[1]COUNTRY_INFO!J$9:J$198) ->  | AL149: =_xlfn.XLOOKUP($W149,[1]COUNTRY_INFO!$Y$9:$Y$198,[1]COUNTRY_INFO!K$9:K$198) ->  | AM149: =_xlfn.XLOOKUP($W149,[1]COUNTRY_INFO!$Y$9:$Y$198,[1]COUNTRY_INFO!L$9:L$198) -> 
A150: =IF(INTRO!$E$34<>0,INTRO!$E$34,"") -> Cameroon | B150: WEST | C150: BAFANG | D150: 82912 | E150: =IF(INTRO!$E$48="","",ROUND($D150*INTRO!$E$48,0)) -> 10712 | F150: =IF(INTRO!$E$49="","",ROUND($D150*INTRO!$E$49,0)) -> 23630 | G150: =IF(INTRO!$E$50="","",ROUND($D150*INTRO!$E$50,0)) -> 45187 | H150: 99 | I150: 1 | J150: 1 | K150: 1 | L150: 1 | M150: =IF(INTRO!$E$38="Endémique", IF($H150>0, IF($H150=4,"Inconnu", IF($H150=99,"Interrompu", $D150)), 0),"Non requis") -> Interrompu | N150: 111271 | O150: =IF(INTRO!$E$42="Endémique", IF(AND($J150>1,$J150<5), IF($J150=4, "Inconnu", E150+F150), 0),"Non requis") -> 0 | P150: =IF(INTRO!$E$44="Endémique", IF(AND($K150>0,$K150<5), IF($K150=4,"Inconnu", IF($K150=1, $F150*0.33, IF($K150=2, $F150*0.5+$G150*0.2, SUM(F150:G150)))), 0),"Non requis") -> 7797.9 | Q150: 0 | R150: 1 | S150: 0 | T150: 0 | U150: MDA3 (IVM) | W150: 7561 | X150: BAFANG | AA150: ='MDA1'!K150 -> 0 | AB150: ='MDA3'!O150 -> 32689 | AC150: ='T1'!M150 -> 0 | AD150: ='T2'!K150 -> 0 | AE150: =T3_R1!L150 -> 0 | AF150: =T3_R2!L150 -> 0 | AI150: =_xlfn.XLOOKUP($W150,[1]COUNTRY_INFO!$Y$9:$Y$198,[1]COUNTRY_INFO!H$9:H$198) ->  | AJ150: =_xlfn.XLOOKUP($W150,[1]COUNTRY_INFO!$Y$9:$Y$198,[1]COUNTRY_INFO!I$9:I$198) ->  | AK150: =_xlfn.XLOOKUP($W150,[1]COUNTRY_INFO!$Y$9:$Y$198,[1]COUNTRY_INFO!J$9:J$198) ->  | AL150: =_xlfn.XLOOKUP($W150,[1]COUNTRY_INFO!$Y$9:$Y$198,[1]COUNTRY_INFO!K$9:K$198) ->  | AM150: =_xlfn.XLOOKUP($W150,[1]COUNTRY_INFO!$Y$9:$Y$198,[1]COUNTRY_INFO!L$9:L$198) -> 
A151: =IF(INTRO!$E$34<>0,INTRO!$E$34,"") -> Cameroon | B151: WEST | C151: BAHAM | D151: 39107 | E151: =IF(INTRO!$E$48="","",ROUND($D151*INTRO!$E$48,0)) -> 5053 | F151: =IF(INTRO!$E$49="","",ROUND($D151*INTRO!$E$49,0)) -> 11145 | G151: =IF(INTRO!$E$50="","",ROUND($D151*INTRO!$E$50,0)) -> 21313 | H151: 99 | I151: 1 | J151: 1 | K151: 1 | L151: 1 | M151: =IF(INTRO!$E$38="Endémique", IF($H151>0, IF($H151=4,"Inconnu", IF($H151=99,"Interrompu", $D151)), 0),"Non requis") -> Interrompu | N151: 58861 | O151: =IF(INTRO!$E$42="Endémique", IF(AND($J151>1,$J151<5), IF($J151=4, "Inconnu", E151+F151), 0),"Non requis") -> 0 | P151: =IF(INTRO!$E$44="Endémique", IF(AND($K151>0,$K151<5), IF($K151=4,"Inconnu", IF($K151=1, $F151*0.33, IF($K151=2, $F151*0.5+$G151*0.2, SUM(F151:G151)))), 0),"Non requis") -> 3677.85 | Q151: 0 | R151: 1 | S151: 0 | T151: 0 | U151: MDA3 (IVM) | W151: 7562 | X151: BAHAM | AA151: ='MDA1'!K151 -> 0 | AB151: ='MDA3'!O151 -> 19163 | AC151: ='T1'!M151 -> 0 | AD151: ='T2'!K151 -> 0 | AE151: =T3_R1!L151 -> 0 | AF151: =T3_R2!L151 -> 0 | AI151: =_xlfn.XLOOKUP($W151,[1]COUNTRY_INFO!$Y$9:$Y$198,[1]COUNTRY_INFO!H$9:H$198) ->  | AJ151: =_xlfn.XLOOKUP($W151,[1]COUNTRY_INFO!$Y$9:$Y$198,[1]COUNTRY_INFO!I$9:I$198) ->  | AK151: =_xlfn.XLOOKUP($W151,[1]COUNTRY_INFO!$Y$9:$Y$198,[1]COUNTRY_INFO!J$9:J$198) ->  | AL151: =_xlfn.XLOOKUP($W151,[1]COUNTRY_INFO!$Y$9:$Y$198,[1]COUNTRY_INFO!K$9:K$198) ->  | AM151: =_xlfn.XLOOKUP($W151,[1]COUNTRY_INFO!$Y$9:$Y$198,[1]COUNTRY_INFO!L$9:L$198) -> 
A152: =IF(INTRO!$E$34<>0,INTRO!$E$34,"") -> Cameroon | B152: WEST | C152: BAMENDJOU | D152: 42307 | E152: =IF(INTRO!$E$48="","",ROUND($D152*INTRO!$E$48,0)) -> 5466 | F152: =IF(INTRO!$E$49="","",ROUND($D152*INTRO!$E$49,0)) -> 12057 | G152: =IF(INTRO!$E$50="","",ROUND($D152*INTRO!$E$50,0)) -> 23057 | H152: 99 | I152: 1 | J152: 2 | K152: 0 | L152: 1 | M152: =IF(INTRO!$E$38="Endémique", IF($H152>0, IF($H152=4,"Inconnu", IF($H152=99,"Interrompu", $D152)), 0),"Non requis") -> Interrompu | N152: 53091 | O152: =IF(INTRO!$E$42="Endémique", IF(AND($J152>1,$J152<5), IF($J152=4, "Inconnu", E152+F152), 0),"Non requis") -> 17523 | P152: =IF(INTRO!$E$44="Endémique", IF(AND($K152>0,$K152<5), IF($K152=4,"Inconnu", IF($K152=1, $F152*0.33, IF($K152=2, $F152*0.5+$G152*0.2, SUM(F152:G152)))), 0),"Non requis") -> 0 | Q152: 0 | R152: 1 | S152: 1 | T152: 0 | U152: MDA3 (IVM) | V152: T3 (ALB/MBD) | W152: 7563 | X152: BAMENDJOU | AA152: ='MDA1'!K152 -> 0 | AB152: ='MDA3'!O152 -> 17452 | AC152: ='T1'!M152 -> 0 | AD152: ='T2'!K152 -> 0 | AE152: =T3_R1!L152 -> 15982 | AF152: =T3_R2!L152 -> 0 | AI152: =_xlfn.XLOOKUP($W152,[1]COUNTRY_INFO!$Y$9:$Y$198,[1]COUNTRY_INFO!H$9:H$198) ->  | AJ152: =_xlfn.XLOOKUP($W152,[1]COUNTRY_INFO!$Y$9:$Y$198,[1]COUNTRY_INFO!I$9:I$198) ->  | AK152: =_xlfn.XLOOKUP($W152,[1]COUNTRY_INFO!$Y$9:$Y$198,[1]COUNTRY_INFO!J$9:J$198) ->  | AL152: =_xlfn.XLOOKUP($W152,[1]COUNTRY_INFO!$Y$9:$Y$198,[1]COUNTRY_INFO!K$9:K$198) ->  | AM152: =_xlfn.XLOOKUP($W152,[1]COUNTRY_INFO!$Y$9:$Y$198,[1]COUNTRY_INFO!L$9:L$198) -> 
A153: =IF(INTRO!$E$34<>0,INTRO!$E$34,"") -> Cameroon | B153: WEST | C153: BANDJA | D153: 29597 | E153: =IF(INTRO!$E$48="","",ROUND($D153*INTRO!$E$48,0)) -> 3824 | F153: =IF(INTRO!$E$49="","",ROUND($D153*INTRO!$E$49,0)) -> 8435 | G153: =IF(INTRO!$E$50="","",ROUND($D153*INTRO!$E$50,0)) -> 16130 | H153: 99 | I153: 1 | J153: 1 | K153: 1 | L153: 1 | M153: =IF(INTRO!$E$38="Endémique", IF($H153>0, IF($H153=4,"Inconnu", IF($H153=99,"Interrompu", $D153)), 0),"Non requis") -> Interrompu | N153: 134414 | O153: =IF(INTRO!$E$42="Endémique", IF(AND($J153>1,$J153<5), IF($J153=4, "Inconnu", E153+F153), 0),"Non requis") -> 0 | P153: =IF(INTRO!$E$44="Endémique", IF(AND($K153>0,$K153<5), IF($K153=4,"Inconnu", IF($K153=1, $F153*0.33, IF($K153=2, $F153*0.5+$G153*0.2, SUM(F153:G153)))), 0),"Non requis") -> 2783.55 | Q153: 0 | R153: 1 | S153: 0 | T153: 0 | U153: MDA3 (IVM) | W153: 7564 | X153: BANDJA | AA153: ='MDA1'!K153 -> 0 | AB153: ='MDA3'!O153 -> 9996 | AC153: ='T1'!M153 -> 0 | AD153: ='T2'!K153 -> 0 | AE153: =T3_R1!L153 -> 0 | AF153: =T3_R2!L153 -> 0 | AI153: =_xlfn.XLOOKUP($W153,[1]COUNTRY_INFO!$Y$9:$Y$198,[1]COUNTRY_INFO!H$9:H$198) ->  | AJ153: =_xlfn.XLOOKUP($W153,[1]COUNTRY_INFO!$Y$9:$Y$198,[1]COUNTRY_INFO!I$9:I$198) ->  | AK153: =_xlfn.XLOOKUP($W153,[1]COUNTRY_INFO!$Y$9:$Y$198,[1]COUNTRY_INFO!J$9:J$198) ->  | AL153: =_xlfn.XLOOKUP($W153,[1]COUNTRY_INFO!$Y$9:$Y$198,[1]COUNTRY_INFO!K$9:K$198) ->  | AM153: =_xlfn.XLOOKUP($W153,[1]COUNTRY_INFO!$Y$9:$Y$198,[1]COUNTRY_INFO!L$9:L$198) -> 
A154: =IF(INTRO!$E$34<>0,INTRO!$E$34,"") -> Cameroon | B154: WEST | C154: BANDJOUN | D154: 90154 | E154: =IF(INTRO!$E$48="","",ROUND($D154*INTRO!$E$48,0)) -> 11648 | F154: =IF(INTRO!$E$49="","",ROUND($D154*INTRO!$E$49,0)) -> 25694 | G154: =IF(INTRO!$E$50="","",ROUND($D154*INTRO!$E$50,0)) -> 49134 | H154: 99 | I154: 1 | J154: 1 | K154: 0 | L154: 1 | M154: =IF(INTRO!$E$38="Endémique", IF($H154>0, IF($H154=4,"Inconnu", IF($H154=99,"Interrompu", $D154)), 0),"Non requis") -> Interrompu | N154: 109113 | O154: =IF(INTRO!$E$42="Endémique", IF(AND($J154>1,$J154<5), IF($J154=4, "Inconnu", E154+F154), 0),"Non requis") -> 0 | P154: =IF(INTRO!$E$44="Endémique", IF(AND($K154>0,$K154<5), IF($K154=4,"Inconnu", IF($K154=1, $F154*0.33, IF($K154=2, $F154*0.5+$G154*0.2, SUM(F154:G154)))), 0),"Non requis") -> 0 | Q154: 0 | R154: 1 | S154: 0 | T154: 0 | U154: MDA3 (IVM) | W154: 7565 | X154: BANDJOUN | AA154: ='MDA1'!K154 -> 0 | AB154: ='MDA3'!O154 -> 38627 | AC154: ='T1'!M154 -> 0 | AD154: ='T2'!K154 -> 0 | AE154: =T3_R1!L154 -> 0 | AF154: =T3_R2!L154 -> 0 | AI154: =_xlfn.XLOOKUP($W154,[1]COUNTRY_INFO!$Y$9:$Y$198,[1]COUNTRY_INFO!H$9:H$198) ->  | AJ154: =_xlfn.XLOOKUP($W154,[1]COUNTRY_INFO!$Y$9:$Y$198,[1]COUNTRY_INFO!I$9:I$198) ->  | AK154: =_xlfn.XLOOKUP($W154,[1]COUNTRY_INFO!$Y$9:$Y$198,[1]COUNTRY_INFO!J$9:J$198) ->  | AL154: =_xlfn.XLOOKUP($W154,[1]COUNTRY_INFO!$Y$9:$Y$198,[1]COUNTRY_INFO!K$9:K$198) ->  | AM154: =_xlfn.XLOOKUP($W154,[1]COUNTRY_INFO!$Y$9:$Y$198,[1]COUNTRY_INFO!L$9:L$198) -> 
A155: =IF(INTRO!$E$34<>0,INTRO!$E$34,"") -> Cameroon | B155: WEST | C155: BANGANGTE | D155: 99925 | E155: =IF(INTRO!$E$48="","",ROUND($D155*INTRO!$E$48,0)) -> 12910 | F155: =IF(INTRO!$E$49="","",ROUND($D155*INTRO!$E$49,0)) -> 28479 | G155: =IF(INTRO!$E$50="","",ROUND($D155*INTRO!$E$50,0)) -> 54459 | H155: 99 | I155: 1 | J155: 1 | K155: 1 | L155: 1 | M155: =IF(INTRO!$E$38="Endémique", IF($H155>0, IF($H155=4,"Inconnu", IF($H155=99,"Interrompu", $D155)), 0),"Non requis") -> Interrompu | N155: 44184 | O155: =IF(INTRO!$E$42="Endémique", IF(AND($J155>1,$J155<5), IF($J155=4, "Inconnu", E155+F155), 0),"Non requis") -> 0 | P155: =IF(INTRO!$E$44="Endémique", IF(AND($K155>0,$K155<5), IF($K155=4,"Inconnu", IF($K155=1, $F155*0.33, IF($K155=2, $F155*0.5+$G155*0.2, SUM(F155:G155)))), 0),"Non requis") -> 9398.07 | Q155: 0 | R155: 1 | S155: 0 | T155: 0 | U155: MDA3 (IVM) | W155: 7566 | X155: BANGANGTE | AA155: ='MDA1'!K155 -> 0 | AB155: ='MDA3'!O155 -> 32165 | AC155: ='T1'!M155 -> 0 | AD155: ='T2'!K155 -> 0 | AE155: =T3_R1!L155 -> 0 | AF155: =T3_R2!L155 -> 0 | AI155: =_xlfn.XLOOKUP($W155,[1]COUNTRY_INFO!$Y$9:$Y$198,[1]COUNTRY_INFO!H$9:H$198) ->  | AJ155: =_xlfn.XLOOKUP($W155,[1]COUNTRY_INFO!$Y$9:$Y$198,[1]COUNTRY_INFO!I$9:I$198) ->  | AK155: =_xlfn.XLOOKUP($W155,[1]COUNTRY_INFO!$Y$9:$Y$198,[1]COUNTRY_INFO!J$9:J$198) ->  | AL155: =_xlfn.XLOOKUP($W155,[1]COUNTRY_INFO!$Y$9:$Y$198,[1]COUNTRY_INFO!K$9:K$198) ->  | AM155: =_xlfn.XLOOKUP($W155,[1]COUNTRY_INFO!$Y$9:$Y$198,[1]COUNTRY_INFO!L$9:L$198) -> 
A156: =IF(INTRO!$E$34<>0,INTRO!$E$34,"") -> Cameroon | B156: WEST | C156: BANGOURAIN | D156: 45463 | E156: =IF(INTRO!$E$48="","",ROUND($D156*INTRO!$E$48,0)) -> 5874 | F156: =IF(INTRO!$E$49="","",ROUND($D156*INTRO!$E$49,0)) -> 12957 | G156: =IF(INTRO!$E$50="","",ROUND($D156*INTRO!$E$50,0)) -> 24777 | H156: 99 | I156: 1 | J156: 1 | K156: 1 | L156: 1 | M156: =IF(INTRO!$E$38="Endémique", IF($H156>0, IF($H156=4,"Inconnu", IF($H156=99,"Interrompu", $D156)), 0),"Non requis") -> Interrompu | N156: 38076 | O156: =IF(INTRO!$E$42="Endémique", IF(AND($J156>1,$J156<5), IF($J156=4, "Inconnu", E156+F156), 0),"Non requis") -> 0 | P156: =IF(INTRO!$E$44="Endémique", IF(AND($K156>0,$K156<5), IF($K156=4,"Inconnu", IF($K156=1, $F156*0.33, IF($K156=2, $F156*0.5+$G156*0.2, SUM(F156:G156)))), 0),"Non requis") -> 4275.81 | Q156: 0 | R156: 1 | S156: 0 | T156: 0 | U156: MDA3 (IVM) | W156: 7567 | X156: BANGOURAIN | AA156: ='MDA1'!K156 -> 0 | AB156: ='MDA3'!O156 -> 14908 | AC156: ='T1'!M156 -> 0 | AD156: ='T2'!K156 -> 0 | AE156: =T3_R1!L156 -> 0 | AF156: =T3_R2!L156 -> 0 | AI156: =_xlfn.XLOOKUP($W156,[1]COUNTRY_INFO!$Y$9:$Y$198,[1]COUNTRY_INFO!H$9:H$198) ->  | AJ156: =_xlfn.XLOOKUP($W156,[1]COUNTRY_INFO!$Y$9:$Y$198,[1]COUNTRY_INFO!I$9:I$198) ->  | AK156: =_xlfn.XLOOKUP($W156,[1]COUNTRY_INFO!$Y$9:$Y$198,[1]COUNTRY_INFO!J$9:J$198) ->  | AL156: =_xlfn.XLOOKUP($W156,[1]COUNTRY_INFO!$Y$9:$Y$198,[1]COUNTRY_INFO!K$9:K$198) ->  | AM156: =_xlfn.XLOOKUP($W156,[1]COUNTRY_INFO!$Y$9:$Y$198,[1]COUNTRY_INFO!L$9:L$198) -> 
A157: =IF(INTRO!$E$34<>0,INTRO!$E$34,"") -> Cameroon | B157: WEST | C157: BATCHAM | D157: 86971 | E157: =IF(INTRO!$E$48="","",ROUND($D157*INTRO!$E$48,0)) -> 11237 | F157: =IF(INTRO!$E$49="","",ROUND($D157*INTRO!$E$49,0)) -> 24787 | G157: =IF(INTRO!$E$50="","",ROUND($D157*INTRO!$E$50,0)) -> 47399 | H157: 99 | I157: 1 | J157: 1 | K157: 1 | L157: 1 | M157: =IF(INTRO!$E$38="Endémique", IF($H157>0, IF($H157=4,"Inconnu", IF($H157=99,"Interrompu", $D157)), 0),"Non requis") -> Interrompu | N157: 102041 | O157: =IF(INTRO!$E$42="Endémique", IF(AND($J157>1,$J157<5), IF($J157=4, "Inconnu", E157+F157), 0),"Non requis") -> 0 | P157: =IF(INTRO!$E$44="Endémique", IF(AND($K157>0,$K157<5), IF($K157=4,"Inconnu", IF($K157=1, $F157*0.33, IF($K157=2, $F157*0.5+$G157*0.2, SUM(F157:G157)))), 0),"Non requis") -> 8179.71 | Q157: 0 | R157: 1 | S157: 0 | T157: 0 | U157: MDA3 (IVM) | W157: 7568 | X157: BATCHAM | AA157: ='MDA1'!K157 -> 0 | AB157: ='MDA3'!O157 -> 34848 | AC157: ='T1'!M157 -> 0 | AD157: ='T2'!K157 -> 0 | AE157: =T3_R1!L157 -> 0 | AF157: =T3_R2!L157 -> 0 | AI157: =_xlfn.XLOOKUP($W157,[1]COUNTRY_INFO!$Y$9:$Y$198,[1]COUNTRY_INFO!H$9:H$198) ->  | AJ157: =_xlfn.XLOOKUP($W157,[1]COUNTRY_INFO!$Y$9:$Y$198,[1]COUNTRY_INFO!I$9:I$198) ->  | AK157: =_xlfn.XLOOKUP($W157,[1]COUNTRY_INFO!$Y$9:$Y$198,[1]COUNTRY_INFO!J$9:J$198) ->  | AL157: =_xlfn.XLOOKUP($W157,[1]COUNTRY_INFO!$Y$9:$Y$198,[1]COUNTRY_INFO!K$9:K$198) ->  | AM157: =_xlfn.XLOOKUP($W157,[1]COUNTRY_INFO!$Y$9:$Y$198,[1]COUNTRY_INFO!L$9:L$198) -> 
A158: =IF(INTRO!$E$34<>0,INTRO!$E$34,"") -> Cameroon | B158: WEST | C158: DSCHANG | D158: 232261 | E158: =IF(INTRO!$E$48="","",ROUND($D158*INTRO!$E$48,0)) -> 30008 | F158: =IF(INTRO!$E$49="","",ROUND($D158*INTRO!$E$49,0)) -> 66194 | G158: =IF(INTRO!$E$50="","",ROUND($D158*INTRO!$E$50,0)) -> 126582 | H158: 99 | I158: 1 | J158: 1 | K158: 0 | L158: 1 | M158: =IF(INTRO!$E$38="Endémique", IF($H158>0, IF($H158=4,"Inconnu", IF($H158=99,"Interrompu", $D158)), 0),"Non requis") -> Interrompu | N158: 263468 | O158: =IF(INTRO!$E$42="Endémique", IF(AND($J158>1,$J158<5), IF($J158=4, "Inconnu", E158+F158), 0),"Non requis") -> 0 | P158: =IF(INTRO!$E$44="Endémique", IF(AND($K158>0,$K158<5), IF($K158=4,"Inconnu", IF($K158=1, $F158*0.33, IF($K158=2, $F158*0.5+$G158*0.2, SUM(F158:G158)))), 0),"Non requis") -> 0 | Q158: 0 | R158: 1 | S158: 0 | T158: 0 | U158: MDA3 (IVM) | W158: 7569 | X158: DSCHANG | AA158: ='MDA1'!K158 -> 0 | AB158: ='MDA3'!O158 -> 83541 | AC158: ='T1'!M158 -> 0 | AD158: ='T2'!K158 -> 0 | AE158: =T3_R1!L158 -> 0 | AF158: =T3_R2!L158 -> 0 | AI158: =_xlfn.XLOOKUP($W158,[1]COUNTRY_INFO!$Y$9:$Y$198,[1]COUNTRY_INFO!H$9:H$198) ->  | AJ158: =_xlfn.XLOOKUP($W158,[1]COUNTRY_INFO!$Y$9:$Y$198,[1]COUNTRY_INFO!I$9:I$198) ->  | AK158: =_xlfn.XLOOKUP($W158,[1]COUNTRY_INFO!$Y$9:$Y$198,[1]COUNTRY_INFO!J$9:J$198) ->  | AL158: =_xlfn.XLOOKUP($W158,[1]COUNTRY_INFO!$Y$9:$Y$198,[1]COUNTRY_INFO!K$9:K$198) ->  | AM158: =_xlfn.XLOOKUP($W158,[1]COUNTRY_INFO!$Y$9:$Y$198,[1]COUNTRY_INFO!L$9:L$198) -> 
A159: =IF(INTRO!$E$34<>0,INTRO!$E$34,"") -> Cameroon | B159: WEST | C159: FOUMBAN | D159: 241332 | E159: =IF(INTRO!$E$48="","",ROUND($D159*INTRO!$E$48,0)) -> 31180 | F159: =IF(INTRO!$E$49="","",ROUND($D159*INTRO!$E$49,0)) -> 68780 | G159: =IF(INTRO!$E$50="","",ROUND($D159*INTRO!$E$50,0)) -> 131526 | H159: 0 | I159: 1 | J159: 1 | K159: 2 | L159: 1 | M159: =IF(INTRO!$E$38="Endémique", IF($H159>0, IF($H159=4,"Inconnu", IF($H159=99,"Interrompu", $D159)), 0),"Non requis") -> 0 | N159: 248093 | O159: =IF(INTRO!$E$42="Endémique", IF(AND($J159>1,$J159<5), IF($J159=4, "Inconnu", E159+F159), 0),"Non requis") -> 0 | P159: =IF(INTRO!$E$44="Endémique", IF(AND($K159>0,$K159<5), IF($K159=4,"Inconnu", IF($K159=1, $F159*0.33, IF($K159=2, $F159*0.5+$G159*0.2, SUM(F159:G159)))), 0),"Non requis") -> 60695.2 | Q159: 0 | R159: 1 | S159: 0 | T159: 0 | U159: MDA3 (IVM) | W159: 7570 | X159: FOUMBAN | AA159: ='MDA1'!K159 -> 0 | AB159: ='MDA3'!O159 -> 81476 | AC159: ='T1'!M159 -> 0 | AD159: ='T2'!K159 -> 0 | AE159: =T3_R1!L159 -> 0 | AF159: =T3_R2!L159 -> 0 | AI159: =_xlfn.XLOOKUP($W159,[1]COUNTRY_INFO!$Y$9:$Y$198,[1]COUNTRY_INFO!H$9:H$198) ->  | AJ159: =_xlfn.XLOOKUP($W159,[1]COUNTRY_INFO!$Y$9:$Y$198,[1]COUNTRY_INFO!I$9:I$198) ->  | AK159: =_xlfn.XLOOKUP($W159,[1]COUNTRY_INFO!$Y$9:$Y$198,[1]COUNTRY_INFO!J$9:J$198) ->  | AL159: =_xlfn.XLOOKUP($W159,[1]COUNTRY_INFO!$Y$9:$Y$198,[1]COUNTRY_INFO!K$9:K$198) ->  | AM159: =_xlfn.XLOOKUP($W159,[1]COUNTRY_INFO!$Y$9:$Y$198,[1]COUNTRY_INFO!L$9:L$198) -> 
A160: =IF(INTRO!$E$34<>0,INTRO!$E$34,"") -> Cameroon | B160: WEST | C160: FOUMBOT | D160: 110521 | E160: =IF(INTRO!$E$48="","",ROUND($D160*INTRO!$E$48,0)) -> 14279 | F160: =IF(INTRO!$E$49="","",ROUND($D160*INTRO!$E$49,0)) -> 31498 | G160: =IF(INTRO!$E$50="","",ROUND($D160*INTRO!$E$50,0)) -> 60234 | H160: 0 | I160: 1 | J160: 1 | K160: 2 | L160: 1 | M160: =IF(INTRO!$E$38="Endémique", IF($H160>0, IF($H160=4,"Inconnu", IF($H160=99,"Interrompu", $D160)), 0),"Non requis") -> 0 | N160: 108687 | O160: =IF(INTRO!$E$42="Endémique", IF(AND($J160>1,$J160<5), IF($J160=4, "Inconnu", E160+F160), 0),"Non requis") -> 0 | P160: =IF(INTRO!$E$44="Endémique", IF(AND($K160>0,$K160<5), IF($K160=4,"Inconnu", IF($K160=1, $F160*0.33, IF($K160=2, $F160*0.5+$G160*0.2, SUM(F160:G160)))), 0),"Non requis") -> 27795.8 | Q160: 0 | R160: 1 | S160: 0 | T160: 1 | U160: MDA3 (IVM) | V160: T3 (ALB/MBD) | W160: 7571 | X160: FOUMBOT | AA160: ='MDA1'!K160 -> 0 | AB160: ='MDA3'!O160 -> 34821 | AC160: ='T1'!M160 -> 0 | AD160: ='T2'!K160 -> 25154 | AE160: =T3_R1!L160 -> 26793 | AF160: =T3_R2!L160 -> 0 | AI160: =_xlfn.XLOOKUP($W160,[1]COUNTRY_INFO!$Y$9:$Y$198,[1]COUNTRY_INFO!H$9:H$198) ->  | AJ160: =_xlfn.XLOOKUP($W160,[1]COUNTRY_INFO!$Y$9:$Y$198,[1]COUNTRY_INFO!I$9:I$198) ->  | AK160: =_xlfn.XLOOKUP($W160,[1]COUNTRY_INFO!$Y$9:$Y$198,[1]COUNTRY_INFO!J$9:J$198) ->  | AL160: =_xlfn.XLOOKUP($W160,[1]COUNTRY_INFO!$Y$9:$Y$198,[1]COUNTRY_INFO!K$9:K$198) ->  | AM160: =_xlfn.XLOOKUP($W160,[1]COUNTRY_INFO!$Y$9:$Y$198,[1]COUNTRY_INFO!L$9:L$198) -> 
A161: =IF(INTRO!$E$34<>0,INTRO!$E$34,"") -> Cameroon | B161: WEST | C161: GALIM | D161: 49673 | E161: =IF(INTRO!$E$48="","",ROUND($D161*INTRO!$E$48,0)) -> 6418 | F161: =IF(INTRO!$E$49="","",ROUND($D161*INTRO!$E$49,0)) -> 14157 | G161: =IF(INTRO!$E$50="","",ROUND($D161*INTRO!$E$50,0)) -> 27072 | H161: 99 | I161: 1 | J161: 1 | K161: 1 | L161: 1 | M161: =IF(INTRO!$E$38="Endémique", IF($H161>0, IF($H161=4,"Inconnu", IF($H161=99,"Interrompu", $D161)), 0),"Non requis") -> Interrompu | N161: 67620 | O161: =IF(INTRO!$E$42="Endémique", IF(AND($J161>1,$J161<5), IF($J161=4, "Inconnu", E161+F161), 0),"Non requis") -> 0 | P161: =IF(INTRO!$E$44="Endémique", IF(AND($K161>0,$K161<5), IF($K161=4,"Inconnu", IF($K161=1, $F161*0.33, IF($K161=2, $F161*0.5+$G161*0.2, SUM(F161:G161)))), 0),"Non requis") -> 4671.81 | Q161: 0 | R161: 1 | S161: 1 | T161: 1 | U161: MDA3 (IVM) | V161: T3 (ALB/MBD) | W161: 7572 | X161: GALIM | AA161: ='MDA1'!K161 -> 0 | AB161: ='MDA3'!O161 -> 15983 | AC161: ='T1'!M161 -> 0 | AD161: ='T2'!K161 -> 22875 | AE161: =T3_R1!L161 -> 18923 | AF161: =T3_R2!L161 -> 0 | AI161: =_xlfn.XLOOKUP($W161,[1]COUNTRY_INFO!$Y$9:$Y$198,[1]COUNTRY_INFO!H$9:H$198) ->  | AJ161: =_xlfn.XLOOKUP($W161,[1]COUNTRY_INFO!$Y$9:$Y$198,[1]COUNTRY_INFO!I$9:I$198) ->  | AK161: =_xlfn.XLOOKUP($W161,[1]COUNTRY_INFO!$Y$9:$Y$198,[1]COUNTRY_INFO!J$9:J$198) ->  | AL161: =_xlfn.XLOOKUP($W161,[1]COUNTRY_INFO!$Y$9:$Y$198,[1]COUNTRY_INFO!K$9:K$198) ->  | AM161: =_xlfn.XLOOKUP($W161,[1]COUNTRY_INFO!$Y$9:$Y$198,[1]COUNTRY_INFO!L$9:L$198) -> 
A162: =IF(INTRO!$E$34<>0,INTRO!$E$34,"") -> Cameroon | B162: WEST | C162: KEKEM | D162: 42717 | E162: =IF(INTRO!$E$48="","",ROUND($D162*INTRO!$E$48,0)) -> 5519 | F162: =IF(INTRO!$E$49="","",ROUND($D162*INTRO!$E$49,0)) -> 12174 | G162: =IF(INTRO!$E$50="","",ROUND($D162*INTRO!$E$50,0)) -> 23281 | H162: 99 | I162: 1 | J162: 2 | K162: 1 | L162: 1 | M162: =IF(INTRO!$E$38="Endémique", IF($H162>0, IF($H162=4,"Inconnu", IF($H162=99,"Interrompu", $D162)), 0),"Non requis") -> Interrompu | N162: 44278 | O162: =IF(INTRO!$E$42="Endémique", IF(AND($J162>1,$J162<5), IF($J162=4, "Inconnu", E162+F162), 0),"Non requis") -> 17693 | P162: =IF(INTRO!$E$44="Endémique", IF(AND($K162>0,$K162<5), IF($K162=4,"Inconnu", IF($K162=1, $F162*0.33, IF($K162=2, $F162*0.5+$G162*0.2, SUM(F162:G162)))), 0),"Non requis") -> 4017.42 | Q162: 0 | R162: 1 | S162: 1 | T162: 1 | U162: MDA3 (IVM) | V162: T3 (ALB/MBD) | W162: 7573 | X162: KEKEM | AA162: ='MDA1'!K162 -> 0 | AB162: ='MDA3'!O162 -> 12479 | AC162: ='T1'!M162 -> 0 | AD162: ='T2'!K162 -> 12069 | AE162: =T3_R1!L162 -> 12511 | AF162: =T3_R2!L162 -> 0 | AI162: =_xlfn.XLOOKUP($W162,[1]COUNTRY_INFO!$Y$9:$Y$198,[1]COUNTRY_INFO!H$9:H$198) ->  | AJ162: =_xlfn.XLOOKUP($W162,[1]COUNTRY_INFO!$Y$9:$Y$198,[1]COUNTRY_INFO!I$9:I$198) ->  | AK162: =_xlfn.XLOOKUP($W162,[1]COUNTRY_INFO!$Y$9:$Y$198,[1]COUNTRY_INFO!J$9:J$198) ->  | AL162: =_xlfn.XLOOKUP($W162,[1]COUNTRY_INFO!$Y$9:$Y$198,[1]COUNTRY_INFO!K$9:K$198) ->  | AM162: =_xlfn.XLOOKUP($W162,[1]COUNTRY_INFO!$Y$9:$Y$198,[1]COUNTRY_INFO!L$9:L$198) -> 
A163: =IF(INTRO!$E$34<>0,INTRO!$E$34,"") -> Cameroon | B163: WEST | C163: KOUOPTAMO | D163: 57949 | E163: =IF(INTRO!$E$48="","",ROUND($D163*INTRO!$E$48,0)) -> 7487 | F163: =IF(INTRO!$E$49="","",ROUND($D163*INTRO!$E$49,0)) -> 16515 | G163: =IF(INTRO!$E$50="","",ROUND($D163*INTRO!$E$50,0)) -> 31582 | H163: 0 | I163: 1 | J163: 1 | K163: 2 | L163: 1 | M163: =IF(INTRO!$E$38="Endémique", IF($H163>0, IF($H163=4,"Inconnu", IF($H163=99,"Interrompu", $D163)), 0),"Non requis") -> 0 | N163: 65152 | O163: =IF(INTRO!$E$42="Endémique", IF(AND($J163>1,$J163<5), IF($J163=4, "Inconnu", E163+F163), 0),"Non requis") -> 0 | P163: =IF(INTRO!$E$44="Endémique", IF(AND($K163>0,$K163<5), IF($K163=4,"Inconnu", IF($K163=1, $F163*0.33, IF($K163=2, $F163*0.5+$G163*0.2, SUM(F163:G163)))), 0),"Non requis") -> 14573.9 | Q163: 0 | R163: 1 | S163: 1 | T163: 1 | U163: MDA3 (IVM) | V163: T3 (ALB/MBD) | W163: 7574 | X163: KOUOPTAMO | AA163: ='MDA1'!K163 -> 0 | AB163: ='MDA3'!O163 -> 17684 | AC163: ='T1'!M163 -> 0 | AD163: ='T2'!K163 -> 18805 | AE163: =T3_R1!L163 -> 19932 | AF163: =T3_R2!L163 -> 0 | AI163: =_xlfn.XLOOKUP($W163,[1]COUNTRY_INFO!$Y$9:$Y$198,[1]COUNTRY_INFO!H$9:H$198) ->  | AJ163: =_xlfn.XLOOKUP($W163,[1]COUNTRY_INFO!$Y$9:$Y$198,[1]COUNTRY_INFO!I$9:I$198) ->  | AK163: =_xlfn.XLOOKUP($W163,[1]COUNTRY_INFO!$Y$9:$Y$198,[1]COUNTRY_INFO!J$9:J$198) ->  | AL163: =_xlfn.XLOOKUP($W163,[1]COUNTRY_INFO!$Y$9:$Y$198,[1]COUNTRY_INFO!K$9:K$198) ->  | AM163: =_xlfn.XLOOKUP($W163,[1]COUNTRY_INFO!$Y$9:$Y$198,[1]COUNTRY_INFO!L$9:L$198) -> 
A164: =IF(INTRO!$E$34<>0,INTRO!$E$34,"") -> Cameroon | B164: WEST | C164: MALENTOUEN | D164: 130063 | E164: =IF(INTRO!$E$48="","",ROUND($D164*INTRO!$E$48,0)) -> 16804 | F164: =IF(INTRO!$E$49="","",ROUND($D164*INTRO!$E$49,0)) -> 37068 | G164: =IF(INTRO!$E$50="","",ROUND($D164*INTRO!$E$50,0)) -> 70884 | H164: 99 | I164: 1 | J164: 1 | K164: 3 | L164: 1 | M164: =IF(INTRO!$E$38="Endémique", IF($H164>0, IF($H164=4,"Inconnu", IF($H164=99,"Interrompu", $D164)), 0),"Non requis") -> Interrompu | N164: 173660 | O164: =IF(INTRO!$E$42="Endémique", IF(AND($J164>1,$J164<5), IF($J164=4, "Inconnu", E164+F164), 0),"Non requis") -> 0 | P164: =IF(INTRO!$E$44="Endémique", IF(AND($K164>0,$K164<5), IF($K164=4,"Inconnu", IF($K164=1, $F164*0.33, IF($K164=2, $F164*0.5+$G164*0.2, SUM(F164:G164)))), 0),"Non requis") -> 107952 | Q164: 0 | R164: 1 | S164: 1 | T164: 1 | U164: MDA3 (IVM) | V164: T3 (ALB/MBD) | W164: 7575 | X164: MALENTOUEN | AA164: ='MDA1'!K164 -> 0 | AB164: ='MDA3'!O164 -> 53652 | AC164: ='T1'!M164 -> 0 | AD164: ='T2'!K164 -> 42448 | AE164: =T3_R1!L164 -> 35906 | AF164: =T3_R2!L164 -> 0 | AI164: =_xlfn.XLOOKUP($W164,[1]COUNTRY_INFO!$Y$9:$Y$198,[1]COUNTRY_INFO!H$9:H$198) ->  | AJ164: =_xlfn.XLOOKUP($W164,[1]COUNTRY_INFO!$Y$9:$Y$198,[1]COUNTRY_INFO!I$9:I$198) ->  | AK164: =_xlfn.XLOOKUP($W164,[1]COUNTRY_INFO!$Y$9:$Y$198,[1]COUNTRY_INFO!J$9:J$198) ->  | AL164: =_xlfn.XLOOKUP($W164,[1]COUNTRY_INFO!$Y$9:$Y$198,[1]COUNTRY_INFO!K$9:K$198) ->  | AM164: =_xlfn.XLOOKUP($W164,[1]COUNTRY_INFO!$Y$9:$Y$198,[1]COUNTRY_INFO!L$9:L$198) -> 
A165: =IF(INTRO!$E$34<>0,INTRO!$E$34,"") -> Cameroon | B165: WEST | C165: MASSANGAM | D165: 48227 | E165: =IF(INTRO!$E$48="","",ROUND($D165*INTRO!$E$48,0)) -> 6231 | F165: =IF(INTRO!$E$49="","",ROUND($D165*INTRO!$E$49,0)) -> 13745 | G165: =IF(INTRO!$E$50="","",ROUND($D165*INTRO!$E$50,0)) -> 26284 | H165: 99 | I165: 1 | J165: 1 | K165: 1 | L165: 1 | M165: =IF(INTRO!$E$38="Endémique", IF($H165>0, IF($H165=4,"Inconnu", IF($H165=99,"Interrompu", $D165)), 0),"Non requis") -> Interrompu | N165: 53302 | O165: =IF(INTRO!$E$42="Endémique", IF(AND($J165>1,$J165<5), IF($J165=4, "Inconnu", E165+F165), 0),"Non requis") -> 0 | P165: =IF(INTRO!$E$44="Endémique", IF(AND($K165>0,$K165<5), IF($K165=4,"Inconnu", IF($K165=1, $F165*0.33, IF($K165=2, $F165*0.5+$G165*0.2, SUM(F165:G165)))), 0),"Non requis") -> 4535.85 | Q165: 0 | R165: 1 | S165: 0 | T165: 0 | U165: MDA3 (IVM) | W165: 7576 | X165: MASSANGAM | AA165: ='MDA1'!K165 -> 0 | AB165: ='MDA3'!O165 -> 18766 | AC165: ='T1'!M165 -> 0 | AD165: ='T2'!K165 -> 0 | AE165: =T3_R1!L165 -> 0 | AF165: =T3_R2!L165 -> 0 | AI165: =_xlfn.XLOOKUP($W165,[1]COUNTRY_INFO!$Y$9:$Y$198,[1]COUNTRY_INFO!H$9:H$198) ->  | AJ165: =_xlfn.XLOOKUP($W165,[1]COUNTRY_INFO!$Y$9:$Y$198,[1]COUNTRY_INFO!I$9:I$198) ->  | AK165: =_xlfn.XLOOKUP($W165,[1]COUNTRY_INFO!$Y$9:$Y$198,[1]COUNTRY_INFO!J$9:J$198) ->  | AL165: =_xlfn.XLOOKUP($W165,[1]COUNTRY_INFO!$Y$9:$Y$198,[1]COUNTRY_INFO!K$9:K$198) ->  | AM165: =_xlfn.XLOOKUP($W165,[1]COUNTRY_INFO!$Y$9:$Y$198,[1]COUNTRY_INFO!L$9:L$198) -> 
A166: =IF(INTRO!$E$34<>0,INTRO!$E$34,"") -> Cameroon | B166: WEST | C166: MBOUDA | D166: 196192 | E166: =IF(INTRO!$E$48="","",ROUND($D166*INTRO!$E$48,0)) -> 25348 | F166: =IF(INTRO!$E$49="","",ROUND($D166*INTRO!$E$49,0)) -> 55915 | G166: =IF(INTRO!$E$50="","",ROUND($D166*INTRO!$E$50,0)) -> 106925 | H166: 99 | I166: 1 | J166: 1 | K166: 1 | L166: 1 | M166: =IF(INTRO!$E$38="Endémique", IF($H166>0, IF($H166=4,"Inconnu", IF($H166=99,"Interrompu", $D166)), 0),"Non requis") -> Interrompu | N166: 210004 | O166: =IF(INTRO!$E$42="Endémique", IF(AND($J166>1,$J166<5), IF($J166=4, "Inconnu", E166+F166), 0),"Non requis") -> 0 | P166: =IF(INTRO!$E$44="Endémique", IF(AND($K166>0,$K166<5), IF($K166=4,"Inconnu", IF($K166=1, $F166*0.33, IF($K166=2, $F166*0.5+$G166*0.2, SUM(F166:G166)))), 0),"Non requis") -> 18451.95 | Q166: 0 | R166: 1 | S166: 0 | T166: 0 | U166: MDA3 (IVM) | W166: 7577 | X166: MBOUDA | AA166: ='MDA1'!K166 -> 0 | AB166: ='MDA3'!O166 -> 69820 | AC166: ='T1'!M166 -> 0 | AD166: ='T2'!K166 -> 0 | AE166: =T3_R1!L166 -> 0 | AF166: =T3_R2!L166 -> 0 | AI166: =_xlfn.XLOOKUP($W166,[1]COUNTRY_INFO!$Y$9:$Y$198,[1]COUNTRY_INFO!H$9:H$198) ->  | AJ166: =_xlfn.XLOOKUP($W166,[1]COUNTRY_INFO!$Y$9:$Y$198,[1]COUNTRY_INFO!I$9:I$198) ->  | AK166: =_xlfn.XLOOKUP($W166,[1]COUNTRY_INFO!$Y$9:$Y$198,[1]COUNTRY_INFO!J$9:J$198) ->  | AL166: =_xlfn.XLOOKUP($W166,[1]COUNTRY_INFO!$Y$9:$Y$198,[1]COUNTRY_INFO!K$9:K$198) ->  | AM166: =_xlfn.XLOOKUP($W166,[1]COUNTRY_INFO!$Y$9:$Y$198,[1]COUNTRY_INFO!L$9:L$198) -> 
A167: =IF(INTRO!$E$34<>0,INTRO!$E$34,"") -> Cameroon | B167: WEST | C167: MIFI | D167: 375117 | E167: =IF(INTRO!$E$48="","",ROUND($D167*INTRO!$E$48,0)) -> 48465 | F167: =IF(INTRO!$E$49="","",ROUND($D167*INTRO!$E$49,0)) -> 106908 | G167: =IF(INTRO!$E$50="","",ROUND($D167*INTRO!$E$50,0)) -> 204439 | H167: 99 | I167: 1 | J167: 1 | K167: 1 | L167: 1 | M167: =IF(INTRO!$E$38="Endémique", IF($H167>0, IF($H167=4,"Inconnu", IF($H167=99,"Interrompu", $D167)), 0),"Non requis") -> Interrompu | N167: 371396 | O167: =IF(INTRO!$E$42="Endémique", IF(AND($J167>1,$J167<5), IF($J167=4, "Inconnu", E167+F167), 0),"Non requis") -> 0 | P167: =IF(INTRO!$E$44="Endémique", IF(AND($K167>0,$K167<5), IF($K167=4,"Inconnu", IF($K167=1, $F167*0.33, IF($K167=2, $F167*0.5+$G167*0.2, SUM(F167:G167)))), 0),"Non requis") -> 35279.64 | Q167: 0 | R167: 1 | S167: 0 | T167: 0 | U167: MDA3 (IVM) | W167: 7578 | X167: MIFI | AA167: ='MDA1'!K167 -> 0 | AB167: ='MDA3'!O167 -> 121363 | AC167: ='T1'!M167 -> 0 | AD167: ='T2'!K167 -> 0 | AE167: =T3_R1!L167 -> 0 | AF167: =T3_R2!L167 -> 0 | AI167: =_xlfn.XLOOKUP($W167,[1]COUNTRY_INFO!$Y$9:$Y$198,[1]COUNTRY_INFO!H$9:H$198) ->  | AJ167: =_xlfn.XLOOKUP($W167,[1]COUNTRY_INFO!$Y$9:$Y$198,[1]COUNTRY_INFO!I$9:I$198) ->  | AK167: =_xlfn.XLOOKUP($W167,[1]COUNTRY_INFO!$Y$9:$Y$198,[1]COUNTRY_INFO!J$9:J$198) ->  | AL167: =_xlfn.XLOOKUP($W167,[1]COUNTRY_INFO!$Y$9:$Y$198,[1]COUNTRY_INFO!K$9:K$198) ->  | AM167: =_xlfn.XLOOKUP($W167,[1]COUNTRY_INFO!$Y$9:$Y$198,[1]COUNTRY_INFO!L$9:L$198) -> 
A168: =IF(INTRO!$E$34<>0,INTRO!$E$34,"") -> Cameroon | B168: WEST | C168: PENKA MICHEL | D168: 81788 | E168: =IF(INTRO!$E$48="","",ROUND($D168*INTRO!$E$48,0)) -> 10567 | F168: =IF(INTRO!$E$49="","",ROUND($D168*INTRO!$E$49,0)) -> 23310 | G168: =IF(INTRO!$E$50="","",ROUND($D168*INTRO!$E$50,0)) -> 44574 | H168: 99 | I168: 1 | J168: 2 | K168: 1 | L168: 1 | M168: =IF(INTRO!$E$38="Endémique", IF($H168>0, IF($H168=4,"Inconnu", IF($H168=99,"Interrompu", $D168)), 0),"Non requis") -> Interrompu | N168: 99601 | O168: =IF(INTRO!$E$42="Endémique", IF(AND($J168>1,$J168<5), IF($J168=4, "Inconnu", E168+F168), 0),"Non requis") -> 33877 | P168: =IF(INTRO!$E$44="Endémique", IF(AND($K168>0,$K168<5), IF($K168=4,"Inconnu", IF($K168=1, $F168*0.33, IF($K168=2, $F168*0.5+$G168*0.2, SUM(F168:G168)))), 0),"Non requis") -> 7692.3 | Q168: 0 | R168: 1 | S168: 1 | T168: 0 | U168: MDA3 (IVM) | V168: T3 (ALB/MBD) | W168: 7579 | X168: PENKA MICHEL | AA168: ='MDA1'!K168 -> 0 | AB168: ='MDA3'!O168 -> 34469 | AC168: ='T1'!M168 -> 0 | AD168: ='T2'!K168 -> 0 | AE168: =T3_R1!L168 -> 30600 | AF168: =T3_R2!L168 -> 0 | AI168: =_xlfn.XLOOKUP($W168,[1]COUNTRY_INFO!$Y$9:$Y$198,[1]COUNTRY_INFO!H$9:H$198) ->  | AJ168: =_xlfn.XLOOKUP($W168,[1]COUNTRY_INFO!$Y$9:$Y$198,[1]COUNTRY_INFO!I$9:I$198) ->  | AK168: =_xlfn.XLOOKUP($W168,[1]COUNTRY_INFO!$Y$9:$Y$198,[1]COUNTRY_INFO!J$9:J$198) ->  | AL168: =_xlfn.XLOOKUP($W168,[1]COUNTRY_INFO!$Y$9:$Y$198,[1]COUNTRY_INFO!K$9:K$198) ->  | AM168: =_xlfn.XLOOKUP($W168,[1]COUNTRY_INFO!$Y$9:$Y$198,[1]COUNTRY_INFO!L$9:L$198) -> 
A169: =IF(INTRO!$E$34<>0,INTRO!$E$34,"") -> Cameroon | B169: WEST | C169: SANTCHOU | D169: 31091 | E169: =IF(INTRO!$E$48="","",ROUND($D169*INTRO!$E$48,0)) -> 4017 | F169: =IF(INTRO!$E$49="","",ROUND($D169*INTRO!$E$49,0)) -> 8861 | G169: =IF(INTRO!$E$50="","",ROUND($D169*INTRO!$E$50,0)) -> 16945 | H169: 0 | I169: 1 | J169: 1 | K169: 0 | L169: 1 | M169: =IF(INTRO!$E$38="Endémique", IF($H169>0, IF($H169=4,"Inconnu", IF($H169=99,"Interrompu", $D169)), 0),"Non requis") -> 0 | N169: 33020 | O169: =IF(INTRO!$E$42="Endémique", IF(AND($J169>1,$J169<5), IF($J169=4, "Inconnu", E169+F169), 0),"Non requis") -> 0 | P169: =IF(INTRO!$E$44="Endémique", IF(AND($K169>0,$K169<5), IF($K169=4,"Inconnu", IF($K169=1, $F169*0.33, IF($K169=2, $F169*0.5+$G169*0.2, SUM(F169:G169)))), 0),"Non requis") -> 0 | Q169: 0 | R169: 1 | S169: 0 | T169: 0 | U169: MDA3 (IVM) | W169: 7580 | X169: SANTCHOU | AA169: ='MDA1'!K169 -> 0 | AB169: ='MDA3'!O169 -> 10246 | AC169: ='T1'!M169 -> 0 | AD169: ='T2'!K169 -> 0 | AE169: =T3_R1!L169 -> 0 | AF169: =T3_R2!L169 -> 0 | AI169: =_xlfn.XLOOKUP($W169,[1]COUNTRY_INFO!$Y$9:$Y$198,[1]COUNTRY_INFO!H$9:H$198) ->  | AJ169: =_xlfn.XLOOKUP($W169,[1]COUNTRY_INFO!$Y$9:$Y$198,[1]COUNTRY_INFO!I$9:I$198) ->  | AK169: =_xlfn.XLOOKUP($W169,[1]COUNTRY_INFO!$Y$9:$Y$198,[1]COUNTRY_INFO!J$9:J$198) ->  | AL169: =_xlfn.XLOOKUP($W169,[1]COUNTRY_INFO!$Y$9:$Y$198,[1]COUNTRY_INFO!K$9:K$198) ->  | AM169: =_xlfn.XLOOKUP($W169,[1]COUNTRY_INFO!$Y$9:$Y$198,[1]COUNTRY_INFO!L$9:L$198) -> 
A170: =IF(INTRO!$E$34<>0,INTRO!$E$34,"") -> Cameroon | B170: SOUTH | C170: AMBAM | D170: 96257 | E170: =IF(INTRO!$E$48="","",ROUND($D170*INTRO!$E$48,0)) -> 12436 | F170: =IF(INTRO!$E$49="","",ROUND($D170*INTRO!$E$49,0)) -> 27433 | G170: =IF(INTRO!$E$50="","",ROUND($D170*INTRO!$E$50,0)) -> 52460 | H170: 99 | I170: 1 | J170: 3 | K170: 0 | L170: 1 | M170: =IF(INTRO!$E$38="Endémique", IF($H170>0, IF($H170=4,"Inconnu", IF($H170=99,"Interrompu", $D170)), 0),"Non requis") -> Interrompu | N170: 87509 | O170: =IF(INTRO!$E$42="Endémique", IF(AND($J170>1,$J170<5), IF($J170=4, "Inconnu", E170+F170), 0),"Non requis") -> 39869 | P170: =IF(INTRO!$E$44="Endémique", IF(AND($K170>0,$K170<5), IF($K170=4,"Inconnu", IF($K170=1, $F170*0.33, IF($K170=2, $F170*0.5+$G170*0.2, SUM(F170:G170)))), 0),"Non requis") -> 0 | Q170: 0 | R170: 1 | S170: 1 | T170: 0 | U170: MDA3 (IVM) | V170: T3 (ALB/MBD) | W170: 7581 | X170: AMBAM | AA170: ='MDA1'!K170 -> 0 | AB170: ='MDA3'!O170 -> 30036 | AC170: ='T1'!M170 -> 0 | AD170: ='T2'!K170 -> 0 | AE170: =T3_R1!L170 -> 31727 | AF170: =T3_R2!L170 -> 0 | AI170: =_xlfn.XLOOKUP($W170,[1]COUNTRY_INFO!$Y$9:$Y$198,[1]COUNTRY_INFO!H$9:H$198) ->  | AJ170: =_xlfn.XLOOKUP($W170,[1]COUNTRY_INFO!$Y$9:$Y$198,[1]COUNTRY_INFO!I$9:I$198) ->  | AK170: =_xlfn.XLOOKUP($W170,[1]COUNTRY_INFO!$Y$9:$Y$198,[1]COUNTRY_INFO!J$9:J$198) ->  | AL170: =_xlfn.XLOOKUP($W170,[1]COUNTRY_INFO!$Y$9:$Y$198,[1]COUNTRY_INFO!K$9:K$198) ->  | AM170: =_xlfn.XLOOKUP($W170,[1]COUNTRY_INFO!$Y$9:$Y$198,[1]COUNTRY_INFO!L$9:L$198) -> 
A171: =IF(INTRO!$E$34<>0,INTRO!$E$34,"") -> Cameroon | B171: SOUTH | C171: DJOUM | D171: 43919 | E171: =IF(INTRO!$E$48="","",ROUND($D171*INTRO!$E$48,0)) -> 5674 | F171: =IF(INTRO!$E$49="","",ROUND($D171*INTRO!$E$49,0)) -> 12517 | G171: =IF(INTRO!$E$50="","",ROUND($D171*INTRO!$E$50,0)) -> 23936 | H171: 99 | I171: 1 | J171: 3 | K171: 0 | L171: 1 | M171: =IF(INTRO!$E$38="Endémique", IF($H171>0, IF($H171=4,"Inconnu", IF($H171=99,"Interrompu", $D171)), 0),"Non requis") -> Interrompu | N171: 39326 | O171: =IF(INTRO!$E$42="Endémique", IF(AND($J171>1,$J171<5), IF($J171=4, "Inconnu", E171+F171), 0),"Non requis") -> 18191 | P171: =IF(INTRO!$E$44="Endémique", IF(AND($K171>0,$K171<5), IF($K171=4,"Inconnu", IF($K171=1, $F171*0.33, IF($K171=2, $F171*0.5+$G171*0.2, SUM(F171:G171)))), 0),"Non requis") -> 0 | Q171: 0 | R171: 1 | S171: 1 | T171: 0 | U171: MDA3 (IVM) | V171: T3 (ALB/MBD) | W171: 7582 | X171: DJOUM | AA171: ='MDA1'!K171 -> 0 | AB171: ='MDA3'!O171 -> 11046 | AC171: ='T1'!M171 -> 0 | AD171: ='T2'!K171 -> 0 | AE171: =T3_R1!L171 -> 9749 | AF171: =T3_R2!L171 -> 0 | AI171: =_xlfn.XLOOKUP($W171,[1]COUNTRY_INFO!$Y$9:$Y$198,[1]COUNTRY_INFO!H$9:H$198) ->  | AJ171: =_xlfn.XLOOKUP($W171,[1]COUNTRY_INFO!$Y$9:$Y$198,[1]COUNTRY_INFO!I$9:I$198) ->  | AK171: =_xlfn.XLOOKUP($W171,[1]COUNTRY_INFO!$Y$9:$Y$198,[1]COUNTRY_INFO!J$9:J$198) ->  | AL171: =_xlfn.XLOOKUP($W171,[1]COUNTRY_INFO!$Y$9:$Y$198,[1]COUNTRY_INFO!K$9:K$198) ->  | AM171: =_xlfn.XLOOKUP($W171,[1]COUNTRY_INFO!$Y$9:$Y$198,[1]COUNTRY_INFO!L$9:L$198) -> 
A172: =IF(INTRO!$E$34<>0,INTRO!$E$34,"") -> Cameroon | B172: SOUTH | C172: EBOLOWA | D172: 216455 | E172: =IF(INTRO!$E$48="","",ROUND($D172*INTRO!$E$48,0)) -> 27966 | F172: =IF(INTRO!$E$49="","",ROUND($D172*INTRO!$E$49,0)) -> 61690 | G172: =IF(INTRO!$E$50="","",ROUND($D172*INTRO!$E$50,0)) -> 117968 | H172: 0 | I172: 4 | J172: 2 | K172: 1 | L172: 1 | M172: =IF(INTRO!$E$38="Endémique", IF($H172>0, IF($H172=4,"Inconnu", IF($H172=99,"Interrompu", $D172)), 0),"Non requis") -> 0 | N172: =IF(INTRO!$E$40="Endémique", IF($I172>0, IF($I172=4,"Inconnu",IF($I172=99,"Interrompu", $D172)), 0),"Non requis") -> Inconnu | O172: =IF(INTRO!$E$42="Endémique", IF(AND($J172>1,$J172<5), IF($J172=4, "Inconnu", E172+F172), 0),"Non requis") -> 89656 | P172: =IF(INTRO!$E$44="Endémique", IF(AND($K172>0,$K172<5), IF($K172=4,"Inconnu", IF($K172=1, $F172*0.33, IF($K172=2, $F172*0.5+$G172*0.2, SUM(F172:G172)))), 0),"Non requis") -> 20357.7 | Q172: 0 | R172: 0 | S172: 1 | T172: 0 | V172: T3 (ALB/MBD) | W172: 7583 | X172: EBOLOWA | AA172: ='MDA1'!K172 -> 0 | AB172: ='MDA3'!O172 -> 0 | AC172: ='T1'!M172 -> 0 | AD172: ='T2'!K172 -> 0 | AE172: =T3_R1!L172 -> 52910 | AF172: =T3_R2!L172 -> 0 | AI172: =_xlfn.XLOOKUP($W172,[1]COUNTRY_INFO!$Y$9:$Y$198,[1]COUNTRY_INFO!H$9:H$198) ->  | AJ172: =_xlfn.XLOOKUP($W172,[1]COUNTRY_INFO!$Y$9:$Y$198,[1]COUNTRY_INFO!I$9:I$198) ->  | AK172: =_xlfn.XLOOKUP($W172,[1]COUNTRY_INFO!$Y$9:$Y$198,[1]COUNTRY_INFO!J$9:J$198) ->  | AL172: =_xlfn.XLOOKUP($W172,[1]COUNTRY_INFO!$Y$9:$Y$198,[1]COUNTRY_INFO!K$9:K$198) ->  | AM172: =_xlfn.XLOOKUP($W172,[1]COUNTRY_INFO!$Y$9:$Y$198,[1]COUNTRY_INFO!L$9:L$198) -> 
A173: =IF(INTRO!$E$34<>0,INTRO!$E$34,"") -> Cameroon | B173: SOUTH | C173: KRIBI | D173: 154371 | E173: =IF(INTRO!$E$48="","",ROUND($D173*INTRO!$E$48,0)) -> 19945 | F173: =IF(INTRO!$E$49="","",ROUND($D173*INTRO!$E$49,0)) -> 43996 | G173: =IF(INTRO!$E$50="","",ROUND($D173*INTRO!$E$50,0)) -> 84132 | H173: 0 | I173: 4 | J173: 2 | K173: 0 | L173: 1 | M173: =IF(INTRO!$E$38="Endémique", IF($H173>0, IF($H173=4,"Inconnu", IF($H173=99,"Interrompu", $D173)), 0),"Non requis") -> 0 | N173: =IF(INTRO!$E$40="Endémique", IF($I173>0, IF($I173=4,"Inconnu",IF($I173=99,"Interrompu", $D173)), 0),"Non requis") -> Inconnu | O173: =IF(INTRO!$E$42="Endémique", IF(AND($J173>1,$J173<5), IF($J173=4, "Inconnu", E173+F173), 0),"Non requis") -> 63941 | P173: =IF(INTRO!$E$44="Endémique", IF(AND($K173>0,$K173<5), IF($K173=4,"Inconnu", IF($K173=1, $F173*0.33, IF($K173=2, $F173*0.5+$G173*0.2, SUM(F173:G173)))), 0),"Non requis") -> 0 | Q173: 0 | R173: 0 | S173: 1 | T173: 0 | V173: T3 (ALB/MBD) | W173: 7584 | X173: KRIBI | AA173: ='MDA1'!K173 -> 0 | AB173: ='MDA3'!O173 -> 0 | AC173: ='T1'!M173 -> 0 | AD173: ='T2'!K173 -> 0 | AE173: =T3_R1!L173 -> 37337 | AF173: =T3_R2!L173 -> 0 | AI173: =_xlfn.XLOOKUP($W173,[1]COUNTRY_INFO!$Y$9:$Y$198,[1]COUNTRY_INFO!H$9:H$198) ->  | AJ173: =_xlfn.XLOOKUP($W173,[1]COUNTRY_INFO!$Y$9:$Y$198,[1]COUNTRY_INFO!I$9:I$198) ->  | AK173: =_xlfn.XLOOKUP($W173,[1]COUNTRY_INFO!$Y$9:$Y$198,[1]COUNTRY_INFO!J$9:J$198) ->  | AL173: =_xlfn.XLOOKUP($W173,[1]COUNTRY_INFO!$Y$9:$Y$198,[1]COUNTRY_INFO!K$9:K$198) ->  | AM173: =_xlfn.XLOOKUP($W173,[1]COUNTRY_INFO!$Y$9:$Y$198,[1]COUNTRY_INFO!L$9:L$198) -> 
A174: =IF(INTRO!$E$34<>0,INTRO!$E$34,"") -> Cameroon | B174: SOUTH | C174: LOLODORF | D174: 43533 | E174: =IF(INTRO!$E$48="","",ROUND($D174*INTRO!$E$48,0)) -> 5624 | F174: =IF(INTRO!$E$49="","",ROUND($D174*INTRO!$E$49,0)) -> 12407 | G174: =IF(INTRO!$E$50="","",ROUND($D174*INTRO!$E$50,0)) -> 23725 | H174: 0 | I174: 4 | J174: 3 | K174: 0 | L174: 1 | M174: =IF(INTRO!$E$38="Endémique", IF($H174>0, IF($H174=4,"Inconnu", IF($H174=99,"Interrompu", $D174)), 0),"Non requis") -> 0 | N174: =IF(INTRO!$E$40="Endémique", IF($I174>0, IF($I174=4,"Inconnu",IF($I174=99,"Interrompu", $D174)), 0),"Non requis") -> Inconnu | O174: =IF(INTRO!$E$42="Endémique", IF(AND($J174>1,$J174<5), IF($J174=4, "Inconnu", E174+F174), 0),"Non requis") -> 18031 | P174: =IF(INTRO!$E$44="Endémique", IF(AND($K174>0,$K174<5), IF($K174=4,"Inconnu", IF($K174=1, $F174*0.33, IF($K174=2, $F174*0.5+$G174*0.2, SUM(F174:G174)))), 0),"Non requis") -> 0 | Q174: 0 | R174: 0 | S174: 1 | T174: 0 | V174: T3 (ALB/MBD) | W174: 7585 | X174: LOLODORF | AA174: ='MDA1'!K174 -> 0 | AB174: ='MDA3'!O174 -> 0 | AC174: ='T1'!M174 -> 0 | AD174: ='T2'!K174 -> 0 | AE174: =T3_R1!L174 -> 11266 | AF174: =T3_R2!L174 -> 0 | AI174: =_xlfn.XLOOKUP($W174,[1]COUNTRY_INFO!$Y$9:$Y$198,[1]COUNTRY_INFO!H$9:H$198) ->  | AJ174: =_xlfn.XLOOKUP($W174,[1]COUNTRY_INFO!$Y$9:$Y$198,[1]COUNTRY_INFO!I$9:I$198) ->  | AK174: =_xlfn.XLOOKUP($W174,[1]COUNTRY_INFO!$Y$9:$Y$198,[1]COUNTRY_INFO!J$9:J$198) ->  | AL174: =_xlfn.XLOOKUP($W174,[1]COUNTRY_INFO!$Y$9:$Y$198,[1]COUNTRY_INFO!K$9:K$198) ->  | AM174: =_xlfn.XLOOKUP($W174,[1]COUNTRY_INFO!$Y$9:$Y$198,[1]COUNTRY_INFO!L$9:L$198) -> 
A175: =IF(INTRO!$E$34<>0,INTRO!$E$34,"") -> Cameroon | B175: SOUTH | C175: MEYOMESSALA | D175: 58310 | E175: =IF(INTRO!$E$48="","",ROUND($D175*INTRO!$E$48,0)) -> 7534 | F175: =IF(INTRO!$E$49="","",ROUND($D175*INTRO!$E$49,0)) -> 16618 | G175: =IF(INTRO!$E$50="","",ROUND($D175*INTRO!$E$50,0)) -> 31779 | H175: 99 | I175: 1 | J175: 3 | K175: 1 | L175: 1 | M175: =IF(INTRO!$E$38="Endémique", IF($H175>0, IF($H175=4,"Inconnu", IF($H175=99,"Interrompu", $D175)), 0),"Non requis") -> Interrompu | N175: 64125 | O175: =IF(INTRO!$E$42="Endémique", IF(AND($J175>1,$J175<5), IF($J175=4, "Inconnu", E175+F175), 0),"Non requis") -> 24152 | P175: =IF(INTRO!$E$44="Endémique", IF(AND($K175>0,$K175<5), IF($K175=4,"Inconnu", IF($K175=1, $F175*0.33, IF($K175=2, $F175*0.5+$G175*0.2, SUM(F175:G175)))), 0),"Non requis") -> 5483.94 | Q175: 0 | R175: 1 | S175: 1 | T175: 0 | U175: MDA3 (IVM) | V175: T3 (ALB/MBD) | W175: 7586 | X175: MEYOMESSALA | AA175: ='MDA1'!K175 -> 0 | AB175: ='MDA3'!O175 -> 20760 | AC175: ='T1'!M175 -> 0 | AD175: ='T2'!K175 -> 0 | AE175: =T3_R1!L175 -> 15836 | AF175: =T3_R2!L175 -> 0 | AI175: =_xlfn.XLOOKUP($W175,[1]COUNTRY_INFO!$Y$9:$Y$198,[1]COUNTRY_INFO!H$9:H$198) ->  | AJ175: =_xlfn.XLOOKUP($W175,[1]COUNTRY_INFO!$Y$9:$Y$198,[1]COUNTRY_INFO!I$9:I$198) ->  | AK175: =_xlfn.XLOOKUP($W175,[1]COUNTRY_INFO!$Y$9:$Y$198,[1]COUNTRY_INFO!J$9:J$198) ->  | AL175: =_xlfn.XLOOKUP($W175,[1]COUNTRY_INFO!$Y$9:$Y$198,[1]COUNTRY_INFO!K$9:K$198) ->  | AM175: =_xlfn.XLOOKUP($W175,[1]COUNTRY_INFO!$Y$9:$Y$198,[1]COUNTRY_INFO!L$9:L$198) -> 
A176: =IF(INTRO!$E$34<>0,INTRO!$E$34,"") -> Cameroon | B176: SOUTH | C176: MVANGAN | D176: 39067 | E176: =IF(INTRO!$E$48="","",ROUND($D176*INTRO!$E$48,0)) -> 5047 | F176: =IF(INTRO!$E$49="","",ROUND($D176*INTRO!$E$49,0)) -> 11134 | G176: =IF(INTRO!$E$50="","",ROUND($D176*INTRO!$E$50,0)) -> 21292 | H176: 0 | I176: 4 | J176: 3 | K176: 0 | L176: 1 | M176: =IF(INTRO!$E$38="Endémique", IF($H176>0, IF($H176=4,"Inconnu", IF($H176=99,"Interrompu", $D176)), 0),"Non requis") -> 0 | N176: =IF(INTRO!$E$40="Endémique", IF($I176>0, IF($I176=4,"Inconnu",IF($I176=99,"Interrompu", $D176)), 0),"Non requis") -> Inconnu | O176: =IF(INTRO!$E$42="Endémique", IF(AND($J176>1,$J176<5), IF($J176=4, "Inconnu", E176+F176), 0),"Non requis") -> 16181 | P176: =IF(INTRO!$E$44="Endémique", IF(AND($K176>0,$K176<5), IF($K176=4,"Inconnu", IF($K176=1, $F176*0.33, IF($K176=2, $F176*0.5+$G176*0.2, SUM(F176:G176)))), 0),"Non requis") -> 0 | Q176: 0 | R176: 0 | S176: 1 | T176: 0 | V176: T3 (ALB/MBD) | W176: 7587 | X176: MVANGAN | AA176: ='MDA1'!K176 -> 0 | AB176: ='MDA3'!O176 -> 0 | AC176: ='T1'!M176 -> 0 | AD176: ='T2'!K176 -> 0 | AE176: =T3_R1!L176 -> 9696 | AF176: =T3_R2!L176 -> 0 | AI176: =_xlfn.XLOOKUP($W176,[1]COUNTRY_INFO!$Y$9:$Y$198,[1]COUNTRY_INFO!H$9:H$198) ->  | AJ176: =_xlfn.XLOOKUP($W176,[1]COUNTRY_INFO!$Y$9:$Y$198,[1]COUNTRY_INFO!I$9:I$198) ->  | AK176: =_xlfn.XLOOKUP($W176,[1]COUNTRY_INFO!$Y$9:$Y$198,[1]COUNTRY_INFO!J$9:J$198) ->  | AL176: =_xlfn.XLOOKUP($W176,[1]COUNTRY_INFO!$Y$9:$Y$198,[1]COUNTRY_INFO!K$9:K$198) ->  | AM176: =_xlfn.XLOOKUP($W176,[1]COUNTRY_INFO!$Y$9:$Y$198,[1]COUNTRY_INFO!L$9:L$198) -> 
A177: =IF(INTRO!$E$34<>0,INTRO!$E$34,"") -> Cameroon | B177: SOUTH | C177: OLAMZE | D177: 16202 | E177: =IF(INTRO!$E$48="","",ROUND($D177*INTRO!$E$48,0)) -> 2093 | F177: =IF(INTRO!$E$49="","",ROUND($D177*INTRO!$E$49,0)) -> 4618 | G177: =IF(INTRO!$E$50="","",ROUND($D177*INTRO!$E$50,0)) -> 8830 | H177: 99 | I177: 1 | J177: 3 | K177: 0 | L177: 1 | M177: =IF(INTRO!$E$38="Endémique", IF($H177>0, IF($H177=4,"Inconnu", IF($H177=99,"Interrompu", $D177)), 0),"Non requis") -> Interrompu | N177: 12367 | O177: =IF(INTRO!$E$42="Endémique", IF(AND($J177>1,$J177<5), IF($J177=4, "Inconnu", E177+F177), 0),"Non requis") -> 6711 | P177: =IF(INTRO!$E$44="Endémique", IF(AND($K177>0,$K177<5), IF($K177=4,"Inconnu", IF($K177=1, $F177*0.33, IF($K177=2, $F177*0.5+$G177*0.2, SUM(F177:G177)))), 0),"Non requis") -> 0 | Q177: 0 | R177: 1 | S177: 1 | T177: 0 | U177: MDA3 (IVM) | V177: T3 (ALB/MBD) | W177: 7588 | X177: OLAMZE | AA177: ='MDA1'!K177 -> 0 | AB177: ='MDA3'!O177 -> 3382 | AC177: ='T1'!M177 -> 0 | AD177: ='T2'!K177 -> 0 | AE177: =T3_R1!L177 -> 4542 | AF177: =T3_R2!L177 -> 0 | AI177: =_xlfn.XLOOKUP($W177,[1]COUNTRY_INFO!$Y$9:$Y$198,[1]COUNTRY_INFO!H$9:H$198) ->  | AJ177: =_xlfn.XLOOKUP($W177,[1]COUNTRY_INFO!$Y$9:$Y$198,[1]COUNTRY_INFO!I$9:I$198) ->  | AK177: =_xlfn.XLOOKUP($W177,[1]COUNTRY_INFO!$Y$9:$Y$198,[1]COUNTRY_INFO!J$9:J$198) ->  | AL177: =_xlfn.XLOOKUP($W177,[1]COUNTRY_INFO!$Y$9:$Y$198,[1]COUNTRY_INFO!K$9:K$198) ->  | AM177: =_xlfn.XLOOKUP($W177,[1]COUNTRY_INFO!$Y$9:$Y$198,[1]COUNTRY_INFO!L$9:L$198) -> 
A178: =IF(INTRO!$E$34<>0,INTRO!$E$34,"") -> Cameroon | B178: SOUTH | C178: SANGMELIMA | D178: 104794 | E178: =IF(INTRO!$E$48="","",ROUND($D178*INTRO!$E$48,0)) -> 13539 | F178: =IF(INTRO!$E$49="","",ROUND($D178*INTRO!$E$49,0)) -> 29866 | G178: =IF(INTRO!$E$50="","",ROUND($D178*INTRO!$E$50,0)) -> 57113 | H178: 99 | I178: 1 | J178: 3 | K178: 0 | L178: 1 | M178: =IF(INTRO!$E$38="Endémique", IF($H178>0, IF($H178=4,"Inconnu", IF($H178=99,"Interrompu", $D178)), 0),"Non requis") -> Interrompu | N178: 91061 | O178: =IF(INTRO!$E$42="Endémique", IF(AND($J178>1,$J178<5), IF($J178=4, "Inconnu", E178+F178), 0),"Non requis") -> 43405 | P178: =IF(INTRO!$E$44="Endémique", IF(AND($K178>0,$K178<5), IF($K178=4,"Inconnu", IF($K178=1, $F178*0.33, IF($K178=2, $F178*0.5+$G178*0.2, SUM(F178:G178)))), 0),"Non requis") -> 0 | Q178: 0 | R178: 1 | S178: 1 | T178: 0 | U178: MDA3 (IVM) | V178: T3 (ALB/MBD) | W178: 7589 | X178: SANGMELIMA | AA178: ='MDA1'!K178 -> 0 | AB178: ='MDA3'!O178 -> 31754 | AC178: ='T1'!M178 -> 0 | AD178: ='T2'!K178 -> 0 | AE178: =T3_R1!L178 -> 24527 | AF178: =T3_R2!L178 -> 0 | AI178: =_xlfn.XLOOKUP($W178,[1]COUNTRY_INFO!$Y$9:$Y$198,[1]COUNTRY_INFO!H$9:H$198) ->  | AJ178: =_xlfn.XLOOKUP($W178,[1]COUNTRY_INFO!$Y$9:$Y$198,[1]COUNTRY_INFO!I$9:I$198) ->  | AK178: =_xlfn.XLOOKUP($W178,[1]COUNTRY_INFO!$Y$9:$Y$198,[1]COUNTRY_INFO!J$9:J$198) ->  | AL178: =_xlfn.XLOOKUP($W178,[1]COUNTRY_INFO!$Y$9:$Y$198,[1]COUNTRY_INFO!K$9:K$198) ->  | AM178: =_xlfn.XLOOKUP($W178,[1]COUNTRY_INFO!$Y$9:$Y$198,[1]COUNTRY_INFO!L$9:L$198) -> 
A179: =IF(INTRO!$E$34<>0,INTRO!$E$34,"") -> Cameroon | B179: SOUTH | C179: ZOETELE | D179: 45281 | E179: =IF(INTRO!$E$48="","",ROUND($D179*INTRO!$E$48,0)) -> 5850 | F179: =IF(INTRO!$E$49="","",ROUND($D179*INTRO!$E$49,0)) -> 12905 | G179: =IF(INTRO!$E$50="","",ROUND($D179*INTRO!$E$50,0)) -> 24678 | H179: 99 | I179: 1 | J179: 2 | K179: 0 | L179: 1 | M179: =IF(INTRO!$E$38="Endémique", IF($H179>0, IF($H179=4,"Inconnu", IF($H179=99,"Interrompu", $D179)), 0),"Non requis") -> Interrompu | N179: 44964 | O179: =IF(INTRO!$E$42="Endémique", IF(AND($J179>1,$J179<5), IF($J179=4, "Inconnu", E179+F179), 0),"Non requis") -> 18755 | P179: =IF(INTRO!$E$44="Endémique", IF(AND($K179>0,$K179<5), IF($K179=4,"Inconnu", IF($K179=1, $F179*0.33, IF($K179=2, $F179*0.5+$G179*0.2, SUM(F179:G179)))), 0),"Non requis") -> 0 | Q179: 0 | R179: 1 | S179: 1 | T179: 0 | U179: MDA3 (IVM) | V179: T3 (ALB/MBD) | W179: 7590 | X179: ZOETELE | AA179: ='MDA1'!K179 -> 0 | AB179: ='MDA3'!O179 -> 12310 | AC179: ='T1'!M179 -> 0 | AD179: ='T2'!K179 -> 0 | AE179: =T3_R1!L179 -> 9328 | AF179: =T3_R2!L179 -> 0 | AI179: =_xlfn.XLOOKUP($W179,[1]COUNTRY_INFO!$Y$9:$Y$198,[1]COUNTRY_INFO!H$9:H$198) ->  | AJ179: =_xlfn.XLOOKUP($W179,[1]COUNTRY_INFO!$Y$9:$Y$198,[1]COUNTRY_INFO!I$9:I$198) ->  | AK179: =_xlfn.XLOOKUP($W179,[1]COUNTRY_INFO!$Y$9:$Y$198,[1]COUNTRY_INFO!J$9:J$198) ->  | AL179: =_xlfn.XLOOKUP($W179,[1]COUNTRY_INFO!$Y$9:$Y$198,[1]COUNTRY_INFO!K$9:K$198) ->  | AM179: =_xlfn.XLOOKUP($W179,[1]COUNTRY_INFO!$Y$9:$Y$198,[1]COUNTRY_INFO!L$9:L$198) -> 
A180: =IF(INTRO!$E$34<>0,INTRO!$E$34,"") -> Cameroon | B180: SOUTH-WEST | C180: AKWAYA | D180: 58244 | E180: =IF(INTRO!$E$48="","",ROUND($D180*INTRO!$E$48,0)) -> 7525 | F180: =IF(INTRO!$E$49="","",ROUND($D180*INTRO!$E$49,0)) -> 16600 | G180: =IF(INTRO!$E$50="","",ROUND($D180*INTRO!$E$50,0)) -> 31743 | H180: 1 | I180: 1 | J180: 2 | K180: 0 | L180: 1 | M180: =IF(INTRO!$E$38="Endémique", IF($H180>0, IF($H180=4,"Inconnu", IF($H180=99,"Interrompu", $D180)), 0),"Non requis") -> 58244 | N180: =IF(INTRO!$E$40="Endémique", IF($I180>0, IF($I180=4,"Inconnu",IF($I180=99,"Interrompu", $D180)), 0),"Non requis") -> 58244 | O180: =IF(INTRO!$E$42="Endémique", IF(AND($J180>1,$J180<5), IF($J180=4, "Inconnu", E180+F180), 0),"Non requis") -> 24125 | P180: =IF(INTRO!$E$44="Endémique", IF(AND($K180>0,$K180<5), IF($K180=4,"Inconnu", IF($K180=1, $F180*0.33, IF($K180=2, $F180*0.5+$G180*0.2, SUM(F180:G180)))), 0),"Non requis") -> 0 | Q180: 0 | R180: 0 | S180: 0 | T180: 0 | W180: 7591 | X180: AKWAYA | AA180: ='MDA1'!K180 -> 0 | AB180: ='MDA3'!O180 -> 0 | AC180: ='T1'!M180 -> 0 | AD180: ='T2'!K180 -> 0 | AE180: =T3_R1!L180 -> 0 | AF180: =T3_R2!L180 -> 0 | AI180: =_xlfn.XLOOKUP($W180,[1]COUNTRY_INFO!$Y$9:$Y$198,[1]COUNTRY_INFO!H$9:H$198) ->  | AJ180: =_xlfn.XLOOKUP($W180,[1]COUNTRY_INFO!$Y$9:$Y$198,[1]COUNTRY_INFO!I$9:I$198) ->  | AK180: =_xlfn.XLOOKUP($W180,[1]COUNTRY_INFO!$Y$9:$Y$198,[1]COUNTRY_INFO!J$9:J$198) ->  | AL180: =_xlfn.XLOOKUP($W180,[1]COUNTRY_INFO!$Y$9:$Y$198,[1]COUNTRY_INFO!K$9:K$198) ->  | AM180: =_xlfn.XLOOKUP($W180,[1]COUNTRY_INFO!$Y$9:$Y$198,[1]COUNTRY_INFO!L$9:L$198) -> 
A181: =IF(INTRO!$E$34<>0,INTRO!$E$34,"") -> Cameroon | B181: SOUTH-WEST | C181: BAKASSI | D181: 35206 | E181: =IF(INTRO!$E$48="","",ROUND($D181*INTRO!$E$48,0)) -> 4549 | F181: =IF(INTRO!$E$49="","",ROUND($D181*INTRO!$E$49,0)) -> 10034 | G181: =IF(INTRO!$E$50="","",ROUND($D181*INTRO!$E$50,0)) -> 19187 | H181: 0 | I181: 1 | J181: 3 | K181: 0 | L181: 1 | M181: =IF(INTRO!$E$38="Endémique", IF($H181>0, IF($H181=4,"Inconnu", IF($H181=99,"Interrompu", $D181)), 0),"Non requis") -> 0 | N181: =IF(INTRO!$E$40="Endémique", IF($I181>0, IF($I181=4,"Inconnu",IF($I181=99,"Interrompu", $D181)), 0),"Non requis") -> 35206 | O181: =IF(INTRO!$E$42="Endémique", IF(AND($J181>1,$J181<5), IF($J181=4, "Inconnu", E181+F181), 0),"Non requis") -> 14583 | P181: =IF(INTRO!$E$44="Endémique", IF(AND($K181>0,$K181<5), IF($K181=4,"Inconnu", IF($K181=1, $F181*0.33, IF($K181=2, $F181*0.5+$G181*0.2, SUM(F181:G181)))), 0),"Non requis") -> 0 | Q181: 0 | R181: 0 | S181: 0 | T181: 0 | W181: 7592 | X181: BAKASSI | AA181: ='MDA1'!K181 -> 0 | AB181: ='MDA3'!O181 -> 0 | AC181: ='T1'!M181 -> 0 | AD181: ='T2'!K181 -> 0 | AE181: =T3_R1!L181 -> 0 | AF181: =T3_R2!L181 -> 0 | AI181: =_xlfn.XLOOKUP($W181,[1]COUNTRY_INFO!$Y$9:$Y$198,[1]COUNTRY_INFO!H$9:H$198) ->  | AJ181: =_xlfn.XLOOKUP($W181,[1]COUNTRY_INFO!$Y$9:$Y$198,[1]COUNTRY_INFO!I$9:I$198) ->  | AK181: =_xlfn.XLOOKUP($W181,[1]COUNTRY_INFO!$Y$9:$Y$198,[1]COUNTRY_INFO!J$9:J$198) ->  | AL181: =_xlfn.XLOOKUP($W181,[1]COUNTRY_INFO!$Y$9:$Y$198,[1]COUNTRY_INFO!K$9:K$198) ->  | AM181: =_xlfn.XLOOKUP($W181,[1]COUNTRY_INFO!$Y$9:$Y$198,[1]COUNTRY_INFO!L$9:L$198) -> 
A182: =IF(INTRO!$E$34<>0,INTRO!$E$34,"") -> Cameroon | B182: SOUTH-WEST | C182: BANGEM | D182: 25480 | E182: =IF(INTRO!$E$48="","",ROUND($D182*INTRO!$E$48,0)) -> 3292 | F182: =IF(INTRO!$E$49="","",ROUND($D182*INTRO!$E$49,0)) -> 7262 | G182: =IF(INTRO!$E$50="","",ROUND($D182*INTRO!$E$50,0)) -> 13887 | H182: 99 | I182: 1 | J182: 1 | K182: 0 | L182: 1 | M182: =IF(INTRO!$E$38="Endémique", IF($H182>0, IF($H182=4,"Inconnu", IF($H182=99,"Interrompu", $D182)), 0),"Non requis") -> Interrompu | N182: =IF(INTRO!$E$40="Endémique", IF($I182>0, IF($I182=4,"Inconnu",IF($I182=99,"Interrompu", $D182)), 0),"Non requis") -> 25480 | O182: =IF(INTRO!$E$42="Endémique", IF(AND($J182>1,$J182<5), IF($J182=4, "Inconnu", E182+F182), 0),"Non requis") -> 0 | P182: =IF(INTRO!$E$44="Endémique", IF(AND($K182>0,$K182<5), IF($K182=4,"Inconnu", IF($K182=1, $F182*0.33, IF($K182=2, $F182*0.5+$G182*0.2, SUM(F182:G182)))), 0),"Non requis") -> 0 | Q182: 0 | R182: 0 | S182: 0 | T182: 0 | W182: 7593 | X182: BANGEM | AA182: ='MDA1'!K182 -> 0 | AB182: ='MDA3'!O182 -> 0 | AC182: ='T1'!M182 -> 0 | AD182: ='T2'!K182 -> 0 | AE182: =T3_R1!L182 -> 0 | AF182: =T3_R2!L182 -> 0 | AI182: =_xlfn.XLOOKUP($W182,[1]COUNTRY_INFO!$Y$9:$Y$198,[1]COUNTRY_INFO!H$9:H$198) ->  | AJ182: =_xlfn.XLOOKUP($W182,[1]COUNTRY_INFO!$Y$9:$Y$198,[1]COUNTRY_INFO!I$9:I$198) ->  | AK182: =_xlfn.XLOOKUP($W182,[1]COUNTRY_INFO!$Y$9:$Y$198,[1]COUNTRY_INFO!J$9:J$198) ->  | AL182: =_xlfn.XLOOKUP($W182,[1]COUNTRY_INFO!$Y$9:$Y$198,[1]COUNTRY_INFO!K$9:K$198) ->  | AM182: =_xlfn.XLOOKUP($W182,[1]COUNTRY_INFO!$Y$9:$Y$198,[1]COUNTRY_INFO!L$9:L$198) -> 
A183: =IF(INTRO!$E$34<>0,INTRO!$E$34,"") -> Cameroon | B183: SOUTH-WEST | C183: BUEA | D183: 177297 | E183: =IF(INTRO!$E$48="","",ROUND($D183*INTRO!$E$48,0)) -> 22907 | F183: =IF(INTRO!$E$49="","",ROUND($D183*INTRO!$E$49,0)) -> 50530 | G183: =IF(INTRO!$E$50="","",ROUND($D183*INTRO!$E$50,0)) -> 96627 | H183: 99 | I183: 1 | J183: 2 | K183: 2 | L183: 1 | M183: =IF(INTRO!$E$38="Endémique", IF($H183>0, IF($H183=4,"Inconnu", IF($H183=99,"Interrompu", $D183)), 0),"Non requis") -> Interrompu | N183: =IF(INTRO!$E$40="Endémique", IF($I183>0, IF($I183=4,"Inconnu",IF($I183=99,"Interrompu", $D183)), 0),"Non requis") -> 177297 | O183: =IF(INTRO!$E$42="Endémique", IF(AND($J183>1,$J183<5), IF($J183=4, "Inconnu", E183+F183), 0),"Non requis") -> 73437 | P183: =IF(INTRO!$E$44="Endémique", IF(AND($K183>0,$K183<5), IF($K183=4,"Inconnu", IF($K183=1, $F183*0.33, IF($K183=2, $F183*0.5+$G183*0.2, SUM(F183:G183)))), 0),"Non requis") -> 44590.4 | Q183: 0 | R183: 0 | S183: 0 | T183: 0 | W183: 7594 | X183: BUEA | AA183: ='MDA1'!K183 -> 0 | AB183: ='MDA3'!O183 -> 0 | AC183: ='T1'!M183 -> 0 | AD183: ='T2'!K183 -> 0 | AE183: =T3_R1!L183 -> 0 | AF183: =T3_R2!L183 -> 0 | AI183: =_xlfn.XLOOKUP($W183,[1]COUNTRY_INFO!$Y$9:$Y$198,[1]COUNTRY_INFO!H$9:H$198) ->  | AJ183: =_xlfn.XLOOKUP($W183,[1]COUNTRY_INFO!$Y$9:$Y$198,[1]COUNTRY_INFO!I$9:I$198) ->  | AK183: =_xlfn.XLOOKUP($W183,[1]COUNTRY_INFO!$Y$9:$Y$198,[1]COUNTRY_INFO!J$9:J$198) ->  | AL183: =_xlfn.XLOOKUP($W183,[1]COUNTRY_INFO!$Y$9:$Y$198,[1]COUNTRY_INFO!K$9:K$198) ->  | AM183: =_xlfn.XLOOKUP($W183,[1]COUNTRY_INFO!$Y$9:$Y$198,[1]COUNTRY_INFO!L$9:L$198) -> 
A184: =IF(INTRO!$E$34<>0,INTRO!$E$34,"") -> Cameroon | B184: SOUTH-WEST | C184: EKONDO TITI | D184: 57467 | E184: =IF(INTRO!$E$48="","",ROUND($D184*INTRO!$E$48,0)) -> 7425 | F184: =IF(INTRO!$E$49="","",ROUND($D184*INTRO!$E$49,0)) -> 16378 | G184: =IF(INTRO!$E$50="","",ROUND($D184*INTRO!$E$50,0)) -> 31320 | H184: 99 | I184: 1 | J184: 3 | K184: 1 | L184: 1 | M184: =IF(INTRO!$E$38="Endémique", IF($H184>0, IF($H184=4,"Inconnu", IF($H184=99,"Interrompu", $D184)), 0),"Non requis") -> Interrompu | N184: =IF(INTRO!$E$40="Endémique", IF($I184>0, IF($I184=4,"Inconnu",IF($I184=99,"Interrompu", $D184)), 0),"Non requis") -> 57467 | O184: =IF(INTRO!$E$42="Endémique", IF(AND($J184>1,$J184<5), IF($J184=4, "Inconnu", E184+F184), 0),"Non requis") -> 23803 | P184: =IF(INTRO!$E$44="Endémique", IF(AND($K184>0,$K184<5), IF($K184=4,"Inconnu", IF($K184=1, $F184*0.33, IF($K184=2, $F184*0.5+$G184*0.2, SUM(F184:G184)))), 0),"Non requis") -> 5404.74 | Q184: 0 | R184: 0 | S184: 0 | T184: 0 | W184: 7595 | X184: EKONDO TITI | AA184: ='MDA1'!K184 -> 0 | AB184: ='MDA3'!O184 -> 0 | AC184: ='T1'!M184 -> 0 | AD184: ='T2'!K184 -> 0 | AE184: =T3_R1!L184 -> 0 | AF184: =T3_R2!L184 -> 0 | AI184: =_xlfn.XLOOKUP($W184,[1]COUNTRY_INFO!$Y$9:$Y$198,[1]COUNTRY_INFO!H$9:H$198) ->  | AJ184: =_xlfn.XLOOKUP($W184,[1]COUNTRY_INFO!$Y$9:$Y$198,[1]COUNTRY_INFO!I$9:I$198) ->  | AK184: =_xlfn.XLOOKUP($W184,[1]COUNTRY_INFO!$Y$9:$Y$198,[1]COUNTRY_INFO!J$9:J$198) ->  | AL184: =_xlfn.XLOOKUP($W184,[1]COUNTRY_INFO!$Y$9:$Y$198,[1]COUNTRY_INFO!K$9:K$198) ->  | AM184: =_xlfn.XLOOKUP($W184,[1]COUNTRY_INFO!$Y$9:$Y$198,[1]COUNTRY_INFO!L$9:L$198) -> 
A185: =IF(INTRO!$E$34<>0,INTRO!$E$34,"") -> Cameroon | B185: SOUTH-WEST | C185: EYUMODJOCK | D185: 42541 | E185: =IF(INTRO!$E$48="","",ROUND($D185*INTRO!$E$48,0)) -> 5496 | F185: =IF(INTRO!$E$49="","",ROUND($D185*INTRO!$E$49,0)) -> 12124 | G185: =IF(INTRO!$E$50="","",ROUND($D185*INTRO!$E$50,0)) -> 23185 | H185: 99 | I185: 1 | J185: 2 | K185: 1 | L185: 1 | M185: =IF(INTRO!$E$38="Endémique", IF($H185>0, IF($H185=4,"Inconnu", IF($H185=99,"Interrompu", $D185)), 0),"Non requis") -> Interrompu | N185: =IF(INTRO!$E$40="Endémique", IF($I185>0, IF($I185=4,"Inconnu",IF($I185=99,"Interrompu", $D185)), 0),"Non requis") -> 42541 | O185: =IF(INTRO!$E$42="Endémique", IF(AND($J185>1,$J185<5), IF($J185=4, "Inconnu", E185+F185), 0),"Non requis") -> 17620 | P185: =IF(INTRO!$E$44="Endémique", IF(AND($K185>0,$K185<5), IF($K185=4,"Inconnu", IF($K185=1, $F185*0.33, IF($K185=2, $F185*0.5+$G185*0.2, SUM(F185:G185)))), 0),"Non requis") -> 4000.92 | Q185: 0 | R185: 0 | S185: 0 | T185: 0 | W185: 7596 | X185: EYUMODJOCK | AA185: ='MDA1'!K185 -> 0 | AB185: ='MDA3'!O185 -> 0 | AC185: ='T1'!M185 -> 0 | AD185: ='T2'!K185 -> 0 | AE185: =T3_R1!L185 -> 0 | AF185: =T3_R2!L185 -> 0 | AI185: =_xlfn.XLOOKUP($W185,[1]COUNTRY_INFO!$Y$9:$Y$198,[1]COUNTRY_INFO!H$9:H$198) ->  | AJ185: =_xlfn.XLOOKUP($W185,[1]COUNTRY_INFO!$Y$9:$Y$198,[1]COUNTRY_INFO!I$9:I$198) ->  | AK185: =_xlfn.XLOOKUP($W185,[1]COUNTRY_INFO!$Y$9:$Y$198,[1]COUNTRY_INFO!J$9:J$198) ->  | AL185: =_xlfn.XLOOKUP($W185,[1]COUNTRY_INFO!$Y$9:$Y$198,[1]COUNTRY_INFO!K$9:K$198) ->  | AM185: =_xlfn.XLOOKUP($W185,[1]COUNTRY_INFO!$Y$9:$Y$198,[1]COUNTRY_INFO!L$9:L$198) -> 
A186: =IF(INTRO!$E$34<>0,INTRO!$E$34,"") -> Cameroon | B186: SOUTH-WEST | C186: FONTEM | D186: 125412 | E186: =IF(INTRO!$E$48="","",ROUND($D186*INTRO!$E$48,0)) -> 16203 | F186: =IF(INTRO!$E$49="","",ROUND($D186*INTRO!$E$49,0)) -> 35742 | G186: =IF(INTRO!$E$50="","",ROUND($D186*INTRO!$E$50,0)) -> 68350 | H186: 99 | I186: 1 | J186: 2 | K186: 0 | L186: 1 | M186: =IF(INTRO!$E$38="Endémique", IF($H186>0, IF($H186=4,"Inconnu", IF($H186=99,"Interrompu", $D186)), 0),"Non requis") -> Interrompu | N186: =IF(INTRO!$E$40="Endémique", IF($I186>0, IF($I186=4,"Inconnu",IF($I186=99,"Interrompu", $D186)), 0),"Non requis") -> 125412 | O186: =IF(INTRO!$E$42="Endémique", IF(AND($J186>1,$J186<5), IF($J186=4, "Inconnu", E186+F186), 0),"Non requis") -> 51945 | P186: =IF(INTRO!$E$44="Endémique", IF(AND($K186>0,$K186<5), IF($K186=4,"Inconnu", IF($K186=1, $F186*0.33, IF($K186=2, $F186*0.5+$G186*0.2, SUM(F186:G186)))), 0),"Non requis") -> 0 | Q186: 0 | R186: 0 | S186: 0 | T186: 0 | W186: 7597 | X186: FONTEM | AA186: ='MDA1'!K186 -> 0 | AB186: ='MDA3'!O186 -> 0 | AC186: ='T1'!M186 -> 0 | AD186: ='T2'!K186 -> 0 | AE186: =T3_R1!L186 -> 0 | AF186: =T3_R2!L186 -> 0 | AI186: =_xlfn.XLOOKUP($W186,[1]COUNTRY_INFO!$Y$9:$Y$198,[1]COUNTRY_INFO!H$9:H$198) ->  | AJ186: =_xlfn.XLOOKUP($W186,[1]COUNTRY_INFO!$Y$9:$Y$198,[1]COUNTRY_INFO!I$9:I$198) ->  | AK186: =_xlfn.XLOOKUP($W186,[1]COUNTRY_INFO!$Y$9:$Y$198,[1]COUNTRY_INFO!J$9:J$198) ->  | AL186: =_xlfn.XLOOKUP($W186,[1]COUNTRY_INFO!$Y$9:$Y$198,[1]COUNTRY_INFO!K$9:K$198) ->  | AM186: =_xlfn.XLOOKUP($W186,[1]COUNTRY_INFO!$Y$9:$Y$198,[1]COUNTRY_INFO!L$9:L$198) -> 
A187: =IF(INTRO!$E$34<>0,INTRO!$E$34,"") -> Cameroon | B187: SOUTH-WEST | C187: KONYE | D187: 133029 | E187: =IF(INTRO!$E$48="","",ROUND($D187*INTRO!$E$48,0)) -> 17187 | F187: =IF(INTRO!$E$49="","",ROUND($D187*INTRO!$E$49,0)) -> 37913 | G187: =IF(INTRO!$E$50="","",ROUND($D187*INTRO!$E$50,0)) -> 72501 | H187: 99 | I187: 1 | J187: 3 | K187: 1 | L187: 1 | M187: =IF(INTRO!$E$38="Endémique", IF($H187>0, IF($H187=4,"Inconnu", IF($H187=99,"Interrompu", $D187)), 0),"Non requis") -> Interrompu | N187: =IF(INTRO!$E$40="Endémique", IF($I187>0, IF($I187=4,"Inconnu",IF($I187=99,"Interrompu", $D187)), 0),"Non requis") -> 133029 | O187: =IF(INTRO!$E$42="Endémique", IF(AND($J187>1,$J187<5), IF($J187=4, "Inconnu", E187+F187), 0),"Non requis") -> 55100 | P187: =IF(INTRO!$E$44="Endémique", IF(AND($K187>0,$K187<5), IF($K187=4,"Inconnu", IF($K187=1, $F187*0.33, IF($K187=2, $F187*0.5+$G187*0.2, SUM(F187:G187)))), 0),"Non requis") -> 12511.29 | Q187: 0 | R187: 0 | S187: 0 | T187: 0 | W187: 7598 | X187: KONYE | AA187: ='MDA1'!K187 -> 0 | AB187: ='MDA3'!O187 -> 0 | AC187: ='T1'!M187 -> 0 | AD187: ='T2'!K187 -> 0 | AE187: =T3_R1!L187 -> 0 | AF187: =T3_R2!L187 -> 0 | AI187: =_xlfn.XLOOKUP($W187,[1]COUNTRY_INFO!$Y$9:$Y$198,[1]COUNTRY_INFO!H$9:H$198) ->  | AJ187: =_xlfn.XLOOKUP($W187,[1]COUNTRY_INFO!$Y$9:$Y$198,[1]COUNTRY_INFO!I$9:I$198) ->  | AK187: =_xlfn.XLOOKUP($W187,[1]COUNTRY_INFO!$Y$9:$Y$198,[1]COUNTRY_INFO!J$9:J$198) ->  | AL187: =_xlfn.XLOOKUP($W187,[1]COUNTRY_INFO!$Y$9:$Y$198,[1]COUNTRY_INFO!K$9:K$198) ->  | AM187: =_xlfn.XLOOKUP($W187,[1]COUNTRY_INFO!$Y$9:$Y$198,[1]COUNTRY_INFO!L$9:L$198) -> 
A188: =IF(INTRO!$E$34<>0,INTRO!$E$34,"") -> Cameroon | B188: SOUTH-WEST | C188: KUMBA | D188: 371681 | E188: =IF(INTRO!$E$48="","",ROUND($D188*INTRO!$E$48,0)) -> 48021 | F188: =IF(INTRO!$E$49="","",ROUND($D188*INTRO!$E$49,0)) -> 105929 | G188: =IF(INTRO!$E$50="","",ROUND($D188*INTRO!$E$50,0)) -> 202566 | H188: 99 | I188: 1 | J188: 3 | K188: 2 | L188: 1 | M188: =IF(INTRO!$E$38="Endémique", IF($H188>0, IF($H188=4,"Inconnu", IF($H188=99,"Interrompu", $D188)), 0),"Non requis") -> Interrompu | N188: =IF(INTRO!$E$40="Endémique", IF($I188>0, IF($I188=4,"Inconnu",IF($I188=99,"Interrompu", $D188)), 0),"Non requis") -> 371681 | O188: =IF(INTRO!$E$42="Endémique", IF(AND($J188>1,$J188<5), IF($J188=4, "Inconnu", E188+F188), 0),"Non requis") -> 153950 | P188: =IF(INTRO!$E$44="Endémique", IF(AND($K188>0,$K188<5), IF($K188=4,"Inconnu", IF($K188=1, $F188*0.33, IF($K188=2, $F188*0.5+$G188*0.2, SUM(F188:G188)))), 0),"Non requis") -> 93477.7 | Q188: 0 | R188: 0 | S188: 0 | T188: 0 | W188: 7599 | X188: KUMBA | AA188: ='MDA1'!K188 -> 0 | AB188: ='MDA3'!O188 -> 0 | AC188: ='T1'!M188 -> 0 | AD188: ='T2'!K188 -> 0 | AE188: =T3_R1!L188 -> 0 | AF188: =T3_R2!L188 -> 0 | AI188: =_xlfn.XLOOKUP($W188,[1]COUNTRY_INFO!$Y$9:$Y$198,[1]COUNTRY_INFO!H$9:H$198) ->  | AJ188: =_xlfn.XLOOKUP($W188,[1]COUNTRY_INFO!$Y$9:$Y$198,[1]COUNTRY_INFO!I$9:I$198) ->  | AK188: =_xlfn.XLOOKUP($W188,[1]COUNTRY_INFO!$Y$9:$Y$198,[1]COUNTRY_INFO!J$9:J$198) ->  | AL188: =_xlfn.XLOOKUP($W188,[1]COUNTRY_INFO!$Y$9:$Y$198,[1]COUNTRY_INFO!K$9:K$198) ->  | AM188: =_xlfn.XLOOKUP($W188,[1]COUNTRY_INFO!$Y$9:$Y$198,[1]COUNTRY_INFO!L$9:L$198) -> 
A189: =IF(INTRO!$E$34<>0,INTRO!$E$34,"") -> Cameroon | B189: SOUTH-WEST | C189: LIMBE | D189: 202831 | E189: =IF(INTRO!$E$48="","",ROUND($D189*INTRO!$E$48,0)) -> 26206 | F189: =IF(INTRO!$E$49="","",ROUND($D189*INTRO!$E$49,0)) -> 57807 | G189: =IF(INTRO!$E$50="","",ROUND($D189*INTRO!$E$50,0)) -> 110543 | H189: 99 | I189: 1 | J189: 2 | K189: 0 | L189: 1 | M189: =IF(INTRO!$E$38="Endémique", IF($H189>0, IF($H189=4,"Inconnu", IF($H189=99,"Interrompu", $D189)), 0),"Non requis") -> Interrompu | N189: =IF(INTRO!$E$40="Endémique", IF($I189>0, IF($I189=4,"Inconnu",IF($I189=99,"Interrompu", $D189)), 0),"Non requis") -> 202831 | O189: =IF(INTRO!$E$42="Endémique", IF(AND($J189>1,$J189<5), IF($J189=4, "Inconnu", E189+F189), 0),"Non requis") -> 84013 | P189: =IF(INTRO!$E$44="Endémique", IF(AND($K189>0,$K189<5), IF($K189=4,"Inconnu", IF($K189=1, $F189*0.33, IF($K189=2, $F189*0.5+$G189*0.2, SUM(F189:G189)))), 0),"Non requis") -> 0 | Q189: 0 | R189: 0 | S189: 0 | T189: 0 | W189: 7600 | X189: LIMBE | AA189: ='MDA1'!K189 -> 0 | AB189: ='MDA3'!O189 -> 0 | AC189: ='T1'!M189 -> 0 | AD189: ='T2'!K189 -> 0 | AE189: =T3_R1!L189 -> 0 | AF189: =T3_R2!L189 -> 0 | AI189: =_xlfn.XLOOKUP($W189,[1]COUNTRY_INFO!$Y$9:$Y$198,[1]COUNTRY_INFO!H$9:H$198) ->  | AJ189: =_xlfn.XLOOKUP($W189,[1]COUNTRY_INFO!$Y$9:$Y$198,[1]COUNTRY_INFO!I$9:I$198) ->  | AK189: =_xlfn.XLOOKUP($W189,[1]COUNTRY_INFO!$Y$9:$Y$198,[1]COUNTRY_INFO!J$9:J$198) ->  | AL189: =_xlfn.XLOOKUP($W189,[1]COUNTRY_INFO!$Y$9:$Y$198,[1]COUNTRY_INFO!K$9:K$198) ->  | AM189: =_xlfn.XLOOKUP($W189,[1]COUNTRY_INFO!$Y$9:$Y$198,[1]COUNTRY_INFO!L$9:L$198) -> 
A190: =IF(INTRO!$E$34<>0,INTRO!$E$34,"") -> Cameroon | B190: SOUTH-WEST | C190: MAMFE | D190: 83810 | E190: =IF(INTRO!$E$48="","",ROUND($D190*INTRO!$E$48,0)) -> 10828 | F190: =IF(INTRO!$E$49="","",ROUND($D190*INTRO!$E$49,0)) -> 23886 | G190: =IF(INTRO!$E$50="","",ROUND($D190*INTRO!$E$50,0)) -> 45676 | H190: 99 | I190: 1 | J190: 3 | K190: 0 | L190: 1 | M190: =IF(INTRO!$E$38="Endémique", IF($H190>0, IF($H190=4,"Inconnu", IF($H190=99,"Interrompu", $D190)), 0),"Non requis") -> Interrompu | N190: =IF(INTRO!$E$40="Endémique", IF($I190>0, IF($I190=4,"Inconnu",IF($I190=99,"Interrompu", $D190)), 0),"Non requis") -> 83810 | O190: =IF(INTRO!$E$42="Endémique", IF(AND($J190>1,$J190<5), IF($J190=4, "Inconnu", E190+F190), 0),"Non requis") -> 34714 | P190: =IF(INTRO!$E$44="Endémique", IF(AND($K190>0,$K190<5), IF($K190=4,"Inconnu", IF($K190=1, $F190*0.33, IF($K190=2, $F190*0.5+$G190*0.2, SUM(F190:G190)))), 0),"Non requis") -> 0 | Q190: 0 | R190: 0 | S190: 0 | T190: 0 | W190: 7601 | X190: MAMFE | AA190: ='MDA1'!K190 -> 0 | AB190: ='MDA3'!O190 -> 0 | AC190: ='T1'!M190 -> 0 | AD190: ='T2'!K190 -> 0 | AE190: =T3_R1!L190 -> 0 | AF190: =T3_R2!L190 -> 0 | AI190: =_xlfn.XLOOKUP($W190,[1]COUNTRY_INFO!$Y$9:$Y$198,[1]COUNTRY_INFO!H$9:H$198) ->  | AJ190: =_xlfn.XLOOKUP($W190,[1]COUNTRY_INFO!$Y$9:$Y$198,[1]COUNTRY_INFO!I$9:I$198) ->  | AK190: =_xlfn.XLOOKUP($W190,[1]COUNTRY_INFO!$Y$9:$Y$198,[1]COUNTRY_INFO!J$9:J$198) ->  | AL190: =_xlfn.XLOOKUP($W190,[1]COUNTRY_INFO!$Y$9:$Y$198,[1]COUNTRY_INFO!K$9:K$198) ->  | AM190: =_xlfn.XLOOKUP($W190,[1]COUNTRY_INFO!$Y$9:$Y$198,[1]COUNTRY_INFO!L$9:L$198) -> 
A191: =IF(INTRO!$E$34<>0,INTRO!$E$34,"") -> Cameroon | B191: SOUTH-WEST | C191: MBONGE | D191: 92276 | E191: =IF(INTRO!$E$48="","",ROUND($D191*INTRO!$E$48,0)) -> 11922 | F191: =IF(INTRO!$E$49="","",ROUND($D191*INTRO!$E$49,0)) -> 26299 | G191: =IF(INTRO!$E$50="","",ROUND($D191*INTRO!$E$50,0)) -> 50290 | H191: 99 | I191: 1 | J191: 2 | K191: 3 | L191: 1 | M191: =IF(INTRO!$E$38="Endémique", IF($H191>0, IF($H191=4,"Inconnu", IF($H191=99,"Interrompu", $D191)), 0),"Non requis") -> Interrompu | N191: =IF(INTRO!$E$40="Endémique", IF($I191>0, IF($I191=4,"Inconnu",IF($I191=99,"Interrompu", $D191)), 0),"Non requis") -> 92276 | O191: =IF(INTRO!$E$42="Endémique", IF(AND($J191>1,$J191<5), IF($J191=4, "Inconnu", E191+F191), 0),"Non requis") -> 38221 | P191: =IF(INTRO!$E$44="Endémique", IF(AND($K191>0,$K191<5), IF($K191=4,"Inconnu", IF($K191=1, $F191*0.33, IF($K191=2, $F191*0.5+$G191*0.2, SUM(F191:G191)))), 0),"Non requis") -> 76589 | Q191: 0 | R191: 0 | S191: 0 | T191: 0 | W191: 7602 | X191: MBONGE | AA191: ='MDA1'!K191 -> 0 | AB191: ='MDA3'!O191 -> 0 | AC191: ='T1'!M191 -> 0 | AD191: ='T2'!K191 -> 0 | AE191: =T3_R1!L191 -> 0 | AF191: =T3_R2!L191 -> 0 | AI191: =_xlfn.XLOOKUP($W191,[1]COUNTRY_INFO!$Y$9:$Y$198,[1]COUNTRY_INFO!H$9:H$198) ->  | AJ191: =_xlfn.XLOOKUP($W191,[1]COUNTRY_INFO!$Y$9:$Y$198,[1]COUNTRY_INFO!I$9:I$198) ->  | AK191: =_xlfn.XLOOKUP($W191,[1]COUNTRY_INFO!$Y$9:$Y$198,[1]COUNTRY_INFO!J$9:J$198) ->  | AL191: =_xlfn.XLOOKUP($W191,[1]COUNTRY_INFO!$Y$9:$Y$198,[1]COUNTRY_INFO!K$9:K$198) ->  | AM191: =_xlfn.XLOOKUP($W191,[1]COUNTRY_INFO!$Y$9:$Y$198,[1]COUNTRY_INFO!L$9:L$198) -> 
A192: =IF(INTRO!$E$34<>0,INTRO!$E$34,"") -> Cameroon | B192: SOUTH-WEST | C192: MUNDEMBA | D192: 21908 | E192: =IF(INTRO!$E$48="","",ROUND($D192*INTRO!$E$48,0)) -> 2831 | F192: =IF(INTRO!$E$49="","",ROUND($D192*INTRO!$E$49,0)) -> 6244 | G192: =IF(INTRO!$E$50="","",ROUND($D192*INTRO!$E$50,0)) -> 11940 | H192: 99 | I192: 1 | J192: 2 | K192: 0 | L192: 1 | M192: =IF(INTRO!$E$38="Endémique", IF($H192>0, IF($H192=4,"Inconnu", IF($H192=99,"Interrompu", $D192)), 0),"Non requis") -> Interrompu | N192: =IF(INTRO!$E$40="Endémique", IF($I192>0, IF($I192=4,"Inconnu",IF($I192=99,"Interrompu", $D192)), 0),"Non requis") -> 21908 | O192: =IF(INTRO!$E$42="Endémique", IF(AND($J192>1,$J192<5), IF($J192=4, "Inconnu", E192+F192), 0),"Non requis") -> 9075 | P192: =IF(INTRO!$E$44="Endémique", IF(AND($K192>0,$K192<5), IF($K192=4,"Inconnu", IF($K192=1, $F192*0.33, IF($K192=2, $F192*0.5+$G192*0.2, SUM(F192:G192)))), 0),"Non requis") -> 0 | Q192: 0 | R192: 0 | S192: 0 | T192: 0 | W192: 7603 | X192: MUNDEMBA | AA192: ='MDA1'!K192 -> 0 | AB192: ='MDA3'!O192 -> 0 | AC192: ='T1'!M192 -> 0 | AD192: ='T2'!K192 -> 0 | AE192: =T3_R1!L192 -> 0 | AF192: =T3_R2!L192 -> 0 | AI192: =_xlfn.XLOOKUP($W192,[1]COUNTRY_INFO!$Y$9:$Y$198,[1]COUNTRY_INFO!H$9:H$198) ->  | AJ192: =_xlfn.XLOOKUP($W192,[1]COUNTRY_INFO!$Y$9:$Y$198,[1]COUNTRY_INFO!I$9:I$198) ->  | AK192: =_xlfn.XLOOKUP($W192,[1]COUNTRY_INFO!$Y$9:$Y$198,[1]COUNTRY_INFO!J$9:J$198) ->  | AL192: =_xlfn.XLOOKUP($W192,[1]COUNTRY_INFO!$Y$9:$Y$198,[1]COUNTRY_INFO!K$9:K$198) ->  | AM192: =_xlfn.XLOOKUP($W192,[1]COUNTRY_INFO!$Y$9:$Y$198,[1]COUNTRY_INFO!L$9:L$198) -> 
A193: =IF(INTRO!$E$34<>0,INTRO!$E$34,"") -> Cameroon | B193: SOUTH-WEST | C193: MUYUKA | D193: 115957 | E193: =IF(INTRO!$E$48="","",ROUND($D193*INTRO!$E$48,0)) -> 14982 | F193: =IF(INTRO!$E$49="","",ROUND($D193*INTRO!$E$49,0)) -> 33048 | G193: =IF(INTRO!$E$50="","",ROUND($D193*INTRO!$E$50,0)) -> 63197 | H193: 99 | I193: 1 | J193: 1 | K193: 1 | L193: 1 | M193: =IF(INTRO!$E$38="Endémique", IF($H193>0, IF($H193=4,"Inconnu", IF($H193=99,"Interrompu", $D193)), 0),"Non requis") -> Interrompu | N193: =IF(INTRO!$E$40="Endémique", IF($I193>0, IF($I193=4,"Inconnu",IF($I193=99,"Interrompu", $D193)), 0),"Non requis") -> 115957 | O193: =IF(INTRO!$E$42="Endémique", IF(AND($J193>1,$J193<5), IF($J193=4, "Inconnu", E193+F193), 0),"Non requis") -> 0 | P193: =IF(INTRO!$E$44="Endémique", IF(AND($K193>0,$K193<5), IF($K193=4,"Inconnu", IF($K193=1, $F193*0.33, IF($K193=2, $F193*0.5+$G193*0.2, SUM(F193:G193)))), 0),"Non requis") -> 10905.84 | Q193: 0 | R193: 0 | S193: 0 | T193: 0 | W193: 7604 | X193: MUYUKA | AA193: ='MDA1'!K193 -> 0 | AB193: ='MDA3'!O193 -> 0 | AC193: ='T1'!M193 -> 0 | AD193: ='T2'!K193 -> 0 | AE193: =T3_R1!L193 -> 0 | AF193: =T3_R2!L193 -> 0 | AI193: =_xlfn.XLOOKUP($W193,[1]COUNTRY_INFO!$Y$9:$Y$198,[1]COUNTRY_INFO!H$9:H$198) ->  | AJ193: =_xlfn.XLOOKUP($W193,[1]COUNTRY_INFO!$Y$9:$Y$198,[1]COUNTRY_INFO!I$9:I$198) ->  | AK193: =_xlfn.XLOOKUP($W193,[1]COUNTRY_INFO!$Y$9:$Y$198,[1]COUNTRY_INFO!J$9:J$198) ->  | AL193: =_xlfn.XLOOKUP($W193,[1]COUNTRY_INFO!$Y$9:$Y$198,[1]COUNTRY_INFO!K$9:K$198) ->  | AM193: =_xlfn.XLOOKUP($W193,[1]COUNTRY_INFO!$Y$9:$Y$198,[1]COUNTRY_INFO!L$9:L$198) -> 
A194: =IF(INTRO!$E$34<>0,INTRO!$E$34,"") -> Cameroon | B194: SOUTH-WEST | C194: NGUTI | D194: 38338 | E194: =IF(INTRO!$E$48="","",ROUND($D194*INTRO!$E$48,0)) -> 4953 | F194: =IF(INTRO!$E$49="","",ROUND($D194*INTRO!$E$49,0)) -> 10926 | G194: =IF(INTRO!$E$50="","",ROUND($D194*INTRO!$E$50,0)) -> 20894 | H194: 99 | I194: 1 | J194: 2 | K194: 2 | L194: 1 | M194: =IF(INTRO!$E$38="Endémique", IF($H194>0, IF($H194=4,"Inconnu", IF($H194=99,"Interrompu", $D194)), 0),"Non requis") -> Interrompu | N194: =IF(INTRO!$E$40="Endémique", IF($I194>0, IF($I194=4,"Inconnu",IF($I194=99,"Interrompu", $D194)), 0),"Non requis") -> 38338 | O194: =IF(INTRO!$E$42="Endémique", IF(AND($J194>1,$J194<5), IF($J194=4, "Inconnu", E194+F194), 0),"Non requis") -> 15879 | P194: =IF(INTRO!$E$44="Endémique", IF(AND($K194>0,$K194<5), IF($K194=4,"Inconnu", IF($K194=1, $F194*0.33, IF($K194=2, $F194*0.5+$G194*0.2, SUM(F194:G194)))), 0),"Non requis") -> 9641.8 | Q194: 0 | R194: 0 | S194: 0 | T194: 0 | W194: 7605 | X194: NGUTI | AA194: ='MDA1'!K194 -> 0 | AB194: ='MDA3'!O194 -> 0 | AC194: ='T1'!M194 -> 0 | AD194: ='T2'!K194 -> 0 | AE194: =T3_R1!L194 -> 0 | AF194: =T3_R2!L194 -> 0 | AI194: =_xlfn.XLOOKUP($W194,[1]COUNTRY_INFO!$Y$9:$Y$198,[1]COUNTRY_INFO!H$9:H$198) ->  | AJ194: =_xlfn.XLOOKUP($W194,[1]COUNTRY_INFO!$Y$9:$Y$198,[1]COUNTRY_INFO!I$9:I$198) ->  | AK194: =_xlfn.XLOOKUP($W194,[1]COUNTRY_INFO!$Y$9:$Y$198,[1]COUNTRY_INFO!J$9:J$198) ->  | AL194: =_xlfn.XLOOKUP($W194,[1]COUNTRY_INFO!$Y$9:$Y$198,[1]COUNTRY_INFO!K$9:K$198) ->  | AM194: =_xlfn.XLOOKUP($W194,[1]COUNTRY_INFO!$Y$9:$Y$198,[1]COUNTRY_INFO!L$9:L$198) -> 
A195: =IF(INTRO!$E$34<>0,INTRO!$E$34,"") -> Cameroon | B195: SOUTH-WEST | C195: TIKO | D195: 154690 | E195: =IF(INTRO!$E$48="","",ROUND($D195*INTRO!$E$48,0)) -> 19986 | F195: =IF(INTRO!$E$49="","",ROUND($D195*INTRO!$E$49,0)) -> 44087 | G195: =IF(INTRO!$E$50="","",ROUND($D195*INTRO!$E$50,0)) -> 84306 | H195: 99 | I195: 1 | J195: 2 | K195: 2 | L195: 1 | M195: =IF(INTRO!$E$38="Endémique", IF($H195>0, IF($H195=4,"Inconnu", IF($H195=99,"Interrompu", $D195)), 0),"Non requis") -> Interrompu | N195: =IF(INTRO!$E$40="Endémique", IF($I195>0, IF($I195=4,"Inconnu",IF($I195=99,"Interrompu", $D195)), 0),"Non requis") -> 154690 | O195: =IF(INTRO!$E$42="Endémique", IF(AND($J195>1,$J195<5), IF($J195=4, "Inconnu", E195+F195), 0),"Non requis") -> 64073 | P195: =IF(INTRO!$E$44="Endémique", IF(AND($K195>0,$K195<5), IF($K195=4,"Inconnu", IF($K195=1, $F195*0.33, IF($K195=2, $F195*0.5+$G195*0.2, SUM(F195:G195)))), 0),"Non requis") -> 38904.7 | Q195: 0 | R195: 0 | S195: 0 | T195: 0 | W195: 7606 | X195: TIKO | AA195: ='MDA1'!K195 -> 0 | AB195: ='MDA3'!O195 -> 0 | AC195: ='T1'!M195 -> 0 | AD195: ='T2'!K195 -> 0 | AE195: =T3_R1!L195 -> 0 | AF195: =T3_R2!L195 -> 0 | AI195: =_xlfn.XLOOKUP($W195,[1]COUNTRY_INFO!$Y$9:$Y$198,[1]COUNTRY_INFO!H$9:H$198) ->  | AJ195: =_xlfn.XLOOKUP($W195,[1]COUNTRY_INFO!$Y$9:$Y$198,[1]COUNTRY_INFO!I$9:I$198) ->  | AK195: =_xlfn.XLOOKUP($W195,[1]COUNTRY_INFO!$Y$9:$Y$198,[1]COUNTRY_INFO!J$9:J$198) ->  | AL195: =_xlfn.XLOOKUP($W195,[1]COUNTRY_INFO!$Y$9:$Y$198,[1]COUNTRY_INFO!K$9:K$198) ->  | AM195: =_xlfn.XLOOKUP($W195,[1]COUNTRY_INFO!$Y$9:$Y$198,[1]COUNTRY_INFO!L$9:L$198) -> 
A196: =IF(INTRO!$E$34<>0,INTRO!$E$34,"") -> Cameroon | B196: SOUTH-WEST | C196: TOMBEL | D196: 80690 | E196: =IF(INTRO!$E$48="","",ROUND($D196*INTRO!$E$48,0)) -> 10425 | F196: =IF(INTRO!$E$49="","",ROUND($D196*INTRO!$E$49,0)) -> 22997 | G196: =IF(INTRO!$E$50="","",ROUND($D196*INTRO!$E$50,0)) -> 43976 | H196: 99 | I196: 1 | J196: 3 | K196: 0 | L196: 1 | M196: =IF(INTRO!$E$38="Endémique", IF($H196>0, IF($H196=4,"Inconnu", IF($H196=99,"Interrompu", $D196)), 0),"Non requis") -> Interrompu | N196: =IF(INTRO!$E$40="Endémique", IF($I196>0, IF($I196=4,"Inconnu",IF($I196=99,"Interrompu", $D196)), 0),"Non requis") -> 80690 | O196: =IF(INTRO!$E$42="Endémique", IF(AND($J196>1,$J196<5), IF($J196=4, "Inconnu", E196+F196), 0),"Non requis") -> 33422 | P196: =IF(INTRO!$E$44="Endémique", IF(AND($K196>0,$K196<5), IF($K196=4,"Inconnu", IF($K196=1, $F196*0.33, IF($K196=2, $F196*0.5+$G196*0.2, SUM(F196:G196)))), 0),"Non requis") -> 0 | Q196: 0 | R196: 0 | S196: 0 | T196: 0 | W196: 7607 | X196: TOMBEL | AA196: ='MDA1'!K196 -> 0 | AB196: ='MDA3'!O196 -> 0 | AC196: ='T1'!M196 -> 0 | AD196: ='T2'!K196 -> 0 | AE196: =T3_R1!L196 -> 0 | AF196: =T3_R2!L196 -> 0 | AI196: =_xlfn.XLOOKUP($W196,[1]COUNTRY_INFO!$Y$9:$Y$198,[1]COUNTRY_INFO!H$9:H$198) ->  | AJ196: =_xlfn.XLOOKUP($W196,[1]COUNTRY_INFO!$Y$9:$Y$198,[1]COUNTRY_INFO!I$9:I$198) ->  | AK196: =_xlfn.XLOOKUP($W196,[1]COUNTRY_INFO!$Y$9:$Y$198,[1]COUNTRY_INFO!J$9:J$198) ->  | AL196: =_xlfn.XLOOKUP($W196,[1]COUNTRY_INFO!$Y$9:$Y$198,[1]COUNTRY_INFO!K$9:K$198) ->  | AM196: =_xlfn.XLOOKUP($W196,[1]COUNTRY_INFO!$Y$9:$Y$198,[1]COUNTRY_INFO!L$9:L$198) -> 
A197: =IF(INTRO!$E$34<>0,INTRO!$E$34,"") -> Cameroon | B197: SOUTH-WEST | C197: WABANE | D197: 45828 | E197: =IF(INTRO!$E$48="","",ROUND($D197*INTRO!$E$48,0)) -> 5921 | F197: =IF(INTRO!$E$49="","",ROUND($D197*INTRO!$E$49,0)) -> 13061 | G197: =IF(INTRO!$E$50="","",ROUND($D197*INTRO!$E$50,0)) -> 24976 | H197: 0 | I197: 1 | J197: 3 | K197: 0 | L197: 1 | M197: =IF(INTRO!$E$38="Endémique", IF($H197>0, IF($H197=4,"Inconnu", IF($H197=99,"Interrompu", $D197)), 0),"Non requis") -> 0 | N197: =IF(INTRO!$E$40="Endémique", IF($I197>0, IF($I197=4,"Inconnu",IF($I197=99,"Interrompu", $D197)), 0),"Non requis") -> 45828 | O197: =IF(INTRO!$E$42="Endémique", IF(AND($J197>1,$J197<5), IF($J197=4, "Inconnu", E197+F197), 0),"Non requis") -> 18982 | P197: =IF(INTRO!$E$44="Endémique", IF(AND($K197>0,$K197<5), IF($K197=4,"Inconnu", IF($K197=1, $F197*0.33, IF($K197=2, $F197*0.5+$G197*0.2, SUM(F197:G197)))), 0),"Non requis") -> 0 | Q197: 0 | R197: 0 | S197: 0 | T197: 0 | W197: 7608 | X197: WABANE | AA197: ='MDA1'!K197 -> 0 | AB197: ='MDA3'!O197 -> 0 | AC197: ='T1'!M197 -> 0 | AD197: ='T2'!K197 -> 0 | AE197: =T3_R1!L197 -> 0 | AF197: =T3_R2!L197 -> 0 | AI197: =_xlfn.XLOOKUP($W197,[1]COUNTRY_INFO!$Y$9:$Y$198,[1]COUNTRY_INFO!H$9:H$198) ->  | AJ197: =_xlfn.XLOOKUP($W197,[1]COUNTRY_INFO!$Y$9:$Y$198,[1]COUNTRY_INFO!I$9:I$198) ->  | AK197: =_xlfn.XLOOKUP($W197,[1]COUNTRY_INFO!$Y$9:$Y$198,[1]COUNTRY_INFO!J$9:J$198) ->  | AL197: =_xlfn.XLOOKUP($W197,[1]COUNTRY_INFO!$Y$9:$Y$198,[1]COUNTRY_INFO!K$9:K$198) ->  | AM197: =_xlfn.XLOOKUP($W197,[1]COUNTRY_INFO!$Y$9:$Y$198,[1]COUNTRY_INFO!L$9:L$198) -> 

Sheet MDA1
A1: MDA 1 - Ivermectine (IVM) et Albendazole (ALB)
A2: Structure administrative, population nécessitant une chimioprévention par groupe d'âge, population traitée par groupe d'âge et couverture
